Workbook

Sheet Cover
A1: Infromation about the model
B11: DISCLAIMER
B30: MODEL RESOURCES
B35: INTRODUCTION
B47: MODEL SCOPE
B54: MODEL FRAMEWORK
B83: PROJECT TEAM
B90: PROJECT PARTNERS

Sheet Scenario setting
B1: Scenario Setting
C3: Scenario: | D3: Current Policies
C11: Vehicle technology development assumption: | D11: 0
C13: Infrastructure Expansion
C14: Total network length (km) | D14: 2015 | E14: 2020 | F14: 2025 | G14: 2030 | H14: 2035 | I14: 2040 | J14: 2045 | K14: 2050
C15: Walkways | D15: 300 | E15: 420 | F15: 800 | G15: 650 | H15: 800 | I15: 950 | J15: 1100 | K15: 1250
C16: Bike lanes | D16: 30 | E16: 120 | F16: 120 | G16: 120 | H16: 120 | I16: 120 | J16: 120 | K16: 120
C17: Feeder Road | D17: 170 | E17: 247 | F17: 378 | G17: 509 | H17: 640 | I17: 771 | J17: 771 | K17: 771
C18: District Road | D18: 40 | E18: 55 | F18: 92 | G18: 130 | H18: 167 | I18: 204 | J18: 204 | K18: 204
C19: Main road | D19: 70 | E19: 96 | F19: 119 | G19: 142 | H19: 165 | I19: 188 | J19: 188 | K19: 188
C20: Highway | D20: 0 | E20: 3.8 | F20: 4 | G20: 4 | H20: 4 | I20: 4 | J20: 4 | K20: 4
C21: Bus | D21: 3874 | E21: 4200 | F21: 4100 | G21: 4100 | H21: 4100 | I21: 4100 | J21: 4100 | K21: 4100
C22: BRT | D22: 0 | E22: 0 | F22: 0 | G22: 0 | H22: 0 | I22: 0 | J22: 0 | K22: 0
C23: LRT | D23: 0 | E23: 0 | F23: 0 | G23: 0 | H23: 0 | I23: 0 | J23: 0 | K23: 0
C24: Cable Car | D24: 0 | E24: 0 | F24: 0 | G24: 0 | H24: 0 | I24: 0 | J24: 0 | K24: 0
C25: Urban rail | D25: 0 | E25: 0 | F25: 0 | G25: 0 | H25: 0 | I25: 0 | J25: 0 | K25: 0
B29: Public Transport Promotion
B30: Measure | C30: Target | D30: Start year | E30: Start value | F30: 2050 value
B31: Bus service improvement | C31: Bus speed increase (%)
B32: Public Transport priority | C32: Shared of prioritised bus network (%)
B33: Public Transport fare integration | C33: Average PT trip cost reduction (%)
B34: Public Transport Subscription scheme | C34: Share of the population with a PT subscription (%)
B35: Mobility As A Service (MaaS) | C35: Share of the population with a MaaS subscription (%)
C39: Shared Transport Promotion
C40: Number of vehicles | D40: 2015 | E40: 2020 | F40: 2025 | G40: 2030 | H40: 2035 | I40: 2040 | J40: 2045 | K40: 2050
C41: Taxi | D41: 600 | E41: 600 | F41: 600 | G41: 600 | H41: 600 | I41: 600 | J41: 600 | K41: 600
C42: Ride sharing | D42: 8000 | E42: 10000 | F42: 10000 | G42: 10000 | H42: 10000 | I42: 10000 | J42: 10000 | K42: 10000
B44: Measure | C44: Target | D44: Start year | E44: Start value | F44: 2050 value
B45: Carpooling incentives | C45: Increase in average car occupancy rate (%)
B46: Bike & Scooter sharing incentives | C46: Number of bike and scooter sharing vehicles
B47: Car sharing incentives | C47: Number of car sharing vehicles
B48: Launch of on-demand taxibus service | C48: Number of on-demand taxibus vehicles
B52: Restrictive measures
B53: Measure | C53: Target | D53: Start year | E53: Start value | F53: 2050 value
B54: Parking restrictions | C54: Share of the city core under stong parking restrictions (%)
B55: Vehicle access restrictions | C55: Share of cars restricted from circulating (%)
B59: Pricing measures
B60: Measure | C60: Target | D60: Start year | E60: Start value | F60: 2050 value
B61: Road pricing | C61: Increase in total use cost (%)
B62: Parking pricing | C62: Increase in parking cost (%)
B63: Fuel tax | C63: Increase vehicle cost per kilometre (%) for fossil-fueled vehicles
B64: Vehicle ownership & purchase tax | C64: Increase in vehicle ownership and purchase cost (%)
B68: Other measures
B69: Measure | C69: Target | D69: Start year | E69: Start value | F69: 2050 value
B70: Teleworking promotion | C70: Share of active population regularly teleworking (%) | D70: 2030 | E70: 0.01 | F70: 0.01
B71: Transit-Oriented Development (TOD) | C71: Increase in diversity of land-use functions and density around public transport network (%)

Sheet Scenario output
C2: Scenario output - Values are automatically updated based on Inputs and calibration
C5: Scenario: | D5: ='Scenario setting'!D3 -> Current Policies
C6: Run Date: | D6: =NOW() -> 2023-11-10T10:13:24.330
C11: Trip Mode Share | F11: 2015 | G11: 2020 | H11: 2025 | I11: 2030 | J11: 2035 | K11: 2040 | L11: 2045 | M11: 2050
D12: Non-Motorised | F12: =F33/F$32 -> 0.1640553735 | G12: 0.2074092629 | H12: 0.1340015064 | I12: 0.1276854092 | J12: 0.1213274784 | K12: 0.1140713956 | L12: 0.1094692493 | M12: 0.1062890725
E13: Walk | F13: 0.1537886518 | G13: 0.1868802486 | H13: 0.1192316438 | I13: 0.110471586 | J13: 0.1049855989 | K13: 0.09780378009 | L13: 0.09230040322 | M13: 0.08862898123
E14: Bicycle | F14: 0.01026672174 | G14: 0.02052901431 | H14: 0.0100949459 | I14: 0.01284322246 | J14: 0.01272144051 | K14: 0.01308844931 | L14: 0.01292405467 | M14: 0.0131362048
E15: Bike and Scooter sharing | F15: 0 | G15: 0 | H15: 0.004674916693 | I15: 0.00437060069 | J15: 0.003620438986 | K15: 0.003179166169 | L15: 0.004244791399 | M15: 0.004523886466
D16: Private vehicles | F16: 0.3911683493 | G16: 0.5093070894 | H16: 0.4525551936 | I16: 0.4484348211 | J16: 0.4323277766 | K16: 0.4580252809 | L16: 0.4412169956 | M16: 0.4372264112
E17: Motorcycle | F17: 0.007000392354 | G17: 0.005268679402 | H17: 0.005141071818 | I17: 0.004504478039 | J17: 0.003507021367 | K17: 0.002945505802 | L17: 0.002282998938 | M17: 0.001827519496
E18: Car | F18: 0.384167957 | G18: 0.50403841 | H18: 0.4474141218 | I18: 0.4439303431 | J18: 0.4288207553 | K18: 0.4550797751 | L18: 0.4389339967 | M18: 0.4353988917
D19: Public Transport | F19: 0.4065050812 | G19: 0.2546443296 | H19: 0.3872442482 | I19: 0.4015939828 | J19: 0.4290932947 | K19: 0.4136916534 | L19: 0.4324484647 | M19: 0.4399679906
E20: Bus | F20: 0.4065050812 | G20: 0.2546443296 | H20: 0.33970252 | I20: 0.3365535955 | J20: 0.2772063136 | K20: 0.2548733614 | L20: 0.2463146867 | M20: 0.2286087076
E21: Bus Rapid Transit | F21: 0 | G21: 0 | H21: 0 | I21: 0 | J21: 0 | K21: 0 | L21: 0 | M21: 0
E22: Cable Car | F22: =F43/F$32 -> 0 | G22: 0 | H22: 0 | I22: 0.008279661294 | J22: 0.006624368736 | K22: 0.006211480043 | L22: 0.006044328807 | M22: 0.005650079892
E23: Light Rail Transit | F23: 0 | G23: 0 | H23: 0.0475417282 | I23: 0.05676072603 | J23: 0.1134995661 | K23: 0.1042679106 | L23: 0.1001484794 | M23: 0.09244062441
E24: Urban Rail | F24: 0 | G24: 0 | H24: 0 | I24: 0 | J24: 0.03176304631 | K24: 0.04833890132 | L24: 0.07994096972 | M24: 0.1132685788
D25: Shared Mobility | F25: 0.03827119596 | G25: 0.02863931813 | H25: 0.02619905183 | I25: 0.02228578684 | J25: 0.01725145029 | K25: 0.01421167018 | L25: 0.01686529039 | M25: 0.01651652572
E26: Taxi | F26: 0.004693728088 | G26: 0.003444586339 | H26: 0.003317463046 | I26: 0.002971599556 | J26: 0.002338867546 | K26: 0.001999719542 | L26: 0.001556443239 | M26: 0.001244071071
E27: Ride-sharing | F27: 0.03357746787 | G27: 0.02519473179 | H27: 0.02288158878 | I27: 0.01931418728 | J27: 0.01491258274 | K27: 0.01221195064 | L27: 0.01530884715 | M27: 0.01527245465
E28: Car-Sharing | F28: 0 | G28: 0 | H28: 0 | I28: 0 | J28: 0 | K28: 0 | L28: 0 | M28: 0
E29: On-demand Taxibus | F29: 0 | G29: 0 | H29: 0 | I29: 0 | J29: 0 | K29: 0 | L29: 0 | M29: 0
C31: Trips (million) | F31: 2015 | G31: 2020 | H31: 2025 | I31: 2030 | J31: 2035 | K31: 2040 | L31: 2045 | M31: 2050
D32: TOTAL | F32: =SUM(Demand_detailed!Q$7:Q$678)/1000000 -> 646.2870446 | G32: =SUM(Demand_detailed!R$7:R$678)/1000000 -> 474.9619877 | H32: =SUM(Demand_detailed!S$7:S$678)/1000000 -> 858.842528 | I32: =SUM(Demand_detailed!T$7:T$678)/1000000 -> 969.8312711 | J32: =SUM(Demand_detailed!U$7:U$678)/1000000 -> 1085.275792 | K32: =SUM(Demand_detailed!V$7:V$678)/1000000 -> 1213.793782 | L32: =SUM(Demand_detailed!W$7:W$678)/1000000 -> 1380.995664 | M32: =SUM(Demand_detailed!X$7:X$678)/1000000 -> 1575.594209
D33: Non-Motorised | F33: =SUM(F34:F36) -> 106.0268625 | G33: =SUM(G34:G36) -> 98.51151575 | H33: 115.0861925 | I33: 123.8333027 | J33: 131.6737752 | K33: 138.4591506 | L33: 151.1765586 | M33: 167.4684471
E34: Walk | F34: =SUMIF(Demand_detailed!$F$7:$F$678,1,Demand_detailed!Q$7:Q$678)/1000000 -> 99.39161324 | G34: =SUMIF(Demand_detailed!$F$7:$F$678,1,Demand_detailed!R$7:R$678)/1000000 -> 88.76101431 | H34: =SUMIF(Demand_detailed!$F$7:$F$678,1,Demand_detailed!S$7:S$678)/1000000 -> 102.4012063 | I34: =SUMIF(Demand_detailed!$F$7:$F$678,1,Demand_detailed!T$7:T$678)/1000000 -> 107.1387987 | J34: =SUMIF(Demand_detailed!$F$7:$F$678,1,Demand_detailed!U$7:U$678)/1000000 -> 113.938329 | K34: =SUMIF(Demand_detailed!$F$7:$F$678,1,Demand_detailed!V$7:V$678)/1000000 -> 118.7136201 | L34: =SUMIF(Demand_detailed!$F$7:$F$678,1,Demand_detailed!W$7:W$678)/1000000 -> 127.4664566 | M34: =SUMIF(Demand_detailed!$F$7:$F$678,1,Demand_detailed!X$7:X$678)/1000000 -> 139.6433095
E35: Bicycle | F35: =SUMIF(Demand_detailed!$F$7:$F$678,2,Demand_detailed!Q$7:Q$678)/1000000 -> 6.635249254 | G35: =SUMIF(Demand_detailed!$F$7:$F$678,2,Demand_detailed!R$7:R$678)/1000000 -> 9.750501443 | H35: =SUMIF(Demand_detailed!$F$7:$F$678,2,Demand_detailed!S$7:S$678)/1000000 -> 8.66996886 | I35: =SUMIF(Demand_detailed!$F$7:$F$678,2,Demand_detailed!T$7:T$678)/1000000 -> 12.45575876 | J35: =SUMIF(Demand_detailed!$F$7:$F$678,2,Demand_detailed!U$7:U$678)/1000000 -> 13.80627143 | K35: =SUMIF(Demand_detailed!$F$7:$F$678,2,Demand_detailed!V$7:V$678)/1000000 -> 15.88667839 | L35: =SUMIF(Demand_detailed!$F$7:$F$678,2,Demand_detailed!W$7:W$678)/1000000 -> 17.84806346 | M35: =SUMIF(Demand_detailed!$F$7:$F$678,2,Demand_detailed!X$7:X$678)/1000000 -> 20.6973282
E36: Bike and Scooter sharing | F36: =SUMIF(Demand_detailed!$F$7:$F$678,11,Demand_detailed!Q$7:Q$678)/1000000 -> 0 | G36: =SUMIF(Demand_detailed!$F$7:$F$678,11,Demand_detailed!R$7:R$678)/1000000 -> 0 | H36: =SUMIF(Demand_detailed!$F$7:$F$678,11,Demand_detailed!S$7:S$678)/1000000 -> 4.015017271 | I36: =SUMIF(Demand_detailed!$F$7:$F$678,11,Demand_detailed!T$7:T$678)/1000000 -> 4.238745223 | J36: =SUMIF(Demand_detailed!$F$7:$F$678,11,Demand_detailed!U$7:U$678)/1000000 -> 3.929174788 | K36: =SUMIF(Demand_detailed!$F$7:$F$678,11,Demand_detailed!V$7:V$678)/1000000 -> 3.858852127 | L36: =SUMIF(Demand_detailed!$F$7:$F$678,11,Demand_detailed!W$7:W$678)/1000000 -> 5.862038517 | M36: =SUMIF(Demand_detailed!$F$7:$F$678,11,Demand_detailed!X$7:X$678)/1000000 -> 7.127809317
D37: Private vehicles | F37: =SUM(F38:F39) -> 252.8070364 | G37: =SUM(G38:G39) -> 241.9015075 | H37: 388.6736465 | I37: 434.9061126 | J37: 469.1948703 | K37: 555.9482379 | L37: 609.3187579 | M37: 688.8914013
E38: Motorcycle | F38: =SUMIF(Demand_detailed!$F$7:$F$678,3,Demand_detailed!Q$7:Q$678)/1000000 -> 4.524262885 | G38: =SUMIF(Demand_detailed!$F$7:$F$678,3,Demand_detailed!R$7:R$678)/1000000 -> 2.502422441 | H38: =SUMIF(Demand_detailed!$F$7:$F$678,3,Demand_detailed!S$7:S$678)/1000000 -> 4.415371116 | I38: =SUMIF(Demand_detailed!$F$7:$F$678,3,Demand_detailed!T$7:T$678)/1000000 -> 4.368583662 | J38: =SUMIF(Demand_detailed!$F$7:$F$678,3,Demand_detailed!U$7:U$678)/1000000 -> 3.806085392 | K38: =SUMIF(Demand_detailed!$F$7:$F$678,3,Demand_detailed!V$7:V$678)/1000000 -> 3.575236628 | L38: =SUMIF(Demand_detailed!$F$7:$F$678,3,Demand_detailed!W$7:W$678)/1000000 -> 3.152811635 | M38: =SUMIF(Demand_detailed!$F$7:$F$678,3,Demand_detailed!X$7:X$678)/1000000 -> 2.879429134
E39: Car | F39: =SUMIF(Demand_detailed!$F$7:$F$678,4,Demand_detailed!Q$7:Q$678)/1000000 -> 248.2827735 | G39: =SUMIF(Demand_detailed!$F$7:$F$678,4,Demand_detailed!R$7:R$678)/1000000 -> 239.3990851 | H39: =SUMIF(Demand_detailed!$F$7:$F$678,4,Demand_detailed!S$7:S$678)/1000000 -> 384.2582754 | I39: =SUMIF(Demand_detailed!$F$7:$F$678,4,Demand_detailed!T$7:T$678)/1000000 -> 430.537529 | J39: =SUMIF(Demand_detailed!$F$7:$F$678,4,Demand_detailed!U$7:U$678)/1000000 -> 465.3887849 | K39: =SUMIF(Demand_detailed!$F$7:$F$678,4,Demand_detailed!V$7:V$678)/1000000 -> 552.3730013 | L39: =SUMIF(Demand_detailed!$F$7:$F$678,4,Demand_detailed!W$7:W$678)/1000000 -> 606.1659463 | M39: =SUMIF(Demand_detailed!$F$7:$F$678,4,Demand_detailed!X$7:X$678)/1000000 -> 686.0119721
D40: Public Transport | F40: =SUM(F41:F45) -> 262.7189675 | G40: =SUM(G41:G45) -> 120.9463769 | H40: 332.5818291 | I40: 389.4784028 | J40: 465.6845653 | K40: 502.1363565 | L40: 597.2094547 | M40: 693.211018
E41: Bus | F41: =SUMIF(Demand_detailed!$F$7:$F$678,6,Demand_detailed!Q$7:Q$678)/1000000 -> 262.7189675 | G41: =SUMIF(Demand_detailed!$F$7:$F$678,6,Demand_detailed!R$7:R$678)/1000000 -> 120.9463769 | H41: =SUMIF(Demand_detailed!$F$7:$F$678,6,Demand_detailed!S$7:S$678)/1000000 -> 291.750971 | I41: =SUMIF(Demand_detailed!$F$7:$F$678,6,Demand_detailed!T$7:T$678)/1000000 -> 326.4002013 | J41: =SUMIF(Demand_detailed!$F$7:$F$678,6,Demand_detailed!U$7:U$678)/1000000 -> 300.8453016 | K41: =SUMIF(Demand_detailed!$F$7:$F$678,6,Demand_detailed!V$7:V$678)/1000000 -> 309.3637013 | L41: =SUMIF(Demand_detailed!$F$7:$F$678,6,Demand_detailed!W$7:W$678)/1000000 -> 340.1595144 | M41: =SUMIF(Demand_detailed!$F$7:$F$678,6,Demand_detailed!X$7:X$678)/1000000 -> 360.1945557
E42: Bus Rapid Transit | F42: =SUMIF(Demand_detailed!$F$7:$F$678,7,Demand_detailed!Q$7:Q$678)/1000000 -> 0 | G42: =SUMIF(Demand_detailed!$F$7:$F$678,7,Demand_detailed!R$7:R$678)/1000000 -> 0 | H42: =SUMIF(Demand_detailed!$F$7:$F$678,7,Demand_detailed!S$7:S$678)/1000000 -> 0 | I42: =SUMIF(Demand_detailed!$F$7:$F$678,7,Demand_detailed!T$7:T$678)/1000000 -> 0 | J42: =SUMIF(Demand_detailed!$F$7:$F$678,7,Demand_detailed!U$7:U$678)/1000000 -> 0 | K42: =SUMIF(Demand_detailed!$F$7:$F$678,7,Demand_detailed!V$7:V$678)/1000000 -> 0 | L42: =SUMIF(Demand_detailed!$F$7:$F$678,7,Demand_detailed!W$7:W$678)/1000000 -> 0 | M42: =SUMIF(Demand_detailed!$F$7:$F$678,7,Demand_detailed!X$7:X$678)/1000000 -> 0
E43: Cable Car | F43: =SUMIF(Demand_detailed!$F$7:$F$678,9,Demand_detailed!Q$7:Q$678)/1000000 -> 0 | G43: =SUMIF(Demand_detailed!$F$7:$F$678,9,Demand_detailed!R$7:R$678)/1000000 -> 0 | H43: =SUMIF(Demand_detailed!$F$7:$F$678,9,Demand_detailed!S$7:S$678)/1000000 -> 0 | I43: =SUMIF(Demand_detailed!$F$7:$F$678,9,Demand_detailed!T$7:T$678)/1000000 -> 8.029874438 | J43: =SUMIF(Demand_detailed!$F$7:$F$678,9,Demand_detailed!U$7:U$678)/1000000 -> 7.189267027 | K43: =SUMIF(Demand_detailed!$F$7:$F$678,9,Demand_detailed!V$7:V$678)/1000000 -> 7.539455853 | L43: =SUMIF(Demand_detailed!$F$7:$F$678,9,Demand_detailed!W$7:W$678)/1000000 -> 8.347191874 | M43: =SUMIF(Demand_detailed!$F$7:$F$678,9,Demand_detailed!X$7:X$678)/1000000 -> 8.902233156
E44: Light Rail Transit | F44: =SUMIF(Demand_detailed!$F$7:$F$678,8,Demand_detailed!Q$7:Q$678)/1000000 -> 0 | G44: =SUMIF(Demand_detailed!$F$7:$F$678,8,Demand_detailed!R$7:R$678)/1000000 -> 0 | H44: =SUMIF(Demand_detailed!$F$7:$F$678,8,Demand_detailed!S$7:S$678)/1000000 -> 40.83085803 | I44: =SUMIF(Demand_detailed!$F$7:$F$678,8,Demand_detailed!T$7:T$678)/1000000 -> 55.04832707 | J44: =SUMIF(Demand_detailed!$F$7:$F$678,8,Demand_detailed!U$7:U$678)/1000000 -> 123.1783315 | K44: =SUMIF(Demand_detailed!$F$7:$F$678,8,Demand_detailed!V$7:V$678)/1000000 -> 126.5597415 | L44: =SUMIF(Demand_detailed!$F$7:$F$678,8,Demand_detailed!W$7:W$678)/1000000 -> 138.3046159 | M44: =SUMIF(Demand_detailed!$F$7:$F$678,8,Demand_detailed!X$7:X$678)/1000000 -> 145.6489125
E45: Urban Rail | F45: =SUMIF(Demand_detailed!$F$7:$F$678,10,Demand_detailed!Q$7:Q$678)/1000000 -> 0 | G45: =SUMIF(Demand_detailed!$F$7:$F$678,10,Demand_detailed!R$7:R$678)/1000000 -> 0 | H45: =SUMIF(Demand_detailed!$F$7:$F$678,10,Demand_detailed!S$7:S$678)/1000000 -> 0 | I45: =SUMIF(Demand_detailed!$F$7:$F$678,10,Demand_detailed!T$7:T$678)/1000000 -> 0 | J45: =SUMIF(Demand_detailed!$F$7:$F$678,10,Demand_detailed!U$7:U$678)/1000000 -> 34.47166524 | K45: =SUMIF(Demand_detailed!$F$7:$F$678,10,Demand_detailed!V$7:V$678)/1000000 -> 58.67345785 | L45: =SUMIF(Demand_detailed!$F$7:$F$678,10,Demand_detailed!W$7:W$678)/1000000 -> 110.3981326 | M45: =SUMIF(Demand_detailed!$F$7:$F$678,10,Demand_detailed!X$7:X$678)/1000000 -> 178.4653167
D46: Shared Mobility | F46: =SUM(F47:F50) -> 24.73417813 | G46: =SUM(G47:G50) -> 13.60258746 | H46: 22.5008599 | I46: 21.61345298 | J46: 18.72258138 | K46: 17.2500369 | L46: 23.29089291 | M46: 26.02334227
E47: Taxi | F47: =SUMIF(Demand_detailed!$F$7:$F$678,5,Demand_detailed!Q$7:Q$678)/1000000 -> 3.033495654 | G47: =SUMIF(Demand_detailed!$F$7:$F$678,5,Demand_detailed!R$7:R$678)/1000000 -> 1.636047574 | H47: =SUMIF(Demand_detailed!$F$7:$F$678,5,Demand_detailed!S$7:S$678)/1000000 -> 2.849178349 | I47: =SUMIF(Demand_detailed!$F$7:$F$678,5,Demand_detailed!T$7:T$678)/1000000 -> 2.881950174 | J47: =SUMIF(Demand_detailed!$F$7:$F$678,5,Demand_detailed!U$7:U$678)/1000000 -> 2.538316329 | K47: =SUMIF(Demand_detailed!$F$7:$F$678,5,Demand_detailed!V$7:V$678)/1000000 -> 2.427247145 | L47: =SUMIF(Demand_detailed!$F$7:$F$678,5,Demand_detailed!W$7:W$678)/1000000 -> 2.149441365 | M47: =SUMIF(Demand_detailed!$F$7:$F$678,5,Demand_detailed!X$7:X$678)/1000000 -> 1.960151175
E48: Ride-sharing | F48: =SUMIF(Demand_detailed!$F$7:$F$678,12,Demand_detailed!Q$7:Q$678)/1000000 -> 21.70068248 | G48: =SUMIF(Demand_detailed!$F$7:$F$678,12,Demand_detailed!R$7:R$678)/1000000 -> 11.96653989 | H48: =SUMIF(Demand_detailed!$F$7:$F$678,12,Demand_detailed!S$7:S$678)/1000000 -> 19.65168155 | I48: =SUMIF(Demand_detailed!$F$7:$F$678,12,Demand_detailed!T$7:T$678)/1000000 -> 18.7315028 | J48: =SUMIF(Demand_detailed!$F$7:$F$678,12,Demand_detailed!U$7:U$678)/1000000 -> 16.18426505 | K48: =SUMIF(Demand_detailed!$F$7:$F$678,12,Demand_detailed!V$7:V$678)/1000000 -> 14.82278975 | L48: =SUMIF(Demand_detailed!$F$7:$F$678,12,Demand_detailed!W$7:W$678)/1000000 -> 21.14145154 | M48: =SUMIF(Demand_detailed!$F$7:$F$678,12,Demand_detailed!X$7:X$678)/1000000 -> 24.0631911
E49: Car-Sharing | F49: =SUMIF(Demand_detailed!$F$7:$F$678,13,Demand_detailed!Q$7:Q$678)/1000000 -> 0 | G49: =SUMIF(Demand_detailed!$F$7:$F$678,13,Demand_detailed!R$7:R$678)/1000000 -> 0 | H49: =SUMIF(Demand_detailed!$F$7:$F$678,13,Demand_detailed!S$7:S$678)/1000000 -> 0 | I49: =SUMIF(Demand_detailed!$F$7:$F$678,13,Demand_detailed!T$7:T$678)/1000000 -> 0 | J49: =SUMIF(Demand_detailed!$F$7:$F$678,13,Demand_detailed!U$7:U$678)/1000000 -> 0 | K49: =SUMIF(Demand_detailed!$F$7:$F$678,13,Demand_detailed!V$7:V$678)/1000000 -> 0 | L49: =SUMIF(Demand_detailed!$F$7:$F$678,13,Demand_detailed!W$7:W$678)/1000000 -> 0 | M49: =SUMIF(Demand_detailed!$F$7:$F$678,13,Demand_detailed!X$7:X$678)/1000000 -> 0
E50: On-demand Taxibus | F50: =SUMIF(Demand_detailed!$F$7:$F$678,14,Demand_detailed!Q$7:Q$678)/1000000 -> 0 | G50: =SUMIF(Demand_detailed!$F$7:$F$678,14,Demand_detailed!R$7:R$678)/1000000 -> 0 | H50: =SUMIF(Demand_detailed!$F$7:$F$678,14,Demand_detailed!S$7:S$678)/1000000 -> 0 | I50: =SUMIF(Demand_detailed!$F$7:$F$678,14,Demand_detailed!T$7:T$678)/1000000 -> 0 | J50: =SUMIF(Demand_detailed!$F$7:$F$678,14,Demand_detailed!U$7:U$678)/1000000 -> 0 | K50: =SUMIF(Demand_detailed!$F$7:$F$678,14,Demand_detailed!V$7:V$678)/1000000 -> 0 | L50: =SUMIF(Demand_detailed!$F$7:$F$678,14,Demand_detailed!W$7:W$678)/1000000 -> 0 | M50: =SUMIF(Demand_detailed!$F$7:$F$678,14,Demand_detailed!X$7:X$678)/1000000 -> 0
C52: Passenger-kilometre (million km) | F52: 2015 | G52: 2020 | H52: 2025 | I52: 2030 | J52: 2035 | K52: 2040 | L52: 2045 | M52: 2050
D53: TOTAL | F53: =SUM(Demand_detailed!Z$7:Z$678)/1000000 -> 3166.337894 | G53: =SUM(Demand_detailed!AA$7:AA$678)/1000000 -> 2555.484057 | H53: =SUM(Demand_detailed!AB$7:AB$678)/1000000 -> 4995.324363 | I53: =SUM(Demand_detailed!AC$7:AC$678)/1000000 -> 6112.608989 | J53: =SUM(Demand_detailed!AD$7:AD$678)/1000000 -> 6842.92299 | K53: =SUM(Demand_detailed!AE$7:AE$678)/1000000 -> 8067.197591 | L53: =SUM(Demand_detailed!AF$7:AF$678)/1000000 -> 9251.065876 | M53: =SUM(Demand_detailed!AG$7:AG$678)/1000000 -> 10727.27079
D54: Non-Motorised | F54: =SUM(F55:F57) -> 201.4636976 | G54: =SUM(G55:G57) -> 210.1662709 | H54: 231.5967176 | I54: 257.2052417 | J54: 266.0625689 | K54: 281.9450628 | L54: 310.0404674 | M54: 343.5932289
E55: Walk | F55: =SUMIF(Demand_detailed!$F$7:$F$678,1,Demand_detailed!Z$7:Z$678)/1000000 -> 177.5404653 | G55: =SUMIF(Demand_detailed!$F$7:$F$678,1,Demand_detailed!AA$7:AA$678)/1000000 -> 172.1860472 | H55: =SUMIF(Demand_detailed!$F$7:$F$678,1,Demand_detailed!AB$7:AB$678)/1000000 -> 175.856714 | I55: =SUMIF(Demand_detailed!$F$7:$F$678,1,Demand_detailed!AC$7:AC$678)/1000000 -> 182.7871804 | J55: =SUMIF(Demand_detailed!$F$7:$F$678,1,Demand_detailed!AD$7:AD$678)/1000000 -> 188.0514349 | K55: =SUMIF(Demand_detailed!$F$7:$F$678,1,Demand_detailed!AE$7:AE$678)/1000000 -> 194.0128979 | L55: =SUMIF(Demand_detailed!$F$7:$F$678,1,Demand_detailed!AF$7:AF$678)/1000000 -> 202.450419 | M55: =SUMIF(Demand_detailed!$F$7:$F$678,1,Demand_detailed!AG$7:AG$678)/1000000 -> 217.0672584
E56: Bicycle | F56: =SUMIF(Demand_detailed!$F$7:$F$678,2,Demand_detailed!Z$7:Z$678)/1000000 -> 23.92323229 | G56: =SUMIF(Demand_detailed!$F$7:$F$678,2,Demand_detailed!AA$7:AA$678)/1000000 -> 37.98022371 | H56: =SUMIF(Demand_detailed!$F$7:$F$678,2,Demand_detailed!AB$7:AB$678)/1000000 -> 33.58191805 | I56: =SUMIF(Demand_detailed!$F$7:$F$678,2,Demand_detailed!AC$7:AC$678)/1000000 -> 49.98332689 | J56: =SUMIF(Demand_detailed!$F$7:$F$678,2,Demand_detailed!AD$7:AD$678)/1000000 -> 55.25965258 | K56: =SUMIF(Demand_detailed!$F$7:$F$678,2,Demand_detailed!AE$7:AE$678)/1000000 -> 64.98739076 | L56: =SUMIF(Demand_detailed!$F$7:$F$678,2,Demand_detailed!AF$7:AF$678)/1000000 -> 72.67460237 | M56: =SUMIF(Demand_detailed!$F$7:$F$678,2,Demand_detailed!AG$7:AG$678)/1000000 -> 83.99428967
E57: Bike and Scooter sharing | F57: =SUMIF(Demand_detailed!$F$7:$F$678,11,Demand_detailed!Z$7:Z$678)/1000000 -> 0 | G57: =SUMIF(Demand_detailed!$F$7:$F$678,11,Demand_detailed!AA$7:AA$678)/1000000 -> 0 | H57: =SUMIF(Demand_detailed!$F$7:$F$678,11,Demand_detailed!AB$7:AB$678)/1000000 -> 22.15808546 | I57: =SUMIF(Demand_detailed!$F$7:$F$678,11,Demand_detailed!AC$7:AC$678)/1000000 -> 24.43473435 | J57: =SUMIF(Demand_detailed!$F$7:$F$678,11,Demand_detailed!AD$7:AD$678)/1000000 -> 22.7514814 | K57: =SUMIF(Demand_detailed!$F$7:$F$678,11,Demand_detailed!AE$7:AE$678)/1000000 -> 22.94477407 | L57: =SUMIF(Demand_detailed!$F$7:$F$678,11,Demand_detailed!AF$7:AF$678)/1000000 -> 34.91544602 | M57: =SUMIF(Demand_detailed!$F$7:$F$678,11,Demand_detailed!AG$7:AG$678)/1000000 -> 42.5316808
D58: Private vehicles | F58: =SUM(F59:F60) -> 1452.98519 | G58: =SUM(G59:G60) -> 1555.064375 | H58: 2584.068978 | I58: 3110.182216 | J58: 3325.656151 | K58: 4094.956076 | L58: 4472.750324 | M58: 5084.798768
E59: Motorcycle | F59: =SUMIF(Demand_detailed!$F$7:$F$678,3,Demand_detailed!Z$7:Z$678)/1000000 -> 23.64107807 | G59: =SUMIF(Demand_detailed!$F$7:$F$678,3,Demand_detailed!AA$7:AA$678)/1000000 -> 14.52277089 | H59: =SUMIF(Demand_detailed!$F$7:$F$678,3,Demand_detailed!AB$7:AB$678)/1000000 -> 26.57362549 | I59: =SUMIF(Demand_detailed!$F$7:$F$678,3,Demand_detailed!AC$7:AC$678)/1000000 -> 28.2699857 | J59: =SUMIF(Demand_detailed!$F$7:$F$678,3,Demand_detailed!AD$7:AD$678)/1000000 -> 24.55640674 | K59: =SUMIF(Demand_detailed!$F$7:$F$678,3,Demand_detailed!AE$7:AE$678)/1000000 -> 24.06859487 | L59: =SUMIF(Demand_detailed!$F$7:$F$678,3,Demand_detailed!AF$7:AF$678)/1000000 -> 21.22771 | M59: =SUMIF(Demand_detailed!$F$7:$F$678,3,Demand_detailed!AG$7:AG$678)/1000000 -> 19.51269447
E60: Car | F60: =SUMIF(Demand_detailed!$F$7:$F$678,4,Demand_detailed!Z$7:Z$678)/1000000 -> 1429.344112 | G60: =SUMIF(Demand_detailed!$F$7:$F$678,4,Demand_detailed!AA$7:AA$678)/1000000 -> 1540.541605 | H60: =SUMIF(Demand_detailed!$F$7:$F$678,4,Demand_detailed!AB$7:AB$678)/1000000 -> 2557.495353 | I60: =SUMIF(Demand_detailed!$F$7:$F$678,4,Demand_detailed!AC$7:AC$678)/1000000 -> 3081.912231 | J60: =SUMIF(Demand_detailed!$F$7:$F$678,4,Demand_detailed!AD$7:AD$678)/1000000 -> 3301.099744 | K60: =SUMIF(Demand_detailed!$F$7:$F$678,4,Demand_detailed!AE$7:AE$678)/1000000 -> 4070.887481 | L60: =SUMIF(Demand_detailed!$F$7:$F$678,4,Demand_detailed!AF$7:AF$678)/1000000 -> 4451.522614 | M60: =SUMIF(Demand_detailed!$F$7:$F$678,4,Demand_detailed!AG$7:AG$678)/1000000 -> 5065.286073
D61: Public Transport | F61: =SUM(F62:F66) -> 1373.170601 | G61: =SUM(G62:G66) -> 706.4094716 | H61: 2037.14922 | I61: 2599.349767 | J61: 3124.362932 | K61: 3568.324906 | L61: 4302.668003 | M61: 5110.760751
E62: Bus | F62: =SUMIF(Demand_detailed!$F$7:$F$678,6,Demand_detailed!Z$7:Z$678)/1000000 -> 1373.170601 | G62: =SUMIF(Demand_detailed!$F$7:$F$678,6,Demand_detailed!AA$7:AA$678)/1000000 -> 706.4094716 | H62: =SUMIF(Demand_detailed!$F$7:$F$678,6,Demand_detailed!AB$7:AB$678)/1000000 -> 1789.77932 | I62: =SUMIF(Demand_detailed!$F$7:$F$678,6,Demand_detailed!AC$7:AC$678)/1000000 -> 2183.366371 | J62: =SUMIF(Demand_detailed!$F$7:$F$678,6,Demand_detailed!AD$7:AD$678)/1000000 -> 2019.76079 | K62: =SUMIF(Demand_detailed!$F$7:$F$678,6,Demand_detailed!AE$7:AE$678)/1000000 -> 2196.547873 | L62: =SUMIF(Demand_detailed!$F$7:$F$678,6,Demand_detailed!AF$7:AF$678)/1000000 -> 2440.209547 | M62: =SUMIF(Demand_detailed!$F$7:$F$678,6,Demand_detailed!AG$7:AG$678)/1000000 -> 2634.643637
E63: Bus Rapid Transit | F63: =SUMIF(Demand_detailed!$F$7:$F$678,7,Demand_detailed!Z$7:Z$678)/1000000 -> 0 | G63: =SUMIF(Demand_detailed!$F$7:$F$678,7,Demand_detailed!AA$7:AA$678)/1000000 -> 0 | H63: =SUMIF(Demand_detailed!$F$7:$F$678,7,Demand_detailed!AB$7:AB$678)/1000000 -> 0 | I63: =SUMIF(Demand_detailed!$F$7:$F$678,7,Demand_detailed!AC$7:AC$678)/1000000 -> 0 | J63: =SUMIF(Demand_detailed!$F$7:$F$678,7,Demand_detailed!AD$7:AD$678)/1000000 -> 0 | K63: =SUMIF(Demand_detailed!$F$7:$F$678,7,Demand_detailed!AE$7:AE$678)/1000000 -> 0 | L63: =SUMIF(Demand_detailed!$F$7:$F$678,7,Demand_detailed!AF$7:AF$678)/1000000 -> 0 | M63: =SUMIF(Demand_detailed!$F$7:$F$678,7,Demand_detailed!AG$7:AG$678)/1000000 -> 0
E64: Cable Car | F64: =SUMIF(Demand_detailed!$F$7:$F$678,9,Demand_detailed!Z$7:Z$678)/1000000 -> 0 | G64: =SUMIF(Demand_detailed!$F$7:$F$678,9,Demand_detailed!AA$7:AA$678)/1000000 -> 0 | H64: =SUMIF(Demand_detailed!$F$7:$F$678,9,Demand_detailed!AB$7:AB$678)/1000000 -> 0 | I64: =SUMIF(Demand_detailed!$F$7:$F$678,9,Demand_detailed!AC$7:AC$678)/1000000 -> 52.29658019 | J64: =SUMIF(Demand_detailed!$F$7:$F$678,9,Demand_detailed!AD$7:AD$678)/1000000 -> 47.05279218 | K64: =SUMIF(Demand_detailed!$F$7:$F$678,9,Demand_detailed!AE$7:AE$678)/1000000 -> 52.22948246 | L64: =SUMIF(Demand_detailed!$F$7:$F$678,9,Demand_detailed!AF$7:AF$678)/1000000 -> 58.55982899 | M64: =SUMIF(Demand_detailed!$F$7:$F$678,9,Demand_detailed!AG$7:AG$678)/1000000 -> 63.83570454
E65: Light Rail Transit | F65: =SUMIF(Demand_detailed!$F$7:$F$678,8,Demand_detailed!Z$7:Z$678)/1000000 -> 0 | G65: =SUMIF(Demand_detailed!$F$7:$F$678,8,Demand_detailed!AA$7:AA$678)/1000000 -> 0 | H65: =SUMIF(Demand_detailed!$F$7:$F$678,8,Demand_detailed!AB$7:AB$678)/1000000 -> 247.3699 | I65: =SUMIF(Demand_detailed!$F$7:$F$678,8,Demand_detailed!AC$7:AC$678)/1000000 -> 363.6868154 | J65: =SUMIF(Demand_detailed!$F$7:$F$678,8,Demand_detailed!AD$7:AD$678)/1000000 -> 819.0861989 | K65: =SUMIF(Demand_detailed!$F$7:$F$678,8,Demand_detailed!AE$7:AE$678)/1000000 -> 890.4195798 | L65: =SUMIF(Demand_detailed!$F$7:$F$678,8,Demand_detailed!AF$7:AF$678)/1000000 -> 985.967567 | M65: =SUMIF(Demand_detailed!$F$7:$F$678,8,Demand_detailed!AG$7:AG$678)/1000000 -> 1061.365167
E66: Urban Rail | F66: =SUMIF(Demand_detailed!$F$7:$F$678,10,Demand_detailed!Z$7:Z$678)/1000000 -> 0 | G66: =SUMIF(Demand_detailed!$F$7:$F$678,10,Demand_detailed!AA$7:AA$678)/1000000 -> 0 | H66: =SUMIF(Demand_detailed!$F$7:$F$678,10,Demand_detailed!AB$7:AB$678)/1000000 -> 0 | I66: =SUMIF(Demand_detailed!$F$7:$F$678,10,Demand_detailed!AC$7:AC$678)/1000000 -> 0 | J66: =SUMIF(Demand_detailed!$F$7:$F$678,10,Demand_detailed!AD$7:AD$678)/1000000 -> 238.4631511 | K66: =SUMIF(Demand_detailed!$F$7:$F$678,10,Demand_detailed!AE$7:AE$678)/1000000 -> 429.1279708 | L66: =SUMIF(Demand_detailed!$F$7:$F$678,10,Demand_detailed!AF$7:AF$678)/1000000 -> 817.9310604 | M66: =SUMIF(Demand_detailed!$F$7:$F$678,10,Demand_detailed!AG$7:AG$678)/1000000 -> 1350.916243
D67: Shared Mobility | F67: =SUM(F68:F71) -> 138.7184053 | G67: =SUM(G68:G71) -> 83.8439391 | H67: 142.5094464 | I67: 145.8717643 | J67: 126.8413375 | K67: 121.9715458 | L67: 165.6070803 | M67: 188.1180406
E68: Taxi | F68: =SUMIF(Demand_detailed!$F$7:$F$678,5,Demand_detailed!Z$7:Z$678)/1000000 -> 16.28769184 | G68: =SUMIF(Demand_detailed!$F$7:$F$678,5,Demand_detailed!AA$7:AA$678)/1000000 -> 9.773901366 | H68: =SUMIF(Demand_detailed!$F$7:$F$678,5,Demand_detailed!AB$7:AB$678)/1000000 -> 17.79479927 | I68: =SUMIF(Demand_detailed!$F$7:$F$678,5,Demand_detailed!AC$7:AC$678)/1000000 -> 19.50728716 | J68: =SUMIF(Demand_detailed!$F$7:$F$678,5,Demand_detailed!AD$7:AD$678)/1000000 -> 17.2524977 | K68: =SUMIF(Demand_detailed!$F$7:$F$678,5,Demand_detailed!AE$7:AE$678)/1000000 -> 17.39127299 | L68: =SUMIF(Demand_detailed!$F$7:$F$678,5,Demand_detailed!AF$7:AF$678)/1000000 -> 15.5582211 | M68: =SUMIF(Demand_detailed!$F$7:$F$678,5,Demand_detailed!AG$7:AG$678)/1000000 -> 14.50570573
E69: Ride-sharing | F69: =SUMIF(Demand_detailed!$F$7:$F$678,12,Demand_detailed!Z$7:Z$678)/1000000 -> 122.4307135 | G69: =SUMIF(Demand_detailed!$F$7:$F$678,12,Demand_detailed!AA$7:AA$678)/1000000 -> 74.07003773 | H69: =SUMIF(Demand_detailed!$F$7:$F$678,12,Demand_detailed!AB$7:AB$678)/1000000 -> 124.7146471 | I69: =SUMIF(Demand_detailed!$F$7:$F$678,12,Demand_detailed!AC$7:AC$678)/1000000 -> 126.3644771 | J69: =SUMIF(Demand_detailed!$F$7:$F$678,12,Demand_detailed!AD$7:AD$678)/1000000 -> 109.5888398 | K69: =SUMIF(Demand_detailed!$F$7:$F$678,12,Demand_detailed!AE$7:AE$678)/1000000 -> 104.5802728 | L69: =SUMIF(Demand_detailed!$F$7:$F$678,12,Demand_detailed!AF$7:AF$678)/1000000 -> 150.0488592 | M69: =SUMIF(Demand_detailed!$F$7:$F$678,12,Demand_detailed!AG$7:AG$678)/1000000 -> 173.6123349
E70: Car-Sharing | F70: =SUMIF(Demand_detailed!$F$7:$F$678,13,Demand_detailed!Z$7:Z$678)/1000000 -> 0 | G70: =SUMIF(Demand_detailed!$F$7:$F$678,13,Demand_detailed!AA$7:AA$678)/1000000 -> 0 | H70: =SUMIF(Demand_detailed!$F$7:$F$678,13,Demand_detailed!AB$7:AB$678)/1000000 -> 0 | I70: =SUMIF(Demand_detailed!$F$7:$F$678,13,Demand_detailed!AC$7:AC$678)/1000000 -> 0 | J70: =SUMIF(Demand_detailed!$F$7:$F$678,13,Demand_detailed!AD$7:AD$678)/1000000 -> 0 | K70: =SUMIF(Demand_detailed!$F$7:$F$678,13,Demand_detailed!AE$7:AE$678)/1000000 -> 0 | L70: =SUMIF(Demand_detailed!$F$7:$F$678,13,Demand_detailed!AF$7:AF$678)/1000000 -> 0 | M70: =SUMIF(Demand_detailed!$F$7:$F$678,13,Demand_detailed!AG$7:AG$678)/1000000 -> 0
E71: On-demand Taxibus | F71: =SUMIF(Demand_detailed!$F$7:$F$678,14,Demand_detailed!Z$7:Z$678)/1000000 -> 0 | G71: =SUMIF(Demand_detailed!$F$7:$F$678,14,Demand_detailed!AA$7:AA$678)/1000000 -> 0 | H71: =SUMIF(Demand_detailed!$F$7:$F$678,14,Demand_detailed!AB$7:AB$678)/1000000 -> 0 | I71: =SUMIF(Demand_detailed!$F$7:$F$678,14,Demand_detailed!AC$7:AC$678)/1000000 -> 0 | J71: =SUMIF(Demand_detailed!$F$7:$F$678,14,Demand_detailed!AD$7:AD$678)/1000000 -> 0 | K71: =SUMIF(Demand_detailed!$F$7:$F$678,14,Demand_detailed!AE$7:AE$678)/1000000 -> 0 | L71: =SUMIF(Demand_detailed!$F$7:$F$678,14,Demand_detailed!AF$7:AF$678)/1000000 -> 0 | M71: =SUMIF(Demand_detailed!$F$7:$F$678,14,Demand_detailed!AG$7:AG$678)/1000000 -> 0
C73: Vehicle-kilometre (million km) | F73: 2015 | G73: 2020 | H73: 2025 | I73: 2030 | J73: 2035 | K73: 2040 | L73: 2045 | M73: 2050
D74: TOTAL | F74: =SUM(Demand_detailed!AI$7:AI$678)/1000000 -> 1031.756085 | G74: =SUM(Demand_detailed!AJ$7:AJ$678)/1000000 -> 1012.948972 | H74: =SUM(Demand_detailed!AK$7:AK$678)/1000000 -> 1732.919405 | I74: =SUM(Demand_detailed!AL$7:AL$678)/1000000 -> 2007.281415 | J74: =SUM(Demand_detailed!AM$7:AM$678)/1000000 -> 2084.531811 | K74: =SUM(Demand_detailed!AN$7:AN$678)/1000000 -> 2486.254036 | L74: =SUM(Demand_detailed!AO$7:AO$678)/1000000 -> 2721.839948 | M74: =SUM(Demand_detailed!AP$7:AP$678)/1000000 -> 3055.314246
D75: Non-Motorised | F75: =SUM(F76:F78) -> 23.92323229 | G75: =SUM(G76:G78) -> 37.98022371 | H75: 55.74000352 | I75: 74.41806124 | J75: 78.01113398 | K75: 87.93216483 | L75: 107.5900484 | M75: 126.5259705
E76: Walk | F76: =SUMIF(Demand_detailed!$F$7:$F$678,1,Demand_detailed!AI$7:AI$678)/1000000 -> 0 | G76: =SUMIF(Demand_detailed!$F$7:$F$678,1,Demand_detailed!AJ$7:AJ$678)/1000000 -> 0 | H76: =SUMIF(Demand_detailed!$F$7:$F$678,1,Demand_detailed!AK$7:AK$678)/1000000 -> 0 | I76: =SUMIF(Demand_detailed!$F$7:$F$678,1,Demand_detailed!AL$7:AL$678)/1000000 -> 0 | J76: =SUMIF(Demand_detailed!$F$7:$F$678,1,Demand_detailed!AM$7:AM$678)/1000000 -> 0 | K76: =SUMIF(Demand_detailed!$F$7:$F$678,1,Demand_detailed!AN$7:AN$678)/1000000 -> 0 | L76: =SUMIF(Demand_detailed!$F$7:$F$678,1,Demand_detailed!AO$7:AO$678)/1000000 -> 0 | M76: =SUMIF(Demand_detailed!$F$7:$F$678,1,Demand_detailed!AP$7:AP$678)/1000000 -> 0
E77: Bicycle | F77: =SUMIF(Demand_detailed!$F$7:$F$678,2,Demand_detailed!AI$7:AI$678)/1000000 -> 23.92323229 | G77: =SUMIF(Demand_detailed!$F$7:$F$678,2,Demand_detailed!AJ$7:AJ$678)/1000000 -> 37.98022371 | H77: =SUMIF(Demand_detailed!$F$7:$F$678,2,Demand_detailed!AK$7:AK$678)/1000000 -> 33.58191805 | I77: =SUMIF(Demand_detailed!$F$7:$F$678,2,Demand_detailed!AL$7:AL$678)/1000000 -> 49.98332689 | J77: =SUMIF(Demand_detailed!$F$7:$F$678,2,Demand_detailed!AM$7:AM$678)/1000000 -> 55.25965258 | K77: =SUMIF(Demand_detailed!$F$7:$F$678,2,Demand_detailed!AN$7:AN$678)/1000000 -> 64.98739076 | L77: =SUMIF(Demand_detailed!$F$7:$F$678,2,Demand_detailed!AO$7:AO$678)/1000000 -> 72.67460237 | M77: =SUMIF(Demand_detailed!$F$7:$F$678,2,Demand_detailed!AP$7:AP$678)/1000000 -> 83.99428967
E78: Bike and Scooter sharing | F78: =SUMIF(Demand_detailed!$F$7:$F$678,11,Demand_detailed!AI$7:AI$678)/1000000 -> 0 | G78: =SUMIF(Demand_detailed!$F$7:$F$678,11,Demand_detailed!AJ$7:AJ$678)/1000000 -> 0 | H78: =SUMIF(Demand_detailed!$F$7:$F$678,11,Demand_detailed!AK$7:AK$678)/1000000 -> 22.15808546 | I78: =SUMIF(Demand_detailed!$F$7:$F$678,11,Demand_detailed!AL$7:AL$678)/1000000 -> 24.43473435 | J78: =SUMIF(Demand_detailed!$F$7:$F$678,11,Demand_detailed!AM$7:AM$678)/1000000 -> 22.7514814 | K78: =SUMIF(Demand_detailed!$F$7:$F$678,11,Demand_detailed!AN$7:AN$678)/1000000 -> 22.94477407 | L78: =SUMIF(Demand_detailed!$F$7:$F$678,11,Demand_detailed!AO$7:AO$678)/1000000 -> 34.91544602 | M78: =SUMIF(Demand_detailed!$F$7:$F$678,11,Demand_detailed!AP$7:AP$678)/1000000 -> 42.5316808
D79: Private vehicles | F79: =SUM(F80:F81) -> 815.5719515 | G79: =SUM(G80:G81) -> 869.058966 | H79: 1444.988593 | I79: 1656.341379 | J79: 1748.742169 | K79: 2126.267498 | L79: 2293.841383 | M79: 2575.964103
E80: Motorcycle | F80: =SUMIF(Demand_detailed!$F$7:$F$678,3,Demand_detailed!AI$7:AI$678)/1000000 -> 21.49188915 | G80: =SUMIF(Demand_detailed!$F$7:$F$678,3,Demand_detailed!AJ$7:AJ$678)/1000000 -> 13.20251899 | H80: =SUMIF(Demand_detailed!$F$7:$F$678,3,Demand_detailed!AK$7:AK$678)/1000000 -> 24.15784136 | I80: =SUMIF(Demand_detailed!$F$7:$F$678,3,Demand_detailed!AL$7:AL$678)/1000000 -> 25.699987 | J80: =SUMIF(Demand_detailed!$F$7:$F$678,3,Demand_detailed!AM$7:AM$678)/1000000 -> 22.32400613 | K80: =SUMIF(Demand_detailed!$F$7:$F$678,3,Demand_detailed!AN$7:AN$678)/1000000 -> 21.88054079 | L80: =SUMIF(Demand_detailed!$F$7:$F$678,3,Demand_detailed!AO$7:AO$678)/1000000 -> 19.29791818 | M80: =SUMIF(Demand_detailed!$F$7:$F$678,3,Demand_detailed!AP$7:AP$678)/1000000 -> 17.73881316
E81: Car | F81: =SUMIF(Demand_detailed!$F$7:$F$678,4,Demand_detailed!AI$7:AI$678)/1000000 -> 794.0800623 | G81: =SUMIF(Demand_detailed!$F$7:$F$678,4,Demand_detailed!AJ$7:AJ$678)/1000000 -> 855.856447 | H81: =SUMIF(Demand_detailed!$F$7:$F$678,4,Demand_detailed!AK$7:AK$678)/1000000 -> 1420.830752 | I81: =SUMIF(Demand_detailed!$F$7:$F$678,4,Demand_detailed!AL$7:AL$678)/1000000 -> 1630.641392 | J81: =SUMIF(Demand_detailed!$F$7:$F$678,4,Demand_detailed!AM$7:AM$678)/1000000 -> 1726.418162 | K81: =SUMIF(Demand_detailed!$F$7:$F$678,4,Demand_detailed!AN$7:AN$678)/1000000 -> 2104.386958 | L81: =SUMIF(Demand_detailed!$F$7:$F$678,4,Demand_detailed!AO$7:AO$678)/1000000 -> 2274.543465 | M81: =SUMIF(Demand_detailed!$F$7:$F$678,4,Demand_detailed!AP$7:AP$678)/1000000 -> 2558.22529
D82: Public Transport | F82: =SUM(F83:F87) -> 114.4308834 | G82: =SUM(G83:G87) -> 58.86745597 | H82: 152.2404004 | I82: 195.2093795 | J82: 187.1889859 | K82: 204.3112412 | L82: 228.1617985 | M82: 247.9630392
E83: Bus | F83: =SUMIF(Demand_detailed!$F$7:$F$678,6,Demand_detailed!AI$7:AI$678)/1000000 -> 114.4308834 | G83: =SUMIF(Demand_detailed!$F$7:$F$678,6,Demand_detailed!AJ$7:AJ$678)/1000000 -> 58.86745597 | H83: =SUMIF(Demand_detailed!$F$7:$F$678,6,Demand_detailed!AK$7:AK$678)/1000000 -> 149.1482767 | I83: =SUMIF(Demand_detailed!$F$7:$F$678,6,Demand_detailed!AL$7:AL$678)/1000000 -> 181.9471976 | J83: =SUMIF(Demand_detailed!$F$7:$F$678,6,Demand_detailed!AM$7:AM$678)/1000000 -> 168.3133992 | K83: =SUMIF(Demand_detailed!$F$7:$F$678,6,Demand_detailed!AN$7:AN$678)/1000000 -> 183.0456561 | L83: =SUMIF(Demand_detailed!$F$7:$F$678,6,Demand_detailed!AO$7:AO$678)/1000000 -> 203.3507956 | M83: =SUMIF(Demand_detailed!$F$7:$F$678,6,Demand_detailed!AP$7:AP$678)/1000000 -> 219.5536364
E84: Bus Rapid Transit | F84: =SUMIF(Demand_detailed!$F$7:$F$678,7,Demand_detailed!AI$7:AI$678)/1000000 -> 0 | G84: =SUMIF(Demand_detailed!$F$7:$F$678,7,Demand_detailed!AJ$7:AJ$678)/1000000 -> 0 | H84: =SUMIF(Demand_detailed!$F$7:$F$678,7,Demand_detailed!AK$7:AK$678)/1000000 -> 0 | I84: =SUMIF(Demand_detailed!$F$7:$F$678,7,Demand_detailed!AL$7:AL$678)/1000000 -> 0 | J84: =SUMIF(Demand_detailed!$F$7:$F$678,7,Demand_detailed!AM$7:AM$678)/1000000 -> 0 | K84: =SUMIF(Demand_detailed!$F$7:$F$678,7,Demand_detailed!AN$7:AN$678)/1000000 -> 0 | L84: =SUMIF(Demand_detailed!$F$7:$F$678,7,Demand_detailed!AO$7:AO$678)/1000000 -> 0 | M84: =SUMIF(Demand_detailed!$F$7:$F$678,7,Demand_detailed!AP$7:AP$678)/1000000 -> 0
E85: Cable Car | F85: =SUMIF(Demand_detailed!$F$7:$F$678,9,Demand_detailed!AI$7:AI$678)/1000000 -> 0 | G85: =SUMIF(Demand_detailed!$F$7:$F$678,9,Demand_detailed!AJ$7:AJ$678)/1000000 -> 0 | H85: =SUMIF(Demand_detailed!$F$7:$F$678,9,Demand_detailed!AK$7:AK$678)/1000000 -> 0 | I85: =SUMIF(Demand_detailed!$F$7:$F$678,9,Demand_detailed!AL$7:AL$678)/1000000 -> 8.716096698 | J85: =SUMIF(Demand_detailed!$F$7:$F$678,9,Demand_detailed!AM$7:AM$678)/1000000 -> 7.84213203 | K85: =SUMIF(Demand_detailed!$F$7:$F$678,9,Demand_detailed!AN$7:AN$678)/1000000 -> 8.704913743 | L85: =SUMIF(Demand_detailed!$F$7:$F$678,9,Demand_detailed!AO$7:AO$678)/1000000 -> 9.759971499 | M85: =SUMIF(Demand_detailed!$F$7:$F$678,9,Demand_detailed!AP$7:AP$678)/1000000 -> 10.63928409
E86: Light Rail Transit | F86: =SUMIF(Demand_detailed!$F$7:$F$678,8,Demand_detailed!AI$7:AI$678)/1000000 -> 0 | G86: =SUMIF(Demand_detailed!$F$7:$F$678,8,Demand_detailed!AJ$7:AJ$678)/1000000 -> 0 | H86: =SUMIF(Demand_detailed!$F$7:$F$678,8,Demand_detailed!AK$7:AK$678)/1000000 -> 3.09212375 | I86: =SUMIF(Demand_detailed!$F$7:$F$678,8,Demand_detailed!AL$7:AL$678)/1000000 -> 4.546085192 | J86: =SUMIF(Demand_detailed!$F$7:$F$678,8,Demand_detailed!AM$7:AM$678)/1000000 -> 10.23857749 | K86: =SUMIF(Demand_detailed!$F$7:$F$678,8,Demand_detailed!AN$7:AN$678)/1000000 -> 11.13024475 | L86: =SUMIF(Demand_detailed!$F$7:$F$678,8,Demand_detailed!AO$7:AO$678)/1000000 -> 12.32459459 | M86: =SUMIF(Demand_detailed!$F$7:$F$678,8,Demand_detailed!AP$7:AP$678)/1000000 -> 13.26706459
E87: Urban Rail | F87: =SUMIF(Demand_detailed!$F$7:$F$678,10,Demand_detailed!AI$7:AI$678)/1000000 -> 0 | G87: =SUMIF(Demand_detailed!$F$7:$F$678,10,Demand_detailed!AJ$7:AJ$678)/1000000 -> 0 | H87: =SUMIF(Demand_detailed!$F$7:$F$678,10,Demand_detailed!AK$7:AK$678)/1000000 -> 0 | I87: =SUMIF(Demand_detailed!$F$7:$F$678,10,Demand_detailed!AL$7:AL$678)/1000000 -> 0 | J87: =SUMIF(Demand_detailed!$F$7:$F$678,10,Demand_detailed!AM$7:AM$678)/1000000 -> 0.7948771702 | K87: =SUMIF(Demand_detailed!$F$7:$F$678,10,Demand_detailed!AN$7:AN$678)/1000000 -> 1.430426569 | L87: =SUMIF(Demand_detailed!$F$7:$F$678,10,Demand_detailed!AO$7:AO$678)/1000000 -> 2.726436868 | M87: =SUMIF(Demand_detailed!$F$7:$F$678,10,Demand_detailed!AP$7:AP$678)/1000000 -> 4.503054142
D88: Shared Mobility | F88: =SUM(F89:F92) -> 77.8300174 | G88: =SUM(G89:G92) -> 47.04232595 | H88: 79.95040807 | I88: 81.31259524 | J88: 70.5895223 | K88: 67.74313166 | L88: 92.24671776 | M88: 104.8611336
E89: Taxi | F89: =SUMIF(Demand_detailed!$F$7:$F$678,5,Demand_detailed!AI$7:AI$678)/1000000 -> 9.048717688 | G89: =SUMIF(Demand_detailed!$F$7:$F$678,5,Demand_detailed!AJ$7:AJ$678)/1000000 -> 5.429945203 | H89: =SUMIF(Demand_detailed!$F$7:$F$678,5,Demand_detailed!AK$7:AK$678)/1000000 -> 9.885999597 | I89: =SUMIF(Demand_detailed!$F$7:$F$678,5,Demand_detailed!AL$7:AL$678)/1000000 -> 10.32131596 | J89: =SUMIF(Demand_detailed!$F$7:$F$678,5,Demand_detailed!AM$7:AM$678)/1000000 -> 9.022758379 | K89: =SUMIF(Demand_detailed!$F$7:$F$678,5,Demand_detailed!AN$7:AN$678)/1000000 -> 8.990169397 | L89: =SUMIF(Demand_detailed!$F$7:$F$678,5,Demand_detailed!AO$7:AO$678)/1000000 -> 7.949605827 | M89: =SUMIF(Demand_detailed!$F$7:$F$678,5,Demand_detailed!AP$7:AP$678)/1000000 -> 7.326114007
E90: Ride-sharing | F90: =SUMIF(Demand_detailed!$F$7:$F$678,12,Demand_detailed!AI$7:AI$678)/1000000 -> 68.78129971 | G90: =SUMIF(Demand_detailed!$F$7:$F$678,12,Demand_detailed!AJ$7:AJ$678)/1000000 -> 41.61238075 | H90: =SUMIF(Demand_detailed!$F$7:$F$678,12,Demand_detailed!AK$7:AK$678)/1000000 -> 70.06440847 | I90: =SUMIF(Demand_detailed!$F$7:$F$678,12,Demand_detailed!AL$7:AL$678)/1000000 -> 70.99127929 | J90: =SUMIF(Demand_detailed!$F$7:$F$678,12,Demand_detailed!AM$7:AM$678)/1000000 -> 61.56676392 | K90: =SUMIF(Demand_detailed!$F$7:$F$678,12,Demand_detailed!AN$7:AN$678)/1000000 -> 58.75296226 | L90: =SUMIF(Demand_detailed!$F$7:$F$678,12,Demand_detailed!AO$7:AO$678)/1000000 -> 84.29711194 | M90: =SUMIF(Demand_detailed!$F$7:$F$678,12,Demand_detailed!AP$7:AP$678)/1000000 -> 97.5350196
E91: Car-Sharing | F91: =SUMIF(Demand_detailed!$F$7:$F$678,13,Demand_detailed!AI$7:AI$678)/1000000 -> 0 | G91: =SUMIF(Demand_detailed!$F$7:$F$678,13,Demand_detailed!AJ$7:AJ$678)/1000000 -> 0 | H91: =SUMIF(Demand_detailed!$F$7:$F$678,13,Demand_detailed!AK$7:AK$678)/1000000 -> 0 | I91: =SUMIF(Demand_detailed!$F$7:$F$678,13,Demand_detailed!AL$7:AL$678)/1000000 -> 0 | J91: =SUMIF(Demand_detailed!$F$7:$F$678,13,Demand_detailed!AM$7:AM$678)/1000000 -> 0 | K91: =SUMIF(Demand_detailed!$F$7:$F$678,13,Demand_detailed!AN$7:AN$678)/1000000 -> 0 | L91: =SUMIF(Demand_detailed!$F$7:$F$678,13,Demand_detailed!AO$7:AO$678)/1000000 -> 0 | M91: =SUMIF(Demand_detailed!$F$7:$F$678,13,Demand_detailed!AP$7:AP$678)/1000000 -> 0
E92: On-demand Taxibus | F92: =SUMIF(Demand_detailed!$F$7:$F$678,14,Demand_detailed!AI$7:AI$678)/1000000 -> 0 | G92: =SUMIF(Demand_detailed!$F$7:$F$678,14,Demand_detailed!AJ$7:AJ$678)/1000000 -> 0 | H92: =SUMIF(Demand_detailed!$F$7:$F$678,14,Demand_detailed!AK$7:AK$678)/1000000 -> 0 | I92: =SUMIF(Demand_detailed!$F$7:$F$678,14,Demand_detailed!AL$7:AL$678)/1000000 -> 0 | J92: =SUMIF(Demand_detailed!$F$7:$F$678,14,Demand_detailed!AM$7:AM$678)/1000000 -> 0 | K92: =SUMIF(Demand_detailed!$F$7:$F$678,14,Demand_detailed!AN$7:AN$678)/1000000 -> 0 | L92: =SUMIF(Demand_detailed!$F$7:$F$678,14,Demand_detailed!AO$7:AO$678)/1000000 -> 0 | M92: =SUMIF(Demand_detailed!$F$7:$F$678,14,Demand_detailed!AP$7:AP$678)/1000000 -> 0
B94: CO2 emissions (thousand tCO2eq) | F94: 2015 | G94: 2020 | H94: 2025 | I94: 2030 | J94: 2035 | K94: 2040 | L94: 2045 | M94: 2050
C95: Total Well To Wheel emissions | D95: TOTAL | F95: =F114+F133 -> 356.6769946 | G95: =G114+G133 -> 295.9477161 | H95: 517.2571854 | I95: 531.8588665 | J95: 508.1730483 | K95: 554.4983961 | L95: 554.0120401 | M95: 548.9423598
D96: Non-Motorised | F96: =F115+F134 -> 0 | G96: 0 | H96: 0 | I96: 0 | J96: 0 | K96: 0 | L96: 0 | M96: 0
E97: Walk | F97: 0 | G97: 0 | H97: 0 | I97: 0 | J97: 0 | K97: 0 | L97: 0 | M97: 0
E98: Bicycle | F98: 0 | G98: 0 | H98: 0 | I98: 0 | J98: 0 | K98: 0 | L98: 0 | M98: 0
E99: Bike and Scooter sharing | F99: 0 | G99: 0 | H99: 0 | I99: 0 | J99: 0 | K99: 0 | L99: 0 | M99: 0
D100: Private vehicles | F100: 197.7117952 | G100: 212.4576248 | H100: 349.0948699 | I100: 378.4501185 | J100: 381.3553418 | K100: 435.4345513 | L100: 435.4596225 | M100: 439.0474443
E101: Motorcycle | F101: 1.370871003 | G101: 0.842129341 | H101: 1.49273634 | I101: 1.547343979 | J101: 1.318324735 | K101: 1.272209674 | L101: 1.096434304 | M101: 0.9790232204
E102: Car | F102: 196.3409242 | G102: 211.6154954 | H102: 347.6021335 | I102: 376.9027745 | J102: 380.037017 | K102: 434.1623416 | L102: 434.3631882 | M102: 438.0684211
D103: Public Transport | F103: 139.9450087 | G103: 71.99286062 | H103: 148.8445375 | I103: 134.8529027 | J103: 111.4774293 | K103: 105.2730363 | L103: 101.0881319 | M103: 92.06403183
E104: Bus | F104: 139.9450087 | G104: 71.99286062 | H104: 147.2417262 | I104: 133.259133 | J104: 107.7927409 | K104: 101.39125 | L104: 96.32701781 | M104: 86.18794367
E105: Bus Rapid Transit | F105: 0 | G105: 0 | H105: 0 | I105: 0 | J105: 0 | K105: 0 | L105: 0 | M105: 0
E106: Cable Car | F106: 0 | G106: 0 | H106: 0 | I106: 0 | J106: 0 | K106: 0 | L106: 0 | M106: 0
E107: Light Rail Transit | F107: 0 | G107: 0 | H107: 1.60281139 | I107: 1.593769735 | J107: 2.463152688 | K107: 1.968115165 | L107: 1.548160548 | M107: 1.133026484
E108: Urban Rail | F108: 0 | G108: 0 | H108: 0 | I108: 0 | J108: 1.221535748 | K108: 1.913671174 | L108: 3.212953522 | M108: 4.743061674
D109: Shared Mobility | F109: 19.02019066 | G109: 11.49723075 | H109: 19.31777795 | I109: 18.55584535 | J109: 15.34027726 | K109: 13.79080842 | L109: 17.46428566 | M109: 17.83088358
E110: Taxi | F110: 2.013613375 | G110: 1.208327043 | H110: 2.176723085 | I110: 2.147081128 | J110: 1.787564583 | K110: 1.669309765 | L110: 1.366302543 | M110: 1.129066032
E111: Ride-sharing | F111: 17.00657729 | G111: 10.2889037 | H111: 17.14105487 | I111: 16.40876422 | J111: 13.55271267 | K111: 12.12149865 | L111: 16.09798312 | M111: 16.70181755
E112: Car-Sharing | F112: 0 | G112: 0 | H112: 0 | I112: 0 | J112: 0 | K112: 0 | L112: 0 | M112: 0
E113: On-demand Taxibus | F113: 0 | G113: 0 | H113: 0 | I113: 0 | J113: 0 | K113: 0 | L113: 0 | M113: 0
C114: Direct Tank To Wheel emissions | D114: TOTAL | F114: =SUM(Demand_detailed!AR$7:AR$678)/1000 -> 282.0076743 | G114: =SUM(Demand_detailed!AS$7:AS$678)/1000 -> 235.5302735 | H114: =SUM(Demand_detailed!AT$7:AT$678)/1000 -> 400.5606259 | I114: =SUM(Demand_detailed!AU$7:AU$678)/1000 -> 402.1346093 | J114: =SUM(Demand_detailed!AV$7:AV$678)/1000 -> 386.4960124 | K114: =SUM(Demand_detailed!AW$7:AW$678)/1000 -> 424.0681976 | L114: =SUM(Demand_detailed!AX$7:AX$678)/1000 -> 422.2718471 | M114: =SUM(Demand_detailed!AY$7:AY$678)/1000 -> 417.8282891
D115: Non-Motorised | F115: =SUM(F116:F118) -> 0 | G115: =SUM(G116:G118) -> 0 | H115: 0 | I115: 0 | J115: 0 | K115: 0 | L115: 0 | M115: 0
E116: Walk | F116: =SUMIF(Demand_detailed!$F$7:$F$678,1,Demand_detailed!AR$7:AR$678)/1000 -> 0 | G116: =SUMIF(Demand_detailed!$F$7:$F$678,1,Demand_detailed!AS$7:AS$678)/1000 -> 0 | H116: =SUMIF(Demand_detailed!$F$7:$F$678,1,Demand_detailed!AT$7:AT$678)/1000 -> 0 | I116: =SUMIF(Demand_detailed!$F$7:$F$678,1,Demand_detailed!AU$7:AU$678)/1000 -> 0 | J116: =SUMIF(Demand_detailed!$F$7:$F$678,1,Demand_detailed!AV$7:AV$678)/1000 -> 0 | K116: =SUMIF(Demand_detailed!$F$7:$F$678,1,Demand_detailed!AW$7:AW$678)/1000 -> 0 | L116: =SUMIF(Demand_detailed!$F$7:$F$678,1,Demand_detailed!AX$7:AX$678)/1000 -> 0 | M116: =SUMIF(Demand_detailed!$F$7:$F$678,1,Demand_detailed!AY$7:AY$678)/1000 -> 0
E117: Bicycle | F117: =SUMIF(Demand_detailed!$F$7:$F$678,2,Demand_detailed!AR$7:AR$678)/1000 -> 0 | G117: =SUMIF(Demand_detailed!$F$7:$F$678,2,Demand_detailed!AS$7:AS$678)/1000 -> 0 | H117: =SUMIF(Demand_detailed!$F$7:$F$678,2,Demand_detailed!AT$7:AT$678)/1000 -> 0 | I117: =SUMIF(Demand_detailed!$F$7:$F$678,2,Demand_detailed!AU$7:AU$678)/1000 -> 0 | J117: =SUMIF(Demand_detailed!$F$7:$F$678,2,Demand_detailed!AV$7:AV$678)/1000 -> 0 | K117: =SUMIF(Demand_detailed!$F$7:$F$678,2,Demand_detailed!AW$7:AW$678)/1000 -> 0 | L117: =SUMIF(Demand_detailed!$F$7:$F$678,2,Demand_detailed!AX$7:AX$678)/1000 -> 0 | M117: =SUMIF(Demand_detailed!$F$7:$F$678,2,Demand_detailed!AY$7:AY$678)/1000 -> 0
E118: Bike and Scooter sharing | F118: =SUMIF(Demand_detailed!$F$7:$F$678,11,Demand_detailed!AR$7:AR$678)/1000 -> 0 | G118: =SUMIF(Demand_detailed!$F$7:$F$678,11,Demand_detailed!AS$7:AS$678)/1000 -> 0 | H118: =SUMIF(Demand_detailed!$F$7:$F$678,11,Demand_detailed!AT$7:AT$678)/1000 -> 0 | I118: =SUMIF(Demand_detailed!$F$7:$F$678,11,Demand_detailed!AU$7:AU$678)/1000 -> 0 | J118: =SUMIF(Demand_detailed!$F$7:$F$678,11,Demand_detailed!AV$7:AV$678)/1000 -> 0 | K118: =SUMIF(Demand_detailed!$F$7:$F$678,11,Demand_detailed!AW$7:AW$678)/1000 -> 0 | L118: =SUMIF(Demand_detailed!$F$7:$F$678,11,Demand_detailed!AX$7:AX$678)/1000 -> 0 | M118: =SUMIF(Demand_detailed!$F$7:$F$678,11,Demand_detailed!AY$7:AY$678)/1000 -> 0
D119: Private vehicles | F119: =SUM(F120:F121) -> 159.0345681 | G119: =SUM(G120:G121) -> 170.8909448 | H119: 282.4450823 | I119: 305.9861171 | J119: 308.1063418 | K119: 350.5026994 | L119: 348.6287094 | M119: 349.2120927
E120: Motorcycle | F120: =SUMIF(Demand_detailed!$F$7:$F$678,3,Demand_detailed!AR$7:AR$678)/1000 -> 1.113074465 | G120: =SUMIF(Demand_detailed!$F$7:$F$678,3,Demand_detailed!AS$7:AS$678)/1000 -> 0.6837643101 | H120: =SUMIF(Demand_detailed!$F$7:$F$678,3,Demand_detailed!AT$7:AT$678)/1000 -> 1.212022648 | I120: =SUMIF(Demand_detailed!$F$7:$F$678,3,Demand_detailed!AU$7:AU$678)/1000 -> 1.256361151 | J120: =SUMIF(Demand_detailed!$F$7:$F$678,3,Demand_detailed!AV$7:AV$678)/1000 -> 1.070409685 | K120: =SUMIF(Demand_detailed!$F$7:$F$678,3,Demand_detailed!AW$7:AW$678)/1000 -> 1.032966705 | L120: =SUMIF(Demand_detailed!$F$7:$F$678,3,Demand_detailed!AX$7:AX$678)/1000 -> 0.8902464368 | M120: =SUMIF(Demand_detailed!$F$7:$F$678,3,Demand_detailed!AY$7:AY$678)/1000 -> 0.7949148714
E121: Car | F121: =SUMIF(Demand_detailed!$F$7:$F$678,4,Demand_detailed!AR$7:AR$678)/1000 -> 157.9214937 | G121: =SUMIF(Demand_detailed!$F$7:$F$678,4,Demand_detailed!AS$7:AS$678)/1000 -> 170.2071805 | H121: =SUMIF(Demand_detailed!$F$7:$F$678,4,Demand_detailed!AT$7:AT$678)/1000 -> 281.2330597 | I121: =SUMIF(Demand_detailed!$F$7:$F$678,4,Demand_detailed!AU$7:AU$678)/1000 -> 304.729756 | J121: =SUMIF(Demand_detailed!$F$7:$F$678,4,Demand_detailed!AV$7:AV$678)/1000 -> 307.0359322 | K121: =SUMIF(Demand_detailed!$F$7:$F$678,4,Demand_detailed!AW$7:AW$678)/1000 -> 349.4697327 | L121: =SUMIF(Demand_detailed!$F$7:$F$678,4,Demand_detailed!AX$7:AX$678)/1000 -> 347.738463 | M121: =SUMIF(Demand_detailed!$F$7:$F$678,4,Demand_detailed!AY$7:AY$678)/1000 -> 348.4171778
D122: Public Transport | F122: =SUM(F123:F127) -> 107.6747321 | G122: =SUM(G123:G127) -> 55.39184319 | H122: 102.4861867 | I122: 81.14590109 | J122: 65.99609808 | K122: 62.46488058 | L122: 59.66174146 | M122: 54.4344251
E123: Bus | F123: =SUMIF(Demand_detailed!$F$7:$F$678,6,Demand_detailed!AR$7:AR$678)/1000 -> 107.6747321 | G123: =SUMIF(Demand_detailed!$F$7:$F$678,6,Demand_detailed!AS$7:AS$678)/1000 -> 55.39184319 | H123: =SUMIF(Demand_detailed!$F$7:$F$678,6,Demand_detailed!AT$7:AT$678)/1000 -> 102.4861867 | I123: =SUMIF(Demand_detailed!$F$7:$F$678,6,Demand_detailed!AU$7:AU$678)/1000 -> 81.14590109 | J123: =SUMIF(Demand_detailed!$F$7:$F$678,6,Demand_detailed!AV$7:AV$678)/1000 -> 65.4991218 | K123: =SUMIF(Demand_detailed!$F$7:$F$678,6,Demand_detailed!AW$7:AW$678)/1000 -> 61.57115634 | L123: =SUMIF(Demand_detailed!$F$7:$F$678,6,Demand_detailed!AX$7:AX$678)/1000 -> 57.95832552 | M123: =SUMIF(Demand_detailed!$F$7:$F$678,6,Demand_detailed!AY$7:AY$678)/1000 -> 51.62101897
E124: Bus Rapid Transit | F124: =SUMIF(Demand_detailed!$F$7:$F$678,7,Demand_detailed!AR$7:AR$678)/1000 -> 0 | G124: =SUMIF(Demand_detailed!$F$7:$F$678,7,Demand_detailed!AS$7:AS$678)/1000 -> 0 | H124: =SUMIF(Demand_detailed!$F$7:$F$678,7,Demand_detailed!AT$7:AT$678)/1000 -> 0 | I124: =SUMIF(Demand_detailed!$F$7:$F$678,7,Demand_detailed!AU$7:AU$678)/1000 -> 0 | J124: =SUMIF(Demand_detailed!$F$7:$F$678,7,Demand_detailed!AV$7:AV$678)/1000 -> 0 | K124: =SUMIF(Demand_detailed!$F$7:$F$678,7,Demand_detailed!AW$7:AW$678)/1000 -> 0 | L124: =SUMIF(Demand_detailed!$F$7:$F$678,7,Demand_detailed!AX$7:AX$678)/1000 -> 0 | M124: =SUMIF(Demand_detailed!$F$7:$F$678,7,Demand_detailed!AY$7:AY$678)/1000 -> 0
E125: Cable Car | F125: =SUMIF(Demand_detailed!$F$7:$F$678,9,Demand_detailed!AR$7:AR$678)/1000 -> 0 | G125: =SUMIF(Demand_detailed!$F$7:$F$678,9,Demand_detailed!AS$7:AS$678)/1000 -> 0 | H125: =SUMIF(Demand_detailed!$F$7:$F$678,9,Demand_detailed!AT$7:AT$678)/1000 -> 0 | I125: =SUMIF(Demand_detailed!$F$7:$F$678,9,Demand_detailed!AU$7:AU$678)/1000 -> 0 | J125: =SUMIF(Demand_detailed!$F$7:$F$678,9,Demand_detailed!AV$7:AV$678)/1000 -> 0 | K125: =SUMIF(Demand_detailed!$F$7:$F$678,9,Demand_detailed!AW$7:AW$678)/1000 -> 0 | L125: =SUMIF(Demand_detailed!$F$7:$F$678,9,Demand_detailed!AX$7:AX$678)/1000 -> 0 | M125: =SUMIF(Demand_detailed!$F$7:$F$678,9,Demand_detailed!AY$7:AY$678)/1000 -> 0
E126: Light Rail Transit | F126: =SUMIF(Demand_detailed!$F$7:$F$678,8,Demand_detailed!AR$7:AR$678)/1000 -> 0 | G126: =SUMIF(Demand_detailed!$F$7:$F$678,8,Demand_detailed!AS$7:AS$678)/1000 -> 0 | H126: =SUMIF(Demand_detailed!$F$7:$F$678,8,Demand_detailed!AT$7:AT$678)/1000 -> 0 | I126: =SUMIF(Demand_detailed!$F$7:$F$678,8,Demand_detailed!AU$7:AU$678)/1000 -> 0 | J126: =SUMIF(Demand_detailed!$F$7:$F$678,8,Demand_detailed!AV$7:AV$678)/1000 -> 0 | K126: =SUMIF(Demand_detailed!$F$7:$F$678,8,Demand_detailed!AW$7:AW$678)/1000 -> 0 | L126: =SUMIF(Demand_detailed!$F$7:$F$678,8,Demand_detailed!AX$7:AX$678)/1000 -> 0 | M126: =SUMIF(Demand_detailed!$F$7:$F$678,8,Demand_detailed!AY$7:AY$678)/1000 -> 0
E127: Urban Rail | F127: =SUMIF(Demand_detailed!$F$7:$F$678,10,Demand_detailed!AR$7:AR$678)/1000 -> 0 | G127: =SUMIF(Demand_detailed!$F$7:$F$678,10,Demand_detailed!AS$7:AS$678)/1000 -> 0 | H127: =SUMIF(Demand_detailed!$F$7:$F$678,10,Demand_detailed!AT$7:AT$678)/1000 -> 0 | I127: =SUMIF(Demand_detailed!$F$7:$F$678,10,Demand_detailed!AU$7:AU$678)/1000 -> 0 | J127: =SUMIF(Demand_detailed!$F$7:$F$678,10,Demand_detailed!AV$7:AV$678)/1000 -> 0.4969762835 | K127: =SUMIF(Demand_detailed!$F$7:$F$678,10,Demand_detailed!AW$7:AW$678)/1000 -> 0.8937242468 | L127: =SUMIF(Demand_detailed!$F$7:$F$678,10,Demand_detailed!AX$7:AX$678)/1000 -> 1.703415937 | M127: =SUMIF(Demand_detailed!$F$7:$F$678,10,Demand_detailed!AY$7:AY$678)/1000 -> 2.813406128
D128: Shared Mobility | F128: =SUM(F129:F132) -> 15.29837415 | G128: =SUM(G129:G132) -> 9.247485514 | H128: 15.62935689 | I128: 15.00259114 | J128: 12.39357251 | K128: 11.1006176 | L128: 13.98139626 | M128: 14.18177124
E129: Taxi | F129: =SUMIF(Demand_detailed!$F$7:$F$678,5,Demand_detailed!AR$7:AR$678)/1000 -> 1.619595268 | G129: =SUMIF(Demand_detailed!$F$7:$F$678,5,Demand_detailed!AS$7:AS$678)/1000 -> 0.9718850628 | H129: =SUMIF(Demand_detailed!$F$7:$F$678,5,Demand_detailed!AT$7:AT$678)/1000 -> 1.761112589 | I129: =SUMIF(Demand_detailed!$F$7:$F$678,5,Demand_detailed!AU$7:AU$678)/1000 -> 1.735937097 | J129: =SUMIF(Demand_detailed!$F$7:$F$678,5,Demand_detailed!AV$7:AV$678)/1000 -> 1.444192364 | K129: =SUMIF(Demand_detailed!$F$7:$F$678,5,Demand_detailed!AW$7:AW$678)/1000 -> 1.343675352 | L129: =SUMIF(Demand_detailed!$F$7:$F$678,5,Demand_detailed!AX$7:AX$678)/1000 -> 1.09382185 | M129: =SUMIF(Demand_detailed!$F$7:$F$678,5,Demand_detailed!AY$7:AY$678)/1000 -> 0.8980012744
E130: Ride-sharing | F130: =SUMIF(Demand_detailed!$F$7:$F$678,12,Demand_detailed!AR$7:AR$678)/1000 -> 13.67877888 | G130: =SUMIF(Demand_detailed!$F$7:$F$678,12,Demand_detailed!AS$7:AS$678)/1000 -> 8.275600451 | H130: =SUMIF(Demand_detailed!$F$7:$F$678,12,Demand_detailed!AT$7:AT$678)/1000 -> 13.8682443 | I130: =SUMIF(Demand_detailed!$F$7:$F$678,12,Demand_detailed!AU$7:AU$678)/1000 -> 13.26665404 | J130: =SUMIF(Demand_detailed!$F$7:$F$678,12,Demand_detailed!AV$7:AV$678)/1000 -> 10.94938015 | K130: =SUMIF(Demand_detailed!$F$7:$F$678,12,Demand_detailed!AW$7:AW$678)/1000 -> 9.75694225 | L130: =SUMIF(Demand_detailed!$F$7:$F$678,12,Demand_detailed!AX$7:AX$678)/1000 -> 12.88757441 | M130: =SUMIF(Demand_detailed!$F$7:$F$678,12,Demand_detailed!AY$7:AY$678)/1000 -> 13.28376997
E131: Car-Sharing | F131: =SUMIF(Demand_detailed!$F$7:$F$678,13,Demand_detailed!AR$7:AR$678)/1000 -> 0 | G131: =SUMIF(Demand_detailed!$F$7:$F$678,13,Demand_detailed!AS$7:AS$678)/1000 -> 0 | H131: =SUMIF(Demand_detailed!$F$7:$F$678,13,Demand_detailed!AT$7:AT$678)/1000 -> 0 | I131: =SUMIF(Demand_detailed!$F$7:$F$678,13,Demand_detailed!AU$7:AU$678)/1000 -> 0 | J131: =SUMIF(Demand_detailed!$F$7:$F$678,13,Demand_detailed!AV$7:AV$678)/1000 -> 0 | K131: =SUMIF(Demand_detailed!$F$7:$F$678,13,Demand_detailed!AW$7:AW$678)/1000 -> 0 | L131: =SUMIF(Demand_detailed!$F$7:$F$678,13,Demand_detailed!AX$7:AX$678)/1000 -> 0 | M131: =SUMIF(Demand_detailed!$F$7:$F$678,13,Demand_detailed!AY$7:AY$678)/1000 -> 0
E132: On-demand Taxibus | F132: =SUMIF(Demand_detailed!$F$7:$F$678,14,Demand_detailed!AR$7:AR$678)/1000 -> 0 | G132: =SUMIF(Demand_detailed!$F$7:$F$678,14,Demand_detailed!AS$7:AS$678)/1000 -> 0 | H132: =SUMIF(Demand_detailed!$F$7:$F$678,14,Demand_detailed!AT$7:AT$678)/1000 -> 0 | I132: =SUMIF(Demand_detailed!$F$7:$F$678,14,Demand_detailed!AU$7:AU$678)/1000 -> 0 | J132: =SUMIF(Demand_detailed!$F$7:$F$678,14,Demand_detailed!AV$7:AV$678)/1000 -> 0 | K132: =SUMIF(Demand_detailed!$F$7:$F$678,14,Demand_detailed!AW$7:AW$678)/1000 -> 0 | L132: =SUMIF(Demand_detailed!$F$7:$F$678,14,Demand_detailed!AX$7:AX$678)/1000 -> 0 | M132: =SUMIF(Demand_detailed!$F$7:$F$678,14,Demand_detailed!AY$7:AY$678)/1000 -> 0
C133: Indirect Well To Tank emissions | D133: TOTAL | F133: =SUM(Demand_detailed!BA$7:BA$678)/1000 -> 74.66932025 | G133: =SUM(Demand_detailed!BB$7:BB$678)/1000 -> 60.41744266 | H133: =SUM(Demand_detailed!BC$7:BC$678)/1000 -> 116.6965594 | I133: =SUM(Demand_detailed!BD$7:BD$678)/1000 -> 129.7242572 | J133: =SUM(Demand_detailed!BE$7:BE$678)/1000 -> 121.6770359 | K133: =SUM(Demand_detailed!BF$7:BF$678)/1000 -> 130.4301985 | L133: =SUM(Demand_detailed!BG$7:BG$678)/1000 -> 131.7401929 | M133: =SUM(Demand_detailed!BH$7:BH$678)/1000 -> 131.1140707
D134: Non-Motorised | F134: =SUM(F135:F137) -> 0 | G134: =SUM(G135:G137) -> 0 | H134: 0 | I134: 0 | J134: 0 | K134: 0 | L134: 0 | M134: 0
E135: Walk | F135: =SUMIF(Demand_detailed!$F$7:$F$678,1,Demand_detailed!BA$7:BA$678)/1000 -> 0 | G135: =SUMIF(Demand_detailed!$F$7:$F$678,1,Demand_detailed!BB$7:BB$678)/1000 -> 0 | H135: =SUMIF(Demand_detailed!$F$7:$F$678,1,Demand_detailed!BC$7:BC$678)/1000 -> 0 | I135: =SUMIF(Demand_detailed!$F$7:$F$678,1,Demand_detailed!BD$7:BD$678)/1000 -> 0 | J135: =SUMIF(Demand_detailed!$F$7:$F$678,1,Demand_detailed!BE$7:BE$678)/1000 -> 0 | K135: =SUMIF(Demand_detailed!$F$7:$F$678,1,Demand_detailed!BF$7:BF$678)/1000 -> 0 | L135: =SUMIF(Demand_detailed!$F$7:$F$678,1,Demand_detailed!BG$7:BG$678)/1000 -> 0 | M135: =SUMIF(Demand_detailed!$F$7:$F$678,1,Demand_detailed!BH$7:BH$678)/1000 -> 0
E136: Bicycle | F136: =SUMIF(Demand_detailed!$F$7:$F$678,2,Demand_detailed!BA$7:BA$678)/1000 -> 0 | G136: =SUMIF(Demand_detailed!$F$7:$F$678,2,Demand_detailed!BB$7:BB$678)/1000 -> 0 | H136: =SUMIF(Demand_detailed!$F$7:$F$678,2,Demand_detailed!BC$7:BC$678)/1000 -> 0 | I136: =SUMIF(Demand_detailed!$F$7:$F$678,2,Demand_detailed!BD$7:BD$678)/1000 -> 0 | J136: =SUMIF(Demand_detailed!$F$7:$F$678,2,Demand_detailed!BE$7:BE$678)/1000 -> 0 | K136: =SUMIF(Demand_detailed!$F$7:$F$678,2,Demand_detailed!BF$7:BF$678)/1000 -> 0 | L136: =SUMIF(Demand_detailed!$F$7:$F$678,2,Demand_detailed!BG$7:BG$678)/1000 -> 0 | M136: =SUMIF(Demand_detailed!$F$7:$F$678,2,Demand_detailed!BH$7:BH$678)/1000 -> 0
E137: Bike and Scooter sharing | F137: =SUMIF(Demand_detailed!$F$7:$F$678,11,Demand_detailed!BA$7:BA$678)/1000 -> 0 | G137: =SUMIF(Demand_detailed!$F$7:$F$678,11,Demand_detailed!BB$7:BB$678)/1000 -> 0 | H137: =SUMIF(Demand_detailed!$F$7:$F$678,11,Demand_detailed!BC$7:BC$678)/1000 -> 0 | I137: =SUMIF(Demand_detailed!$F$7:$F$678,11,Demand_detailed!BD$7:BD$678)/1000 -> 0 | J137: =SUMIF(Demand_detailed!$F$7:$F$678,11,Demand_detailed!BE$7:BE$678)/1000 -> 0 | K137: =SUMIF(Demand_detailed!$F$7:$F$678,11,Demand_detailed!BF$7:BF$678)/1000 -> 0 | L137: =SUMIF(Demand_detailed!$F$7:$F$678,11,Demand_detailed!BG$7:BG$678)/1000 -> 0 | M137: =SUMIF(Demand_detailed!$F$7:$F$678,11,Demand_detailed!BH$7:BH$678)/1000 -> 0
D138: Private vehicles | F138: =SUM(F139:F140) -> 38.67722709 | G138: =SUM(G139:G140) -> 41.56667999 | H138: 66.64978752 | I138: 72.46400136 | J138: 73.24899993 | K138: 84.93185192 | L138: 86.8309131 | M138: 89.83535163
E139: Motorcycle | F139: =SUMIF(Demand_detailed!$F$7:$F$678,3,Demand_detailed!BA$7:BA$678)/1000 -> 0.2577965381 | G139: =SUMIF(Demand_detailed!$F$7:$F$678,3,Demand_detailed!BB$7:BB$678)/1000 -> 0.1583650309 | H139: =SUMIF(Demand_detailed!$F$7:$F$678,3,Demand_detailed!BC$7:BC$678)/1000 -> 0.2807136923 | I139: =SUMIF(Demand_detailed!$F$7:$F$678,3,Demand_detailed!BD$7:BD$678)/1000 -> 0.2909828278 | J139: =SUMIF(Demand_detailed!$F$7:$F$678,3,Demand_detailed!BE$7:BE$678)/1000 -> 0.2479150497 | K139: =SUMIF(Demand_detailed!$F$7:$F$678,3,Demand_detailed!BF$7:BF$678)/1000 -> 0.2392429697 | L139: =SUMIF(Demand_detailed!$F$7:$F$678,3,Demand_detailed!BG$7:BG$678)/1000 -> 0.2061878668 | M139: =SUMIF(Demand_detailed!$F$7:$F$678,3,Demand_detailed!BH$7:BH$678)/1000 -> 0.184108349
E140: Car | F140: =SUMIF(Demand_detailed!$F$7:$F$678,4,Demand_detailed!BA$7:BA$678)/1000 -> 38.41943055 | G140: =SUMIF(Demand_detailed!$F$7:$F$678,4,Demand_detailed!BB$7:BB$678)/1000 -> 41.40831496 | H140: =SUMIF(Demand_detailed!$F$7:$F$678,4,Demand_detailed!BC$7:BC$678)/1000 -> 66.36907382 | I140: =SUMIF(Demand_detailed!$F$7:$F$678,4,Demand_detailed!BD$7:BD$678)/1000 -> 72.17301853 | J140: =SUMIF(Demand_detailed!$F$7:$F$678,4,Demand_detailed!BE$7:BE$678)/1000 -> 73.00108488 | K140: =SUMIF(Demand_detailed!$F$7:$F$678,4,Demand_detailed!BF$7:BF$678)/1000 -> 84.69260895 | L140: =SUMIF(Demand_detailed!$F$7:$F$678,4,Demand_detailed!BG$7:BG$678)/1000 -> 86.62472523 | M140: =SUMIF(Demand_detailed!$F$7:$F$678,4,Demand_detailed!BH$7:BH$678)/1000 -> 89.65124328
D141: Public Transport | F141: =SUM(F142:F146) -> 32.27027665 | G141: =SUM(G142:G146) -> 16.60101743 | H141: 46.35835084 | I141: 53.70700163 | J141: 45.48133121 | K141: 42.80815574 | L141: 41.42639042 | M141: 37.62960673
E142: Bus | F142: =SUMIF(Demand_detailed!$F$7:$F$678,6,Demand_detailed!BA$7:BA$678)/1000 -> 32.27027665 | G142: =SUMIF(Demand_detailed!$F$7:$F$678,6,Demand_detailed!BB$7:BB$678)/1000 -> 16.60101743 | H142: =SUMIF(Demand_detailed!$F$7:$F$678,6,Demand_detailed!BC$7:BC$678)/1000 -> 44.75553945 | I142: =SUMIF(Demand_detailed!$F$7:$F$678,6,Demand_detailed!BD$7:BD$678)/1000 -> 52.11323189 | J142: =SUMIF(Demand_detailed!$F$7:$F$678,6,Demand_detailed!BE$7:BE$678)/1000 -> 42.29361906 | K142: =SUMIF(Demand_detailed!$F$7:$F$678,6,Demand_detailed!BF$7:BF$678)/1000 -> 39.82009365 | L142: =SUMIF(Demand_detailed!$F$7:$F$678,6,Demand_detailed!BG$7:BG$678)/1000 -> 38.36869229 | M142: =SUMIF(Demand_detailed!$F$7:$F$678,6,Demand_detailed!BH$7:BH$678)/1000 -> 34.5669247
E143: Bus Rapid Transit | F143: =SUMIF(Demand_detailed!$F$7:$F$678,7,Demand_detailed!BA$7:BA$678)/1000 -> 0 | G143: =SUMIF(Demand_detailed!$F$7:$F$678,7,Demand_detailed!BB$7:BB$678)/1000 -> 0 | H143: =SUMIF(Demand_detailed!$F$7:$F$678,7,Demand_detailed!BC$7:BC$678)/1000 -> 0 | I143: =SUMIF(Demand_detailed!$F$7:$F$678,7,Demand_detailed!BD$7:BD$678)/1000 -> 0 | J143: =SUMIF(Demand_detailed!$F$7:$F$678,7,Demand_detailed!BE$7:BE$678)/1000 -> 0 | K143: =SUMIF(Demand_detailed!$F$7:$F$678,7,Demand_detailed!BF$7:BF$678)/1000 -> 0 | L143: =SUMIF(Demand_detailed!$F$7:$F$678,7,Demand_detailed!BG$7:BG$678)/1000 -> 0 | M143: =SUMIF(Demand_detailed!$F$7:$F$678,7,Demand_detailed!BH$7:BH$678)/1000 -> 0
E144: Cable Car | F144: =SUMIF(Demand_detailed!$F$7:$F$678,9,Demand_detailed!BA$7:BA$678)/1000 -> 0 | G144: =SUMIF(Demand_detailed!$F$7:$F$678,9,Demand_detailed!BB$7:BB$678)/1000 -> 0 | H144: =SUMIF(Demand_detailed!$F$7:$F$678,9,Demand_detailed!BC$7:BC$678)/1000 -> 0 | I144: =SUMIF(Demand_detailed!$F$7:$F$678,9,Demand_detailed!BD$7:BD$678)/1000 -> 0 | J144: =SUMIF(Demand_detailed!$F$7:$F$678,9,Demand_detailed!BE$7:BE$678)/1000 -> 0 | K144: =SUMIF(Demand_detailed!$F$7:$F$678,9,Demand_detailed!BF$7:BF$678)/1000 -> 0 | L144: =SUMIF(Demand_detailed!$F$7:$F$678,9,Demand_detailed!BG$7:BG$678)/1000 -> 0 | M144: =SUMIF(Demand_detailed!$F$7:$F$678,9,Demand_detailed!BH$7:BH$678)/1000 -> 0
E145: Light Rail Transit | F145: =SUMIF(Demand_detailed!$F$7:$F$678,8,Demand_detailed!BA$7:BA$678)/1000 -> 0 | G145: =SUMIF(Demand_detailed!$F$7:$F$678,8,Demand_detailed!BB$7:BB$678)/1000 -> 0 | H145: =SUMIF(Demand_detailed!$F$7:$F$678,8,Demand_detailed!BC$7:BC$678)/1000 -> 1.60281139 | I145: =SUMIF(Demand_detailed!$F$7:$F$678,8,Demand_detailed!BD$7:BD$678)/1000 -> 1.593769735 | J145: =SUMIF(Demand_detailed!$F$7:$F$678,8,Demand_detailed!BE$7:BE$678)/1000 -> 2.463152688 | K145: =SUMIF(Demand_detailed!$F$7:$F$678,8,Demand_detailed!BF$7:BF$678)/1000 -> 1.968115165 | L145: =SUMIF(Demand_detailed!$F$7:$F$678,8,Demand_detailed!BG$7:BG$678)/1000 -> 1.548160548 | M145: =SUMIF(Demand_detailed!$F$7:$F$678,8,Demand_detailed!BH$7:BH$678)/1000 -> 1.133026484
E146: Urban Rail | F146: =SUMIF(Demand_detailed!$F$7:$F$678,10,Demand_detailed!BA$7:BA$678)/1000 -> 0 | G146: =SUMIF(Demand_detailed!$F$7:$F$678,10,Demand_detailed!BB$7:BB$678)/1000 -> 0 | H146: =SUMIF(Demand_detailed!$F$7:$F$678,10,Demand_detailed!BC$7:BC$678)/1000 -> 0 | I146: =SUMIF(Demand_detailed!$F$7:$F$678,10,Demand_detailed!BD$7:BD$678)/1000 -> 0 | J146: =SUMIF(Demand_detailed!$F$7:$F$678,10,Demand_detailed!BE$7:BE$678)/1000 -> 0.7245594647 | K146: =SUMIF(Demand_detailed!$F$7:$F$678,10,Demand_detailed!BF$7:BF$678)/1000 -> 1.019946928 | L146: =SUMIF(Demand_detailed!$F$7:$F$678,10,Demand_detailed!BG$7:BG$678)/1000 -> 1.509537584 | M146: =SUMIF(Demand_detailed!$F$7:$F$678,10,Demand_detailed!BH$7:BH$678)/1000 -> 1.929655546
D147: Shared Mobility | F147: =SUM(F148:F151) -> 3.721816515 | G147: =SUM(G148:G151) -> 2.249745233 | H147: 3.688421063 | I147: 3.55325421 | J147: 2.946704747 | K147: 2.690190817 | L147: 3.482889406 | M147: 3.649112342
E148: Taxi | F148: =SUMIF(Demand_detailed!$F$7:$F$678,5,Demand_detailed!BA$7:BA$678)/1000 -> 0.3940181067 | G148: =SUMIF(Demand_detailed!$F$7:$F$678,5,Demand_detailed!BB$7:BB$678)/1000 -> 0.2364419802 | H148: =SUMIF(Demand_detailed!$F$7:$F$678,5,Demand_detailed!BC$7:BC$678)/1000 -> 0.415610496 | I148: =SUMIF(Demand_detailed!$F$7:$F$678,5,Demand_detailed!BD$7:BD$678)/1000 -> 0.411144031 | J148: =SUMIF(Demand_detailed!$F$7:$F$678,5,Demand_detailed!BE$7:BE$678)/1000 -> 0.343372219 | K148: =SUMIF(Demand_detailed!$F$7:$F$678,5,Demand_detailed!BF$7:BF$678)/1000 -> 0.3256344127 | L148: =SUMIF(Demand_detailed!$F$7:$F$678,5,Demand_detailed!BG$7:BG$678)/1000 -> 0.2724806925 | M148: =SUMIF(Demand_detailed!$F$7:$F$678,5,Demand_detailed!BH$7:BH$678)/1000 -> 0.2310647575
E149: Ride-sharing | F149: =SUMIF(Demand_detailed!$F$7:$F$678,12,Demand_detailed!BA$7:BA$678)/1000 -> 3.327798408 | G149: =SUMIF(Demand_detailed!$F$7:$F$678,12,Demand_detailed!BB$7:BB$678)/1000 -> 2.013303252 | H149: =SUMIF(Demand_detailed!$F$7:$F$678,12,Demand_detailed!BC$7:BC$678)/1000 -> 3.272810567 | I149: =SUMIF(Demand_detailed!$F$7:$F$678,12,Demand_detailed!BD$7:BD$678)/1000 -> 3.142110179 | J149: =SUMIF(Demand_detailed!$F$7:$F$678,12,Demand_detailed!BE$7:BE$678)/1000 -> 2.603332528 | K149: =SUMIF(Demand_detailed!$F$7:$F$678,12,Demand_detailed!BF$7:BF$678)/1000 -> 2.364556404 | L149: =SUMIF(Demand_detailed!$F$7:$F$678,12,Demand_detailed!BG$7:BG$678)/1000 -> 3.210408714 | M149: =SUMIF(Demand_detailed!$F$7:$F$678,12,Demand_detailed!BH$7:BH$678)/1000 -> 3.418047584
E150: Car-Sharing | F150: =SUMIF(Demand_detailed!$F$7:$F$678,13,Demand_detailed!BA$7:BA$678)/1000 -> 0 | G150: =SUMIF(Demand_detailed!$F$7:$F$678,13,Demand_detailed!BB$7:BB$678)/1000 -> 0 | H150: =SUMIF(Demand_detailed!$F$7:$F$678,13,Demand_detailed!BC$7:BC$678)/1000 -> 0 | I150: =SUMIF(Demand_detailed!$F$7:$F$678,13,Demand_detailed!BD$7:BD$678)/1000 -> 0 | J150: =SUMIF(Demand_detailed!$F$7:$F$678,13,Demand_detailed!BE$7:BE$678)/1000 -> 0 | K150: =SUMIF(Demand_detailed!$F$7:$F$678,13,Demand_detailed!BF$7:BF$678)/1000 -> 0 | L150: =SUMIF(Demand_detailed!$F$7:$F$678,13,Demand_detailed!BG$7:BG$678)/1000 -> 0 | M150: =SUMIF(Demand_detailed!$F$7:$F$678,13,Demand_detailed!BH$7:BH$678)/1000 -> 0
E151: On-demand Taxibus | F151: =SUMIF(Demand_detailed!$F$7:$F$678,14,Demand_detailed!BA$7:BA$678)/1000 -> 0 | G151: =SUMIF(Demand_detailed!$F$7:$F$678,14,Demand_detailed!BB$7:BB$678)/1000 -> 0 | H151: =SUMIF(Demand_detailed!$F$7:$F$678,14,Demand_detailed!BC$7:BC$678)/1000 -> 0 | I151: =SUMIF(Demand_detailed!$F$7:$F$678,14,Demand_detailed!BD$7:BD$678)/1000 -> 0 | J151: =SUMIF(Demand_detailed!$F$7:$F$678,14,Demand_detailed!BE$7:BE$678)/1000 -> 0 | K151: =SUMIF(Demand_detailed!$F$7:$F$678,14,Demand_detailed!BF$7:BF$678)/1000 -> 0 | L151: =SUMIF(Demand_detailed!$F$7:$F$678,14,Demand_detailed!BG$7:BG$678)/1000 -> 0 | M151: =SUMIF(Demand_detailed!$F$7:$F$678,14,Demand_detailed!BH$7:BH$678)/1000 -> 0

Sheet Scenario comparison
C2: Scenario comparison - Values are automatically updated based on Inputs and calibration
C5: Scenario: | D5: ='Scenario setting'!D3 -> Current Policies
C6: Run Date: | D6: =NOW() -> 2023-11-10T10:13:24.330
C11: Trip Mode Share | F11: 2015 | G11: 2020 | H11: 2025 | I11: 2030 | J11: 2035 | K11: 2040 | L11: 2045 | M11: 2050
D12: Non-Motorised | F12: ='Scenario output'!F12 -> 0.1640553735 | G12: ='Scenario output'!G12 -> 0.2074092629 | H12: ='Scenario output'!H12 -> 0.1340015064 | I12: ='Scenario output'!I12 -> 0.1276854092 | J12: ='Scenario output'!J12 -> 0.1213274784 | K12: ='Scenario output'!K12 -> 0.1140713956 | L12: ='Scenario output'!L12 -> 0.1094692493 | M12: ='Scenario output'!M12 -> 0.1062890725
E13: Baseline | F13: 0.1640553735 | G13: 0.2074092629 | H13: 0.1221998216 | I13: 0.1099247417 | J13: 0.1046440072 | K13: 0.09313028676 | L13: 0.08705316416 | M13: 0.08050120586
E14: Current Policies | F14: 0.1640553735 | G14: 0.2074092629 | H14: 0.1340013775 | I14: 0.127685274 | J14: 0.1213273555 | K14: 0.1140712779 | L14: 0.1094691437 | M14: 0.1062889744
E15: Climate ambition | F15: 0.1640553735 | G15: 0.2074092629 | H15: 0.1372956608 | I15: 0.1401477131 | J15: 0.1490951292 | K15: 0.161781755 | L15: 0.1684696729 | M15: 0.1794596971
D16: Private vehicles | F16: ='Scenario output'!F16 -> 0.3911683493 | G16: ='Scenario output'!G16 -> 0.5093070894 | H16: ='Scenario output'!H16 -> 0.4525551936 | I16: ='Scenario output'!I16 -> 0.4484348211 | J16: ='Scenario output'!J16 -> 0.4323277766 | K16: ='Scenario output'!K16 -> 0.4580252809 | L16: ='Scenario output'!L16 -> 0.4412169956 | M16: ='Scenario output'!M16 -> 0.4372264112
E17: Baseline | F17: 0.3911683493 | G17: 0.5093070894 | H17: 0.4811834047 | I17: 0.5333352908 | J17: 0.5866134516 | K17: 0.6442072847 | L17: 0.6921976275 | M17: 0.7347633934
E18: Current Policies | F18: 0.3911683493 | G18: 0.5093070894 | H18: 0.452555879 | I18: 0.448435577 | J18: 0.4323285213 | K18: 0.4580259971 | L18: 0.4412176765 | M18: 0.4372270563
E19: Climate ambition | F19: 0.3911683493 | G19: 0.5093070894 | H19: 0.4093592644 | I19: 0.3621431092 | J19: 0.3123701115 | K19: 0.2892751276 | L19: 0.224811134 | M19: 0.1779729178
D20: Public Transport | F20: ='Scenario output'!F19 -> 0.4065050812 | G20: ='Scenario output'!G19 -> 0.2546443296 | H20: ='Scenario output'!H19 -> 0.3872442482 | I20: ='Scenario output'!I19 -> 0.4015939828 | J20: ='Scenario output'!J19 -> 0.4290932947 | K20: ='Scenario output'!K19 -> 0.4136916534 | L20: ='Scenario output'!L19 -> 0.4324484647 | M20: ='Scenario output'!M19 -> 0.4399679906
E21: Baseline | F21: 0.4065050812 | G21: 0.2546443296 | H21: 0.3704389623 | I21: 0.3347749853 | J21: 0.2903930818 | K21: 0.2479033321 | L21: 0.2089267419 | M21: 0.1754320202
E22: Current Policies | F22: 0.4065050812 | G22: 0.2546443296 | H22: 0.3872437272 | I22: 0.4015933953 | J22: 0.4290926972 | K22: 0.4136910749 | L22: 0.4324479113 | M22: 0.4399674637
E23: Climate ambition | F23: 0.4065050812 | G23: 0.2546443296 | H23: 0.4149620092 | I23: 0.4343778036 | J23: 0.4863622087 | K23: 0.5029509411 | L23: 0.5538846269 | M23: 0.5898143783
D24: Shared Mobility | F24: ='Scenario output'!F25 -> 0.03827119596 | G24: ='Scenario output'!G25 -> 0.02863931813 | H24: ='Scenario output'!H25 -> 0.02619905183 | I24: ='Scenario output'!I25 -> 0.02228578684 | J24: ='Scenario output'!J25 -> 0.01725145029 | K24: ='Scenario output'!K25 -> 0.01421167018 | L24: ='Scenario output'!L25 -> 0.01686529039 | M24: ='Scenario output'!M25 -> 0.01651652572
E25: Baseline | F25: 0.03827119596 | G25: 0.02863931813 | H25: 0.02617781147 | I25: 0.02196498222 | J25: 0.01834945949 | K25: 0.01475909644 | L25: 0.01182246647 | M25: 0.009303380518
E26: Current Policies | F26: 0.03827119596 | G26: 0.02863931813 | H26: 0.0261990162 | I26: 0.02228575382 | J26: 0.01725142607 | K26: 0.01421165007 | L26: 0.0168652685 | M26: 0.01651650561
E27: Climate ambition | F27: 0.03827119596 | G27: 0.02863931813 | H27: 0.03838306548 | I27: 0.06333137401 | J27: 0.05217255056 | K27: 0.04599217637 | L27: 0.0528345662 | M27: 0.05275300679
C29: Trips (million) | F29: 2015 | G29: 2020 | H29: 2025 | I29: 2030 | J29: 2035 | K29: 2040 | L29: 2045 | M29: 2050
D30: TOTAL | F30: ='Scenario output'!F32 -> 646.2870446 | G30: ='Scenario output'!G32 -> 474.9619877 | H30: ='Scenario output'!H32 -> 858.842528 | I30: ='Scenario output'!I32 -> 969.8312711 | J30: ='Scenario output'!J32 -> 1085.275792 | K30: ='Scenario output'!K32 -> 1213.793782 | L30: ='Scenario output'!L32 -> 1380.995664 | M30: ='Scenario output'!M32 -> 1575.594209
E31: Baseline | F31: 646.2870446 | G31: 474.9619877 | H31: 858.842528 | I31: 969.8312711 | J31: 1085.275792 | K31: 1213.793782 | L31: 1380.995664 | M31: 1575.594209
E32: Current Policies | F32: 646.2870446 | G32: 474.9619877 | H32: 858.842528 | I32: 969.8312711 | J32: 1085.275792 | K32: 1213.793782 | L32: 1380.995664 | M32: 1575.594209
E33: Climate ambition | F33: 646.2870446 | G33: 474.9619877 | H33: 858.842528 | I33: 969.8312711 | J33: 1085.275792 | K33: 1213.793782 | L33: 1380.995664 | M33: 1575.594209
D34: Non-Motorised | F34: ='Scenario output'!F33 -> 106.0268625 | G34: ='Scenario output'!G33 -> 98.51151575 | H34: ='Scenario output'!H33 -> 115.0861925 | I34: ='Scenario output'!I33 -> 123.8333027 | J34: ='Scenario output'!J33 -> 131.6737752 | K34: ='Scenario output'!K33 -> 138.4591506 | L34: ='Scenario output'!L33 -> 151.1765586 | M34: ='Scenario output'!M33 -> 167.4684471
E35: Baseline | F35: 106.0268625 | G35: 98.51151575 | H35: 104.9504037 | I35: 106.6084519 | J35: 113.5676078 | K35: 113.040963 | L35: 120.2200422 | M35: 126.8372337
E36: Current Policies | F36: 106.0268625 | G36: 98.51151575 | H36: 115.0860818 | I36: 123.8331716 | J36: 131.6736418 | K36: 138.4590078 | L36: 151.1764128 | M36: 167.4682925
E37: Climate ambition | F37: 106.0268625 | G37: 98.51151575 | H37: 117.9153524 | I37: 135.9196348 | J37: 161.8093345 | K37: 196.3696883 | L37: 232.6558879 | M37: 282.7556595
D38: Private vehicles | F38: ='Scenario output'!F37 -> 252.8070364 | G38: ='Scenario output'!G37 -> 241.9015075 | H38: ='Scenario output'!H37 -> 388.6736465 | I38: ='Scenario output'!I37 -> 434.9061126 | J38: ='Scenario output'!J37 -> 469.1948703 | K38: ='Scenario output'!K37 -> 555.9482379 | L38: ='Scenario output'!L37 -> 609.3187579 | M38: ='Scenario output'!M37 -> 688.8914013
E39: Baseline | F39: 252.8070364 | G39: 241.9015075 | H39: 413.2607717 | I39: 517.245243 | J39: 636.6373784 | K39: 781.9347965 | L39: 955.9219222 | M39: 1157.688947
E40: Current Policies | F40: 252.8070364 | G40: 241.9015075 | H40: 388.6742352 | I40: 434.9068456 | J40: 469.1956784 | K40: 555.9491073 | L40: 609.3196982 | M40: 688.8924177
E41: Climate ambition | F41: 252.8070364 | G41: 241.9015075 | H41: 351.5751455 | I41: 351.217712 | J41: 339.0077202 | K41: 351.1203511 | L41: 310.4632012 | M41: 280.4130986
D42: Public Transport | F42: ='Scenario output'!F40 -> 262.7189675 | G42: ='Scenario output'!G40 -> 120.9463769 | H42: ='Scenario output'!H40 -> 332.5818291 | I42: ='Scenario output'!I40 -> 389.4784028 | J42: ='Scenario output'!J40 -> 465.6845653 | K42: ='Scenario output'!K40 -> 502.1363565 | L42: ='Scenario output'!L40 -> 597.2094547 | M42: ='Scenario output'!M40 -> 693.211018
E43: Baseline | F43: 262.7189675 | G43: 120.9463769 | H43: 318.1487348 | I43: 324.6752495 | J43: 315.1565819 | K43: 300.903523 | L43: 288.5269247 | M43: 276.409675
E44: Current Policies | F44: 262.7189675 | G44: 120.9463769 | H44: 332.5813816 | I44: 389.477833 | J44: 465.6839168 | K44: 502.1356544 | L44: 597.2086905 | M44: 693.2101878
E45: Climate ambition | F45: 262.7189675 | G45: 120.9463769 | H45: 356.387021 | I45: 421.2731774 | J45: 527.8371313 | K45: 610.4787249 | L45: 764.9122682 | M45: 929.3081186
D46: Shared Mobility | F46: ='Scenario output'!F46 -> 24.73417813 | G46: ='Scenario output'!G46 -> 13.60258746 | H46: ='Scenario output'!H46 -> 22.5008599 | I46: ='Scenario output'!I46 -> 21.61345298 | J46: ='Scenario output'!J46 -> 18.72258138 | K46: ='Scenario output'!K46 -> 17.2500369 | L46: ='Scenario output'!L46 -> 23.29089291 | M46: ='Scenario output'!M46 -> 26.02334227
E47: Baseline | F47: 24.73417813 | G47: 13.60258746 | H47: 22.48261778 | I47: 21.30232662 | J47: 19.91422419 | K47: 17.91449948 | L47: 16.32677494 | M47: 14.65835246
E48: Current Policies | F48: 24.73417813 | G48: 13.60258746 | H48: 22.50082931 | I48: 21.61342095 | J48: 18.72255509 | K48: 17.25001249 | L48: 23.29086267 | M48: 26.02331058
E49: Climate ambition | F49: 24.73417813 | G49: 13.60258746 | H49: 32.96500899 | I49: 61.42074696 | J49: 56.62160614 | K49: 55.8250177 | L49: 72.96430683 | M49: 83.11733198
C51: Passenger-kilometre (million km) | F51: 2015 | G51: 2020 | H51: 2025 | I51: 2030 | J51: 2035 | K51: 2040 | L51: 2045 | M51: 2050
D52: TOTAL | F52: ='Scenario output'!F53 -> 3166.337894 | G52: ='Scenario output'!G53 -> 2555.484057 | H52: ='Scenario output'!H53 -> 4995.324363 | I52: ='Scenario output'!I53 -> 6112.608989 | J52: ='Scenario output'!J53 -> 6842.92299 | K52: ='Scenario output'!K53 -> 8067.197591 | L52: ='Scenario output'!L53 -> 9251.065876 | M52: ='Scenario output'!M53 -> 10727.27079
E53: Baseline | F53: 3166.337894 | G53: 2555.484057 | H53: 5010.78016 | I53: 6209.000564 | J53: 7016.126603 | K53: 8320.242854 | L53: 9593.232781 | M53: 11190.48492
E54: Current Policies | F54: 3166.337894 | G54: 2555.484057 | H54: 4995.32445 | I54: 6112.609093 | J54: 6842.923128 | K54: 8067.19773 | L54: 9251.066006 | M54: 10727.27092
E55: Climate ambition | F55: 3166.337894 | G55: 2555.484057 | H55: 4940.903362 | I55: 6107.943804 | J55: 6787.107581 | K55: 7945.170194 | L55: 9074.834297 | M55: 10463.13183
D56: Non-Motorised | F56: ='Scenario output'!F54 -> 201.4636976 | G56: ='Scenario output'!G54 -> 210.1662709 | H56: ='Scenario output'!H54 -> 231.5967176 | I56: ='Scenario output'!I54 -> 257.2052417 | J56: ='Scenario output'!J54 -> 266.0625689 | K56: ='Scenario output'!K54 -> 281.9450628 | L56: ='Scenario output'!L54 -> 310.0404674 | M56: ='Scenario output'!M54 -> 343.5932289
E57: Baseline | F57: 201.4636976 | G57: 210.1662709 | H57: 192.6095733 | I57: 194.8447794 | J57: 204.2774233 | K57: 200.1722042 | L57: 208.4267672 | M57: 215.3253047
E58: Current Policies | F58: 201.4636976 | G58: 210.1662709 | H58: 231.5964347 | I58: 257.204896 | J58: 266.0622301 | K58: 281.9446987 | L58: 310.0400978 | M58: 343.5928417
E59: Climate ambition | F59: 201.4636976 | G59: 210.1662709 | H59: 236.873489 | I59: 285.1808801 | J59: 340.5539675 | K59: 432.3128963 | L59: 523.1187278 | M59: 651.4458016
D60: Private vehicles | F60: ='Scenario output'!F58 -> 1452.98519 | G60: ='Scenario output'!G58 -> 1555.064375 | H60: ='Scenario output'!H58 -> 2584.068978 | I60: ='Scenario output'!I58 -> 3110.182216 | J60: ='Scenario output'!J58 -> 3325.656151 | K60: ='Scenario output'!K58 -> 4094.956076 | L60: ='Scenario output'!L58 -> 4472.750324 | M60: ='Scenario output'!M58 -> 5084.798768
E61: Baseline | F61: 1452.98519 | G61: 1555.064375 | H61: 2747.124525 | I61: 3719.046426 | J61: 4570.99729 | K61: 5864.010894 | L61: 7194.76545 | M61: 8827.12893
E62: Current Policies | F62: 1452.98519 | G62: 1555.064375 | H62: 2584.072241 | I62: 3110.186606 | J62: 3325.661038 | K62: 4094.96157 | L62: 4472.756328 | M62: 5084.805344
E63: Climate ambition | F63: 1452.98519 | G63: 1555.064375 | H63: 2324.895093 | I63: 2523.985555 | J63: 2430.8952 | K63: 2646.157773 | L63: 2349.124093 | M63: 2156.936769
D64: Public Transport | F64: ='Scenario output'!F61 -> 1373.170601 | G64: ='Scenario output'!G61 -> 706.4094716 | H64: ='Scenario output'!H61 -> 2037.14922 | I64: ='Scenario output'!I61 -> 2599.349767 | J64: ='Scenario output'!J61 -> 3124.362932 | K64: ='Scenario output'!K61 -> 3568.324906 | L64: ='Scenario output'!L61 -> 4302.668003 | M64: ='Scenario output'!M61 -> 5110.760751
E65: Baseline | F65: 1373.170601 | G65: 706.4094716 | H65: 1929.903968 | I65: 2152.214335 | J65: 2106.053295 | K65: 2129.337193 | L65: 2073.210146 | M65: 2040.588558
E66: Current Policies | F66: 1373.170601 | G66: 706.4094716 | H66: 2037.146521 | I66: 2599.346043 | J66: 3124.3587 | K66: 3568.320086 | L66: 4302.662711 | M66: 5110.754914
E67: Climate ambition | F67: 1373.170601 | G67: 706.4094716 | H67: 2172.370877 | I67: 2827.008061 | J67: 3574.734449 | K67: 4404.798878 | L67: 5581.876274 | M67: 6927.172988
D68: Shared Mobility | F68: ='Scenario output'!F67 -> 138.7184053 | G68: ='Scenario output'!G67 -> 83.8439391 | H68: ='Scenario output'!H67 -> 142.5094464 | I68: ='Scenario output'!I67 -> 145.8717643 | J68: ='Scenario output'!J67 -> 126.8413375 | K68: ='Scenario output'!K67 -> 121.9715458 | L68: ='Scenario output'!L67 -> 165.6070803 | M68: ='Scenario output'!M67 -> 188.1180406
E69: Baseline | F69: 138.7184053 | G69: 83.8439391 | H69: 141.1420938 | I69: 142.8950236 | J69: 134.7985953 | K69: 126.722563 | L69: 116.8304187 | M69: 107.442122
E70: Current Policies | F70: 138.7184053 | G70: 83.8439391 | H70: 142.5092521 | I70: 145.8715486 | J70: 126.8411603 | K70: 121.9713753 | L70: 165.6068688 | M70: 188.1178165
E71: Climate ambition | F71: 138.7184053 | G71: 83.8439391 | H71: 206.7639028 | I71: 471.7693085 | J71: 440.9239652 | K71: 461.9006456 | L71: 620.7152027 | M71: 727.5762738
C73: Vehicle-kilometre (million km) | F73: 2015 | G73: 2020 | H73: 2025 | I73: 2030 | J73: 2035 | K73: 2040 | L73: 2045 | M73: 2050
D74: TOTAL | F74: ='Scenario output'!F74 -> 1031.756085 | G74: ='Scenario output'!G74 -> 1012.948972 | H74: ='Scenario output'!H74 -> 1732.919405 | I74: ='Scenario output'!I74 -> 2007.281415 | J74: ='Scenario output'!J74 -> 2084.531811 | K74: ='Scenario output'!K74 -> 2486.254036 | L74: ='Scenario output'!L74 -> 2721.839948 | M74: ='Scenario output'!M74 -> 3055.314246
E75: Baseline | F75: 1031.756085 | G75: 1012.948972 | H75: 1799.818086 | I75: 2359.84001 | J75: 2823.667246 | K75: 3537.667908 | L75: 4265.326235 | M75: 5162.767562
E76: Current Policies | F76: 1031.756085 | G76: 1012.948972 | H76: 1732.923202 | I76: 2007.286602 | J76: 2084.537547 | K76: 2486.260733 | L76: 2721.847094 | M76: 3055.322054
E77: Climate ambition | F77: 1031.756085 | G77: 1012.948972 | H77: 1637.116675 | I77: 1804.022136 | J77: 1747.333024 | K77: 1918.449093 | L77: 1868.467667 | M77: 1878.090261
D78: Non-Motorised | F78: ='Scenario output'!F75 -> 23.92323229 | G78: ='Scenario output'!G75 -> 37.98022371 | H78: ='Scenario output'!H75 -> 55.74000352 | I78: ='Scenario output'!I75 -> 74.41806124 | J78: ='Scenario output'!J75 -> 78.01113398 | K78: ='Scenario output'!K75 -> 87.93216483 | L78: ='Scenario output'!L75 -> 107.5900484 | M78: ='Scenario output'!M75 -> 126.5259705
E79: Baseline | F79: 23.92323229 | G79: 37.98022371 | H79: 24.09721919 | I79: 23.8751475 | J79: 23.20008443 | K79: 21.64487056 | L79: 20.67737884 | M79: 19.60458627
E80: Current Policies | F80: 23.92323229 | G80: 37.98022371 | H80: 55.73992467 | I80: 74.41794647 | J80: 78.01102029 | K80: 87.93203597 | L80: 107.5899044 | M80: 126.525812
E81: Climate ambition | F81: 23.92323229 | G81: 37.98022371 | H81: 56.83725343 | I81: 79.34776949 | J81: 98.61063117 | K81: 135.0905341 | L81: 184.4987268 | M81: 251.0250988
D82: Private vehicles | F82: ='Scenario output'!F79 -> 815.5719515 | G82: ='Scenario output'!G79 -> 869.058966 | H82: ='Scenario output'!H79 -> 1444.988593 | I82: ='Scenario output'!I79 -> 1656.341379 | J82: ='Scenario output'!J79 -> 1748.742169 | K82: ='Scenario output'!K79 -> 2126.267498 | L82: ='Scenario output'!L79 -> 2293.841383 | M82: ='Scenario output'!M79 -> 2575.964103
E83: Baseline | F83: 815.5719515 | G83: 869.058966 | H83: 1535.710937 | I83: 2076.453343 | J83: 2549.346152 | K83: 3267.497104 | L83: 4006.351404 | M83: 4912.853
E84: Current Policies | F84: 815.5719515 | G84: 869.058966 | H84: 1444.992779 | I84: 1656.347081 | J84: 1748.74837 | K84: 2126.274694 | L84: 2293.84907 | M84: 2575.972476
E85: Climate ambition | F85: 815.5719515 | G85: 869.058966 | H85: 1300.672804 | I85: 1345.961857 | J85: 1280.441077 | K85: 1376.73571 | L85: 1207.410867 | M85: 1095.340725
D86: Public Transport | F86: ='Scenario output'!F82 -> 114.4308834 | G86: ='Scenario output'!G82 -> 58.86745597 | H86: ='Scenario output'!H82 -> 152.2404004 | I86: ='Scenario output'!I82 -> 195.2093795 | J86: ='Scenario output'!J82 -> 187.1889859 | K86: ='Scenario output'!K82 -> 204.3112412 | L86: ='Scenario output'!L82 -> 228.1617985 | M86: ='Scenario output'!M82 -> 247.9630392
E87: Baseline | F87: 114.4308834 | G87: 58.86745597 | H87: 160.8253307 | I87: 179.3511946 | J87: 175.5044413 | K87: 177.4447661 | L87: 172.7675121 | M87: 170.0490465
E88: Current Policies | F88: 114.4308834 | G88: 58.86745597 | H88: 152.2401991 | I88: 195.2091002 | J88: 187.1887332 | K88: 204.3109663 | L88: 228.1615192 | M88: 247.9627575
E89: Climate ambition | F89: 114.4308834 | G89: 58.86745597 | H89: 163.5916819 | I89: 213.171948 | J89: 217.5529515 | K89: 253.4610071 | L89: 286.8492489 | M89: 319.315663
D90: Shared Mobility | F90: ='Scenario output'!F88 -> 77.8300174 | G90: ='Scenario output'!G88 -> 47.04232595 | H90: ='Scenario output'!H88 -> 79.95040807 | I90: ='Scenario output'!I88 -> 81.31259524 | J90: ='Scenario output'!J88 -> 70.5895223 | K90: ='Scenario output'!K88 -> 67.74313166 | L90: ='Scenario output'!L88 -> 92.24671776 | M90: ='Scenario output'!M88 -> 104.8611336
E91: Baseline | F91: 77.8300174 | G91: 47.04232595 | H91: 79.18459893 | I91: 80.16032511 | J91: 75.6165688 | K91: 71.08116745 | L91: 65.52993973 | M91: 60.26092911
E92: Current Policies | F92: 77.8300174 | G92: 47.04232595 | H92: 79.95029906 | I92: 81.31247498 | J92: 70.5894237 | K92: 67.74303694 | L92: 92.24659989 | M92: 104.8610086
E93: Climate ambition | F93: 77.8300174 | G93: 47.04232595 | H93: 116.0149354 | I93: 165.5405619 | J93: 150.728364 | K93: 153.1618419 | L93: 189.7088241 | M93: 212.4087739
B95: CO2 emissions (thousand tCO2eq) | F95: 2015 | G95: 2020 | H95: 2025 | I95: 2030 | J95: 2035 | K95: 2040 | L95: 2045 | M95: 2050
C96: Total Well To Wheel emissions | D96: TOTAL | F96: ='Scenario output'!F95 -> 356.6769946 | G96: ='Scenario output'!G95 -> 295.9477161 | H96: ='Scenario output'!H95 -> 517.2571854 | I96: ='Scenario output'!I95 -> 531.8588665 | J96: ='Scenario output'!J95 -> 508.1730483 | K96: ='Scenario output'!K95 -> 554.4983961 | L96: ='Scenario output'!L95 -> 554.0120401 | M96: ='Scenario output'!M95 -> 548.9423598
E97: Baseline | F97: 356.6769946 | G97: 295.9477161 | H97: 590.9511036 | I97: 747.1265459 | J97: 858.4365689 | K97: 1037.344972 | L97: 1213.174365 | M97: 1432.874517
E98: Current Policies | F98: 356.6769946 | G98: 295.9477161 | H98: 517.2568704 | I98: 531.8585823 | J98: 508.1728591 | K98: 554.4982237 | L98: 554.0119471 | M98: 548.9423487
E99: Climate ambition | F99: 356.6769946 | G99: 295.9477161 | H99: 499.9787984 | I99: 489.9500918 | J99: 408.4557529 | K99: 365.7429434 | L99: 268.1777299 | M99: 170.0284098
D100: Non-Motorised | F100: ='Scenario output'!F96 -> 0 | G100: ='Scenario output'!G96 -> 0 | H100: ='Scenario output'!H96 -> 0 | I100: ='Scenario output'!I96 -> 0 | J100: ='Scenario output'!J96 -> 0 | K100: ='Scenario output'!K96 -> 0 | L100: ='Scenario output'!L96 -> 0 | M100: ='Scenario output'!M96 -> 0
E101: Baseline | F101: 0 | G101: 0 | H101: 0 | I101: 0 | J101: 0 | K101: 0 | L101: 0 | M101: 0
E102: Current Policies | F102: 0 | G102: 0 | H102: 0 | I102: 0 | J102: 0 | K102: 0 | L102: 0 | M102: 0
E103: Climate ambition | F103: 0 | G103: 0 | H103: 0 | I103: 0 | J103: 0 | K103: 0 | L103: 0 | M103: 0
D104: Private vehicles | F104: ='Scenario output'!F100 -> 197.7117952 | G104: ='Scenario output'!G100 -> 212.4576248 | H104: ='Scenario output'!H100 -> 349.0948699 | I104: ='Scenario output'!I100 -> 378.4501185 | J104: ='Scenario output'!J100 -> 381.3553418 | K104: ='Scenario output'!K100 -> 435.4345513 | L104: ='Scenario output'!L100 -> 435.4596225 | M104: ='Scenario output'!M100 -> 439.0474443
E105: Baseline | F105: 197.7117952 | G105: 212.4576248 | H105: 375.2171052 | I105: 508.5480945 | J105: 625.6685504 | K105: 803.3251692 | L105: 986.2252894 | M105: 1210.536239
E106: Current Policies | F106: 197.7117952 | G106: 212.4576248 | H106: 349.0947781 | I106: 378.4500544 | J106: 381.3553242 | K106: 435.4345397 | L106: 435.4596755 | M106: 439.047559
E107: Climate ambition | F107: 197.7117952 | G107: 212.4576248 | H107: 312.7213562 | I107: 299.6136985 | J107: 258.5252474 | K107: 238.8735978 | L107: 169.3120447 | M107: 114.1507007
D108: Public Transport | F108: ='Scenario output'!F103 -> 139.9450087 | G108: ='Scenario output'!G103 -> 71.99286062 | H108: ='Scenario output'!H103 -> 148.8445375 | I108: ='Scenario output'!I103 -> 134.8529027 | J108: ='Scenario output'!J103 -> 111.4774293 | K108: ='Scenario output'!K103 -> 105.2730363 | L108: ='Scenario output'!L103 -> 101.0881319 | M108: ='Scenario output'!M103 -> 92.06403183
E109: Baseline | F109: 139.7390675 | G109: 71.88691687 | H109: 196.3943742 | I109: 219.0175234 | J109: 214.3200003 | K109: 216.6894583 | L109: 210.9777564 | M109: 207.6580595
E110: Current Policies | F110: 139.9450087 | G110: 71.99286062 | H110: 148.8443407 | I110: 134.85271 | J110: 111.4772791 | K110: 105.2728949 | L110: 101.0880083 | M110: 92.06392735
E111: Climate ambition | F111: 139.7390675 | G111: 71.88691687 | H111: 160.9790604 | I111: 149.0523033 | J111: 117.3619377 | K111: 99.85564493 | L111: 73.26916595 | M111: 37.83115614
D112: Shared Mobility | F112: ='Scenario output'!F109 -> 19.02019066 | G112: ='Scenario output'!G109 -> 11.49723075 | H112: ='Scenario output'!H109 -> 19.31777795 | I112: ='Scenario output'!I109 -> 18.55584535 | J112: ='Scenario output'!J109 -> 15.34027726 | K112: ='Scenario output'!K109 -> 13.79080842 | L112: ='Scenario output'!L109 -> 17.46428566 | M112: ='Scenario output'!M109 -> 17.83088358
E113: Baseline | F113: 19.02019066 | G113: 11.49723075 | H113: 19.33962419 | I113: 19.56092802 | J113: 18.44801818 | K113: 17.33034476 | L113: 15.97131957 | M113: 14.68021855
E114: Current Policies | F114: 19.02019066 | G114: 11.49723075 | H114: 19.31775161 | I114: 18.5558179 | J114: 15.34025582 | K114: 13.79078913 | L114: 17.46426334 | M114: 17.83086233
E115: Climate ambition | F115: 19.02019066 | G115: 11.49723075 | H115: 26.27838175 | I115: 41.28408997 | J115: 32.56856784 | K115: 27.01370072 | L115: 25.59651932 | M115: 18.04655301
C116: Direct Tank To Wheel emissions | D116: TOTAL | F116: ='Scenario output'!F114 -> 282.0076743 | G116: ='Scenario output'!G114 -> 235.5302735 | H116: ='Scenario output'!H114 -> 400.5606259 | I116: ='Scenario output'!I114 -> 402.1346093 | J116: ='Scenario output'!J114 -> 386.4960124 | K116: ='Scenario output'!K114 -> 424.0681976 | L116: ='Scenario output'!L114 -> 422.2718471 | M116: ='Scenario output'!M114 -> 417.8282891
E117: Baseline | F117: 282.0076743 | G117: 235.5302735 | H117: 468.6929045 | I117: 593.5451218 | J117: 683.2324904 | K117: 827.0523277 | L117: 968.6683103 | M117: 1145.48985
E118: Current Policies | F118: 282.0076743 | G118: 235.5302735 | H118: 400.560396 | I118: 402.1344211 | J118: 386.4958941 | K118: 424.0680929 | L118: 422.2718056 | M118: 417.828312
E119: Climate ambition | F119: 282.0076743 | G119: 235.5302735 | H119: 385.6733247 | I119: 363.1931513 | J119: 295.8663284 | K119: 257.0238491 | L119: 174.7299032 | M119: 96.40044989
D120: Non-Motorised | F120: ='Scenario output'!F115 -> 0 | G120: ='Scenario output'!G115 -> 0 | H120: ='Scenario output'!H115 -> 0 | I120: ='Scenario output'!I115 -> 0 | J120: ='Scenario output'!J115 -> 0 | K120: ='Scenario output'!K115 -> 0 | L120: ='Scenario output'!L115 -> 0 | M120: ='Scenario output'!M115 -> 0
E121: Baseline | F121: 0 | G121: 0 | H121: 0 | I121: 0 | J121: 0 | K121: 0 | L121: 0 | M121: 0
E122: Current Policies | F122: 0 | G122: 0 | H122: 0 | I122: 0 | J122: 0 | K122: 0 | L122: 0 | M122: 0
E123: Climate ambition | F123: 0 | G123: 0 | H123: 0 | I123: 0 | J123: 0 | K123: 0 | L123: 0 | M123: 0
D124: Private vehicles | F124: ='Scenario output'!F119 -> 159.0345681 | G124: ='Scenario output'!G119 -> 170.8909448 | H124: ='Scenario output'!H119 -> 282.4450823 | I124: ='Scenario output'!I119 -> 305.9861171 | J124: ='Scenario output'!J119 -> 308.1063418 | K124: ='Scenario output'!K119 -> 350.5026994 | L124: ='Scenario output'!L119 -> 348.6287094 | M124: ='Scenario output'!M119 -> 349.2120927
E125: Baseline | F125: 159.0345681 | G125: 170.8909448 | H125: 301.8076131 | I125: 409.0497584 | J125: 503.2519017 | K125: 646.1449439 | L125: 793.2551241 | M125: 973.6730895
E126: Current Policies | F126: 159.0345681 | G126: 170.8909448 | H126: 282.4450092 | I126: 305.986067 | J126: 308.1063297 | K126: 350.5026942 | L126: 348.6287586 | M126: 349.2121944
E127: Climate ambition | F127: 159.0345681 | G127: 170.8909448 | H127: 252.4074806 | I127: 241.0170281 | J127: 206.4875622 | K127: 188.3496929 | L127: 130.8650179 | M127: 85.86726986
D128: Public Transport | F128: ='Scenario output'!F122 -> 107.6747321 | G128: ='Scenario output'!G122 -> 55.39184319 | H128: ='Scenario output'!H122 -> 102.4861867 | I128: ='Scenario output'!I122 -> 81.14590109 | J128: ='Scenario output'!J122 -> 65.99609808 | K128: ='Scenario output'!K122 -> 62.46488058 | L128: ='Scenario output'!L122 -> 59.66174146 | M128: ='Scenario output'!M122 -> 54.4344251
E129: Baseline | F129: 107.6747321 | G129: 55.39184319 | H129: 151.3299896 | I129: 168.7620618 | J129: 165.142426 | K129: 166.9681914 | L129: 162.5670888 | M129: 160.009125
E130: Current Policies | F130: 107.6747321 | G130: 55.39184319 | H130: 102.4860512 | I130: 81.14578515 | J130: 65.99600917 | K130: 62.46479668 | L130: 59.66166853 | M130: 54.43436333
E131: Climate ambition | F131: 107.6747321 | G131: 55.39184319 | H131: 112.0151878 | I131: 91.74880688 | J131: 65.96219124 | K131: 49.95108611 | L131: 27.61292949 | M131: 0.7950062299
D132: Shared Mobility | F132: ='Scenario output'!F128 -> 15.29837415 | G132: ='Scenario output'!G128 -> 9.247485514 | H132: ='Scenario output'!H128 -> 15.62935689 | I132: ='Scenario output'!I128 -> 15.00259114 | J132: ='Scenario output'!J128 -> 12.39357251 | K132: ='Scenario output'!K128 -> 11.1006176 | L132: ='Scenario output'!L128 -> 13.98139626 | M132: ='Scenario output'!M128 -> 14.18177124
E133: Baseline | F133: 15.29837415 | G133: 9.247485514 | H133: 15.55530183 | I133: 15.73330156 | J133: 14.83816274 | K133: 13.93919246 | L133: 12.84609744 | M133: 11.80763537
E134: Current Policies | F134: 15.29837415 | G134: 9.247485514 | H134: 15.62933557 | I134: 15.00256894 | J134: 12.39355519 | K134: 11.10060208 | L134: 13.98137839 | M134: 14.18175434
E135: Climate ambition | F135: 15.29837415 | G135: 9.247485514 | H135: 21.25065629 | I135: 30.42731637 | J135: 23.41657494 | K135: 18.72307006 | L135: 16.25195587 | M135: 9.7381738
C136: Indirect Well To Tank emissions | D136: TOTAL | F136: ='Scenario output'!F133 -> 74.66932025 | G136: ='Scenario output'!G133 -> 60.41744266 | H136: ='Scenario output'!H133 -> 116.6965594 | I136: ='Scenario output'!I133 -> 129.7242572 | J136: ='Scenario output'!J133 -> 121.6770359 | K136: ='Scenario output'!K133 -> 130.4301985 | L136: ='Scenario output'!L133 -> 131.7401929 | M136: ='Scenario output'!M133 -> 131.1140707
E137: Baseline | F137: 74.66932025 | G137: 60.41744266 | H137: 122.2581991 | I137: 153.5814241 | J137: 175.2040785 | K137: 210.2926446 | L137: 244.506055 | M137: 287.3846669
E138: Current Policies | F138: 74.66932025 | G138: 60.41744266 | H138: 116.6964745 | I138: 129.7241612 | J138: 121.676965 | K138: 130.4301308 | L138: 131.7401415 | M138: 131.1140367
E139: Climate ambition | F139: 74.66932025 | G139: 60.41744266 | H139: 114.3054736 | I139: 126.7569404 | J139: 112.5894245 | K139: 108.7190943 | L139: 93.44782669 | M139: 73.62795994
D140: Non-Motorised | F140: ='Scenario output'!F134 -> 0 | G140: ='Scenario output'!G134 -> 0 | H140: ='Scenario output'!H134 -> 0 | I140: ='Scenario output'!I134 -> 0 | J140: ='Scenario output'!J134 -> 0 | K140: ='Scenario output'!K134 -> 0 | L140: ='Scenario output'!L134 -> 0 | M140: ='Scenario output'!M134 -> 0
E141: Baseline | F141: 0 | G141: 0 | H141: 0 | I141: 0 | J141: 0 | K141: 0 | L141: 0 | M141: 0
E142: Current Policies | F142: 0 | G142: 0 | H142: 0 | I142: 0 | J142: 0 | K142: 0 | L142: 0 | M142: 0
E143: Climate ambition | F143: 0 | G143: 0 | H143: 0 | I143: 0 | J143: 0 | K143: 0 | L143: 0 | M143: 0
D144: Private vehicles | F144: ='Scenario output'!F138 -> 38.67722709 | G144: ='Scenario output'!G138 -> 41.56667999 | H144: ='Scenario output'!H138 -> 66.64978752 | I144: ='Scenario output'!I138 -> 72.46400136 | J144: ='Scenario output'!J138 -> 73.24899993 | K144: ='Scenario output'!K138 -> 84.93185192 | L144: ='Scenario output'!L138 -> 86.8309131 | M144: ='Scenario output'!M138 -> 89.83535163
E145: Baseline | F145: 38.67722709 | G145: 41.56667999 | H145: 73.40949207 | I145: 99.49833613 | J145: 122.4166487 | K145: 157.1802254 | L145: 192.9701653 | M145: 236.8631493
E146: Current Policies | F146: 38.67722709 | G146: 41.56667999 | H146: 66.64976891 | I146: 72.46398742 | J146: 73.24899452 | K146: 84.93184553 | L146: 86.83091684 | M146: 89.83536469
E147: Climate ambition | F147: 38.67722709 | G147: 41.56667999 | H147: 60.31387562 | I147: 58.59667043 | J147: 52.03768516 | K147: 50.52390483 | L147: 38.44702679 | M147: 28.28343083
D148: Public Transport | F148: ='Scenario output'!F141 -> 32.27027665 | G148: ='Scenario output'!G141 -> 16.60101743 | H148: ='Scenario output'!H141 -> 46.35835084 | I148: ='Scenario output'!I141 -> 53.70700163 | J148: ='Scenario output'!J141 -> 45.48133121 | K148: ='Scenario output'!K141 -> 42.80815574 | L148: ='Scenario output'!L141 -> 41.42639042 | M148: ='Scenario output'!M141 -> 37.62960673
E149: Baseline | F149: 32.06433542 | G149: 16.49507368 | H149: 45.06438466 | I149: 50.25546155 | J149: 49.17757431 | K149: 49.72126692 | L149: 48.4106676 | M149: 47.64893448
E150: Current Policies | F150: 32.27027665 | G150: 16.60101743 | H150: 46.35828951 | I150: 53.70692485 | J150: 45.48126988 | K150: 42.80809819 | L150: 41.42633975 | M150: 37.62956402
E151: Climate ambition | F151: 32.06433542 | G151: 16.49507368 | H151: 48.96387257 | I151: 57.30349638 | J151: 51.39974647 | K151: 49.90455882 | L151: 45.65623645 | M151: 37.03614991
D152: Shared Mobility | F152: ='Scenario output'!F147 -> 3.721816515 | G152: ='Scenario output'!G147 -> 2.249745233 | H152: ='Scenario output'!H147 -> 3.688421063 | I152: ='Scenario output'!I147 -> 3.55325421 | J152: ='Scenario output'!J147 -> 2.946704747 | K152: ='Scenario output'!K147 -> 2.690190817 | L152: ='Scenario output'!L147 -> 3.482889406 | M152: ='Scenario output'!M147 -> 3.649112342
E153: Baseline | F153: 3.721816515 | G153: 2.249745233 | H153: 3.784322353 | I153: 3.827626454 | J153: 3.60985544 | K153: 3.3911523 | L153: 3.125222139 | M153: 2.872583183
E154: Current Policies | F154: 3.721816515 | G154: 2.249745233 | H154: 3.688416033 | I154: 3.553248953 | J154: 2.946700629 | K154: 2.690187054 | L154: 3.482884955 | M154: 3.649107992
E155: Climate ambition | F155: 3.721816515 | G155: 2.249745233 | H155: 5.027725458 | I155: 10.85677361 | J155: 9.151992908 | K155: 8.290630663 | L155: 9.344563447 | M155: 8.308379208

Sheet Scenario setting_work (hidden)
U1: Manual | V1: 2025 | W1: No Improvement | X1: 0
B2: Scenario Setting - intermediate sheet to hide | U2: Baseline | V2: 2030 | W2: Improvement according ot current policies | X2: 1
B3: Temporary reorganisation of the scenario setting input | U3: Current Policies | V3: 2035 | W3: Improvement according to reinforced climate ambitions | X3: 2
U4: Climate Ambition | V4: 2040
E5: Insert your values into this column | H5: Reference values | L5: Current Policies | O5: Baseline Do nothing | R5: Climate Ambition | V5: 2045
B6: Measure code | C6: Measure name | D6: Description/Explanation of value to be provided | E6: Year of implementation | F6: Implementation year value | G6: Anticipated 2050 values | H6: 2015 | J6: 2050
E7: With the measure | H7: Base Year Value | J7: "Current Policies" scenario values as defined by the ITF and local stakeholder consultation
B8: Infrastructure Expansion
B9: I_LRT | C9: LRT network | D9: Total network length (km) | E9: 2015 | F9: =IF('Scenario setting'!$D$3='Scenario setting_work'!$U$1,'Scenario setting'!D23,IF('Scenario setting'!$D$3='Scenario setting_work'!$U$2,'Scenario setting_work'!O9,IF('Scenario setting'!$D$3='Scenario setting_work'!$U$3,'Scenario setting_work'!L9,'Scenario setting_work'!R9))) -> 0 | J9: 0 | L9: 0 | O9: 0 | R9: 0
E10: 2020 | F10: =IF('Scenario setting'!$D$3='Scenario setting_work'!$U$1,'Scenario setting'!E23,IF('Scenario setting'!$D$3='Scenario setting_work'!$U$2,'Scenario setting_work'!O10,IF('Scenario setting'!$D$3='Scenario setting_work'!$U$3,'Scenario setting_work'!L10,'Scenario setting_work'!R10))) -> 0 | J10: 0 | L10: 0 | O10: 0 | R10: 0
E11: 2025 | F11: =IF('Scenario setting'!$D$3='Scenario setting_work'!$U$1,'Scenario setting'!F23,IF('Scenario setting'!$D$3='Scenario setting_work'!$U$2,'Scenario setting_work'!O11,IF('Scenario setting'!$D$3='Scenario setting_work'!$U$3,'Scenario setting_work'!L11,'Scenario setting_work'!R11))) -> 20 | J11: 20 | L11: 20 | O11: 0 | R11: 20
E12: 2030 | F12: =IF('Scenario setting'!$D$3='Scenario setting_work'!$U$1,'Scenario setting'!G23,IF('Scenario setting'!$D$3='Scenario setting_work'!$U$2,'Scenario setting_work'!O12,IF('Scenario setting'!$D$3='Scenario setting_work'!$U$3,'Scenario setting_work'!L12,'Scenario setting_work'!R12))) -> 39 | J12: 39 | L12: 39 | O12: 0 | R12: 39
E13: 2035 | F13: =IF('Scenario setting'!$D$3='Scenario setting_work'!$U$1,'Scenario setting'!H23,IF('Scenario setting'!$D$3='Scenario setting_work'!$U$2,'Scenario setting_work'!O13,IF('Scenario setting'!$D$3='Scenario setting_work'!$U$3,'Scenario setting_work'!L13,'Scenario setting_work'!R13))) -> 107.7 | J13: 107.7 | L13: 107.7 | O13: 0 | R13: 107.7
E14: 2040 | F14: =IF('Scenario setting'!$D$3='Scenario setting_work'!$U$1,'Scenario setting'!I23,IF('Scenario setting'!$D$3='Scenario setting_work'!$U$2,'Scenario setting_work'!O14,IF('Scenario setting'!$D$3='Scenario setting_work'!$U$3,'Scenario setting_work'!L14,'Scenario setting_work'!R14))) -> 107.7 | J14: 107.7 | L14: 107.7 | O14: 0 | R14: 115
E15: 2045 | F15: =IF('Scenario setting'!$D$3='Scenario setting_work'!$U$1,'Scenario setting'!J23,IF('Scenario setting'!$D$3='Scenario setting_work'!$U$2,'Scenario setting_work'!O15,IF('Scenario setting'!$D$3='Scenario setting_work'!$U$3,'Scenario setting_work'!L15,'Scenario setting_work'!R15))) -> 107.7 | J15: 107.7 | L15: 107.7 | O15: 0 | R15: 135
E16: 2050 | F16: =IF('Scenario setting'!$D$3='Scenario setting_work'!$U$1,'Scenario setting'!K23,IF('Scenario setting'!$D$3='Scenario setting_work'!$U$2,'Scenario setting_work'!O16,IF('Scenario setting'!$D$3='Scenario setting_work'!$U$3,'Scenario setting_work'!L16,'Scenario setting_work'!R16))) -> 107.7 | J16: 107.7 | L16: 107.7 | O16: 0 | R16: 150
B17: I_CABLE | C17: Cable car network | D17: Total network length (km) | E17: 2015 | F17: =IF('Scenario setting'!$D$3='Scenario setting_work'!$U$1,'Scenario setting'!D24,IF('Scenario setting'!$D$3='Scenario setting_work'!$U$2,'Scenario setting_work'!O17,IF('Scenario setting'!$D$3='Scenario setting_work'!$U$3,'Scenario setting_work'!L17,'Scenario setting_work'!R17))) -> 0 | J17: 0 | L17: 0 | O17: 0 | R17: 0
E18: 2020 | F18: =IF('Scenario setting'!$D$3='Scenario setting_work'!$U$1,'Scenario setting'!E24,IF('Scenario setting'!$D$3='Scenario setting_work'!$U$2,'Scenario setting_work'!O18,IF('Scenario setting'!$D$3='Scenario setting_work'!$U$3,'Scenario setting_work'!L18,'Scenario setting_work'!R18))) -> 0 | J18: 0 | L18: 0 | O18: 0 | R18: 0
E19: 2025 | F19: =IF('Scenario setting'!$D$3='Scenario setting_work'!$U$1,'Scenario setting'!F24,IF('Scenario setting'!$D$3='Scenario setting_work'!$U$2,'Scenario setting_work'!O19,IF('Scenario setting'!$D$3='Scenario setting_work'!$U$3,'Scenario setting_work'!L19,'Scenario setting_work'!R19))) -> 0 | J19: 0 | L19: 0 | O19: 0 | R19: 0
E20: 2030 | F20: =IF('Scenario setting'!$D$3='Scenario setting_work'!$U$1,'Scenario setting'!G24,IF('Scenario setting'!$D$3='Scenario setting_work'!$U$2,'Scenario setting_work'!O20,IF('Scenario setting'!$D$3='Scenario setting_work'!$U$3,'Scenario setting_work'!L20,'Scenario setting_work'!R20))) -> 23.1 | J20: 23.1 | L20: 23.1 | O20: 0 | R20: 23.1
E21: 2035 | F21: =IF('Scenario setting'!$D$3='Scenario setting_work'!$U$1,'Scenario setting'!H24,IF('Scenario setting'!$D$3='Scenario setting_work'!$U$2,'Scenario setting_work'!O21,IF('Scenario setting'!$D$3='Scenario setting_work'!$U$3,'Scenario setting_work'!L21,'Scenario setting_work'!R21))) -> 23.1 | J21: 23.1 | L21: 23.1 | O21: 0 | R21: 30
E22: 2040 | F22: =IF('Scenario setting'!$D$3='Scenario setting_work'!$U$1,'Scenario setting'!I24,IF('Scenario setting'!$D$3='Scenario setting_work'!$U$2,'Scenario setting_work'!O22,IF('Scenario setting'!$D$3='Scenario setting_work'!$U$3,'Scenario setting_work'!L22,'Scenario setting_work'!R22))) -> 23.1 | J22: 23.1 | L22: 23.1 | O22: 0 | R22: 35
E23: 2045 | F23: =IF('Scenario setting'!$D$3='Scenario setting_work'!$U$1,'Scenario setting'!J24,IF('Scenario setting'!$D$3='Scenario setting_work'!$U$2,'Scenario setting_work'!O23,IF('Scenario setting'!$D$3='Scenario setting_work'!$U$3,'Scenario setting_work'!L23,'Scenario setting_work'!R23))) -> 23.1 | J23: 23.1 | L23: 23.1 | O23: 0 | R23: 45
E24: 2050 | F24: =IF('Scenario setting'!$D$3='Scenario setting_work'!$U$1,'Scenario setting'!K24,IF('Scenario setting'!$D$3='Scenario setting_work'!$U$2,'Scenario setting_work'!O24,IF('Scenario setting'!$D$3='Scenario setting_work'!$U$3,'Scenario setting_work'!L24,'Scenario setting_work'!R24))) -> 23.1 | J24: 23.1 | L24: 23.1 | O24: 0 | R24: 50
B25: I_BRT | C25: BRT network | D25: Total network length (km) | E25: 2015 | F25: =IF('Scenario setting'!$D$3='Scenario setting_work'!$U$1,'Scenario setting'!D22,IF('Scenario setting'!$D$3='Scenario setting_work'!$U$2,'Scenario setting_work'!O25,IF('Scenario setting'!$D$3='Scenario setting_work'!$U$3,'Scenario setting_work'!L25,'Scenario setting_work'!R25))) -> 0 | J25: 0 | L25: 0 | O25: 0 | R25: 0
E26: 2020 | F26: =IF('Scenario setting'!$D$3='Scenario setting_work'!$U$1,'Scenario setting'!E22,IF('Scenario setting'!$D$3='Scenario setting_work'!$U$2,'Scenario setting_work'!O26,IF('Scenario setting'!$D$3='Scenario setting_work'!$U$3,'Scenario setting_work'!L26,'Scenario setting_work'!R26))) -> 0 | J26: 0 | L26: 0 | O26: 0 | R26: 0
E27: 2025 | F27: =IF('Scenario setting'!$D$3='Scenario setting_work'!$U$1,'Scenario setting'!F22,IF('Scenario setting'!$D$3='Scenario setting_work'!$U$2,'Scenario setting_work'!O27,IF('Scenario setting'!$D$3='Scenario setting_work'!$U$3,'Scenario setting_work'!L27,'Scenario setting_work'!R27))) -> 0 | J27: 0 | L27: 0 | O27: 0 | R27: 0
E28: 2030 | F28: =IF('Scenario setting'!$D$3='Scenario setting_work'!$U$1,'Scenario setting'!G22,IF('Scenario setting'!$D$3='Scenario setting_work'!$U$2,'Scenario setting_work'!O28,IF('Scenario setting'!$D$3='Scenario setting_work'!$U$3,'Scenario setting_work'!L28,'Scenario setting_work'!R28))) -> 0 | J28: 0 | L28: 0 | O28: 0 | R28: 0
E29: 2035 | F29: =IF('Scenario setting'!$D$3='Scenario setting_work'!$U$1,'Scenario setting'!H22,IF('Scenario setting'!$D$3='Scenario setting_work'!$U$2,'Scenario setting_work'!O29,IF('Scenario setting'!$D$3='Scenario setting_work'!$U$3,'Scenario setting_work'!L29,'Scenario setting_work'!R29))) -> 0 | J29: 0 | L29: 0 | O29: 0 | R29: 0
E30: 2040 | F30: =IF('Scenario setting'!$D$3='Scenario setting_work'!$U$1,'Scenario setting'!I22,IF('Scenario setting'!$D$3='Scenario setting_work'!$U$2,'Scenario setting_work'!O30,IF('Scenario setting'!$D$3='Scenario setting_work'!$U$3,'Scenario setting_work'!L30,'Scenario setting_work'!R30))) -> 0 | J30: 0 | L30: 0 | O30: 0 | R30: 0
E31: 2045 | F31: =IF('Scenario setting'!$D$3='Scenario setting_work'!$U$1,'Scenario setting'!J22,IF('Scenario setting'!$D$3='Scenario setting_work'!$U$2,'Scenario setting_work'!O31,IF('Scenario setting'!$D$3='Scenario setting_work'!$U$3,'Scenario setting_work'!L31,'Scenario setting_work'!R31))) -> 0 | J31: 0 | L31: 0 | O31: 0 | R31: 0
E32: 2050 | F32: =IF('Scenario setting'!$D$3='Scenario setting_work'!$U$1,'Scenario setting'!K22,IF('Scenario setting'!$D$3='Scenario setting_work'!$U$2,'Scenario setting_work'!O32,IF('Scenario setting'!$D$3='Scenario setting_work'!$U$3,'Scenario setting_work'!L32,'Scenario setting_work'!R32))) -> 0 | J32: 0 | L32: 0 | O32: 0 | R32: 0
B33: I_RAIL | C33: Suburban rail network | D33: Total network length (km) | E33: 2015 | F33: =IF('Scenario setting'!$D$3='Scenario setting_work'!$U$1,'Scenario setting'!D25,IF('Scenario setting'!$D$3='Scenario setting_work'!$U$2,'Scenario setting_work'!O33,IF('Scenario setting'!$D$3='Scenario setting_work'!$U$3,'Scenario setting_work'!L33,'Scenario setting_work'!R33))) -> 0 | J33: 0 | L33: 0 | O33: 0 | R33: 0
E34: 2020 | F34: =IF('Scenario setting'!$D$3='Scenario setting_work'!$U$1,'Scenario setting'!E25,IF('Scenario setting'!$D$3='Scenario setting_work'!$U$2,'Scenario setting_work'!O34,IF('Scenario setting'!$D$3='Scenario setting_work'!$U$3,'Scenario setting_work'!L34,'Scenario setting_work'!R34))) -> 0 | J34: 0 | L34: 0 | O34: 0 | R34: 0
E35: 2025 | F35: =IF('Scenario setting'!$D$3='Scenario setting_work'!$U$1,'Scenario setting'!F25,IF('Scenario setting'!$D$3='Scenario setting_work'!$U$2,'Scenario setting_work'!O35,IF('Scenario setting'!$D$3='Scenario setting_work'!$U$3,'Scenario setting_work'!L35,'Scenario setting_work'!R35))) -> 0 | J35: 0 | L35: 0 | O35: 0 | R35: 0
E36: 2030 | F36: =IF('Scenario setting'!$D$3='Scenario setting_work'!$U$1,'Scenario setting'!G25,IF('Scenario setting'!$D$3='Scenario setting_work'!$U$2,'Scenario setting_work'!O36,IF('Scenario setting'!$D$3='Scenario setting_work'!$U$3,'Scenario setting_work'!L36,'Scenario setting_work'!R36))) -> 0 | J36: 0 | L36: 0 | O36: 0 | R36: 0
E37: 2035 | F37: =IF('Scenario setting'!$D$3='Scenario setting_work'!$U$1,'Scenario setting'!H25,IF('Scenario setting'!$D$3='Scenario setting_work'!$U$2,'Scenario setting_work'!O37,IF('Scenario setting'!$D$3='Scenario setting_work'!$U$3,'Scenario setting_work'!L37,'Scenario setting_work'!R37))) -> 50 | J37: 50 | L37: 50 | O37: 0 | R37: 50
E38: 2040 | F38: =IF('Scenario setting'!$D$3='Scenario setting_work'!$U$1,'Scenario setting'!I25,IF('Scenario setting'!$D$3='Scenario setting_work'!$U$2,'Scenario setting_work'!O38,IF('Scenario setting'!$D$3='Scenario setting_work'!$U$3,'Scenario setting_work'!L38,'Scenario setting_work'!R38))) -> 100 | J38: 100 | L38: 100 | O38: 0 | R38: 100
E39: 2045 | F39: =IF('Scenario setting'!$D$3='Scenario setting_work'!$U$1,'Scenario setting'!J25,IF('Scenario setting'!$D$3='Scenario setting_work'!$U$2,'Scenario setting_work'!O39,IF('Scenario setting'!$D$3='Scenario setting_work'!$U$3,'Scenario setting_work'!L39,'Scenario setting_work'!R39))) -> 150 | J39: 150 | L39: 150 | O39: 0 | R39: 150
E40: 2050 | F40: =IF('Scenario setting'!$D$3='Scenario setting_work'!$U$1,'Scenario setting'!K25,IF('Scenario setting'!$D$3='Scenario setting_work'!$U$2,'Scenario setting_work'!O40,IF('Scenario setting'!$D$3='Scenario setting_work'!$U$3,'Scenario setting_work'!L40,'Scenario setting_work'!R40))) -> 190 | J40: 190 | L40: 190 | O40: 0 | R40: 190
B41: I_BUS | C41: Conventional bus network | D41: Total network length (km) | E41: 2015 | F41: =IF('Scenario setting'!$D$3='Scenario setting_work'!$U$1,'Scenario setting'!D21,IF('Scenario setting'!$D$3='Scenario setting_work'!$U$2,'Scenario setting_work'!O41,IF('Scenario setting'!$D$3='Scenario setting_work'!$U$3,'Scenario setting_work'!L41,'Scenario setting_work'!R41))) -> 3874 | L41: 3874 | O41: 3874 | R41: 3874
E42: 2020 | F42: =IF('Scenario setting'!$D$3='Scenario setting_work'!$U$1,'Scenario setting'!E21,IF('Scenario setting'!$D$3='Scenario setting_work'!$U$2,'Scenario setting_work'!O42,IF('Scenario setting'!$D$3='Scenario setting_work'!$U$3,'Scenario setting_work'!L42,'Scenario setting_work'!R42))) -> 4200 | L42: 4200 | O42: 4200 | R42: 4200
E43: 2025 | F43: =IF('Scenario setting'!$D$3='Scenario setting_work'!$U$1,'Scenario setting'!F21,IF('Scenario setting'!$D$3='Scenario setting_work'!$U$2,'Scenario setting_work'!O43,IF('Scenario setting'!$D$3='Scenario setting_work'!$U$3,'Scenario setting_work'!L43,'Scenario setting_work'!R43))) -> 4100 | L43: 4100 | O43: 4100 | R43: 4100
E44: 2030 | F44: =IF('Scenario setting'!$D$3='Scenario setting_work'!$U$1,'Scenario setting'!G21,IF('Scenario setting'!$D$3='Scenario setting_work'!$U$2,'Scenario setting_work'!O44,IF('Scenario setting'!$D$3='Scenario setting_work'!$U$3,'Scenario setting_work'!L44,'Scenario setting_work'!R44))) -> 4100 | L44: 4100 | O44: 4100 | R44: 4100
E45: 2035 | F45: =IF('Scenario setting'!$D$3='Scenario setting_work'!$U$1,'Scenario setting'!H21,IF('Scenario setting'!$D$3='Scenario setting_work'!$U$2,'Scenario setting_work'!O45,IF('Scenario setting'!$D$3='Scenario setting_work'!$U$3,'Scenario setting_work'!L45,'Scenario setting_work'!R45))) -> 4100 | L45: 4100 | O45: 4100 | R45: 4100
E46: 2040 | F46: =IF('Scenario setting'!$D$3='Scenario setting_work'!$U$1,'Scenario setting'!I21,IF('Scenario setting'!$D$3='Scenario setting_work'!$U$2,'Scenario setting_work'!O46,IF('Scenario setting'!$D$3='Scenario setting_work'!$U$3,'Scenario setting_work'!L46,'Scenario setting_work'!R46))) -> 4100 | L46: 4100 | O46: 4100 | R46: 4100
E47: 2045 | F47: =IF('Scenario setting'!$D$3='Scenario setting_work'!$U$1,'Scenario setting'!J21,IF('Scenario setting'!$D$3='Scenario setting_work'!$U$2,'Scenario setting_work'!O47,IF('Scenario setting'!$D$3='Scenario setting_work'!$U$3,'Scenario setting_work'!L47,'Scenario setting_work'!R47))) -> 4100 | L47: 4100 | O47: 4100 | R47: 4100
E48: 2050 | F48: =IF('Scenario setting'!$D$3='Scenario setting_work'!$U$1,'Scenario setting'!K21,IF('Scenario setting'!$D$3='Scenario setting_work'!$U$2,'Scenario setting_work'!O48,IF('Scenario setting'!$D$3='Scenario setting_work'!$U$3,'Scenario setting_work'!L48,'Scenario setting_work'!R48))) -> 4100 | L48: 4100 | O48: 4100 | R48: 4100
B49: I_ROAD1 | C49: Highway network | D49: Total network length (km) | E49: 2015 | F49: =IF('Scenario setting'!$D$3='Scenario setting_work'!$U$1,'Scenario setting'!D20,IF('Scenario setting'!$D$3='Scenario setting_work'!$U$2,'Scenario setting_work'!O49,IF('Scenario setting'!$D$3='Scenario setting_work'!$U$3,'Scenario setting_work'!L49,'Scenario setting_work'!R49))) -> 0 | J49: 0 | L49: 0 | O49: 0 | R49: 0
E50: 2020 | F50: =IF('Scenario setting'!$D$3='Scenario setting_work'!$U$1,'Scenario setting'!E20,IF('Scenario setting'!$D$3='Scenario setting_work'!$U$2,'Scenario setting_work'!O50,IF('Scenario setting'!$D$3='Scenario setting_work'!$U$3,'Scenario setting_work'!L50,'Scenario setting_work'!R50))) -> 3.8 | J50: 3.8 | L50: 3.8 | O50: 3.8 | R50: 3.8
E51: 2025 | F51: =IF('Scenario setting'!$D$3='Scenario setting_work'!$U$1,'Scenario setting'!F20,IF('Scenario setting'!$D$3='Scenario setting_work'!$U$2,'Scenario setting_work'!O51,IF('Scenario setting'!$D$3='Scenario setting_work'!$U$3,'Scenario setting_work'!L51,'Scenario setting_work'!R51))) -> 3.8 | J51: 3.8 | L51: 3.8 | O51: 3.8 | R51: 3.8
E52: 2030 | F52: =IF('Scenario setting'!$D$3='Scenario setting_work'!$U$1,'Scenario setting'!G20,IF('Scenario setting'!$D$3='Scenario setting_work'!$U$2,'Scenario setting_work'!O52,IF('Scenario setting'!$D$3='Scenario setting_work'!$U$3,'Scenario setting_work'!L52,'Scenario setting_work'!R52))) -> 3.8 | J52: 3.8 | L52: 3.8 | O52: 3.8 | R52: 3.8
E53: 2035 | F53: =IF('Scenario setting'!$D$3='Scenario setting_work'!$U$1,'Scenario setting'!H20,IF('Scenario setting'!$D$3='Scenario setting_work'!$U$2,'Scenario setting_work'!O53,IF('Scenario setting'!$D$3='Scenario setting_work'!$U$3,'Scenario setting_work'!L53,'Scenario setting_work'!R53))) -> 3.8 | J53: 3.8 | L53: 3.8 | O53: 3.8 | R53: 3.8
E54: 2040 | F54: =IF('Scenario setting'!$D$3='Scenario setting_work'!$U$1,'Scenario setting'!I20,IF('Scenario setting'!$D$3='Scenario setting_work'!$U$2,'Scenario setting_work'!O54,IF('Scenario setting'!$D$3='Scenario setting_work'!$U$3,'Scenario setting_work'!L54,'Scenario setting_work'!R54))) -> 3.8 | J54: 3.8 | L54: 3.8 | O54: 3.8 | R54: 3.8
E55: 2045 | F55: =IF('Scenario setting'!$D$3='Scenario setting_work'!$U$1,'Scenario setting'!J20,IF('Scenario setting'!$D$3='Scenario setting_work'!$U$2,'Scenario setting_work'!O55,IF('Scenario setting'!$D$3='Scenario setting_work'!$U$3,'Scenario setting_work'!L55,'Scenario setting_work'!R55))) -> 3.8 | J55: 3.8 | L55: 3.8 | O55: 3.8 | R55: 3.8
E56: 2050 | F56: =IF('Scenario setting'!$D$3='Scenario setting_work'!$U$1,'Scenario setting'!K20,IF('Scenario setting'!$D$3='Scenario setting_work'!$U$2,'Scenario setting_work'!O56,IF('Scenario setting'!$D$3='Scenario setting_work'!$U$3,'Scenario setting_work'!L56,'Scenario setting_work'!R56))) -> 3.8 | J56: 3.8 | L56: 3.8 | O56: 3.8 | R56: 3.8
B57: I_ROAD2 | C57: Main road network | D57: Total network length (km) | E57: 2015 | F57: =IF('Scenario setting'!$D$3='Scenario setting_work'!$U$1,'Scenario setting'!D19,IF('Scenario setting'!$D$3='Scenario setting_work'!$U$2,'Scenario setting_work'!O57,IF('Scenario setting'!$D$3='Scenario setting_work'!$U$3,'Scenario setting_work'!L57,'Scenario setting_work'!R57))) -> 70 | J57: 70 | L57: 70 | O57: 70 | R57: 70
E58: 2020 | F58: =IF('Scenario setting'!$D$3='Scenario setting_work'!$U$1,'Scenario setting'!E19,IF('Scenario setting'!$D$3='Scenario setting_work'!$U$2,'Scenario setting_work'!O58,IF('Scenario setting'!$D$3='Scenario setting_work'!$U$3,'Scenario setting_work'!L58,'Scenario setting_work'!R58))) -> 96.4 | J58: 96.4 | L58: 96.4 | O58: 96.4 | R58: 96.4
E59: 2025 | F59: =IF('Scenario setting'!$D$3='Scenario setting_work'!$U$1,'Scenario setting'!F19,IF('Scenario setting'!$D$3='Scenario setting_work'!$U$2,'Scenario setting_work'!O59,IF('Scenario setting'!$D$3='Scenario setting_work'!$U$3,'Scenario setting_work'!L59,'Scenario setting_work'!R59))) -> 119 | J59: 119 | L59: 119 | O59: 119 | R59: 119
E60: 2030 | F60: =IF('Scenario setting'!$D$3='Scenario setting_work'!$U$1,'Scenario setting'!G19,IF('Scenario setting'!$D$3='Scenario setting_work'!$U$2,'Scenario setting_work'!O60,IF('Scenario setting'!$D$3='Scenario setting_work'!$U$3,'Scenario setting_work'!L60,'Scenario setting_work'!R60))) -> 142 | J60: 142 | L60: 142 | O60: 142 | R60: 142
E61: 2035 | F61: =IF('Scenario setting'!$D$3='Scenario setting_work'!$U$1,'Scenario setting'!H19,IF('Scenario setting'!$D$3='Scenario setting_work'!$U$2,'Scenario setting_work'!O61,IF('Scenario setting'!$D$3='Scenario setting_work'!$U$3,'Scenario setting_work'!L61,'Scenario setting_work'!R61))) -> 165 | J61: 165 | L61: 165 | O61: 165 | R61: 165
E62: 2040 | F62: =IF('Scenario setting'!$D$3='Scenario setting_work'!$U$1,'Scenario setting'!I19,IF('Scenario setting'!$D$3='Scenario setting_work'!$U$2,'Scenario setting_work'!O62,IF('Scenario setting'!$D$3='Scenario setting_work'!$U$3,'Scenario setting_work'!L62,'Scenario setting_work'!R62))) -> 188.4 | J62: 188.4 | L62: 188.4 | O62: 188.4 | R62: 188.4
E63: 2045 | F63: =IF('Scenario setting'!$D$3='Scenario setting_work'!$U$1,'Scenario setting'!J19,IF('Scenario setting'!$D$3='Scenario setting_work'!$U$2,'Scenario setting_work'!O63,IF('Scenario setting'!$D$3='Scenario setting_work'!$U$3,'Scenario setting_work'!L63,'Scenario setting_work'!R63))) -> 188.4 | J63: 188.4 | L63: 188.4 | O63: 188.4 | R63: 188.4
E64: 2050 | F64: =IF('Scenario setting'!$D$3='Scenario setting_work'!$U$1,'Scenario setting'!K19,IF('Scenario setting'!$D$3='Scenario setting_work'!$U$2,'Scenario setting_work'!O64,IF('Scenario setting'!$D$3='Scenario setting_work'!$U$3,'Scenario setting_work'!L64,'Scenario setting_work'!R64))) -> 188.4 | J64: 188.4 | L64: 188.4 | O64: 188.4 | R64: 188.4
B65: I_ROAD3 | C65: District level main road network | D65: Total network length (km) | E65: 2015 | F65: =IF('Scenario setting'!$D$3='Scenario setting_work'!$U$1,'Scenario setting'!D18,IF('Scenario setting'!$D$3='Scenario setting_work'!$U$2,'Scenario setting_work'!O65,IF('Scenario setting'!$D$3='Scenario setting_work'!$U$3,'Scenario setting_work'!L65,'Scenario setting_work'!R65))) -> 40 | J65: 40 | L65: 40 | O65: 40 | R65: 40
E66: 2020 | F66: =IF('Scenario setting'!$D$3='Scenario setting_work'!$U$1,'Scenario setting'!E18,IF('Scenario setting'!$D$3='Scenario setting_work'!$U$2,'Scenario setting_work'!O66,IF('Scenario setting'!$D$3='Scenario setting_work'!$U$3,'Scenario setting_work'!L66,'Scenario setting_work'!R66))) -> 55.1 | J66: 55.1 | L66: 55.1 | O66: 55.1 | R66: 55.1
E67: 2025 | F67: =IF('Scenario setting'!$D$3='Scenario setting_work'!$U$1,'Scenario setting'!F18,IF('Scenario setting'!$D$3='Scenario setting_work'!$U$2,'Scenario setting_work'!O67,IF('Scenario setting'!$D$3='Scenario setting_work'!$U$3,'Scenario setting_work'!L67,'Scenario setting_work'!R67))) -> 92 | J67: 92 | L67: 92 | O67: 92 | R67: 92
E68: 2030 | F68: =IF('Scenario setting'!$D$3='Scenario setting_work'!$U$1,'Scenario setting'!G18,IF('Scenario setting'!$D$3='Scenario setting_work'!$U$2,'Scenario setting_work'!O68,IF('Scenario setting'!$D$3='Scenario setting_work'!$U$3,'Scenario setting_work'!L68,'Scenario setting_work'!R68))) -> 130 | J68: 130 | L68: 130 | O68: 130 | R68: 130
E69: 2035 | F69: =IF('Scenario setting'!$D$3='Scenario setting_work'!$U$1,'Scenario setting'!H18,IF('Scenario setting'!$D$3='Scenario setting_work'!$U$2,'Scenario setting_work'!O69,IF('Scenario setting'!$D$3='Scenario setting_work'!$U$3,'Scenario setting_work'!L69,'Scenario setting_work'!R69))) -> 167 | J69: 167 | L69: 167 | O69: 167 | R69: 167
E70: 2040 | F70: =IF('Scenario setting'!$D$3='Scenario setting_work'!$U$1,'Scenario setting'!I18,IF('Scenario setting'!$D$3='Scenario setting_work'!$U$2,'Scenario setting_work'!O70,IF('Scenario setting'!$D$3='Scenario setting_work'!$U$3,'Scenario setting_work'!L70,'Scenario setting_work'!R70))) -> 204.3 | J70: 204.3 | L70: 204.3 | O70: 204.3 | R70: 204.3
E71: 2045 | F71: =IF('Scenario setting'!$D$3='Scenario setting_work'!$U$1,'Scenario setting'!J18,IF('Scenario setting'!$D$3='Scenario setting_work'!$U$2,'Scenario setting_work'!O71,IF('Scenario setting'!$D$3='Scenario setting_work'!$U$3,'Scenario setting_work'!L71,'Scenario setting_work'!R71))) -> 204.3 | J71: 204.3 | L71: 204.3 | O71: 204.3 | R71: 204.3
E72: 2050 | F72: =IF('Scenario setting'!$D$3='Scenario setting_work'!$U$1,'Scenario setting'!K18,IF('Scenario setting'!$D$3='Scenario setting_work'!$U$2,'Scenario setting_work'!O72,IF('Scenario setting'!$D$3='Scenario setting_work'!$U$3,'Scenario setting_work'!L72,'Scenario setting_work'!R72))) -> 204.3 | J72: 204.3 | L72: 204.3 | O72: 204.3 | R72: 204.3
B73: I_ROAD4 | C73: Feeder road network | D73: Total network length (km) | E73: 2015 | F73: =IF('Scenario setting'!$D$3='Scenario setting_work'!$U$1,'Scenario setting'!D17,IF('Scenario setting'!$D$3='Scenario setting_work'!$U$2,'Scenario setting_work'!O73,IF('Scenario setting'!$D$3='Scenario setting_work'!$U$3,'Scenario setting_work'!L73,'Scenario setting_work'!R73))) -> 170 | J73: 170 | L73: 170 | O73: 170 | R73: 170
E74: 2020 | F74: =IF('Scenario setting'!$D$3='Scenario setting_work'!$U$1,'Scenario setting'!E17,IF('Scenario setting'!$D$3='Scenario setting_work'!$U$2,'Scenario setting_work'!O74,IF('Scenario setting'!$D$3='Scenario setting_work'!$U$3,'Scenario setting_work'!L74,'Scenario setting_work'!R74))) -> 246.9 | J74: 246.9 | L74: 246.9 | O74: 246.9 | R74: 246.9
E75: 2025 | F75: =IF('Scenario setting'!$D$3='Scenario setting_work'!$U$1,'Scenario setting'!F17,IF('Scenario setting'!$D$3='Scenario setting_work'!$U$2,'Scenario setting_work'!O75,IF('Scenario setting'!$D$3='Scenario setting_work'!$U$3,'Scenario setting_work'!L75,'Scenario setting_work'!R75))) -> 378 | J75: 378 | L75: 378 | O75: 378 | R75: 378
E76: 2030 | F76: =IF('Scenario setting'!$D$3='Scenario setting_work'!$U$1,'Scenario setting'!G17,IF('Scenario setting'!$D$3='Scenario setting_work'!$U$2,'Scenario setting_work'!O76,IF('Scenario setting'!$D$3='Scenario setting_work'!$U$3,'Scenario setting_work'!L76,'Scenario setting_work'!R76))) -> 509 | J76: 509 | L76: 509 | O76: 509 | R76: 509
E77: 2035 | F77: =IF('Scenario setting'!$D$3='Scenario setting_work'!$U$1,'Scenario setting'!H17,IF('Scenario setting'!$D$3='Scenario setting_work'!$U$2,'Scenario setting_work'!O77,IF('Scenario setting'!$D$3='Scenario setting_work'!$U$3,'Scenario setting_work'!L77,'Scenario setting_work'!R77))) -> 640 | J77: 640 | L77: 640 | O77: 640 | R77: 640
E78: 2040 | F78: =IF('Scenario setting'!$D$3='Scenario setting_work'!$U$1,'Scenario setting'!I17,IF('Scenario setting'!$D$3='Scenario setting_work'!$U$2,'Scenario setting_work'!O78,IF('Scenario setting'!$D$3='Scenario setting_work'!$U$3,'Scenario setting_work'!L78,'Scenario setting_work'!R78))) -> 771.2 | J78: 771.2 | L78: 771.2 | O78: 771.2 | R78: 771.2
E79: 2045 | F79: =IF('Scenario setting'!$D$3='Scenario setting_work'!$U$1,'Scenario setting'!J17,IF('Scenario setting'!$D$3='Scenario setting_work'!$U$2,'Scenario setting_work'!O79,IF('Scenario setting'!$D$3='Scenario setting_work'!$U$3,'Scenario setting_work'!L79,'Scenario setting_work'!R79))) -> 771.2 | J79: 771.2 | L79: 771.2 | O79: 771.2 | R79: 771.2
E80: 2050 | F80: =IF('Scenario setting'!$D$3='Scenario setting_work'!$U$1,'Scenario setting'!K17,IF('Scenario setting'!$D$3='Scenario setting_work'!$U$2,'Scenario setting_work'!O80,IF('Scenario setting'!$D$3='Scenario setting_work'!$U$3,'Scenario setting_work'!L80,'Scenario setting_work'!R80))) -> 771.2 | J80: 771.2 | L80: 771.2 | O80: 771.2 | R80: 771.2
B81: I_BIKE | C81: Bike network | D81: Total network length (km) | E81: 2015 | F81: =IF('Scenario setting'!$D$3='Scenario setting_work'!$U$1,'Scenario setting'!D16,IF('Scenario setting'!$D$3='Scenario setting_work'!$U$2,'Scenario setting_work'!O81,IF('Scenario setting'!$D$3='Scenario setting_work'!$U$3,'Scenario setting_work'!L81,'Scenario setting_work'!R81))) -> 30 | J81: 30 | L81: 30 | O81: 30 | R81: 30
E82: 2020 | F82: =IF('Scenario setting'!$D$3='Scenario setting_work'!$U$1,'Scenario setting'!E16,IF('Scenario setting'!$D$3='Scenario setting_work'!$U$2,'Scenario setting_work'!O82,IF('Scenario setting'!$D$3='Scenario setting_work'!$U$3,'Scenario setting_work'!L82,'Scenario setting_work'!R82))) -> 120 | J82: 120 | L82: 120 | O82: 120 | R82: 120
E83: 2025 | F83: =IF('Scenario setting'!$D$3='Scenario setting_work'!$U$1,'Scenario setting'!F16,IF('Scenario setting'!$D$3='Scenario setting_work'!$U$2,'Scenario setting_work'!O83,IF('Scenario setting'!$D$3='Scenario setting_work'!$U$3,'Scenario setting_work'!L83,'Scenario setting_work'!R83))) -> 428.1 | J83: 428.1 | L83: 428.1 | O83: 120 | R83: 428.1
E84: 2030 | F84: =IF('Scenario setting'!$D$3='Scenario setting_work'!$U$1,'Scenario setting'!G16,IF('Scenario setting'!$D$3='Scenario setting_work'!$U$2,'Scenario setting_work'!O84,IF('Scenario setting'!$D$3='Scenario setting_work'!$U$3,'Scenario setting_work'!L84,'Scenario setting_work'!R84))) -> 815.7 | J84: 815.7 | L84: 815.7 | O84: 120 | R84: 815.7
E85: 2035 | F85: =IF('Scenario setting'!$D$3='Scenario setting_work'!$U$1,'Scenario setting'!H15,IF('Scenario setting'!$D$3='Scenario setting_work'!$U$2,'Scenario setting_work'!O85,IF('Scenario setting'!$D$3='Scenario setting_work'!$U$3,'Scenario setting_work'!L85,'Scenario setting_work'!R85))) -> 1019.625 | J85: 1019.625 | L85: 1019.625 | O85: 120 | R85: 1200
E86: 2040 | F86: =IF('Scenario setting'!$D$3='Scenario setting_work'!$U$1,'Scenario setting'!I16,IF('Scenario setting'!$D$3='Scenario setting_work'!$U$2,'Scenario setting_work'!O86,IF('Scenario setting'!$D$3='Scenario setting_work'!$U$3,'Scenario setting_work'!L86,'Scenario setting_work'!R86))) -> 1223.55 | J86: 1223.55 | L86: 1223.55 | O86: 120 | R86: 1600
E87: 2045 | F87: =IF('Scenario setting'!$D$3='Scenario setting_work'!$U$1,'Scenario setting'!J16,IF('Scenario setting'!$D$3='Scenario setting_work'!$U$2,'Scenario setting_work'!O87,IF('Scenario setting'!$D$3='Scenario setting_work'!$U$3,'Scenario setting_work'!L87,'Scenario setting_work'!R87))) -> 1427.475 | J87: 1427.475 | L87: 1427.475 | O87: 120 | R87: 2000
E88: 2050 | F88: =IF('Scenario setting'!$D$3='Scenario setting_work'!$U$1,'Scenario setting'!K16,IF('Scenario setting'!$D$3='Scenario setting_work'!$U$2,'Scenario setting_work'!O88,IF('Scenario setting'!$D$3='Scenario setting_work'!$U$3,'Scenario setting_work'!L88,'Scenario setting_work'!R88))) -> 1631.4 | J88: 1631.4 | L88: 1631.4 | O88: 120 | R88: 2400
B89: I_WALK | C89: Pedestrian infrastructure network | D89: Total network length (km) | E89: 2015 | F89: =IF('Scenario setting'!$D$3='Scenario setting_work'!$U$1,'Scenario setting'!D15,IF('Scenario setting'!$D$3='Scenario setting_work'!$U$2,'Scenario setting_work'!O89,IF('Scenario setting'!$D$3='Scenario setting_work'!$U$3,'Scenario setting_work'!L89,'Scenario setting_work'!R89))) -> 300 | J89: 300 | L89: 300 | O89: 300 | R89: 300
E90: 2020 | F90: =IF('Scenario setting'!$D$3='Scenario setting_work'!$U$1,'Scenario setting'!E15,IF('Scenario setting'!$D$3='Scenario setting_work'!$U$2,'Scenario setting_work'!O90,IF('Scenario setting'!$D$3='Scenario setting_work'!$U$3,'Scenario setting_work'!L90,'Scenario setting_work'!R90))) -> 420 | J90: 420 | L90: 420 | O90: 420 | R90: 420
E91: 2025 | F91: =IF('Scenario setting'!$D$3='Scenario setting_work'!$U$1,'Scenario setting'!F15,IF('Scenario setting'!$D$3='Scenario setting_work'!$U$2,'Scenario setting_work'!O91,IF('Scenario setting'!$D$3='Scenario setting_work'!$U$3,'Scenario setting_work'!L91,'Scenario setting_work'!R91))) -> 577.4 | J91: 577.4 | L91: 577.4 | O91: 500 | R91: 600
E92: 2030 | F92: =IF('Scenario setting'!$D$3='Scenario setting_work'!$U$1,'Scenario setting'!G15,IF('Scenario setting'!$D$3='Scenario setting_work'!$U$2,'Scenario setting_work'!O92,IF('Scenario setting'!$D$3='Scenario setting_work'!$U$3,'Scenario setting_work'!L92,'Scenario setting_work'!R92))) -> 734.6 | J92: 734.6 | L92: 734.6 | O92: 650 | R92: 900
E93: 2035 | F93: =IF('Scenario setting'!$D$3='Scenario setting_work'!$U$1,'Scenario setting'!H15,IF('Scenario setting'!$D$3='Scenario setting_work'!$U$2,'Scenario setting_work'!O93,IF('Scenario setting'!$D$3='Scenario setting_work'!$U$3,'Scenario setting_work'!L93,'Scenario setting_work'!R93))) -> 918.25 | J93: 918.25 | L93: 918.25 | O93: 800 | R93: 1300
E94: 2040 | F94: =IF('Scenario setting'!$D$3='Scenario setting_work'!$U$1,'Scenario setting'!I15,IF('Scenario setting'!$D$3='Scenario setting_work'!$U$2,'Scenario setting_work'!O94,IF('Scenario setting'!$D$3='Scenario setting_work'!$U$3,'Scenario setting_work'!L94,'Scenario setting_work'!R94))) -> 1101.9 | J94: 1101.9 | L94: 1101.9 | O94: 950 | R94: 1800
E95: 2045 | F95: =IF('Scenario setting'!$D$3='Scenario setting_work'!$U$1,'Scenario setting'!J15,IF('Scenario setting'!$D$3='Scenario setting_work'!$U$2,'Scenario setting_work'!O95,IF('Scenario setting'!$D$3='Scenario setting_work'!$U$3,'Scenario setting_work'!L95,'Scenario setting_work'!R95))) -> 1285.55 | J95: 1285.55 | L95: 1285.55 | O95: 1100 | R95: 2200
E96: 2050 | F96: =IF('Scenario setting'!$D$3='Scenario setting_work'!$U$1,'Scenario setting'!K15,IF('Scenario setting'!$D$3='Scenario setting_work'!$U$2,'Scenario setting_work'!O96,IF('Scenario setting'!$D$3='Scenario setting_work'!$U$3,'Scenario setting_work'!L96,'Scenario setting_work'!R96))) -> 1469.2 | J96: 1469.2 | L96: 1469.2 | O96: 1250 | R96: 2600
B97: Public Transport Promotion
B98: PT_SER | C98: Service improvement for conventional bus | D98: Increase in operating speed from structural maintenance, optimised stop positioning and service improvement, including ICT (%) | E98: =IF('Scenario setting'!$D$3='Scenario setting_work'!$U$1,'Scenario setting'!D31,IF('Scenario setting'!$D$3='Scenario setting_work'!$U$2,'Scenario setting_work'!N98,IF('Scenario setting'!$D$3='Scenario setting_work'!$U$3,'Scenario setting_work'!K98,'Scenario setting_work'!Q98))) -> 2030 | F98: =IF('Scenario setting'!$D$3='Scenario setting_work'!$U$1,'Scenario setting'!E31,IF('Scenario setting'!$D$3='Scenario setting_work'!$U$2,'Scenario setting_work'!O98,IF('Scenario setting'!$D$3='Scenario setting_work'!$U$3,'Scenario setting_work'!L98,'Scenario setting_work'!R98))) -> 0.05 | G98: =IF('Scenario setting'!$D$3='Scenario setting_work'!$U$1,'Scenario setting'!F31,IF('Scenario setting'!$D$3='Scenario setting_work'!$U$2,'Scenario setting_work'!P98,IF('Scenario setting'!$D$3='Scenario setting_work'!$U$3,'Scenario setting_work'!M98,'Scenario setting_work'!S98))) -> 0.1 | H98: 21 km/h | J98: 0.1 | K98: 2030 | L98: 0.05 | M98: 0.1 | N98: 2030 | O98: 0 | P98: 0 | Q98: 2025 | R98: 0.05 | S98: 0.2
B99: PT_PRIO | C99: Public transport priority | D99: Share of bus network that has priority over other road modes (%) | E99: =IF('Scenario setting'!$D$3='Scenario setting_work'!$U$1,'Scenario setting'!D32,IF('Scenario setting'!$D$3='Scenario setting_work'!$U$2,'Scenario setting_work'!N99,IF('Scenario setting'!$D$3='Scenario setting_work'!$U$3,'Scenario setting_work'!K99,'Scenario setting_work'!Q99))) -> 2025 | F99: =IF('Scenario setting'!$D$3='Scenario setting_work'!$U$1,'Scenario setting'!E32,IF('Scenario setting'!$D$3='Scenario setting_work'!$U$2,'Scenario setting_work'!O99,IF('Scenario setting'!$D$3='Scenario setting_work'!$U$3,'Scenario setting_work'!L99,'Scenario setting_work'!R99))) -> 0.2 | G99: =IF('Scenario setting'!$D$3='Scenario setting_work'!$U$1,'Scenario setting'!F32,IF('Scenario setting'!$D$3='Scenario setting_work'!$U$2,'Scenario setting_work'!P99,IF('Scenario setting'!$D$3='Scenario setting_work'!$U$3,'Scenario setting_work'!M99,'Scenario setting_work'!S99))) -> 0.3 | H99: 0 | J99: 0.3 | K99: 2025 | L99: 0.2 | M99: 0.3 | N99: 2025 | O99: 0 | P99: 0 | Q99: 2025 | R99: 0.5 | S99: 1
B100: PT_FARE | C100: Public transport fare integration | D100: Average cost reduction of a public transport trip (%) | E100: =IF('Scenario setting'!$D$3='Scenario setting_work'!$U$1,'Scenario setting'!D33,IF('Scenario setting'!$D$3='Scenario setting_work'!$U$2,'Scenario setting_work'!N100,IF('Scenario setting'!$D$3='Scenario setting_work'!$U$3,'Scenario setting_work'!K100,'Scenario setting_work'!Q100))) -> 2030 | F100: =IF('Scenario setting'!$D$3='Scenario setting_work'!$U$1,'Scenario setting'!E33,IF('Scenario setting'!$D$3='Scenario setting_work'!$U$2,'Scenario setting_work'!O100,IF('Scenario setting'!$D$3='Scenario setting_work'!$U$3,'Scenario setting_work'!L100,'Scenario setting_work'!R100))) -> 0.1 | G100: =IF('Scenario setting'!$D$3='Scenario setting_work'!$U$1,'Scenario setting'!F33,IF('Scenario setting'!$D$3='Scenario setting_work'!$U$2,'Scenario setting_work'!P100,IF('Scenario setting'!$D$3='Scenario setting_work'!$U$3,'Scenario setting_work'!M100,'Scenario setting_work'!S100))) -> 0.3 | H100: 0.39 USD | J100: 0.25 | K100: 2030 | L100: 0.1 | M100: 0.3 | N100: 2030 | O100: 0 | P100: 0 | Q100: 2030 | R100: 0.1 | S100: 0.3
B101: PT_OD | C101: Launch of on-demand services | D101: Total size of on-demand fleet (number of vehicles) | E101: =IF('Scenario setting'!$D$3='Scenario setting_work'!$U$1,'Scenario setting'!D48,IF('Scenario setting'!$D$3='Scenario setting_work'!$U$2,'Scenario setting_work'!N101,IF('Scenario setting'!$D$3='Scenario setting_work'!$U$3,'Scenario setting_work'!K101,'Scenario setting_work'!Q101))) -> 2030 | F101: =IF('Scenario setting'!$D$3='Scenario setting_work'!$U$1,'Scenario setting'!E48,IF('Scenario setting'!$D$3='Scenario setting_work'!$U$2,'Scenario setting_work'!O101,IF('Scenario setting'!$D$3='Scenario setting_work'!$U$3,'Scenario setting_work'!L101,'Scenario setting_work'!R101))) -> 0 | G101: =IF('Scenario setting'!$D$3='Scenario setting_work'!$U$1,'Scenario setting'!F48,IF('Scenario setting'!$D$3='Scenario setting_work'!$U$2,'Scenario setting_work'!P101,IF('Scenario setting'!$D$3='Scenario setting_work'!$U$3,'Scenario setting_work'!M101,'Scenario setting_work'!S101))) -> 0 | H101: 0 | J101: - | K101: 2030 | L101: 0 | M101: 0 | N101: 2030 | O101: 0 | P101: 0 | Q101: 2030 | R101: 500 | S101: 1200
B102: PT_SUB | C102: Subscription to public transport system | D102: Share of population with a regular subscription to the PT system (%) By default, a 15% discount is given to PT subscribers, which can be updated in the Calibration sheet. | E102: =IF('Scenario setting'!$D$3='Scenario setting_work'!$U$1,'Scenario setting'!D34,IF('Scenario setting'!$D$3='Scenario setting_work'!$U$2,'Scenario setting_work'!N102,IF('Scenario setting'!$D$3='Scenario setting_work'!$U$3,'Scenario setting_work'!K102,'Scenario setting_work'!Q102))) -> 2030 | F102: =IF('Scenario setting'!$D$3='Scenario setting_work'!$U$1,'Scenario setting'!E34,IF('Scenario setting'!$D$3='Scenario setting_work'!$U$2,'Scenario setting_work'!O102,IF('Scenario setting'!$D$3='Scenario setting_work'!$U$3,'Scenario setting_work'!L102,'Scenario setting_work'!R102))) -> 0.25 | G102: =IF('Scenario setting'!$D$3='Scenario setting_work'!$U$1,'Scenario setting'!F34,IF('Scenario setting'!$D$3='Scenario setting_work'!$U$2,'Scenario setting_work'!P102,IF('Scenario setting'!$D$3='Scenario setting_work'!$U$3,'Scenario setting_work'!M102,'Scenario setting_work'!S102))) -> 0.35 | H102: 0 | J102: 0.1 | K102: 2030 | L102: 0.25 | M102: 0.35 | N102: 2030 | O102: 0 | P102: 0 | Q102: 2025 | R102: 0.25 | S102: 0.8
B103: PT_MAAS | C103: Mobility as a Service | D103: Share of population with a MaaS subscription (%) | E103: =IF('Scenario setting'!$D$3='Scenario setting_work'!$U$1,'Scenario setting'!D35,IF('Scenario setting'!$D$3='Scenario setting_work'!$U$2,'Scenario setting_work'!N103,IF('Scenario setting'!$D$3='Scenario setting_work'!$U$3,'Scenario setting_work'!K103,'Scenario setting_work'!Q103))) -> 2040 | F103: =IF('Scenario setting'!$D$3='Scenario setting_work'!$U$1,'Scenario setting'!E35,IF('Scenario setting'!$D$3='Scenario setting_work'!$U$2,'Scenario setting_work'!O103,IF('Scenario setting'!$D$3='Scenario setting_work'!$U$3,'Scenario setting_work'!L103,'Scenario setting_work'!R103))) -> 0.1 | G103: =IF('Scenario setting'!$D$3='Scenario setting_work'!$U$1,'Scenario setting'!F35,IF('Scenario setting'!$D$3='Scenario setting_work'!$U$2,'Scenario setting_work'!P103,IF('Scenario setting'!$D$3='Scenario setting_work'!$U$3,'Scenario setting_work'!M103,'Scenario setting_work'!S103))) -> 0.2 | H103: 0 | J103: 0.1 | K103: 2040 | L103: 0.1 | M103: 0.2 | N103: 2040 | O103: 0 | P103: 0 | Q103: 2040 | R103: 0.1 | S103: 0.2
B104: Shared Transport Promotion
B105: TAXI | C105: Taxi fleet evolution | D105: Total taxi fleet (vehicles) | E105: 2015 | F105: =IF('Scenario setting'!$D$3='Scenario setting_work'!$U$1,'Scenario setting'!F41,IF('Scenario setting'!$D$3='Scenario setting_work'!$U$2,'Scenario setting_work'!O105,IF('Scenario setting'!$D$3='Scenario setting_work'!$U$3,'Scenario setting_work'!L105,'Scenario setting_work'!R105))) -> 600 | L105: 600 | O105: 600 | R105: 600
E106: 2020 | F106: =IF('Scenario setting'!$D$3='Scenario setting_work'!$U$1,'Scenario setting'!F41,IF('Scenario setting'!$D$3='Scenario setting_work'!$U$2,'Scenario setting_work'!O106,IF('Scenario setting'!$D$3='Scenario setting_work'!$U$3,'Scenario setting_work'!L106,'Scenario setting_work'!R106))) -> 600 | L106: 600 | O106: 600 | R106: 600
E107: 2025 | F107: =IF('Scenario setting'!$D$3='Scenario setting_work'!$U$1,'Scenario setting'!F41,IF('Scenario setting'!$D$3='Scenario setting_work'!$U$2,'Scenario setting_work'!O107,IF('Scenario setting'!$D$3='Scenario setting_work'!$U$3,'Scenario setting_work'!L107,'Scenario setting_work'!R107))) -> 600 | L107: 600 | O107: 600 | R107: 1100
E108: 2030 | F108: =IF('Scenario setting'!$D$3='Scenario setting_work'!$U$1,'Scenario setting'!G41,IF('Scenario setting'!$D$3='Scenario setting_work'!$U$2,'Scenario setting_work'!O108,IF('Scenario setting'!$D$3='Scenario setting_work'!$U$3,'Scenario setting_work'!L108,'Scenario setting_work'!R108))) -> 600 | L108: 600 | O108: 600 | R108: 1600
E109: 2035 | F109: =IF('Scenario setting'!$D$3='Scenario setting_work'!$U$1,'Scenario setting'!H41,IF('Scenario setting'!$D$3='Scenario setting_work'!$U$2,'Scenario setting_work'!O109,IF('Scenario setting'!$D$3='Scenario setting_work'!$U$3,'Scenario setting_work'!L109,'Scenario setting_work'!R109))) -> 600 | L109: 600 | O109: 600 | R109: 2000
E110: 2040 | F110: =IF('Scenario setting'!$D$3='Scenario setting_work'!$U$1,'Scenario setting'!I41,IF('Scenario setting'!$D$3='Scenario setting_work'!$U$2,'Scenario setting_work'!O110,IF('Scenario setting'!$D$3='Scenario setting_work'!$U$3,'Scenario setting_work'!L110,'Scenario setting_work'!R110))) -> 600 | L110: 600 | O110: 600 | R110: 2400
E111: 2045 | F111: =IF('Scenario setting'!$D$3='Scenario setting_work'!$U$1,'Scenario setting'!J41,IF('Scenario setting'!$D$3='Scenario setting_work'!$U$2,'Scenario setting_work'!O111,IF('Scenario setting'!$D$3='Scenario setting_work'!$U$3,'Scenario setting_work'!L111,'Scenario setting_work'!R111))) -> 600 | L111: 600 | O111: 600 | R111: 2800
E112: 2050 | F112: =IF('Scenario setting'!$D$3='Scenario setting_work'!$U$1,'Scenario setting'!K41,IF('Scenario setting'!$D$3='Scenario setting_work'!$U$2,'Scenario setting_work'!O112,IF('Scenario setting'!$D$3='Scenario setting_work'!$U$3,'Scenario setting_work'!L112,'Scenario setting_work'!R112))) -> 600 | L112: 600 | O112: 600 | R112: 3100
B113: RSI | C113: Ride sharing fleet evolution | D113: Total taxi fleet (vehicles) | E113: 2015 | F113: =IF('Scenario setting'!$D$3='Scenario setting_work'!$U$1,'Scenario setting'!F42,IF('Scenario setting'!$D$3='Scenario setting_work'!$U$2,'Scenario setting_work'!O113,IF('Scenario setting'!$D$3='Scenario setting_work'!$U$3,'Scenario setting_work'!L113,'Scenario setting_work'!R113))) -> 8000 | L113: 8000 | O113: 8000 | R113: 8000
E114: 2020 | F114: =IF('Scenario setting'!$D$3='Scenario setting_work'!$U$1,'Scenario setting'!F42,IF('Scenario setting'!$D$3='Scenario setting_work'!$U$2,'Scenario setting_work'!O114,IF('Scenario setting'!$D$3='Scenario setting_work'!$U$3,'Scenario setting_work'!L114,'Scenario setting_work'!R114))) -> 10000 | L114: 10000 | O114: 10000 | R114: 10000
E115: 2025 | F115: =IF('Scenario setting'!$D$3='Scenario setting_work'!$U$1,'Scenario setting'!F42,IF('Scenario setting'!$D$3='Scenario setting_work'!$U$2,'Scenario setting_work'!O115,IF('Scenario setting'!$D$3='Scenario setting_work'!$U$3,'Scenario setting_work'!L115,'Scenario setting_work'!R115))) -> 10000 | L115: 10000 | O115: 10000 | R115: 9500
E116: 2030 | F116: =IF('Scenario setting'!$D$3='Scenario setting_work'!$U$1,'Scenario setting'!G42,IF('Scenario setting'!$D$3='Scenario setting_work'!$U$2,'Scenario setting_work'!O116,IF('Scenario setting'!$D$3='Scenario setting_work'!$U$3,'Scenario setting_work'!L116,'Scenario setting_work'!R116))) -> 10000 | L116: 10000 | O116: 10000 | R116: 9000
E117: 2035 | F117: =IF('Scenario setting'!$D$3='Scenario setting_work'!$U$1,'Scenario setting'!H42,IF('Scenario setting'!$D$3='Scenario setting_work'!$U$2,'Scenario setting_work'!O117,IF('Scenario setting'!$D$3='Scenario setting_work'!$U$3,'Scenario setting_work'!L117,'Scenario setting_work'!R117))) -> 10000 | L117: 10000 | O117: 10000 | R117: 8600
E118: 2040 | F118: =IF('Scenario setting'!$D$3='Scenario setting_work'!$U$1,'Scenario setting'!I42,IF('Scenario setting'!$D$3='Scenario setting_work'!$U$2,'Scenario setting_work'!O118,IF('Scenario setting'!$D$3='Scenario setting_work'!$U$3,'Scenario setting_work'!L118,'Scenario setting_work'!R118))) -> 10000 | L118: 10000 | O118: 10000 | R118: 8200
E119: 2045 | F119: =IF('Scenario setting'!$D$3='Scenario setting_work'!$U$1,'Scenario setting'!J42,IF('Scenario setting'!$D$3='Scenario setting_work'!$U$2,'Scenario setting_work'!O119,IF('Scenario setting'!$D$3='Scenario setting_work'!$U$3,'Scenario setting_work'!L119,'Scenario setting_work'!R119))) -> 10000 | L119: 10000 | O119: 10000 | R119: 7800
E120: 2050 | F120: =IF('Scenario setting'!$D$3='Scenario setting_work'!$U$1,'Scenario setting'!K42,IF('Scenario setting'!$D$3='Scenario setting_work'!$U$2,'Scenario setting_work'!O120,IF('Scenario setting'!$D$3='Scenario setting_work'!$U$3,'Scenario setting_work'!L120,'Scenario setting_work'!R120))) -> 10000 | L120: 10000 | O120: 10000 | R120: 7500
B121: CSI | C121: Incentives for car sharing | D121: Total size of car sharing fleet (number of vehicles) | E121: =IF('Scenario setting'!$D$3='Scenario setting_work'!$U$1,'Scenario setting'!D47,IF('Scenario setting'!$D$3='Scenario setting_work'!$U$2,'Scenario setting_work'!N121,IF('Scenario setting'!$D$3='Scenario setting_work'!$U$3,'Scenario setting_work'!K121,'Scenario setting_work'!Q121))) -> 2030 | F121: =IF('Scenario setting'!$D$3='Scenario setting_work'!$U$1,'Scenario setting'!E47,IF('Scenario setting'!$D$3='Scenario setting_work'!$U$2,'Scenario setting_work'!O121,IF('Scenario setting'!$D$3='Scenario setting_work'!$U$3,'Scenario setting_work'!L121,'Scenario setting_work'!R121))) -> 0 | G121: =IF('Scenario setting'!$D$3='Scenario setting_work'!$U$1,'Scenario setting'!F47,IF('Scenario setting'!$D$3='Scenario setting_work'!$U$2,'Scenario setting_work'!P121,IF('Scenario setting'!$D$3='Scenario setting_work'!$U$3,'Scenario setting_work'!M121,'Scenario setting_work'!S121))) -> 0 | H121: 0 | J121: 5000 | K121: 2030 | L121: 0 | M121: 0 | N121: 2030 | O121: 0 | P121: 0 | Q121: 2025 | R121: 400 | S121: 1000
B122: BSI | C122: Incentives for bike and scooter sharing | D122: Total size of bike and scooter sharing fleet (number of vehicles) | E122: =IF('Scenario setting'!$D$3='Scenario setting_work'!$U$1,'Scenario setting'!D46,IF('Scenario setting'!$D$3='Scenario setting_work'!$U$2,'Scenario setting_work'!N122,IF('Scenario setting'!$D$3='Scenario setting_work'!$U$3,'Scenario setting_work'!K122,'Scenario setting_work'!Q122))) -> 2025 | F122: =IF('Scenario setting'!$D$3='Scenario setting_work'!$U$1,'Scenario setting'!E46,IF('Scenario setting'!$D$3='Scenario setting_work'!$U$2,'Scenario setting_work'!O122,IF('Scenario setting'!$D$3='Scenario setting_work'!$U$3,'Scenario setting_work'!L122,'Scenario setting_work'!R122))) -> 1000 | G122: =IF('Scenario setting'!$D$3='Scenario setting_work'!$U$1,'Scenario setting'!F46,IF('Scenario setting'!$D$3='Scenario setting_work'!$U$2,'Scenario setting_work'!P122,IF('Scenario setting'!$D$3='Scenario setting_work'!$U$3,'Scenario setting_work'!M122,'Scenario setting_work'!S122))) -> 3000 | H122: 0 | J122: 8000 | K122: 2025 | L122: 1000 | M122: 3000 | N122: 2025 | O122: 0 | P122: 0 | Q122: 2025 | R122: 2000 | S122: 6000
B124: CPI | C124: Carpooling incentives | D124: Increase in load factor for private cars | E124: =IF('Scenario setting'!$D$3='Scenario setting_work'!$U$1,'Scenario setting'!D45,IF('Scenario setting'!$D$3='Scenario setting_work'!$U$2,'Scenario setting_work'!N124,IF('Scenario setting'!$D$3='Scenario setting_work'!$U$3,'Scenario setting_work'!K124,'Scenario setting_work'!Q124))) -> 2030 | F124: =IF('Scenario setting'!$D$3='Scenario setting_work'!$U$1,'Scenario setting'!E45,IF('Scenario setting'!$D$3='Scenario setting_work'!$U$2,'Scenario setting_work'!O124,IF('Scenario setting'!$D$3='Scenario setting_work'!$U$3,'Scenario setting_work'!L124,'Scenario setting_work'!R124))) -> 0.05 | G124: =IF('Scenario setting'!$D$3='Scenario setting_work'!$U$1,'Scenario setting'!F45,IF('Scenario setting'!$D$3='Scenario setting_work'!$U$2,'Scenario setting_work'!P124,IF('Scenario setting'!$D$3='Scenario setting_work'!$U$3,'Scenario setting_work'!M124,'Scenario setting_work'!S124))) -> 0.1 | H124: 1.5 | J124: 1.6 | K124: 2030 | L124: 0.05 | M124: 0.1 | N124: 2030 | O124: 0 | P124: 0 | Q124: 2030 | R124: 0.05 | S124: 0.1
B125: Restrictive Measures
B126: PR | C126: Parking restrictions | D126: Share of the city core that is under (strong) parking restrictions | E126: =IF('Scenario setting'!$D$3='Scenario setting_work'!$U$1,'Scenario setting'!D54,IF('Scenario setting'!$D$3='Scenario setting_work'!$U$2,'Scenario setting_work'!N126,IF('Scenario setting'!$D$3='Scenario setting_work'!$U$3,'Scenario setting_work'!K126,'Scenario setting_work'!Q126))) -> 2030 | F126: =IF('Scenario setting'!$D$3='Scenario setting_work'!$U$1,'Scenario setting'!E54,IF('Scenario setting'!$D$3='Scenario setting_work'!$U$2,'Scenario setting_work'!O126,IF('Scenario setting'!$D$3='Scenario setting_work'!$U$3,'Scenario setting_work'!L126,'Scenario setting_work'!R126))) -> 0.05 | G126: =IF('Scenario setting'!$D$3='Scenario setting_work'!$U$1,'Scenario setting'!F54,IF('Scenario setting'!$D$3='Scenario setting_work'!$U$2,'Scenario setting_work'!P126,IF('Scenario setting'!$D$3='Scenario setting_work'!$U$3,'Scenario setting_work'!M126,'Scenario setting_work'!S126))) -> 0.1 | H126: 0 | J126: 0 | K126: 2030 | L126: 0.05 | M126: 0.1 | N126: 2030 | O126: 0 | P126: 0 | Q126: 2025 | R126: 0.2 | S126: 0.7
B127: VAR | C127: Vehicle access restrictions | D127: Share of cars that will be restricted from circulating within the city (%) | E127: =IF('Scenario setting'!$D$3='Scenario setting_work'!$U$1,'Scenario setting'!D55,IF('Scenario setting'!$D$3='Scenario setting_work'!$U$2,'Scenario setting_work'!N127,IF('Scenario setting'!$D$3='Scenario setting_work'!$U$3,'Scenario setting_work'!K127,'Scenario setting_work'!Q127))) -> 2025 | F127: =IF('Scenario setting'!$D$3='Scenario setting_work'!$U$1,'Scenario setting'!E55,IF('Scenario setting'!$D$3='Scenario setting_work'!$U$2,'Scenario setting_work'!O127,IF('Scenario setting'!$D$3='Scenario setting_work'!$U$3,'Scenario setting_work'!L127,'Scenario setting_work'!R127))) -> 0.05 | G127: =IF('Scenario setting'!$D$3='Scenario setting_work'!$U$1,'Scenario setting'!F55,IF('Scenario setting'!$D$3='Scenario setting_work'!$U$2,'Scenario setting_work'!P127,IF('Scenario setting'!$D$3='Scenario setting_work'!$U$3,'Scenario setting_work'!M127,'Scenario setting_work'!S127))) -> 0.1 | H127: 0 | J127: 0 | K127: 2025 | L127: 0.05 | M127: 0.1 | N127: 2025 | O127: 0 | P127: 0 | Q127: 2025 | R127: 0.05 | S127: 0.4
B128: SL | C128: Speed limitations | D128: Speed limit reduction (km/h) | E128: 2025 | F128: 0 | G128: 0 | H128: 30/70/100 km/h for residential/built-up area/mortorways | J128: 25/60/90 km/h for residential/built-up area/mortorways | K128: 2025 | L128: 0 | M128: 10 | N128: 2025 | O128: 0 | P128: 0 | Q128: 2025 | R128: 0 | S128: 10
B129: Pricing Measures
B130: RP | C130: Road pricing | D130: Share of total use cost (%) | E130: =IF('Scenario setting'!$D$3='Scenario setting_work'!$U$1,'Scenario setting'!D61,IF('Scenario setting'!$D$3='Scenario setting_work'!$U$2,'Scenario setting_work'!N130,IF('Scenario setting'!$D$3='Scenario setting_work'!$U$3,'Scenario setting_work'!K130,'Scenario setting_work'!Q130))) -> 2025 | F130: =IF('Scenario setting'!$D$3='Scenario setting_work'!$U$1,'Scenario setting'!E61,IF('Scenario setting'!$D$3='Scenario setting_work'!$U$2,'Scenario setting_work'!O130,IF('Scenario setting'!$D$3='Scenario setting_work'!$U$3,'Scenario setting_work'!L130,'Scenario setting_work'!R130))) -> 0.1 | G130: =IF('Scenario setting'!$D$3='Scenario setting_work'!$U$1,'Scenario setting'!F61,IF('Scenario setting'!$D$3='Scenario setting_work'!$U$2,'Scenario setting_work'!P130,IF('Scenario setting'!$D$3='Scenario setting_work'!$U$3,'Scenario setting_work'!M130,'Scenario setting_work'!S130))) -> 0.25 | H130: 0 | J130: 0 | K130: 2025 | L130: 0.1 | M130: 0.25 | N130: 2025 | O130: 0 | P130: 0 | Q130: 2025 | R130: 0.1 | S130: 0.25
B131: PP | C131: Parking pricing | D131: Share of parking cost increase | E131: =IF('Scenario setting'!$D$3='Scenario setting_work'!$U$1,'Scenario setting'!D62,IF('Scenario setting'!$D$3='Scenario setting_work'!$U$2,'Scenario setting_work'!N131,IF('Scenario setting'!$D$3='Scenario setting_work'!$U$3,'Scenario setting_work'!K131,'Scenario setting_work'!Q131))) -> 2025 | F131: =IF('Scenario setting'!$D$3='Scenario setting_work'!$U$1,'Scenario setting'!E62,IF('Scenario setting'!$D$3='Scenario setting_work'!$U$2,'Scenario setting_work'!O131,IF('Scenario setting'!$D$3='Scenario setting_work'!$U$3,'Scenario setting_work'!L131,'Scenario setting_work'!R131))) -> 0.18 | G131: =IF('Scenario setting'!$D$3='Scenario setting_work'!$U$1,'Scenario setting'!F62,IF('Scenario setting'!$D$3='Scenario setting_work'!$U$2,'Scenario setting_work'!P131,IF('Scenario setting'!$D$3='Scenario setting_work'!$U$3,'Scenario setting_work'!M131,'Scenario setting_work'!S131))) -> 0.25 | H131: 0 | J131: 0.2 | K131: 2025 | L131: 0.18 | M131: 0.25 | N131: 2025 | O131: 0 | P131: 0 | Q131: 2025 | R131: 0.18 | S131: 0.25
B132: FT | C132: Fuel tax | D132: Increase in vehicle usage costs (per km) due to increase of fossil fuel cost (%) | E132: =IF('Scenario setting'!$D$3='Scenario setting_work'!$U$1,'Scenario setting'!D63,IF('Scenario setting'!$D$3='Scenario setting_work'!$U$2,'Scenario setting_work'!N132,IF('Scenario setting'!$D$3='Scenario setting_work'!$U$3,'Scenario setting_work'!K132,'Scenario setting_work'!Q132))) -> 2025 | F132: =IF('Scenario setting'!$D$3='Scenario setting_work'!$U$1,'Scenario setting'!E63,IF('Scenario setting'!$D$3='Scenario setting_work'!$U$2,'Scenario setting_work'!O132,IF('Scenario setting'!$D$3='Scenario setting_work'!$U$3,'Scenario setting_work'!L132,'Scenario setting_work'!R132))) -> 0.15 | G132: =IF('Scenario setting'!$D$3='Scenario setting_work'!$U$1,'Scenario setting'!F63,IF('Scenario setting'!$D$3='Scenario setting_work'!$U$2,'Scenario setting_work'!P132,IF('Scenario setting'!$D$3='Scenario setting_work'!$U$3,'Scenario setting_work'!M132,'Scenario setting_work'!S132))) -> 0.35 | H132: - | J132: - | K132: 2025 | L132: 0.15 | M132: 0.35 | N132: 2025 | O132: 0 | P132: 0 | Q132: 2025 | R132: 0.15 | S132: 0.35
B133: VT | C133: Vehicle ownership and purchase tax | D133: Increase in vehicle ownership and purchase cost (%) | E133: =IF('Scenario setting'!$D$3='Scenario setting_work'!$U$1,'Scenario setting'!D64,IF('Scenario setting'!$D$3='Scenario setting_work'!$U$2,'Scenario setting_work'!N133,IF('Scenario setting'!$D$3='Scenario setting_work'!$U$3,'Scenario setting_work'!K133,'Scenario setting_work'!Q133))) -> 2025 | F133: =IF('Scenario setting'!$D$3='Scenario setting_work'!$U$1,'Scenario setting'!E64,IF('Scenario setting'!$D$3='Scenario setting_work'!$U$2,'Scenario setting_work'!O133,IF('Scenario setting'!$D$3='Scenario setting_work'!$U$3,'Scenario setting_work'!L133,'Scenario setting_work'!R133))) -> 0.15 | G133: =IF('Scenario setting'!$D$3='Scenario setting_work'!$U$1,'Scenario setting'!F64,IF('Scenario setting'!$D$3='Scenario setting_work'!$U$2,'Scenario setting_work'!P133,IF('Scenario setting'!$D$3='Scenario setting_work'!$U$3,'Scenario setting_work'!M133,'Scenario setting_work'!S133))) -> 0.3 | H133: - | J133: - | K133: 2025 | L133: 0.15 | M133: 0.3 | N133: 2025 | O133: 0 | P133: 0 | Q133: 2025 | R133: 0.15 | S133: 0.3
B134: Vehicle Technology Development
B135: TECH | C135: Vehicle fuel technology development and uptake - predefined scenarios | D135: Trigger of two possible technology and vehicle efficiency scenarios: 0 - Do nothing, 1- Current Policies, 2- ITF Climate Ambition. See the methodology note for information on these scenarios. | F135: =IF('Scenario setting'!$D$3='Scenario setting_work'!$U$1,'Scenario setting'!D11,IF('Scenario setting'!$D$3='Scenario setting_work'!$U$2,'Scenario setting_work'!O135,IF('Scenario setting'!$D$3='Scenario setting_work'!$U$3,'Scenario setting_work'!L135,'Scenario setting_work'!R135))) -> 1 | H135: 1 (Current Polcies) | J135: 2 (Climate Ambition) | L135: 1 | O135: 0 | R135: 2
B136: Other Measures
B137: TW | C137: Teleworking promotion | D137: Share of active population that regularly teleworks (%) | E137: =IF('Scenario setting'!$D$3='Scenario setting_work'!$U$1,'Scenario setting'!D70,IF('Scenario setting'!$D$3='Scenario setting_work'!$U$2,'Scenario setting_work'!N137,IF('Scenario setting'!$D$3='Scenario setting_work'!$U$3,'Scenario setting_work'!K137,'Scenario setting_work'!Q137))) -> 2030 | F137: =IF('Scenario setting'!$D$3='Scenario setting_work'!$U$1,'Scenario setting'!E70,IF('Scenario setting'!$D$3='Scenario setting_work'!$U$2,'Scenario setting_work'!O137,IF('Scenario setting'!$D$3='Scenario setting_work'!$U$3,'Scenario setting_work'!L137,'Scenario setting_work'!R137))) -> 0.02 | G137: =IF('Scenario setting'!$D$3='Scenario setting_work'!$U$1,'Scenario setting'!F70,IF('Scenario setting'!$D$3='Scenario setting_work'!$U$2,'Scenario setting_work'!P137,IF('Scenario setting'!$D$3='Scenario setting_work'!$U$3,'Scenario setting_work'!M137,'Scenario setting_work'!S137))) -> 0.05 | H137: 0.01 | J137: 0.025 | K137: 2030 | L137: 0.02 | M137: 0.05 | N137: 2030 | O137: 0.01 | P137: 0.01 | Q137: 2025 | R137: 0.02 | S137: 0.1
B138: TOD | C138: Transit Oriented Development and improved urban planning | D138: Increase in diversity of land-use functions and density around public transport network (%) | E138: =IF('Scenario setting'!$D$3='Scenario setting_work'!$U$1,'Scenario setting'!D71,IF('Scenario setting'!$D$3='Scenario setting_work'!$U$2,'Scenario setting_work'!N138,IF('Scenario setting'!$D$3='Scenario setting_work'!$U$3,'Scenario setting_work'!K138,'Scenario setting_work'!Q138))) -> 2030 | F138: =IF('Scenario setting'!$D$3='Scenario setting_work'!$U$1,'Scenario setting'!E71,IF('Scenario setting'!$D$3='Scenario setting_work'!$U$2,'Scenario setting_work'!O138,IF('Scenario setting'!$D$3='Scenario setting_work'!$U$3,'Scenario setting_work'!L138,'Scenario setting_work'!R138))) -> 0.05 | G138: =IF('Scenario setting'!$D$3='Scenario setting_work'!$U$1,'Scenario setting'!F71,IF('Scenario setting'!$D$3='Scenario setting_work'!$U$2,'Scenario setting_work'!P138,IF('Scenario setting'!$D$3='Scenario setting_work'!$U$3,'Scenario setting_work'!M138,'Scenario setting_work'!S138))) -> 0.15 | H138: - | J138: 0.1 | K138: 2030 | L138: 0.05 | M138: 0.15 | N138: 2030 | O138: 0 | P138: 0 | Q138: 2025 | R138: 0.05 | S138: 0.2

Sheet Scenario parameters (hidden)
B2: Scenario parameters - intermediate sheet to hide
B3: Linear expansion of the measures to match the settings in the starting and end years
A5: Measure Code | B5: Measure Name | C5: Impact in the model
A6: Public Transport Promotion | D6: 2015 | E6: =D6+5 -> 2020 | F6: =E6+5 -> 2025 | G6: 2030 | H6: 2035 | I6: 2040 | J6: 2045 | K6: 2050
A7: I_BIKE | B7: Bike network | C7: - Increase the speed for bike and bike and scooter sharing**
A8: I_WALK | B8: Pedestrian infrastructure network | C8: - Decrease the access time of bike** - Increase the access time for private modes (car, motorcycle) and taxi** - Increase the speed for walking**
A9: PT_SER | B9: Service improvement for conventional bus | C9: - Decrease the waiting time for PT modes (if over 10yo)** - Increase the speed for PT modes (if over 10yo)** | D9: 0 | E9: 0 | F9: =IF('Scenario setting_work'!$E$98>F$6,0,IF('Scenario setting_work'!$E$98=F$6,'Scenario setting_work'!$F$98,('Scenario setting_work'!$G$98-'Scenario parameters'!E9)/((2050-F$6)/5+1)+'Scenario parameters'!E9)) -> 0 | G9: =IF('Scenario setting_work'!$E$98>G$6,0,IF('Scenario setting_work'!$E$98=G$6,'Scenario setting_work'!$F$98,('Scenario setting_work'!$G$98-'Scenario parameters'!F9)/((2050-G$6)/5+1)+'Scenario parameters'!F9)) -> 0.05 | H9: =IF('Scenario setting_work'!$E$98>H$6,0,IF('Scenario setting_work'!$E$98=H$6,'Scenario setting_work'!$F$98,('Scenario setting_work'!$G$98-'Scenario parameters'!G9)/((2050-H$6)/5+1)+'Scenario parameters'!G9)) -> 0.0625 | I9: =IF('Scenario setting_work'!$E$98>I$6,0,IF('Scenario setting_work'!$E$98=I$6,'Scenario setting_work'!$F$98,('Scenario setting_work'!$G$98-'Scenario parameters'!H9)/((2050-I$6)/5+1)+'Scenario parameters'!H9)) -> 0.075 | J9: =IF('Scenario setting_work'!$E$98>J$6,0,IF('Scenario setting_work'!$E$98=J$6,'Scenario setting_work'!$F$98,('Scenario setting_work'!$G$98-'Scenario parameters'!I9)/((2050-J$6)/5+1)+'Scenario parameters'!I9)) -> 0.0875 | K9: =IF('Scenario setting_work'!$E$98>K$6,0,IF('Scenario setting_work'!$E$98=K$6,'Scenario setting_work'!$F$98,('Scenario setting_work'!$G$98-'Scenario parameters'!J9)/((2050-K$6)/5+1)+'Scenario parameters'!J9)) -> 0.1
A10: PT_PRIO | B10: Public transport priority | C10: - Increase the speed of PT modes** | D10: 0 | E10: 0 | F10: =IF('Scenario setting_work'!$E$99>F$6,0,IF('Scenario setting_work'!$E$99=F$6,'Scenario setting_work'!$F$99,('Scenario setting_work'!$G$99-'Scenario parameters'!E10)/((2050-F$6)/5+1)+'Scenario parameters'!E10)) -> 0.2 | G10: =IF('Scenario setting_work'!$E$99>G$6,0,IF('Scenario setting_work'!$E$99=G$6,'Scenario setting_work'!$F$99,('Scenario setting_work'!$G$99-'Scenario parameters'!F10)/((2050-G$6)/5+1)+'Scenario parameters'!F10)) -> 0.22 | H10: =IF('Scenario setting_work'!$E$99>H$6,0,IF('Scenario setting_work'!$E$99=H$6,'Scenario setting_work'!$F$99,('Scenario setting_work'!$G$99-'Scenario parameters'!G10)/((2050-H$6)/5+1)+'Scenario parameters'!G10)) -> 0.24 | I10: =IF('Scenario setting_work'!$E$99>I$6,0,IF('Scenario setting_work'!$E$99=I$6,'Scenario setting_work'!$F$99,('Scenario setting_work'!$G$99-'Scenario parameters'!H10)/((2050-I$6)/5+1)+'Scenario parameters'!H10)) -> 0.26 | J10: =IF('Scenario setting_work'!$E$99>J$6,0,IF('Scenario setting_work'!$E$99=J$6,'Scenario setting_work'!$F$99,('Scenario setting_work'!$G$99-'Scenario parameters'!I10)/((2050-J$6)/5+1)+'Scenario parameters'!I10)) -> 0.28 | K10: =IF('Scenario setting_work'!$E$99>K$6,0,IF('Scenario setting_work'!$E$99=K$6,'Scenario setting_work'!$F$99,('Scenario setting_work'!$G$99-'Scenario parameters'!J10)/((2050-K$6)/5+1)+'Scenario parameters'!J10)) -> 0.3
A11: PT_FARE | B11: Public transport fare integration | C11: -Decrease the average cost of public transport | D11: 0 | E11: 0 | F11: =IF('Scenario setting_work'!$E$100>F$6,0,IF('Scenario setting_work'!$E$100=F$6,'Scenario setting_work'!$F$100,POWER((1+'Scenario setting_work'!$G$100)/(1+'Scenario setting_work'!$F$100),1/((2050-'Scenario setting_work'!$E$100)/5))-1)) -> 0 | G11: =IF('Scenario setting_work'!$E$100>G$6,0,IF('Scenario setting_work'!$E$100=G$6,'Scenario setting_work'!$F$100,POWER((1+'Scenario setting_work'!$G$100)/(1+'Scenario setting_work'!$F$100),1/((2050-'Scenario setting_work'!$E$100)/5))-1)) -> 0.1 | H11: =IF('Scenario setting_work'!$E$100>H$6,0,IF('Scenario setting_work'!$E$100=H$6,'Scenario setting_work'!$F$100,POWER((1+'Scenario setting_work'!$G$100)/(1+'Scenario setting_work'!$F$100),1/((2050-'Scenario setting_work'!$E$100)/5))-1)) -> 0.04264788544 | I11: =IF('Scenario setting_work'!$E$100>I$6,0,IF('Scenario setting_work'!$E$100=I$6,'Scenario setting_work'!$F$100,POWER((1+'Scenario setting_work'!$G$100)/(1+'Scenario setting_work'!$F$100),1/((2050-'Scenario setting_work'!$E$100)/5))-1)) -> 0.04264788544 | J11: =IF('Scenario setting_work'!$E$100>J$6,0,IF('Scenario setting_work'!$E$100=J$6,'Scenario setting_work'!$F$100,POWER((1+'Scenario setting_work'!$G$100)/(1+'Scenario setting_work'!$F$100),1/((2050-'Scenario setting_work'!$E$100)/5))-1)) -> 0.04264788544 | K11: =IF('Scenario setting_work'!$E$100>K$6,0,IF('Scenario setting_work'!$E$100=K$6,'Scenario setting_work'!$F$100,POWER((1+'Scenario setting_work'!$G$100)/(1+'Scenario setting_work'!$F$100),1/((2050-'Scenario setting_work'!$E$100)/5))-1)) -> 0.04264788544
A12: PT_OD | B12: Launch of on-demand services | C12: Total size of on-demand fleet (number of vehicles) | D12: 0 | E12: 0 | F12: =IF('Scenario setting_work'!$E$101>'Scenario parameters'!F$6,0,IF('Scenario setting_work'!$E$101='Scenario parameters'!F$6,'Scenario setting_work'!$F$101,('Scenario setting_work'!$G$101-'Scenario parameters'!E12)/((2050-'Scenario parameters'!F$6)/5+1)+'Scenario parameters'!E12)) -> 0 | G12: =IF('Scenario setting_work'!$E$101>'Scenario parameters'!G$6,0,IF('Scenario setting_work'!$E$101='Scenario parameters'!G$6,'Scenario setting_work'!$F$101,('Scenario setting_work'!$G$101-'Scenario parameters'!F12)/((2050-'Scenario parameters'!G$6)/5+1)+'Scenario parameters'!F12)) -> 0 | H12: =IF('Scenario setting_work'!$E$101>'Scenario parameters'!H$6,0,IF('Scenario setting_work'!$E$101='Scenario parameters'!H$6,'Scenario setting_work'!$F$101,('Scenario setting_work'!$G$101-'Scenario parameters'!G12)/((2050-'Scenario parameters'!H$6)/5+1)+'Scenario parameters'!G12)) -> 0 | I12: =IF('Scenario setting_work'!$E$101>'Scenario parameters'!I$6,0,IF('Scenario setting_work'!$E$101='Scenario parameters'!I$6,'Scenario setting_work'!$F$101,('Scenario setting_work'!$G$101-'Scenario parameters'!H12)/((2050-'Scenario parameters'!I$6)/5+1)+'Scenario parameters'!H12)) -> 0 | J12: =IF('Scenario setting_work'!$E$101>'Scenario parameters'!J$6,0,IF('Scenario setting_work'!$E$101='Scenario parameters'!J$6,'Scenario setting_work'!$F$101,('Scenario setting_work'!$G$101-'Scenario parameters'!I12)/((2050-'Scenario parameters'!J$6)/5+1)+'Scenario parameters'!I12)) -> 0 | K12: =IF('Scenario setting_work'!$E$101>'Scenario parameters'!K$6,0,IF('Scenario setting_work'!$E$101='Scenario parameters'!K$6,'Scenario setting_work'!$F$101,('Scenario setting_work'!$G$101-'Scenario parameters'!J12)/((2050-'Scenario parameters'!K$6)/5+1)+'Scenario parameters'!J12)) -> 0
A13: PT_SUB | B13: Subscription to public transport system | C13: -Set the share of PT subscription in the city | D13: 0 | E13: 0 | F13: =IF('Scenario setting_work'!$E$102>'Scenario parameters'!F$6,0,IF('Scenario setting_work'!$E$102='Scenario parameters'!F$6,'Scenario setting_work'!$F$102,('Scenario setting_work'!$G$102-'Scenario parameters'!E13)/((2050-'Scenario parameters'!F$6)/5+1)+'Scenario parameters'!E13)) -> 0 | G13: =IF('Scenario setting_work'!$E$102>'Scenario parameters'!G$6,0,IF('Scenario setting_work'!$E$102='Scenario parameters'!G$6,'Scenario setting_work'!$F$102,('Scenario setting_work'!$G$102-'Scenario parameters'!F13)/((2050-'Scenario parameters'!G$6)/5+1)+'Scenario parameters'!F13)) -> 0.25 | H13: =IF('Scenario setting_work'!$E$102>'Scenario parameters'!H$6,0,IF('Scenario setting_work'!$E$102='Scenario parameters'!H$6,'Scenario setting_work'!$F$102,('Scenario setting_work'!$G$102-'Scenario parameters'!G13)/((2050-'Scenario parameters'!H$6)/5+1)+'Scenario parameters'!G13)) -> 0.275 | I13: =IF('Scenario setting_work'!$E$102>'Scenario parameters'!I$6,0,IF('Scenario setting_work'!$E$102='Scenario parameters'!I$6,'Scenario setting_work'!$F$102,('Scenario setting_work'!$G$102-'Scenario parameters'!H13)/((2050-'Scenario parameters'!I$6)/5+1)+'Scenario parameters'!H13)) -> 0.3 | J13: =IF('Scenario setting_work'!$E$102>'Scenario parameters'!J$6,0,IF('Scenario setting_work'!$E$102='Scenario parameters'!J$6,'Scenario setting_work'!$F$102,('Scenario setting_work'!$G$102-'Scenario parameters'!I13)/((2050-'Scenario parameters'!J$6)/5+1)+'Scenario parameters'!I13)) -> 0.325 | K13: =IF('Scenario setting_work'!$E$102>'Scenario parameters'!K$6,0,IF('Scenario setting_work'!$E$102='Scenario parameters'!K$6,'Scenario setting_work'!$F$102,('Scenario setting_work'!$G$102-'Scenario parameters'!J13)/((2050-'Scenario parameters'!K$6)/5+1)+'Scenario parameters'!J13)) -> 0.35
A14: PT_MAAS | B14: Mobility as a Service | C14: - Decrease the access time of all PT modes** - Increase the utility for PT and shared modes** | D14: 0 | E14: 0 | F14: =IF('Scenario setting_work'!$E$103>'Scenario parameters'!F$6,0,IF('Scenario setting_work'!$E$103='Scenario parameters'!F$6,'Scenario setting_work'!$F$103,('Scenario setting_work'!$G$103-'Scenario parameters'!E14)/((2050-'Scenario parameters'!F$6)/5+1)+'Scenario parameters'!E14)) -> 0 | G14: =IF('Scenario setting_work'!$E$103>'Scenario parameters'!G$6,0,IF('Scenario setting_work'!$E$103='Scenario parameters'!G$6,'Scenario setting_work'!$F$103,('Scenario setting_work'!$G$103-'Scenario parameters'!F14)/((2050-'Scenario parameters'!G$6)/5+1)+'Scenario parameters'!F14)) -> 0 | H14: =IF('Scenario setting_work'!$E$103>'Scenario parameters'!H$6,0,IF('Scenario setting_work'!$E$103='Scenario parameters'!H$6,'Scenario setting_work'!$F$103,('Scenario setting_work'!$G$103-'Scenario parameters'!G14)/((2050-'Scenario parameters'!H$6)/5+1)+'Scenario parameters'!G14)) -> 0 | I14: =IF('Scenario setting_work'!$E$103>'Scenario parameters'!I$6,0,IF('Scenario setting_work'!$E$103='Scenario parameters'!I$6,'Scenario setting_work'!$F$103,('Scenario setting_work'!$G$103-'Scenario parameters'!H14)/((2050-'Scenario parameters'!I$6)/5+1)+'Scenario parameters'!H14)) -> 0.1 | J14: =IF('Scenario setting_work'!$E$103>'Scenario parameters'!J$6,0,IF('Scenario setting_work'!$E$103='Scenario parameters'!J$6,'Scenario setting_work'!$F$103,('Scenario setting_work'!$G$103-'Scenario parameters'!I14)/((2050-'Scenario parameters'!J$6)/5+1)+'Scenario parameters'!I14)) -> 0.15 | K14: =IF('Scenario setting_work'!$E$103>'Scenario parameters'!K$6,0,IF('Scenario setting_work'!$E$103='Scenario parameters'!K$6,'Scenario setting_work'!$F$103,('Scenario setting_work'!$G$103-'Scenario parameters'!J14)/((2050-'Scenario parameters'!K$6)/5+1)+'Scenario parameters'!J14)) -> 0.2
A15: Shared Transport Promotion
A16: CSI | B16: Incentives for car sharing | C16: Total size of car sharing fleet (number of vehicles) | D16: 0 | E16: 0 | F16: =IF('Scenario setting_work'!$E$121>'Scenario parameters'!F$6,0,IF('Scenario setting_work'!$E$121='Scenario parameters'!F$6,'Scenario setting_work'!$F$121,('Scenario setting_work'!$G$121-'Scenario parameters'!E16)/((2050-'Scenario parameters'!F$6)/5+1)+'Scenario parameters'!E16)) -> 0 | G16: =IF('Scenario setting_work'!$E$121>'Scenario parameters'!G$6,0,IF('Scenario setting_work'!$E$121='Scenario parameters'!G$6,'Scenario setting_work'!$F$121,('Scenario setting_work'!$G$121-'Scenario parameters'!F16)/((2050-'Scenario parameters'!G$6)/5+1)+'Scenario parameters'!F16)) -> 0 | H16: =IF('Scenario setting_work'!$E$121>'Scenario parameters'!H$6,0,IF('Scenario setting_work'!$E$121='Scenario parameters'!H$6,'Scenario setting_work'!$F$121,('Scenario setting_work'!$G$121-'Scenario parameters'!G16)/((2050-'Scenario parameters'!H$6)/5+1)+'Scenario parameters'!G16)) -> 0 | I16: =IF('Scenario setting_work'!$E$121>'Scenario parameters'!I$6,0,IF('Scenario setting_work'!$E$121='Scenario parameters'!I$6,'Scenario setting_work'!$F$121,('Scenario setting_work'!$G$121-'Scenario parameters'!H16)/((2050-'Scenario parameters'!I$6)/5+1)+'Scenario parameters'!H16)) -> 0 | J16: =IF('Scenario setting_work'!$E$121>'Scenario parameters'!J$6,0,IF('Scenario setting_work'!$E$121='Scenario parameters'!J$6,'Scenario setting_work'!$F$121,('Scenario setting_work'!$G$121-'Scenario parameters'!I16)/((2050-'Scenario parameters'!J$6)/5+1)+'Scenario parameters'!I16)) -> 0 | K16: =IF('Scenario setting_work'!$E$121>'Scenario parameters'!K$6,0,IF('Scenario setting_work'!$E$121='Scenario parameters'!K$6,'Scenario setting_work'!$F$121,('Scenario setting_work'!$G$121-'Scenario parameters'!J16)/((2050-'Scenario parameters'!K$6)/5+1)+'Scenario parameters'!J16)) -> 0
A17: BSI | B17: Incentives for bike and scooter sharing | C17: Total size of bike and scooter sharing fleet (number of vehicles) | D17: 0 | E17: 0 | F17: =IF('Scenario setting_work'!$E$122>'Scenario parameters'!F$6,0,IF('Scenario setting_work'!$E$122='Scenario parameters'!F$6,'Scenario setting_work'!$F$122,('Scenario setting_work'!$G$122-'Scenario parameters'!E17)/((2050-'Scenario parameters'!F$6)/5+1)+'Scenario parameters'!E17)) -> 1000 | G17: =IF('Scenario setting_work'!$E$122>'Scenario parameters'!G$6,0,IF('Scenario setting_work'!$E$122='Scenario parameters'!G$6,'Scenario setting_work'!$F$122,('Scenario setting_work'!$G$122-'Scenario parameters'!F17)/((2050-'Scenario parameters'!G$6)/5+1)+'Scenario parameters'!F17)) -> 1400 | H17: =IF('Scenario setting_work'!$E$122>'Scenario parameters'!H$6,0,IF('Scenario setting_work'!$E$122='Scenario parameters'!H$6,'Scenario setting_work'!$F$122,('Scenario setting_work'!$G$122-'Scenario parameters'!G17)/((2050-'Scenario parameters'!H$6)/5+1)+'Scenario parameters'!G17)) -> 1800 | I17: =IF('Scenario setting_work'!$E$122>'Scenario parameters'!I$6,0,IF('Scenario setting_work'!$E$122='Scenario parameters'!I$6,'Scenario setting_work'!$F$122,('Scenario setting_work'!$G$122-'Scenario parameters'!H17)/((2050-'Scenario parameters'!I$6)/5+1)+'Scenario parameters'!H17)) -> 2200 | J17: =IF('Scenario setting_work'!$E$122>'Scenario parameters'!J$6,0,IF('Scenario setting_work'!$E$122='Scenario parameters'!J$6,'Scenario setting_work'!$F$122,('Scenario setting_work'!$G$122-'Scenario parameters'!I17)/((2050-'Scenario parameters'!J$6)/5+1)+'Scenario parameters'!I17)) -> 2600 | K17: =IF('Scenario setting_work'!$E$122>'Scenario parameters'!K$6,0,IF('Scenario setting_work'!$E$122='Scenario parameters'!K$6,'Scenario setting_work'!$F$122,('Scenario setting_work'!$G$122-'Scenario parameters'!J17)/((2050-'Scenario parameters'!K$6)/5+1)+'Scenario parameters'!J17)) -> 3000
A18: CPI | B18: Carpooling incentives | C18: Change in load factor for private cars | D18: 0 | E18: 0 | F18: =IF('Scenario setting_work'!$E$124>'Scenario parameters'!F$6,0,IF('Scenario setting_work'!$E$124='Scenario parameters'!F$6,'Scenario setting_work'!$F$124,POWER((1+'Scenario setting_work'!$G$124)/(1+'Scenario setting_work'!$F$124),1/((2050-'Scenario setting_work'!$E$124)/5))-1)) -> 0 | G18: =IF('Scenario setting_work'!$E$124>'Scenario parameters'!G$6,0,IF('Scenario setting_work'!$E$124='Scenario parameters'!G$6,'Scenario setting_work'!$F$124,POWER((1+'Scenario setting_work'!$G$124)/(1+'Scenario setting_work'!$F$124),1/((2050-'Scenario setting_work'!$E$124)/5))-1)) -> 0.05 | H18: =IF('Scenario setting_work'!$E$124>'Scenario parameters'!H$6,0,IF('Scenario setting_work'!$E$124='Scenario parameters'!H$6,'Scenario setting_work'!$F$124,POWER((1+'Scenario setting_work'!$G$124)/(1+'Scenario setting_work'!$F$124),1/((2050-'Scenario setting_work'!$E$124)/5))-1)) -> 0.01169789534 | I18: =IF('Scenario setting_work'!$E$124>'Scenario parameters'!I$6,0,IF('Scenario setting_work'!$E$124='Scenario parameters'!I$6,'Scenario setting_work'!$F$124,POWER((1+'Scenario setting_work'!$G$124)/(1+'Scenario setting_work'!$F$124),1/((2050-'Scenario setting_work'!$E$124)/5))-1)) -> 0.01169789534 | J18: =IF('Scenario setting_work'!$E$124>'Scenario parameters'!J$6,0,IF('Scenario setting_work'!$E$124='Scenario parameters'!J$6,'Scenario setting_work'!$F$124,POWER((1+'Scenario setting_work'!$G$124)/(1+'Scenario setting_work'!$F$124),1/((2050-'Scenario setting_work'!$E$124)/5))-1)) -> 0.01169789534 | K18: =IF('Scenario setting_work'!$E$124>'Scenario parameters'!K$6,0,IF('Scenario setting_work'!$E$124='Scenario parameters'!K$6,'Scenario setting_work'!$F$124,POWER((1+'Scenario setting_work'!$G$124)/(1+'Scenario setting_work'!$F$124),1/((2050-'Scenario setting_work'!$E$124)/5))-1)) -> 0.01169789534
A19: Restrictive Measures
A20: PR | B20: Parking restrictions | C20: - Increase the private vehicle access time** - Decrease the growth of private vehicle ownership** | D20: 0 | E20: 0 | F20: =IF('Scenario setting_work'!$E$126>'Scenario parameters'!F$6,0,IF('Scenario setting_work'!$E$126='Scenario parameters'!F$6,'Scenario setting_work'!$F$126,('Scenario setting_work'!$G$126-'Scenario parameters'!E20)/((2050-'Scenario parameters'!F$6)/5+1)+'Scenario parameters'!E20)) -> 0 | G20: =IF('Scenario setting_work'!$E$126>'Scenario parameters'!G$6,0,IF('Scenario setting_work'!$E$126='Scenario parameters'!G$6,'Scenario setting_work'!$F$126,('Scenario setting_work'!$G$126-'Scenario parameters'!F20)/((2050-'Scenario parameters'!G$6)/5+1)+'Scenario parameters'!F20)) -> 0.05 | H20: =IF('Scenario setting_work'!$E$126>'Scenario parameters'!H$6,0,IF('Scenario setting_work'!$E$126='Scenario parameters'!H$6,'Scenario setting_work'!$F$126,('Scenario setting_work'!$G$126-'Scenario parameters'!G20)/((2050-'Scenario parameters'!H$6)/5+1)+'Scenario parameters'!G20)) -> 0.0625 | I20: =IF('Scenario setting_work'!$E$126>'Scenario parameters'!I$6,0,IF('Scenario setting_work'!$E$126='Scenario parameters'!I$6,'Scenario setting_work'!$F$126,('Scenario setting_work'!$G$126-'Scenario parameters'!H20)/((2050-'Scenario parameters'!I$6)/5+1)+'Scenario parameters'!H20)) -> 0.075 | J20: =IF('Scenario setting_work'!$E$126>'Scenario parameters'!J$6,0,IF('Scenario setting_work'!$E$126='Scenario parameters'!J$6,'Scenario setting_work'!$F$126,('Scenario setting_work'!$G$126-'Scenario parameters'!I20)/((2050-'Scenario parameters'!J$6)/5+1)+'Scenario parameters'!I20)) -> 0.0875 | K20: =IF('Scenario setting_work'!$E$126>'Scenario parameters'!K$6,0,IF('Scenario setting_work'!$E$126='Scenario parameters'!K$6,'Scenario setting_work'!$F$126,('Scenario setting_work'!$G$126-'Scenario parameters'!J20)/((2050-'Scenario parameters'!K$6)/5+1)+'Scenario parameters'!J20)) -> 0.1
A21: VAR | B21: Vehicle access restrictions | C21: - Decrease the growth of private vehicle ownership** - Increase the private vehicle access time** - Increase the private vehicle distance detour** | D21: 0 | E21: 0 | F21: =IF('Scenario setting_work'!$E$127>'Scenario parameters'!F$6,0,IF('Scenario setting_work'!$E$127='Scenario parameters'!F$6,'Scenario setting_work'!$F$127,('Scenario setting_work'!$G$127-'Scenario parameters'!E21)/((2050-'Scenario parameters'!F$6)/5+1)+'Scenario parameters'!E21)) -> 0.05 | G21: =IF('Scenario setting_work'!$E$127>'Scenario parameters'!G$6,0,IF('Scenario setting_work'!$E$127='Scenario parameters'!G$6,'Scenario setting_work'!$F$127,('Scenario setting_work'!$G$127-'Scenario parameters'!F21)/((2050-'Scenario parameters'!G$6)/5+1)+'Scenario parameters'!F21)) -> 0.06 | H21: =IF('Scenario setting_work'!$E$127>'Scenario parameters'!H$6,0,IF('Scenario setting_work'!$E$127='Scenario parameters'!H$6,'Scenario setting_work'!$F$127,('Scenario setting_work'!$G$127-'Scenario parameters'!G21)/((2050-'Scenario parameters'!H$6)/5+1)+'Scenario parameters'!G21)) -> 0.07 | I21: =IF('Scenario setting_work'!$E$127>'Scenario parameters'!I$6,0,IF('Scenario setting_work'!$E$127='Scenario parameters'!I$6,'Scenario setting_work'!$F$127,('Scenario setting_work'!$G$127-'Scenario parameters'!H21)/((2050-'Scenario parameters'!I$6)/5+1)+'Scenario parameters'!H21)) -> 0.08 | J21: =IF('Scenario setting_work'!$E$127>'Scenario parameters'!J$6,0,IF('Scenario setting_work'!$E$127='Scenario parameters'!J$6,'Scenario setting_work'!$F$127,('Scenario setting_work'!$G$127-'Scenario parameters'!I21)/((2050-'Scenario parameters'!J$6)/5+1)+'Scenario parameters'!I21)) -> 0.09 | K21: =IF('Scenario setting_work'!$E$127>'Scenario parameters'!K$6,0,IF('Scenario setting_work'!$E$127='Scenario parameters'!K$6,'Scenario setting_work'!$F$127,('Scenario setting_work'!$G$127-'Scenario parameters'!J21)/((2050-'Scenario parameters'!K$6)/5+1)+'Scenario parameters'!J21)) -> 0.1
A22: Pricing Measures
A23: RP | B23: Road pricing | C23: - Increase the cost of car and motorcycle | D23: 0 | E23: 0 | F23: =IF('Scenario setting_work'!$E$130>'Scenario parameters'!F$6,0,IF('Scenario setting_work'!$E$130='Scenario parameters'!F$6,'Scenario setting_work'!$F$130,('Scenario setting_work'!$G$130-'Scenario parameters'!E23)/((2050-'Scenario parameters'!F$6)/5+1)+'Scenario parameters'!E23)) -> 0.1 | G23: =IF('Scenario setting_work'!$E$130>'Scenario parameters'!G$6,0,IF('Scenario setting_work'!$E$130='Scenario parameters'!G$6,'Scenario setting_work'!$F$130,('Scenario setting_work'!$G$130-'Scenario parameters'!F23)/((2050-'Scenario parameters'!G$6)/5+1)+'Scenario parameters'!F23)) -> 0.13 | H23: =IF('Scenario setting_work'!$E$130>'Scenario parameters'!H$6,0,IF('Scenario setting_work'!$E$130='Scenario parameters'!H$6,'Scenario setting_work'!$F$130,('Scenario setting_work'!$G$130-'Scenario parameters'!G23)/((2050-'Scenario parameters'!H$6)/5+1)+'Scenario parameters'!G23)) -> 0.16 | I23: =IF('Scenario setting_work'!$E$130>'Scenario parameters'!I$6,0,IF('Scenario setting_work'!$E$130='Scenario parameters'!I$6,'Scenario setting_work'!$F$130,('Scenario setting_work'!$G$130-'Scenario parameters'!H23)/((2050-'Scenario parameters'!I$6)/5+1)+'Scenario parameters'!H23)) -> 0.19 | J23: =IF('Scenario setting_work'!$E$130>'Scenario parameters'!J$6,0,IF('Scenario setting_work'!$E$130='Scenario parameters'!J$6,'Scenario setting_work'!$F$130,('Scenario setting_work'!$G$130-'Scenario parameters'!I23)/((2050-'Scenario parameters'!J$6)/5+1)+'Scenario parameters'!I23)) -> 0.22 | K23: =IF('Scenario setting_work'!$E$130>'Scenario parameters'!K$6,0,IF('Scenario setting_work'!$E$130='Scenario parameters'!K$6,'Scenario setting_work'!$F$130,('Scenario setting_work'!$G$130-'Scenario parameters'!J23)/((2050-'Scenario parameters'!K$6)/5+1)+'Scenario parameters'!J23)) -> 0.25
A24: PP | B24: Parking pricing | C24: - Increase the parking cost | D24: 0 | E24: 0 | F24: =IF('Scenario setting_work'!$E$131>'Scenario parameters'!F$6,0,IF('Scenario setting_work'!$E$131='Scenario parameters'!F$6,'Scenario setting_work'!$F$131,POWER((1+'Scenario setting_work'!$G$131)/(1+'Scenario setting_work'!$F$131),1/((2050-'Scenario setting_work'!$E$131)/5))-1)) -> 0.18 | G24: =IF('Scenario setting_work'!$E$131>'Scenario parameters'!G$6,0,IF('Scenario setting_work'!$E$131='Scenario parameters'!G$6,'Scenario setting_work'!$F$131,POWER((1+'Scenario setting_work'!$G$131)/(1+'Scenario setting_work'!$F$131),1/((2050-'Scenario setting_work'!$E$131)/5))-1)) -> 0.01159250079 | H24: =IF('Scenario setting_work'!$E$131>'Scenario parameters'!H$6,0,IF('Scenario setting_work'!$E$131='Scenario parameters'!H$6,'Scenario setting_work'!$F$131,POWER((1+'Scenario setting_work'!$G$131)/(1+'Scenario setting_work'!$F$131),1/((2050-'Scenario setting_work'!$E$131)/5))-1)) -> 0.01159250079 | I24: =IF('Scenario setting_work'!$E$131>'Scenario parameters'!I$6,0,IF('Scenario setting_work'!$E$131='Scenario parameters'!I$6,'Scenario setting_work'!$F$131,POWER((1+'Scenario setting_work'!$G$131)/(1+'Scenario setting_work'!$F$131),1/((2050-'Scenario setting_work'!$E$131)/5))-1)) -> 0.01159250079 | J24: =IF('Scenario setting_work'!$E$131>'Scenario parameters'!J$6,0,IF('Scenario setting_work'!$E$131='Scenario parameters'!J$6,'Scenario setting_work'!$F$131,POWER((1+'Scenario setting_work'!$G$131)/(1+'Scenario setting_work'!$F$131),1/((2050-'Scenario setting_work'!$E$131)/5))-1)) -> 0.01159250079 | K24: =IF('Scenario setting_work'!$E$131>'Scenario parameters'!K$6,0,IF('Scenario setting_work'!$E$131='Scenario parameters'!K$6,'Scenario setting_work'!$F$131,POWER((1+'Scenario setting_work'!$G$131)/(1+'Scenario setting_work'!$F$131),1/((2050-'Scenario setting_work'!$E$131)/5))-1)) -> 0.01159250079
A25: FT | B25: Fuel tax | C25: - Increase the car and motorcycle fuel use cost | D25: 0 | E25: 0 | F25: =IF('Scenario setting_work'!$E$132>'Scenario parameters'!F$6,0,IF('Scenario setting_work'!$E$132='Scenario parameters'!F$6,'Scenario setting_work'!$F$132,('Scenario setting_work'!$G$132-'Scenario parameters'!E25)/((2050-'Scenario parameters'!F$6)/5+1)+'Scenario parameters'!E25)) -> 0.15 | G25: =IF('Scenario setting_work'!$E$132>'Scenario parameters'!G$6,0,IF('Scenario setting_work'!$E$132='Scenario parameters'!G$6,'Scenario setting_work'!$F$132,('Scenario setting_work'!$G$132-'Scenario parameters'!F25)/((2050-'Scenario parameters'!G$6)/5+1)+'Scenario parameters'!F25)) -> 0.19 | H25: =IF('Scenario setting_work'!$E$132>'Scenario parameters'!H$6,0,IF('Scenario setting_work'!$E$132='Scenario parameters'!H$6,'Scenario setting_work'!$F$132,('Scenario setting_work'!$G$132-'Scenario parameters'!G25)/((2050-'Scenario parameters'!H$6)/5+1)+'Scenario parameters'!G25)) -> 0.23 | I25: =IF('Scenario setting_work'!$E$132>'Scenario parameters'!I$6,0,IF('Scenario setting_work'!$E$132='Scenario parameters'!I$6,'Scenario setting_work'!$F$132,('Scenario setting_work'!$G$132-'Scenario parameters'!H25)/((2050-'Scenario parameters'!I$6)/5+1)+'Scenario parameters'!H25)) -> 0.27 | J25: =IF('Scenario setting_work'!$E$132>'Scenario parameters'!J$6,0,IF('Scenario setting_work'!$E$132='Scenario parameters'!J$6,'Scenario setting_work'!$F$132,('Scenario setting_work'!$G$132-'Scenario parameters'!I25)/((2050-'Scenario parameters'!J$6)/5+1)+'Scenario parameters'!I25)) -> 0.31 | K25: =IF('Scenario setting_work'!$E$132>'Scenario parameters'!K$6,0,IF('Scenario setting_work'!$E$132='Scenario parameters'!K$6,'Scenario setting_work'!$F$132,('Scenario setting_work'!$G$132-'Scenario parameters'!J25)/((2050-'Scenario parameters'!K$6)/5+1)+'Scenario parameters'!J25)) -> 0.35
A26: VT | B26: Vehicle ownership and purchase tax | C26: - Decreases the car and motorcycle ownership level | D26: 0 | E26: 0 | F26: =IF('Scenario setting_work'!$E$133>'Scenario parameters'!F$6,0,IF('Scenario setting_work'!$E$133='Scenario parameters'!F$6,'Scenario setting_work'!$F$133,('Scenario setting_work'!$G$133-'Scenario parameters'!E26)/((2050-'Scenario parameters'!F$6)/5+1)+'Scenario parameters'!E26)) -> 0.15 | G26: =IF('Scenario setting_work'!$E$133>'Scenario parameters'!G$6,0,IF('Scenario setting_work'!$E$133='Scenario parameters'!G$6,'Scenario setting_work'!$F$133,('Scenario setting_work'!$G$133-'Scenario parameters'!F26)/((2050-'Scenario parameters'!G$6)/5+1)+'Scenario parameters'!F26)) -> 0.18 | H26: =IF('Scenario setting_work'!$E$133>'Scenario parameters'!H$6,0,IF('Scenario setting_work'!$E$133='Scenario parameters'!H$6,'Scenario setting_work'!$F$133,('Scenario setting_work'!$G$133-'Scenario parameters'!G26)/((2050-'Scenario parameters'!H$6)/5+1)+'Scenario parameters'!G26)) -> 0.21 | I26: =IF('Scenario setting_work'!$E$133>'Scenario parameters'!I$6,0,IF('Scenario setting_work'!$E$133='Scenario parameters'!I$6,'Scenario setting_work'!$F$133,('Scenario setting_work'!$G$133-'Scenario parameters'!H26)/((2050-'Scenario parameters'!I$6)/5+1)+'Scenario parameters'!H26)) -> 0.24 | J26: =IF('Scenario setting_work'!$E$133>'Scenario parameters'!J$6,0,IF('Scenario setting_work'!$E$133='Scenario parameters'!J$6,'Scenario setting_work'!$F$133,('Scenario setting_work'!$G$133-'Scenario parameters'!I26)/((2050-'Scenario parameters'!J$6)/5+1)+'Scenario parameters'!I26)) -> 0.27 | K26: =IF('Scenario setting_work'!$E$133>'Scenario parameters'!K$6,0,IF('Scenario setting_work'!$E$133='Scenario parameters'!K$6,'Scenario setting_work'!$F$133,('Scenario setting_work'!$G$133-'Scenario parameters'!J26)/((2050-'Scenario parameters'!K$6)/5+1)+'Scenario parameters'!J26)) -> 0.3
A27: Other Measures
A28: TW | B28: Teleworking promotion | C28: - Increase the share of trips in the three lowest distance categories** | D28: 0.01 | E28: 0.01 | F28: =IF('Scenario setting_work'!$E$137>'Scenario parameters'!F$6,E28,IF('Scenario setting_work'!$E$137='Scenario parameters'!F$6,'Scenario setting_work'!$F$137,('Scenario setting_work'!$G$137-'Scenario parameters'!E28)/((2050-'Scenario parameters'!F$6)/5+1)+'Scenario parameters'!E28)) -> 0.01 | G28: =IF('Scenario setting_work'!$E$137>'Scenario parameters'!G$6,F28,IF('Scenario setting_work'!$E$137='Scenario parameters'!G$6,'Scenario setting_work'!$F$137,('Scenario setting_work'!$G$137-'Scenario parameters'!F28)/((2050-'Scenario parameters'!G$6)/5+1)+'Scenario parameters'!F28)) -> 0.02 | H28: =IF('Scenario setting_work'!$E$137>'Scenario parameters'!H$6,G28,IF('Scenario setting_work'!$E$137='Scenario parameters'!H$6,'Scenario setting_work'!$F$137,('Scenario setting_work'!$G$137-'Scenario parameters'!G28)/((2050-'Scenario parameters'!H$6)/5+1)+'Scenario parameters'!G28)) -> 0.0275 | I28: =IF('Scenario setting_work'!$E$137>'Scenario parameters'!I$6,H28,IF('Scenario setting_work'!$E$137='Scenario parameters'!I$6,'Scenario setting_work'!$F$137,('Scenario setting_work'!$G$137-'Scenario parameters'!H28)/((2050-'Scenario parameters'!I$6)/5+1)+'Scenario parameters'!H28)) -> 0.035 | J28: =IF('Scenario setting_work'!$E$137>'Scenario parameters'!J$6,I28,IF('Scenario setting_work'!$E$137='Scenario parameters'!J$6,'Scenario setting_work'!$F$137,('Scenario setting_work'!$G$137-'Scenario parameters'!I28)/((2050-'Scenario parameters'!J$6)/5+1)+'Scenario parameters'!I28)) -> 0.0425 | K28: =IF('Scenario setting_work'!$E$137>'Scenario parameters'!K$6,J28,IF('Scenario setting_work'!$E$137='Scenario parameters'!K$6,'Scenario setting_work'!$F$137,('Scenario setting_work'!$G$137-'Scenario parameters'!J28)/((2050-'Scenario parameters'!K$6)/5+1)+'Scenario parameters'!J28)) -> 0.05
A29: TOD | B29: Transit Oriented Development and improved urban planning | C29: - Decrease the PT access time** - Decrease the share of trips in the three highest distance categories** | D29: 0 | E29: 0 | F29: =IF('Scenario setting_work'!$E$138>'Scenario parameters'!F$6,0,IF('Scenario setting_work'!$E$138='Scenario parameters'!F$6,'Scenario setting_work'!$F$138,('Scenario setting_work'!$G$138-'Scenario parameters'!E29)/((2050-'Scenario parameters'!F$6)/5+1)+'Scenario parameters'!E29)) -> 0 | G29: =IF('Scenario setting_work'!$E$138>'Scenario parameters'!G$6,0,IF('Scenario setting_work'!$E$138='Scenario parameters'!G$6,'Scenario setting_work'!$F$138,('Scenario setting_work'!$G$138-'Scenario parameters'!F29)/((2050-'Scenario parameters'!G$6)/5+1)+'Scenario parameters'!F29)) -> 0.05 | H29: =IF('Scenario setting_work'!$E$138>'Scenario parameters'!H$6,0,IF('Scenario setting_work'!$E$138='Scenario parameters'!H$6,'Scenario setting_work'!$F$138,('Scenario setting_work'!$G$138-'Scenario parameters'!G29)/((2050-'Scenario parameters'!H$6)/5+1)+'Scenario parameters'!G29)) -> 0.075 | I29: =IF('Scenario setting_work'!$E$138>'Scenario parameters'!I$6,0,IF('Scenario setting_work'!$E$138='Scenario parameters'!I$6,'Scenario setting_work'!$F$138,('Scenario setting_work'!$G$138-'Scenario parameters'!H29)/((2050-'Scenario parameters'!I$6)/5+1)+'Scenario parameters'!H29)) -> 0.1 | J29: =IF('Scenario setting_work'!$E$138>'Scenario parameters'!J$6,0,IF('Scenario setting_work'!$E$138='Scenario parameters'!J$6,'Scenario setting_work'!$F$138,('Scenario setting_work'!$G$138-'Scenario parameters'!I29)/((2050-'Scenario parameters'!J$6)/5+1)+'Scenario parameters'!I29)) -> 0.125 | K29: =IF('Scenario setting_work'!$E$138>'Scenario parameters'!K$6,0,IF('Scenario setting_work'!$E$138='Scenario parameters'!K$6,'Scenario setting_work'!$F$138,('Scenario setting_work'!$G$138-'Scenario parameters'!J29)/((2050-'Scenario parameters'!K$6)/5+1)+'Scenario parameters'!J29)) -> 0.15

Sheet Inputs Socio-eco
B2: Socio-economic Inputs - Values in this sheet can be modified by the user
B6: Estimations of demographic and Geographic characteristics of the Ulaanbaatar Urban area
D8: 2015 | E8: =D8+5 -> 2020 | F8: =E8+5 -> 2025 | G8: 2030 | H8: 2035 | I8: 2040 | J8: 2045 | K8: 2050
B9: Population by zone | C9: 1.Баруун бүс - West zone | D9: 235298.0068 | E9: 262187.1 | F9: 275548.4805 | G9: 284204.324 | H9: 291617.187 | I9: 302001.5089 | J9: 309590.3434 | K9: 316108.3952
C10: 2.Баруун өмнөд бүс - South West zone | D10: 55435.23512 | E10: 79488.4 | F10: 106888.4095 | G10: 133239.1865 | H10: 159664.3658 | I10: 188587.5901 | J10: 248780.4184 | K10: 326880.9473
C11: 3.Баруун хойд бүс - North West zone | D11: 234855.0953 | E11: 274284.9 | F11: 300160.8639 | G11: 321306.4632 | H11: 341381.6682 | I11: 365379.3149 | J11: 392582.6401 | K11: 420134.7038
C12: 4.Зүүн бүс - East zone | D12: 174482.2373 | E12: 212330.2 | F12: 241296.2783 | G12: 266744.8777 | H12: 291537.5349 | I12: 319977.8259 | J12: 358233.0513 | K12: 399467.7765
C13: 5.Төвийн бүс - Central zone | D13: 296702.14 | E13: 313737 | F13: 316326.9358 | G13: 313069.6116 | H13: 308065.9814 | I13: 305701.5345 | J13: 297391.0546 | K13: 288156.5622
C14: 6.Хойд бүс - Northern zone | D14: 166909.2621 | E14: 184927.7 | F14: 193441.6069 | G14: 198621.8593 | H14: 202907.8125 | I14: 209227.3529 | J14: 213267.7627 | K14: 216522.1329
C15: 7.Шинэ бүс - New zone | D15: 21536.59498 | E15: 32565.2 | F15: 46450.34993 | G15: 59948.63196 | H15: 73528.79792 | I15: 88314.31453 | J15: 122855.0557 | K15: 170225.765
C16: TOTAL | D16: =SUM(D9:D15) -> 1185218.572 | E16: =SUM(E9:E15) -> 1359520.5 | F16: 1480112.925 | G16: 1577134.954 | H16: 1668703.348 | I16: 1779189.442 | J16: 1942700.326 | K16: 2137496.283
B18: Population of the subcentre by zone | C18: 1.Баруун бүс - West zone | D18: 12208.67075 | E18: 19823 | F18: 32186.25 | G18: 44549.5 | H18: 56912.75 | I18: 69276 | J18: 81639.25 | K18: 94002.5
C19: 2.Баруун өмнөд бүс - South West zone | D19: 0.9729018679 | E19: 86 | F19: 7602 | G19: 15118 | H19: 22634 | I19: 30150 | J19: 37666 | K19: 45182
C20: 3.Баруун хойд бүс - North West zone | D20: 21475.2658 | E20: 28182 | F20: 36983.25 | G20: 45784.5 | H20: 54585.75 | I20: 63387 | J20: 72188.25 | K20: 80989.5
C21: 4.Зүүн бүс - East zone | D21: 65245.19581 | E21: 65881 | F21: 66523 | G21: 67165 | H21: 67807 | I21: 68449 | J21: 69091 | K21: 69733
C22: 5.Төвийн бүс - Central zone | D22: 152519.6261 | E22: 149523 | F22: 146585.25 | G22: 143647.5 | H22: 140709.75 | I22: 137772 | J22: 137772 | K22: 137772
C23: 6.Хойд бүс - Northern zone | D23: 28742.05941 | E23: 33124 | F23: 38174 | G23: 43224 | H23: 48274 | I23: 53324 | J23: 58374 | K23: 63424
C24: 7.Шинэ бүс - New zone | D24: 22.84652035 | E24: 481 | F24: 10126.75 | G24: 19772.5 | H24: 29418.25 | I24: 39064 | J24: 48709.75 | K24: 58355.5
C25: TOTAL | D25: =SUM(D18:D24) -> 280214.6374 | E25: =SUM(E18:E24) -> 297100 | F25: 338180.5 | G25: 379261 | H25: 420341.5 | I25: 461422 | J25: 505440.25 | K25: 549458.5
B27: Share of the population by age and gender | C27: Women between 0 and 4 | D27: 0.04465112178 | E27: 0.04465112178 | F27: 0.04465112178 | G27: 0.04465112178 | H27: 0.04465112178 | I27: 0.04465112178 | J27: 0.04465112178 | K27: 0.04465112178
C28: Women between 5 and 19 | D28: 0.1141700259 | E28: 0.1141700259 | F28: 0.1141700259 | G28: 0.1141700259 | H28: 0.1141700259 | I28: 0.1141700259 | J28: 0.1141700259 | K28: 0.1141700259
C29: Women between 20 and 59 | D29: 0.322386654 | E29: 0.322386654 | F29: 0.322386654 | G29: 0.322386654 | H29: 0.322386654 | I29: 0.322386654 | J29: 0.322386654 | K29: 0.322386654
C30: Women over 60 | D30: 0.0330252622 | E30: 0.0330252622 | F30: 0.0330252622 | G30: 0.0330252622 | H30: 0.0330252622 | I30: 0.0330252622 | J30: 0.0330252622 | K30: 0.0330252622
C31: Men between 0 and 4 | D31: 0.04615075799 | E31: 0.04615075799 | F31: 0.04615075799 | G31: 0.04615075799 | H31: 0.04615075799 | I31: 0.04615075799 | J31: 0.04615075799 | K31: 0.04615075799
C32: Men between 5 and 19 | D32: 0.1110570616 | E32: 0.1110570616 | F32: 0.1110570616 | G32: 0.1110570616 | H32: 0.1110570616 | I32: 0.1110570616 | J32: 0.1110570616 | K32: 0.1110570616
C33: Men between 20 and 59 | D33: 0.3023927006 | E33: 0.3023927006 | F33: 0.3023927006 | G33: 0.3023927006 | H33: 0.3023927006 | I33: 0.3023927006 | J33: 0.3023927006 | K33: 0.3023927006
C34: Men over 60 | D34: 0.02616641587 | E34: 0.02616641587 | F34: 0.02616641587 | G34: 0.02616641587 | H34: 0.02616641587 | I34: 0.02616641587 | J34: 0.02616641587 | K34: 0.02616641587
B36: GDP in Ulaanbaatar | C36: USD per capita | D36: 6529.373047 | E36: 6256.921863 | F36: 7901.644444 | G36: 9547.322177 | H36: 11583.72572 | I36: 13781.75706 | J36: 16113.1045 | K36: 18594.85392
B38: Area - UPRI (sq. km) | C38: 1.Баруун бүс - West zone | D38: 53.321
C39: 2.Баруун өмнөд бүс - South West zone | D39: 48.581
C40: 3.Баруун хойд бүс - North West zone | D40: 64.48
C41: 4.Зүүн бүс - East zone | D41: 57.321
C42: 5.Төвийн бүс - Central zone | D42: 24.492
C43: 6.Хойд бүс - Northern zone | D43: 71.116
C44: 7.Шинэ бүс - New zone | D44: 97.928
C45: TOTAL | D45: =SUM(D38:D44) -> 417.239
B47: Area subcentre - UPRI (sq. km) | C47: 1.Баруун бүс - West zone | D47: 0.3605429083
C48: 2.Баруун өмнөд бүс - South West zone | D48: 1.743617084
C49: 3.Баруун хойд бүс - North West zone | D49: 3.255018498
C50: 4.Зүүн бүс - East zone | D50: 1.274983215
C51: 5.Төвийн бүс - Central zone | D51: 7.63066158
C52: 6.Хойд бүс - Northern zone | D52: 1.582997773
C53: 7.Шинэ бүс - New zone | D53: 1.890138178
C54: TOTAL | D54: =SUM(D47:D53) -> 17.73795924

Sheet Supply
B2: Transport supply Inputs - Values in this sheet can be modified by the user
B6: Vehicle fleet in the Ulaanbaatar urban area
D7: 2015 | E7: 2020
B8: Cars | C8: Total number of registered vehicles | D8: 315611 | E8: 444086
B9: Motorcycle | C9: Total number of registered vehicles | D9: 5415 | E9: 9812
B11: Transport services in the Ulaanbaatar urban area
D13: 2015 | E13: 2020
C14: Taxi fleet (total) | D14: 600 | E14: 600
C15: Share of PT subscription | D15: 0 | E15: 0
B17: Transport fares in the Ulaanbaatar urban area
D19: 2015 | E19: 2020
B20: Road Transport | C20: Parking cost (USD per h) | E20: 0.3561253561
C21: Gasoline cost (USD per L) | D21: 0.9009009009
C22: Electricity cost (USD per MJ) | D22: 0.01 | E22: 0.01
C23: Taxi: Fixed (USD) | D23: 0.4234234234
C24: Taxi: Distance (USD per km) | D24: 0.3513513514
C25: Taxi: Time (USD per h) | D25: 7.603603604
B26: Public Transport | C26: PT ticket (USD) | D26: 0.2252252252
C27: Monthly PT subscription (USD) | D27: 0 | E27: 0

Sheet Demand
B2: Transport demand Inputs - Values in this sheet can be modified by the user
D5: 2015 | E5: 2020
B6: Average mode speed (km per h) | C6: Walk | D6: 3.6 | E6: 3.6
C7: Bicycle | D7: 11 | E7: 11
C8: Motorcycle | D8: 30 | E8: 30
C9: Car | D9: 20 | E9: 20
C10: Taxi | D10: 22 | E10: 22
C11: PT-Bus | D11: 13 | E11: 12
C12: Ride-sharing | D12: 20 | E12: 20
B13: Access time (min) | C13: Bicycle | D13: 4 | E13: 4
C14: Motorcycle | D14: 8 | E14: 8
C15: Car | D15: 8 | E15: 8
C16: Taxi | D16: 3 | E16: 3
C17: PT-Bus | D17: 10 | E17: 10
C18: Ride-sharing | D18: 4 | E18: 4
B19: Waiting time (min) | C19: Taxi | D19: 10 | E19: 10
C20: PT-Bus | D20: 15 | E20: 15
C21: Ride-sharing | D21: 8 | E21: 8
C25: Occupancy rate | D25: 2015
C26: Motorcycle | D26: 1.1
C27: Car | D27: 1.8
C28: Taxi | D28: 1.85
C29: Bus | D29: 12
C30: Ridesharing | D30: 2.5

Sheet Model-Calibration
B2: Calibration - Values in this sheet can be modified by the user
B4: Modal Costs
B6: PT Fare, Gasoline and Taxi Models
B14: Elasticities to GDP per capita increase
C15: Elasticity | D15: PT_FAREcoeff
B16: Parking cost | C16: 1
B17: Gas cost | C17: 1
B18: Electricity cost | C18: 1
B19: Taxi - fixed cost | C19: 1
B20: Taxi - distance cost | C20: 1
B21: Taxi - time cost | C21: 1
B22: PT ticket fare | C22: 1 | D22: -1
B26: Discount share from PT subscription fare: | C26: 0.15
B28: Vehicle cost per pkm formula | C28: Motorcycle | D28: Car
B29: A | C29: 0.075 | D29: 0.12
B30: B | C30: 1.1 | D30: 1.1
B31: GDPthreshold | C31: 30000 | D31: 30000
B32: Power | C32: 0.33 | D32: 0.33
B36: taxi cost | C36: Value
B37: PercIdle | C37: 0.1
B39: Bika & Scooter sharing cost | C39: Value
B40: A | C40: 0.5
B41: Min | C41: 0.25
B42: B | C42: 1.33
B43: C | C43: 75
B44: PercTax | C44: 0.15
C46: Share of Taxi cost per km | D46: Share of car cost per km | E46: Share of bus cost per km
B47: Ridesharing | C47: 1
B48: Carsharing | D48: 1.2
B49: On-Demand Taxibus | C49: 0.2 | E49: 0.8
B52: Vehicle ownership models
B53: Car
B54: Variable | C54: threshold | D54: k | E54: a | F54: GDP0 | G54: PRcoeff | H54: CSIcoeff | I54: VARcoeff | J54: VTcoeff
B55: Car | C55: 700 | D55: 8e-05 | E55: 2.049225815 | F55: 2000 | G55: -0.1 | H55: =-1/10 -> -0.1 | I55: -0.05 | J55: -0.1
B56: Motorcycle | C56: 120 | D56: 1.366819131e-05 | E56: 3.82263235 | F56: 0 | G56: -0.1 | I56: -0.05 | J56: -0.1
B58: Trip rates and distances
B60: Trip rate model
B64: Variable | C64: Category | D64: Value
B65: Constant | D65: 0.4
B66: GMPcap | D66: 0.003
B67: Gender | C67: Female | D67: -0.05
B68: Age_group | C68: 0-4 | D68: -0.3103418
B69: Age_group | C69: 5-19 | D69: -0.13614
B70: Age_group | C70: 60+ | D70: -0.240287
B72: Avrage number of travelled days equivalent per year
B73: 310
B76: Average trip distance per distance category
B80: Distance category | C80: Average (km)
B81: < 1km | C81: 0.75
B82: 1 - 2.5km | C82: 1.9
B83: 2.5 - 5km | C83: 4
B84: 5 - 10km | C84: 8
B85: 10 - 20km | C85: 16
B86: > 20km | C86: 25
B91: Utility of the distance category
B93: Distance bin | C93: Asc | D93: Density core | E93: Land-use mixture | F93: Tsc_2015 | G93: Tsc_2020 | H93: Tsc_2025 | I93: Tsc_2030 | J93: Tsc_2035 | K93: Tsc_2040 | L93: Tsc_2045 | M93: Tsc_2050 | N93: TW | O93: TOD
B94: 0 | C94: -30 | D94: 0.0016 | E94: 2.3 | F94: 0 | G94: -1 | H94: -2 | I94: -3 | J94: -4 | K94: -5 | L94: -6 | M94: -7 | N94: 20
B95: 1 | C95: -17 | D95: 0.0015 | E95: 1.5 | F95: 0 | G95: -1 | H95: -2 | I95: -3 | J95: -4 | K95: -5 | L95: -6 | M95: -7 | N95: 15
B96: 2 | C96: -10 | D96: 0.0013 | E96: -0.66 | F96: 0 | G96: -1 | H96: -1.5 | I96: -2 | J96: -2.5 | K96: -3 | L96: -3.5 | M96: -4 | N96: 13
B97: 3 | C97: 2 | D97: 6.35e-05 | E97: -1.2 | F97: 0 | G97: 5 | H97: 10 | I97: 15 | J97: 18 | K97: 22 | L97: 25 | M97: 28 | O97: -6
B98: 4 | C98: 15 | D98: -0.003332984 | E98: -1.15 | F98: 0 | G98: 10 | H98: 30 | I98: 50 | J98: 60 | K98: 75 | L98: 87 | M98: 100 | O98: -7
B99: 5 | C99: 10 | D99: -0.002767833 | E99: -2.5 | F99: -8 | G99: 0 | H99: 10 | I99: 20 | J99: 30 | K99: 40 | L99: 50 | M99: 60 | O99: -8
B101: 𝜇 | C101: 0.089453897
B105: Mode availability
B107: Mode | C107: Mode ID | D107: Overall | L107: Distance bin
D108: 2015 | E108: 2020 | F108: 2025 | G108: 2030 | H108: 2035 | I108: 2040 | J108: 2045 | K108: 2050 | L108: < 1km | M108: 1 - 2.5 km | N108: 2.5 km - 5 km | O108: 5 km - 10 km | P108: 10 km - 20 km | Q108: > 20 km
B109: Walk | C109: M_1 | D109: 1 | E109: 1 | F109: 1 | G109: 1 | H109: 1 | I109: 1 | J109: 1 | K109: 1 | L109: 1 | M109: 1 | N109: 1 | O109: 0 | P109: 0 | Q109: 0
B110: Bicycle | C110: M_2 | D110: 1 | E110: 1 | F110: 1 | G110: 1 | H110: 1 | I110: 1 | J110: 1 | K110: 1 | L110: 1 | M110: 1 | N110: 1 | O110: 1 | P110: 0 | Q110: 0
B111: Motorcycle | C111: M_3 | D111: 1 | E111: 1 | F111: 1 | G111: 1 | H111: 1 | I111: 1 | J111: 1 | K111: 1 | L111: 1 | M111: 1 | N111: 1 | O111: 1 | P111: 1 | Q111: 1
B112: Car | C112: M_4 | D112: 1 | E112: 1 | F112: 1 | G112: 1 | H112: 1 | I112: 1 | J112: 1 | K112: 1 | L112: 1 | M112: 1 | N112: 1 | O112: 1 | P112: 1 | Q112: 1
B113: Taxi | C113: M_5 | D113: 1 | E113: 1 | F113: 1 | G113: 1 | H113: 1 | I113: 1 | J113: 1 | K113: 1 | L113: 1 | M113: 1 | N113: 1 | O113: 1 | P113: 1 | Q113: 1
B114: PT-Bus | C114: M_6 | D114: 1 | E114: 1 | F114: 1 | G114: 1 | H114: 1 | I114: 1 | J114: 1 | K114: 1 | L114: 1 | M114: 1 | N114: 1 | O114: 1 | P114: 1 | Q114: 1
B115: PT-BRT | C115: M_7 | D115: =IF('City evolution'!D30>0,1,0) -> 0 | E115: =IF('City evolution'!E30>0,1,0) -> 0 | F115: =IF('City evolution'!F30>0,1,0) -> 0 | G115: =IF('City evolution'!G30>0,1,0) -> 0 | H115: =IF('City evolution'!H30>0,1,0) -> 0 | I115: =IF('City evolution'!I30>0,1,0) -> 0 | J115: =IF('City evolution'!J30>0,1,0) -> 0 | K115: =IF('City evolution'!K30>0,1,0) -> 0 | L115: 0 | M115: 1 | N115: 1 | O115: 1 | P115: 1 | Q115: 1
B116: PT-LRT | C116: M_8 | D116: =IF('City evolution'!D29>0,1,0) -> 0 | E116: =IF('City evolution'!E29>0,1,0) -> 0 | F116: =IF('City evolution'!F29>0,1,0) -> 1 | G116: =IF('City evolution'!G29>0,1,0) -> 1 | H116: =IF('City evolution'!H29>0,1,0) -> 1 | I116: =IF('City evolution'!I29>0,1,0) -> 1 | J116: =IF('City evolution'!J29>0,1,0) -> 1 | K116: =IF('City evolution'!K29>0,1,0) -> 1 | L116: 0 | M116: 1 | N116: 1 | O116: 1 | P116: 1 | Q116: 1
B117: PT-CableCar | C117: M_9 | D117: =IF('City evolution'!D31>0,1,0) -> 0 | E117: =IF('City evolution'!E31>0,1,0) -> 0 | F117: =IF('City evolution'!F31>0,1,0) -> 0 | G117: =IF('City evolution'!G31>0,1,0) -> 1 | H117: =IF('City evolution'!H31>0,1,0) -> 1 | I117: =IF('City evolution'!I31>0,1,0) -> 1 | J117: =IF('City evolution'!J31>0,1,0) -> 1 | K117: =IF('City evolution'!K31>0,1,0) -> 1 | L117: 0 | M117: 1 | N117: 1 | O117: 1 | P117: 1 | Q117: 0
B118: PT-Rail | C118: M_10 | D118: =IF('City evolution'!D32>0,1,0) -> 0 | E118: =IF('City evolution'!E32>0,1,0) -> 0 | F118: =IF('City evolution'!F32>0,1,0) -> 0 | G118: =IF('City evolution'!G32>0,1,0) -> 0 | H118: =IF('City evolution'!H32>0,1,0) -> 1 | I118: =IF('City evolution'!I32>0,1,0) -> 1 | J118: =IF('City evolution'!J32>0,1,0) -> 1 | K118: =IF('City evolution'!K32>0,1,0) -> 1 | L118: 0 | M118: 1 | N118: 1 | O118: 1 | P118: 1 | Q118: 1
B119: Bike and Scooter sharing | C119: M_11 | D119: =IF('City evolution'!D37>0,1,0) -> 0 | E119: =IF('City evolution'!E37>0,1,0) -> 0 | F119: =IF('City evolution'!F37>0,1,0) -> 1 | G119: =IF('City evolution'!G37>0,1,0) -> 1 | H119: =IF('City evolution'!H37>0,1,0) -> 1 | I119: =IF('City evolution'!I37>0,1,0) -> 1 | J119: =IF('City evolution'!J37>0,1,0) -> 1 | K119: =IF('City evolution'!K37>0,1,0) -> 1 | L119: 1 | M119: 1 | N119: 1 | O119: 1 | P119: 0 | Q119: 0
B120: Ride-sharing | C120: M_12 | D120: =IF('City evolution'!D38>0,1,0) -> 1 | E120: =IF('City evolution'!E38>0,1,0) -> 1 | F120: =IF('City evolution'!F38>0,1,0) -> 1 | G120: =IF('City evolution'!G38>0,1,0) -> 1 | H120: =IF('City evolution'!H38>0,1,0) -> 1 | I120: =IF('City evolution'!I38>0,1,0) -> 1 | J120: =IF('City evolution'!J38>0,1,0) -> 1 | K120: =IF('City evolution'!K38>0,1,0) -> 1 | L120: 1 | M120: 1 | N120: 1 | O120: 1 | P120: 1 | Q120: 1
B121: Car-Sharing | C121: M_13 | D121: =IF('City evolution'!D39>0,1,0) -> 0 | E121: =IF('City evolution'!E39>0,1,0) -> 0 | F121: =IF('City evolution'!F39>0,1,0) -> 0 | G121: =IF('City evolution'!G39>0,1,0) -> 0 | H121: =IF('City evolution'!H39>0,1,0) -> 0 | I121: =IF('City evolution'!I39>0,1,0) -> 0 | J121: =IF('City evolution'!J39>0,1,0) -> 0 | K121: =IF('City evolution'!K39>0,1,0) -> 0 | L121: 0 | M121: 1 | N121: 1 | O121: 1 | P121: 1 | Q121: 1
B122: On-demand Taxibus | C122: M_14 | D122: =IF('City evolution'!D40>0,1,0) -> 0 | E122: =IF('City evolution'!E40>0,1,0) -> 0 | F122: =IF('City evolution'!F40>0,1,0) -> 0 | G122: =IF('City evolution'!G40>0,1,0) -> 0 | H122: =IF('City evolution'!H40>0,1,0) -> 0 | I122: =IF('City evolution'!I40>0,1,0) -> 0 | J122: =IF('City evolution'!J40>0,1,0) -> 0 | K122: =IF('City evolution'!K40>0,1,0) -> 0 | L122: 1 | M122: 1 | N122: 1 | O122: 1 | P122: 1 | Q122: 1
B125: Distance detour
B127: Mode | C127: Mode ID / Measure | D127: Distance bin
D128: < 1km | E128: 1 - 2.5 km | F128: 2.5 km - 5 km | G128: 5 km - 10 km | H128: 10 - 20 km | I128: 20 km
B129: Walk | C129: M_1 | D129: 1.2 | E129: 1.1 | F129: 1.05 | G129: 1.02 | H129: 1.02 | I129: 1.02
B130: Bicycle | C130: M_2 | D130: 1.22 | E130: 1.15 | F130: 1.1 | G130: 1.05 | H130: 1.02 | I130: 1.02
B131: Motorcycle | C131: M_3 | D131: 1.6 | E131: 1.5 | F131: 1.25 | G131: 1.2 | H131: 1.1 | I131: 1.05
B132: Car | C132: M_4 | D132: 1.75 | E132: 1.5 | F132: 1.25 | G132: 1.2 | H132: 1.1 | I132: 1.05
B133: Taxi | C133: M_5 | D133: 1.75 | E133: 1.5 | F133: 1.25 | G133: 1.2 | H133: 1.1 | I133: 1.05
B134: PT-Bus | C134: M_6 | D134: 1.4 | E134: 1.33 | F134: 1.25 | G134: 1.2 | H134: 1.15 | I134: 1.125
B135: PT-BRT | C135: M_7 | D135: 1.35 | E135: 1.25 | F135: 1.2 | G135: 1.15 | H135: 1.125 | I135: 1.1
B136: PT-LRT | C136: M_8 | D136: 1.35 | E136: 1.25 | F136: 1.2 | G136: 1.15 | H136: 1.125 | I136: 1.1
B137: PT-CableCar | C137: M_9 | D137: 1.35 | E137: 1.25 | F137: 1.2 | G137: 1.15 | H137: 1.125 | I137: 1.1
B138: PT-Rail | C138: M_10 | D138: 1.4 | E138: 1.3 | F138: 1.25 | G138: 1.2 | H138: 1.15 | I138: 1.1
B139: Bike and Scooter sharing | C139: M_11 | D139: 1.403 | E139: 1.3225 | F139: 1.265 | G139: 1.1025 | H139: 1.071 | I139: 1.071
B140: Ride-sharing | C140: M_12 | D140: 2.1 | E140: 1.8 | F140: 1.5 | G140: 1.44 | H140: 1.32 | I140: 1.26
B141: Car-Sharing | C141: M_13 | D141: 1.8375 | E141: 1.575 | F141: 1.3125 | G141: 1.26 | H141: 1.155 | I141: 1.1025
B142: On-demand Taxibus | C142: M_14 | D142: 2.3625 | E142: 2.025 | F142: 1.6875 | G142: 1.62 | H142: 1.485 | I142: 1.4175
C143: VAR | D143: 1 | E143: 0.8 | F143: 0.6 | G143: 0.4 | H143: 0.2 | I143: 0.1
B146: Modal attributes and Mode choice
C151: - Private motorised
C154: - PT
C157: - Shared modes
C158: o
C159: Modal attributes formula coefficients | Y159: Speed taxibus = taxi
Y160: Speed Ridesharing & Carsharing = car
C161: Mode | D161: Mode ID | E161: Modal reliability & connectivity | J161: Waiting time | M161: Access time | T161: Speed | Z161: Parking cost
E162: Max | F162: REFspeed | G162: REFnetwork_density | H162: REFfleet | I162: Power | J162: Minimum value | K162: FLEETcoeff | L162: PT_SERcoeff | M162: Minimum (min) | N162: I_WALKcoeff | O162: FLEETcoeff | P162: VARcoeff | Q162: PRcoeff | R162: PT_MAAScoeff | S162: TODcoeff | T162: Maximum (km per h) | U162: I_WALKcoeff | V162: I_BIKEcoeff | W162: I_ROADcoeff | X162: PT_SERcoeff | Y162: PT_PRIOcoeff | Z162: Coeff
C163: Walk | D163: M_1 | E163: 0.99 | T163: 7 | U163: 0.025
C164: Bicycle | D164: M_2 | E164: 0.9 | M164: 1 | N164: -0.05 | T164: 15 | V164: 0.025
C165: Motorcycle | D165: M_3 | E165: 0.92 | F165: 45 | I165: 0.5 | M165: 3 | N165: 0.01 | P165: 0.4 | Q165: 0.8 | T165: 40 | W165: 0.05 | Z165: =1/4 -> 0.25
C166: Car | D166: M_4 | E166: 0.94 | F166: 35 | I166: 0.5 | M166: 3 | N166: 0.01 | P166: 0.8 | Q166: 1.2 | T166: 35 | W166: 0.05 | Z166: 1
C167: Taxi | D167: M_5 | E167: 1 | H167: 1.5 | I167: 0.5 | J167: 5 | K167: -0.5 | M167: 1 | N167: 0.05 | T167: 35 | W167: 0.05
C168: PT-Bus | D168: M_6 | E168: 0.9 | G168: 12 | I168: 0.5 | J168: 7.5 | L168: -1 | M168: 5 | R168: -0.5 | S168: -1.2 | T168: 25 | W168: 0.05 | X168: 1 | Y168: 0.3
C169: PT-BRT | D169: M_7 | E169: 0.9 | G169: 0.25 | I169: 0.5 | J169: 4 | K169: 0.025 | L169: -1 | M169: 8 | R169: -0.5 | S169: -1.2 | T169: 40 | X169: 1 | Y169: 0.1
C170: PT-LRT | D170: M_8 | E170: 0.9 | G170: 0.25 | I170: 0.5 | J170: 5 | K170: 0.025 | L170: -1 | M170: 8 | R170: -0.5 | S170: -1.2 | T170: 40 | X170: 1 | Y170: 0.1
C171: PT-CableCar | D171: M_9 | E171: 0.9 | G171: 0.1 | I171: 0.5 | J171: 6 | K171: 0.025 | L171: -1 | M171: 10 | R171: -0.5 | S171: -1.2 | T171: 25 | X171: 1
C172: PT-Rail | D172: M_10 | E172: 0.9 | G172: 0.28 | I172: 0.5 | J172: 9 | K172: 0.015 | L172: -0.6 | M172: 10 | R172: -0.5 | S172: -1.2 | T172: 70
C173: Bike and Scooter sharing | D173: M_11 | E173: 0.85 | H173: 2 | I173: 0.5 | J173: 2.5 | K173: -0.075 | M173: 3 | O173: -0.2 | T173: 15 | V173: 17.5
C174: Ride-sharing | D174: M_12 | E174: 0.9 | H174: 1.5 | I174: 0.5 | J174: 5 | K174: -0.075 | M174: 2 | P174: 0.8
C175: Car-Sharing | D175: M_13 | E175: 0.9 | H175: 0.5 | I175: 0.5 | J175: 5 | K175: -0.075 | M175: 8 | O175: -0.075
C176: On-demand Taxibus | D176: M_14 | E176: 0.9 | H176: 0.5 | I176: 0.5 | J176: 7.5 | K176: -0.05 | M176: 3 | O176: -0.05
B181: Starting characteristics value | D181: Waiting time | E181: Access time | F181: Speed
C182: PT-BRT | D182: 8 | E182: 10 | F182: 30
C183: PT-LRT | D183: 8 | E183: 10 | F183: 30
C184: PT-CableCar | D184: 8 | E184: 15 | F184: 20
C185: PT-Rail | D185: 13 | E185: 20 | F185: 40
C186: Bike and Scooter sharing | D186: 5 | E186: 6
C187: Car-Sharing | D187: 7 | E187: 10
C188: On-demand Taxibus | D188: 9 | E188: 5
B193: Base Occupancy rate:
B194: LRT | C194: Rail | D194: Carsharing | E194: Taxibus | F194: CableCar
B195: 80 | C195: 300 | D195: 1.78 | E195: 6 | F195: 6
B197: DerivedFleet Emissions characteristics
C198: Emissions & consumption | D198: Occupancy rate | E198: Emissions & consumption | F198: Occupancy rate | G198: Emissions & consumption
C199: Car | D199: Car | E199: Bus | F199: Bus | G199: Rail
B200: Taxi | C200: 0.9 | D200: 1
B201: BRT | E201: 0.8 | F201: 1.3
B202: LRT | G202: =80/300 -> 0.2666666667
B203: CableCar | G203: =F195/C195 -> 0.02
B204: Ride sharing | C204: 1 | D204: 1.1
B205: CarSharing | C205: 0.8
B206: On-Deman Taxibus | E206: =E195/Fleet!C22 -> 0.5
B211: Mode choice model
B213: Mode | C213: Mode ID | D213: ASC | E213: Reliability & connectivity | F213: Access time | G213: Waiting time | H213: Cost | I213: Parking cost | J213: Fleet & Service provision | K213: Time | L213: MAAScoeff | M213: dummy <1km | N213: dummy 1-2.5km | O213: dummy 2.5-5km | P213: dummy 5-10km | Q213: dummy 10-20km | R213: dummy >20km | S213: dummy woman | T213: Covid | U213: dummy 0 to 4 | V213: dummy 5 to 19 | W213: dummy 20 to 59 | X213: dummy 60+
B214: Walk | C214: M_1 | D214: -3.5 | E214: 0.2 | J214: 0.0006 | K214: -0.4 | M214: 2.5 | N214: 0 | O214: -1 | T214: 0.7
B215: Bicycle | C215: M_2 | D215: -6.1 | E215: 0.2 | F215: -0.05 | J215: 0.001 | K215: -0.4 | M215: 1 | N215: 0.25 | O215: 0.25 | P215: -0.75 | S215: -0.1 | T215: 1
B216: Motorcycle | C216: M_3 | D216: -6 | E216: 0.2 | F216: -0.05 | H216: -0.2 | I216: -0.3 | J216: 0.01 | K216: -0.04 | S216: -0.3
B217: Car | C217: M_4 | D217: -4.4 | E217: 0.2 | F217: -0.05 | H217: -0.2 | I217: -0.3 | J217: 0.009 | K217: -0.04 | N217: -0.25 | O217: 0 | P217: 0.3 | Q217: 0.7 | R217: 1.4 | S217: -0.065
B218: Taxi | C218: M_5 | D218: -6 | E218: 0.2 | F218: -0.05 | G218: -0.06 | H218: -0.2 | J218: 0.01 | K218: -0.04 | N218: -0.2 | O218: 0.1 | P218: 0.4 | Q218: 1 | R218: 2
B219: PT-Bus | C219: M_6 | D219: -5.13 | E219: 0.2 | F219: -0.05 | G219: -0.06 | H219: -0.2 | J219: 0.001 | K219: -0.04 | L219: 1.5 | S219: 0.1 | T219: -0.5
B220: PT-BRT | C220: M_7 | D220: -3.6 | E220: 0.2 | F220: -0.05 | G220: -0.06 | H220: -0.2 | J220: 0.012 | K220: -0.04 | L220: 1.5
B221: PT-LRT | C221: M_8 | D221: -3.6 | E221: 0.2 | F221: -0.05 | G221: -0.06 | H221: -0.2 | J221: 0.012 | K221: -0.04 | L221: 1.5
B222: PT-CableCar | C222: M_9 | D222: -5.1 | E222: 0.2 | F222: -0.05 | G222: -0.06 | H222: -0.2 | J222: 0.012 | K222: -0.04 | L222: 1.5
B223: PT-Rail | C223: M_10 | D223: -3.2 | E223: 0.2 | F223: -0.05 | G223: -0.06 | H223: -0.2 | J223: 0.01 | K223: -0.04 | L223: 1.5
B224: Bike and Scooter sharing | C224: M_11 | D224: -6 | E224: 0.2 | F224: -0.05 | G224: -0.06 | H224: -0.2 | J224: 0.01 | K224: -0.04 | L224: 5 | S224: -0.1
B225: Ride-sharing | C225: M_12 | D225: -4.7 | E225: 0.2 | F225: -0.05 | G225: -0.06 | H225: -0.2 | J225: 0.1 | K225: -0.04 | L225: 5
B226: Car-Sharing | C226: M_13 | D226: -4.5 | E226: 0.2 | F226: -0.05 | G226: -0.06 | H226: -0.2 | I226: -0.3 | J226: 0.01 | K226: -0.04
B227: On-demand Taxibus | C227: M_14 | D227: -4 | E227: 0.2 | F227: -0.05 | G227: -0.06 | H227: -0.2 | J227: 0.05 | K227: -0.04 | L227: 5 | S227: 0.1
B230: Decrease of bus ASC when another PT mode becomes available:
C231: ASC bus decrease
B232: PT-BRT | C232: -0.1
B233: PT-LRT | C233: -0.1
B234: PT-CableCar | C234: -0.05
B235: PT-Rail | C235: -0.15
C240: Share of yearly trips remaining
B241: Covid Impact: | C241: 0.65

Sheet City evolution
B2: City evolution - Values are automatically updated based on Inputs and calibration
D5: 2015 | E5: =D5+5 -> 2020 | F5: =E5+5 -> 2025 | G5: 2030 | H5: 2035 | I5: 2040 | J5: 2045 | K5: 2050
A6: Socio-economic features | B6: Economic | C6: GDP per capita (USD) | D6: ='Inputs Socio-eco'!D36 -> 6529.373047 | E6: ='Inputs Socio-eco'!E36 -> 6256.921863 | F6: ='Inputs Socio-eco'!F36 -> 7901.644444 | G6: ='Inputs Socio-eco'!G36 -> 9547.322177 | H6: ='Inputs Socio-eco'!H36 -> 11583.72572 | I6: ='Inputs Socio-eco'!I36 -> 13781.75706 | J6: ='Inputs Socio-eco'!J36 -> 16113.1045 | K6: ='Inputs Socio-eco'!K36 -> 18594.85392
B7: Geographic | C7: Urban area (km²) | D7: ='Inputs Socio-eco'!$D$45 -> 417.239 | E7: ='Inputs Socio-eco'!$D$45 -> 417.239 | F7: ='Inputs Socio-eco'!$D$45 -> 417.239 | G7: ='Inputs Socio-eco'!$D$45 -> 417.239 | H7: ='Inputs Socio-eco'!$D$45 -> 417.239 | I7: ='Inputs Socio-eco'!$D$45 -> 417.239 | J7: ='Inputs Socio-eco'!$D$45 -> 417.239 | K7: ='Inputs Socio-eco'!$D$45 -> 417.239
C8: Subcentre area (km²) | D8: ='Inputs Socio-eco'!$D$54 -> 17.73795924 | E8: ='Inputs Socio-eco'!$D$54 -> 17.73795924 | F8: ='Inputs Socio-eco'!$D$54 -> 17.73795924 | G8: ='Inputs Socio-eco'!$D$54 -> 17.73795924 | H8: ='Inputs Socio-eco'!$D$54 -> 17.73795924 | I8: ='Inputs Socio-eco'!$D$54 -> 17.73795924 | J8: ='Inputs Socio-eco'!$D$54 -> 17.73795924 | K8: ='Inputs Socio-eco'!$D$54 -> 17.73795924
B9: Population | C9: Population | D9: ='Inputs Socio-eco'!D16 -> 1185218.572 | E9: ='Inputs Socio-eco'!E16 -> 1359520.5 | F9: ='Inputs Socio-eco'!F16 -> 1480112.925 | G9: ='Inputs Socio-eco'!G16 -> 1577134.954 | H9: ='Inputs Socio-eco'!H16 -> 1668703.348 | I9: ='Inputs Socio-eco'!I16 -> 1779189.442 | J9: ='Inputs Socio-eco'!J16 -> 1942700.326 | K9: ='Inputs Socio-eco'!K16 -> 2137496.283
C10: Population in subcentres | D10: ='Inputs Socio-eco'!D25 -> 280214.6374 | E10: ='Inputs Socio-eco'!E25 -> 297100 | F10: ='Inputs Socio-eco'!F25 -> 338180.5 | G10: ='Inputs Socio-eco'!G25 -> 379261 | H10: ='Inputs Socio-eco'!H25 -> 420341.5 | I10: ='Inputs Socio-eco'!I25 -> 461422 | J10: ='Inputs Socio-eco'!J25 -> 505440.25 | K10: ='Inputs Socio-eco'!K25 -> 549458.5
C11: =CONCATENATE(" Share of ",'Inputs Socio-eco'!C27," (%)") -> Share of Women between 0 and 4 (%) | D11: ='Inputs Socio-eco'!D27 -> 0.04465112178 | E11: ='Inputs Socio-eco'!E27 -> 0.04465112178 | F11: ='Inputs Socio-eco'!F27 -> 0.04465112178 | G11: ='Inputs Socio-eco'!G27 -> 0.04465112178 | H11: ='Inputs Socio-eco'!H27 -> 0.04465112178 | I11: ='Inputs Socio-eco'!I27 -> 0.04465112178 | J11: ='Inputs Socio-eco'!J27 -> 0.04465112178 | K11: ='Inputs Socio-eco'!K27 -> 0.04465112178
C12: =CONCATENATE(" Share of ",'Inputs Socio-eco'!C28," (%)") -> Share of Women between 5 and 19 (%) | D12: ='Inputs Socio-eco'!D28 -> 0.1141700259 | E12: ='Inputs Socio-eco'!E28 -> 0.1141700259 | F12: ='Inputs Socio-eco'!F28 -> 0.1141700259 | G12: ='Inputs Socio-eco'!G28 -> 0.1141700259 | H12: ='Inputs Socio-eco'!H28 -> 0.1141700259 | I12: ='Inputs Socio-eco'!I28 -> 0.1141700259 | J12: ='Inputs Socio-eco'!J28 -> 0.1141700259 | K12: ='Inputs Socio-eco'!K28 -> 0.1141700259
C13: =CONCATENATE(" Share of ",'Inputs Socio-eco'!C29," (%)") -> Share of Women between 20 and 59 (%) | D13: ='Inputs Socio-eco'!D29 -> 0.322386654 | E13: ='Inputs Socio-eco'!E29 -> 0.322386654 | F13: ='Inputs Socio-eco'!F29 -> 0.322386654 | G13: ='Inputs Socio-eco'!G29 -> 0.322386654 | H13: ='Inputs Socio-eco'!H29 -> 0.322386654 | I13: ='Inputs Socio-eco'!I29 -> 0.322386654 | J13: ='Inputs Socio-eco'!J29 -> 0.322386654 | K13: ='Inputs Socio-eco'!K29 -> 0.322386654
C14: =CONCATENATE(" Share of ",'Inputs Socio-eco'!C30," (%)") -> Share of Women over 60 (%) | D14: ='Inputs Socio-eco'!D30 -> 0.0330252622 | E14: ='Inputs Socio-eco'!E30 -> 0.0330252622 | F14: ='Inputs Socio-eco'!F30 -> 0.0330252622 | G14: ='Inputs Socio-eco'!G30 -> 0.0330252622 | H14: ='Inputs Socio-eco'!H30 -> 0.0330252622 | I14: ='Inputs Socio-eco'!I30 -> 0.0330252622 | J14: ='Inputs Socio-eco'!J30 -> 0.0330252622 | K14: ='Inputs Socio-eco'!K30 -> 0.0330252622
C15: =CONCATENATE(" Share of ",'Inputs Socio-eco'!C31," (%)") -> Share of Men between 0 and 4 (%) | D15: ='Inputs Socio-eco'!D31 -> 0.04615075799 | E15: ='Inputs Socio-eco'!E31 -> 0.04615075799 | F15: ='Inputs Socio-eco'!F31 -> 0.04615075799 | G15: ='Inputs Socio-eco'!G31 -> 0.04615075799 | H15: ='Inputs Socio-eco'!H31 -> 0.04615075799 | I15: ='Inputs Socio-eco'!I31 -> 0.04615075799 | J15: ='Inputs Socio-eco'!J31 -> 0.04615075799 | K15: ='Inputs Socio-eco'!K31 -> 0.04615075799
C16: =CONCATENATE(" Share of ",'Inputs Socio-eco'!C32," (%)") -> Share of Men between 5 and 19 (%) | D16: ='Inputs Socio-eco'!D32 -> 0.1110570616 | E16: ='Inputs Socio-eco'!E32 -> 0.1110570616 | F16: ='Inputs Socio-eco'!F32 -> 0.1110570616 | G16: ='Inputs Socio-eco'!G32 -> 0.1110570616 | H16: ='Inputs Socio-eco'!H32 -> 0.1110570616 | I16: ='Inputs Socio-eco'!I32 -> 0.1110570616 | J16: ='Inputs Socio-eco'!J32 -> 0.1110570616 | K16: ='Inputs Socio-eco'!K32 -> 0.1110570616
C17: =CONCATENATE(" Share of ",'Inputs Socio-eco'!C33," (%)") -> Share of Men between 20 and 59 (%) | D17: ='Inputs Socio-eco'!D33 -> 0.3023927006 | E17: ='Inputs Socio-eco'!E33 -> 0.3023927006 | F17: ='Inputs Socio-eco'!F33 -> 0.3023927006 | G17: ='Inputs Socio-eco'!G33 -> 0.3023927006 | H17: ='Inputs Socio-eco'!H33 -> 0.3023927006 | I17: ='Inputs Socio-eco'!I33 -> 0.3023927006 | J17: ='Inputs Socio-eco'!J33 -> 0.3023927006 | K17: ='Inputs Socio-eco'!K33 -> 0.3023927006
C18: =CONCATENATE(" Share of ",'Inputs Socio-eco'!C34," (%)") -> Share of Men over 60 (%) | D18: ='Inputs Socio-eco'!D34 -> 0.02616641587 | E18: ='Inputs Socio-eco'!E34 -> 0.02616641587 | F18: ='Inputs Socio-eco'!F34 -> 0.02616641587 | G18: ='Inputs Socio-eco'!G34 -> 0.02616641587 | H18: ='Inputs Socio-eco'!H34 -> 0.02616641587 | I18: ='Inputs Socio-eco'!I34 -> 0.02616641587 | J18: ='Inputs Socio-eco'!J34 -> 0.02616641587 | K18: ='Inputs Socio-eco'!K34 -> 0.02616641587
B19: Others | C19: Urban density (inhabitant per km²) | D19: =D9/D7 -> 2840.622693 | E19: =E9/E7 -> 3258.373498 | F19: 3547.398313 | G19: 3779.931776 | H19: 3999.394466 | I19: 4264.197359 | J19: 4656.085184 | K19: 5122.954189
C20: Subcentre density (inhabitant per km²) | D20: =D10/D8 -> 15797.45638 | E20: =E10/E8 -> 16749.39017 | F20: 19065.35557 | G20: 21381.32098 | H20: 23697.28639 | I20: 26013.2518 | J20: 28494.8366 | K20: 30976.4214
C21: Land-Use mixture | D21: 0.27 | E21: 0.27 | F21: 0.27 | G21: 0.27 | H21: 0.27 | I21: 0.27 | J21: 0.27 | K21: 0.27
A22: Transport supply | B22: Road infrastructure | C22: Highway (km) | D22: =TRANSPOSE('Scenario setting_work'!F49:F56) -> 0 | E22: 3.8 | F22: 3.8 | G22: 3.8 | H22: 3.8 | I22: 3.8 | J22: 3.8 | K22: 3.8
C23: Main road (km) | D23: =TRANSPOSE('Scenario setting_work'!F57:F64) -> 70 | E23: 96.4 | F23: 119 | G23: 142 | H23: 165 | I23: 188.4 | J23: 188.4 | K23: 188.4
C24: District level main road (km) | D24: =TRANSPOSE('Scenario setting_work'!F65:F72) -> 40 | E24: 55.1 | F24: 92 | G24: 130 | H24: 167 | I24: 204.3 | J24: 204.3 | K24: 204.3
C25: Feeder road (km) | D25: =TRANSPOSE('Scenario setting_work'!F73:F80) -> 170 | E25: 246.9 | F25: 378 | G25: 509 | H25: 640 | I25: 771.2 | J25: 771.2 | K25: 771.2
C26: Pedestrian network (km) | D26: =TRANSPOSE('Scenario setting_work'!F89:F96) -> 300 | E26: 420 | F26: 577.4 | G26: 734.6 | H26: 918.25 | I26: 1101.9 | J26: 1285.55 | K26: 1469.2
C27: Bike network (km) | D27: =TRANSPOSE('Scenario setting_work'!F81:F88) -> 30 | E27: 120 | F27: 428.1 | G27: 815.7 | H27: 1019.625 | I27: 1223.55 | J27: 1427.475 | K27: 1631.4
B28: PT infrastructure | C28: Bus network (km) | D28: =TRANSPOSE('Scenario setting_work'!F41:F48) -> 3874 | E28: 4200 | F28: 4100 | G28: 4100 | H28: 4100 | I28: 4100 | J28: 4100 | K28: 4100
C29: LRT (km) | D29: =TRANSPOSE('Scenario setting_work'!F9:G16) -> 0 | E29: 0 | F29: 20 | G29: 39 | H29: 107.7 | I29: 107.7 | J29: 107.7 | K29: 107.7
C30: BRT (km) | D30: =TRANSPOSE('Scenario setting_work'!F25:F32) -> 0 | E30: 0 | F30: 0 | G30: 0 | H30: 0 | I30: 0 | J30: 0 | K30: 0
C31: Cable car (km) | D31: =TRANSPOSE('Scenario setting_work'!F17:F24) -> 0 | E31: 0 | F31: 0 | G31: 23.1 | H31: 23.1 | I31: 23.1 | J31: 23.1 | K31: 23.1
C32: Rail (km) | D32: =TRANSPOSE('Scenario setting_work'!F33:F40) -> 0 | E32: 0 | F32: 0 | G32: 0 | H32: 50 | I32: 100 | J32: 150 | K32: 190
B33: Mobility tool holding | C33: Motorcycle ownership (per 1 000 capita) | D33: =Supply!D9/'City evolution'!D9*1000 -> 4.568777549 | E33: =Supply!E9/'City evolution'!E9*1000 -> 7.217250494 | F33: ='Model-Calibration'!$C$56*POWER(1/(1+EXP(-'Model-Calibration'!$D$56*(F6+'Model-Calibration'!$F$56))),'Model-Calibration'!$E$56)*(1+'Model-Calibration'!$G$56*'Scenario parameters'!F21)*(1+'Model-Calibration'!$I$56*'Scenario parameters'!F21)*(1+'Model-Calibration'!$J$56*'Scenario parameters'!F26) -> 10.13575428 | G33: ='Model-Calibration'!$C$56*POWER(1/(1+EXP(-'Model-Calibration'!$D$56*(G6+'Model-Calibration'!$F$56))),'Model-Calibration'!$E$56)*(1+'Model-Calibration'!$G$56*'Scenario parameters'!G21)*(1+'Model-Calibration'!$I$56*'Scenario parameters'!G21)*(1+'Model-Calibration'!$J$56*'Scenario parameters'!G26) -> 10.5059707 | H33: ='Model-Calibration'!$C$56*POWER(1/(1+EXP(-'Model-Calibration'!$D$56*(H6+'Model-Calibration'!$F$56))),'Model-Calibration'!$E$56)*(1+'Model-Calibration'!$G$56*'Scenario parameters'!H21)*(1+'Model-Calibration'!$I$56*'Scenario parameters'!H21)*(1+'Model-Calibration'!$J$56*'Scenario parameters'!H26) -> 10.98730804 | I33: ='Model-Calibration'!$C$56*POWER(1/(1+EXP(-'Model-Calibration'!$D$56*(I6+'Model-Calibration'!$F$56))),'Model-Calibration'!$E$56)*(1+'Model-Calibration'!$G$56*'Scenario parameters'!I21)*(1+'Model-Calibration'!$I$56*'Scenario parameters'!I21)*(1+'Model-Calibration'!$J$56*'Scenario parameters'!I26) -> 11.52616487 | J33: ='Model-Calibration'!$C$56*POWER(1/(1+EXP(-'Model-Calibration'!$D$56*(J6+'Model-Calibration'!$F$56))),'Model-Calibration'!$E$56)*(1+'Model-Calibration'!$G$56*'Scenario parameters'!J21)*(1+'Model-Calibration'!$I$56*'Scenario parameters'!J21)*(1+'Model-Calibration'!$J$56*'Scenario parameters'!J26) -> 12.11852473 | K33: ='Model-Calibration'!$C$56*POWER(1/(1+EXP(-'Model-Calibration'!$D$56*(K6+'Model-Calibration'!$F$56))),'Model-Calibration'!$E$56)*(1+'Model-Calibration'!$G$56*'Scenario parameters'!K21)*(1+'Model-Calibration'!$I$56*'Scenario parameters'!K21)*(1+'Model-Calibration'!$J$56*'Scenario parameters'!K26) -> 12.7727742
C34: Car ownership (per 1 000 capita) | D34: =Supply!D8/'City evolution'!D9*1000 -> 266.2892799 | E34: =Supply!E8/'City evolution'!E9*1000 -> 326.6489913 | F34: =MAX('Model-Calibration'!$C$55*POWER(1/(1+EXP(-'Model-Calibration'!$D$55*(F6+'Model-Calibration'!$F$55))),'Model-Calibration'!$E$55)*(1+'Model-Calibration'!$G$55*'Scenario parameters'!F20)*(1+'Model-Calibration'!$I$55*'Scenario parameters'!F21)*(1+'Model-Calibration'!$J$55*'Scenario parameters'!F26)+'Model-Calibration'!$H$55*F39,E34) -> 326.6489913 | G34: =MAX('Model-Calibration'!$C$55*POWER(1/(1+EXP(-'Model-Calibration'!$D$55*(G6+'Model-Calibration'!$F$55))),'Model-Calibration'!$E$55)*(1+'Model-Calibration'!$G$55*'Scenario parameters'!G20)*(1+'Model-Calibration'!$I$55*'Scenario parameters'!G21)*(1+'Model-Calibration'!$J$55*'Scenario parameters'!G26)+'Model-Calibration'!$H$55*G39,F34) -> 343.6996899 | H34: =MAX('Model-Calibration'!$C$55*POWER(1/(1+EXP(-'Model-Calibration'!$D$55*(H6+'Model-Calibration'!$F$55))),'Model-Calibration'!$E$55)*(1+'Model-Calibration'!$G$55*'Scenario parameters'!H20)*(1+'Model-Calibration'!$I$55*'Scenario parameters'!H21)*(1+'Model-Calibration'!$J$55*'Scenario parameters'!H26)+'Model-Calibration'!$H$55*H39,G34) -> 374.0630457 | I34: =MAX('Model-Calibration'!$C$55*POWER(1/(1+EXP(-'Model-Calibration'!$D$55*(I6+'Model-Calibration'!$F$55))),'Model-Calibration'!$E$55)*(1+'Model-Calibration'!$G$55*'Scenario parameters'!I20)*(1+'Model-Calibration'!$I$55*'Scenario parameters'!I21)*(1+'Model-Calibration'!$J$55*'Scenario parameters'!I26)+'Model-Calibration'!$H$55*I39,H34) -> 405.3241012 | J34: =MAX('Model-Calibration'!$C$55*POWER(1/(1+EXP(-'Model-Calibration'!$D$55*(J6+'Model-Calibration'!$F$55))),'Model-Calibration'!$E$55)*(1+'Model-Calibration'!$G$55*'Scenario parameters'!J20)*(1+'Model-Calibration'!$I$55*'Scenario parameters'!J21)*(1+'Model-Calibration'!$J$55*'Scenario parameters'!J26)+'Model-Calibration'!$H$55*J39,I34) -> 436.2523533 | K34: =MAX('Model-Calibration'!$C$55*POWER(1/(1+EXP(-'Model-Calibration'!$D$55*(K6+'Model-Calibration'!$F$55))),'Model-Calibration'!$E$55)*(1+'Model-Calibration'!$G$55*'Scenario parameters'!K20)*(1+'Model-Calibration'!$I$55*'Scenario parameters'!K21)*(1+'Model-Calibration'!$J$55*'Scenario parameters'!K26)+'Model-Calibration'!$H$55*K39,J34) -> 466.2698934
C35: Share of PT subscriptions (%) | D35: =Supply!D15 -> 0 | E35: =Supply!E15 -> 0 | F35: ='Scenario parameters'!F13 -> 0 | G35: ='Scenario parameters'!G13 -> 0.25 | H35: ='Scenario parameters'!H13 -> 0.275 | I35: ='Scenario parameters'!I13 -> 0.3 | J35: ='Scenario parameters'!J13 -> 0.325 | K35: ='Scenario parameters'!K13 -> 0.35
B36: Available services | C36: Taxi (per 1 000 capita) | D36: ='Scenario setting_work'!F105/D9*1000 -> 0.5062357394 | E36: ='Scenario setting_work'!F106/E9*1000 -> 0.4413320726 | F36: ='Scenario setting_work'!F107/F9*1000 -> 0.4053744751 | G36: ='Scenario setting_work'!F108/G9*1000 -> 0.3804366889 | H36: ='Scenario setting_work'!F109/H9*1000 -> 0.3595606138 | I36: ='Scenario setting_work'!F110/I9*1000 -> 0.337232217 | J36: ='Scenario setting_work'!F111/J9*1000 -> 0.308848458 | K36: ='Scenario setting_work'!F112/K9*1000 -> 0.2807022425
C37: Bike & Scooter sharing (per 1 000 capita) | D37: ='Scenario parameters'!D17/D9*1000 -> 0 | E37: ='Scenario parameters'!E17/E9*1000 -> 0 | F37: ='Scenario parameters'!F17/F9*1000 -> 0.6756241252 | G37: ='Scenario parameters'!G17/G9*1000 -> 0.8876856075 | H37: ='Scenario parameters'!H17/H9*1000 -> 1.078681841 | I37: ='Scenario parameters'!I17/I9*1000 -> 1.236518129 | J37: ='Scenario parameters'!J17/J9*1000 -> 1.338343318 | K37: ='Scenario parameters'!K17/K9*1000 -> 1.403511213
C38: Ridesharing (per 1 000 capita) | D38: ='Scenario setting_work'!$F$113/'City evolution'!D9*1000 -> 6.749809859 | E38: ='Scenario setting_work'!$F$114/'City evolution'!E9*1000 -> 7.355534543 | F38: ='Scenario setting_work'!$F$115/'City evolution'!F9*1000 -> 6.756241252 | G38: ='Scenario setting_work'!$F$116/'City evolution'!G9*1000 -> 6.340611482 | H38: ='Scenario setting_work'!$F$117/'City evolution'!H9*1000 -> 5.992676897 | I38: ='Scenario setting_work'!$F$118/'City evolution'!I9*1000 -> 5.620536951 | J38: ='Scenario setting_work'!$F$119/'City evolution'!J9*1000 -> 5.1474743 | K38: ='Scenario setting_work'!$F$120/'City evolution'!K9*1000 -> 4.678370709
C39: Car sharing (per 1 000 capita) | D39: ='Scenario parameters'!D16/D9*1000 -> 0 | E39: ='Scenario parameters'!E16/E9*1000 -> 0 | F39: ='Scenario parameters'!F16/F9*1000 -> 0 | G39: ='Scenario parameters'!G16/G9*1000 -> 0 | H39: ='Scenario parameters'!H16/H9*1000 -> 0 | I39: ='Scenario parameters'!I16/I9*1000 -> 0 | J39: ='Scenario parameters'!J16/J9*1000 -> 0 | K39: ='Scenario parameters'!K16/K9*1000 -> 0
C40: Taxibus (per 1 000 capita) | D40: ='Scenario parameters'!D12/D9*1000 -> 0 | E40: ='Scenario parameters'!E12/E9*1000 -> 0 | F40: ='Scenario parameters'!F12/F9*1000 -> 0 | G40: ='Scenario parameters'!G12/G9*1000 -> 0 | H40: ='Scenario parameters'!H12/H9*1000 -> 0 | I40: ='Scenario parameters'!I12/I9*1000 -> 0 | J40: ='Scenario parameters'!J12/J9*1000 -> 0 | K40: ='Scenario parameters'!K12/K9*1000 -> 0
B41: Transport fares | C41: Parking cost (USD per h) | D41: =IF(ISBLANK(Supply!D20),E41,Supply!D20) -> 0.3561253561 | E41: =Supply!E20 -> 0.3561253561 | F41: =MAX(1,1+'Model-Calibration'!$C$16*(F6/E6-1))*E41*(1+'Scenario parameters'!F24) -> 0.5306909186 | G41: =MAX(1,1+'Model-Calibration'!$C$16*(G6/F6-1))*F41*(1+'Scenario parameters'!G24) -> 0.6486513879 | H41: =MAX(1,1+'Model-Calibration'!$C$16*(H6/G6-1))*G41*(1+'Scenario parameters'!H24) -> 0.7961293598 | I41: =MAX(1,1+'Model-Calibration'!$C$16*(I6/H6-1))*H41*(1+'Scenario parameters'!I24) -> 0.9581766115 | J41: =MAX(1,1+'Model-Calibration'!$C$16*(J6/I6-1))*I41*(1+'Scenario parameters'!J24) -> 1.13325019 | K41: =MAX(1,1+'Model-Calibration'!$C$16*(K6/J6-1))*J41*(1+'Scenario parameters'!K24) -> 1.322954625
C42: Gas cost (USD per L) | D42: =Supply!D21 -> 0.9009009009 | E42: =IF(ISBLANK(Supply!E21),MAX(1,E6/D6)*D42,Supply!E21) -> 0.9009009009 | F42: =MAX(1,1+'Model-Calibration'!$C$17*(F6/E6-1))*E42 -> 1.137715758 | G42: =MAX(1,1+'Model-Calibration'!$C$17*(G6/F6-1))*F42 -> 1.374668142 | H42: =MAX(1,1+'Model-Calibration'!$C$17*(H6/G6-1))*G42 -> 1.667879056 | I42: =MAX(1,1+'Model-Calibration'!$C$17*(I6/H6-1))*H42 -> 1.984361899 | J42: =MAX(1,1+'Model-Calibration'!$C$17*(J6/I6-1))*I42 -> 2.320040217 | K42: =MAX(1,1+'Model-Calibration'!$C$17*(K6/J6-1))*J42 -> 2.677374117
C43: Electricity cost (USD per MJ) | D43: =Supply!D22 -> 0.01 | E43: =Supply!E22 -> 0.01 | F43: =MAX(1,1+'Model-Calibration'!$C$18*(F6/E6-1))*E43 -> 0.01262864491 | G43: =MAX(1,1+'Model-Calibration'!$C$18*(G6/F6-1))*F43 -> 0.01525881637 | H43: =MAX(1,1+'Model-Calibration'!$C$18*(H6/G6-1))*G43 -> 0.01851345753 | I43: =MAX(1,1+'Model-Calibration'!$C$18*(I6/H6-1))*H43 -> 0.02202641708 | J43: =MAX(1,1+'Model-Calibration'!$C$18*(J6/I6-1))*I43 -> 0.02575244641 | K43: =MAX(1,1+'Model-Calibration'!$C$18*(K6/J6-1))*J43 -> 0.0297188527
C44: Motorcycle cost (USD per pkm) | D44: =('Model-Calibration'!$C$29*'Model-Calibration'!$C$30*POWER(D6/'Model-Calibration'!$C$31,'Model-Calibration'!$C$32)+(1-Fleet!C7)*Fleet!C6*D42*(1+'Scenario parameters'!D25)/(100*Fleet!C10)+Fleet!C7*Fleet!C5*D43/Fleet!C10)*(1+'Scenario parameters'!D23) -> 0.06718009224 | E44: =('Model-Calibration'!$C$29*'Model-Calibration'!$C$30*POWER(E6/'Model-Calibration'!$C$31,'Model-Calibration'!$C$32)+(1-Fleet!D7)*Fleet!D6*E42*(1+'Scenario parameters'!E25)/(100*Fleet!D10)+Fleet!D7*Fleet!D5*E43/Fleet!D10)*(1+'Scenario parameters'!E23) -> 0.06648344248 | F44: =('Model-Calibration'!$C$29*'Model-Calibration'!$C$30*POWER(F6/'Model-Calibration'!$C$31,'Model-Calibration'!$C$32)+(1-Fleet!E7)*Fleet!E6*F42*(1+'Scenario parameters'!F25)/(100*Fleet!E10)+Fleet!E7*Fleet!E5*F43/Fleet!E10)*(1+'Scenario parameters'!F23) -> 0.08520676269 | G44: =('Model-Calibration'!$C$29*'Model-Calibration'!$C$30*POWER(G6/'Model-Calibration'!$C$31,'Model-Calibration'!$C$32)+(1-Fleet!F7)*Fleet!F6*G42*(1+'Scenario parameters'!G25)/(100*Fleet!F10)+Fleet!F7*Fleet!F5*G43/Fleet!F10)*(1+'Scenario parameters'!G23) -> 0.09740116335 | H44: =('Model-Calibration'!$C$29*'Model-Calibration'!$C$30*POWER(H6/'Model-Calibration'!$C$31,'Model-Calibration'!$C$32)+(1-Fleet!G7)*Fleet!G6*H42*(1+'Scenario parameters'!H25)/(100*Fleet!G10)+Fleet!G7*Fleet!G5*H43/Fleet!G10)*(1+'Scenario parameters'!H23) -> 0.1122214619 | I44: =('Model-Calibration'!$C$29*'Model-Calibration'!$C$30*POWER(I6/'Model-Calibration'!$C$31,'Model-Calibration'!$C$32)+(1-Fleet!H7)*Fleet!H6*I42*(1+'Scenario parameters'!I25)/(100*Fleet!H10)+Fleet!H7*Fleet!H5*I43/Fleet!H10)*(1+'Scenario parameters'!I23) -> 0.1284495294 | J44: =('Model-Calibration'!$C$29*'Model-Calibration'!$C$30*POWER(J6/'Model-Calibration'!$C$31,'Model-Calibration'!$C$32)+(1-Fleet!I7)*Fleet!I6*J42*(1+'Scenario parameters'!J25)/(100*Fleet!I10)+Fleet!I7*Fleet!I5*J43/Fleet!I10)*(1+'Scenario parameters'!J23) -> 0.1454142071 | K44: =('Model-Calibration'!$C$29*'Model-Calibration'!$C$30*POWER(K6/'Model-Calibration'!$C$31,'Model-Calibration'!$C$32)+(1-Fleet!J7)*Fleet!J6*K42*(1+'Scenario parameters'!K25)/(100*Fleet!J10)+Fleet!J7*Fleet!J5*K43/Fleet!J10)*(1+'Scenario parameters'!K23) -> 0.1631452454
C45: Car cost (USD per pkm) | D45: =('Model-Calibration'!$D$29*'Model-Calibration'!$D$30*POWER(D6/'Model-Calibration'!$D$31,'Model-Calibration'!$D$32)+(1-Fleet!C13)*Fleet!C12*D42*(1+'Scenario parameters'!D25)/(100*Fleet!C16)+Fleet!C13*Fleet!C11*D43/Fleet!C16)*(1+'Scenario parameters'!D23) -> 0.1197093114 | E45: =('Model-Calibration'!$D$29*'Model-Calibration'!$D$30*POWER(E6/'Model-Calibration'!$D$31,'Model-Calibration'!$D$32)+(1-Fleet!D13)*Fleet!D12*E42*(1+'Scenario parameters'!E25)/(100*Fleet!D16)+Fleet!D13*Fleet!D11*E43/Fleet!D16)*(1+'Scenario parameters'!E23) -> 0.1185946718 | F45: =('Model-Calibration'!$D$29*'Model-Calibration'!$D$30*POWER(F6/'Model-Calibration'!$D$31,'Model-Calibration'!$D$32)+(1-Fleet!E13)*Fleet!E12*F42*(1+'Scenario parameters'!F25)/(100*Fleet!E16)+Fleet!E13*Fleet!E11*F43/Fleet!E16)*(1+'Scenario parameters'!F23) -> 0.1583766966 | G45: =('Model-Calibration'!$D$29*'Model-Calibration'!$D$30*POWER(G6/'Model-Calibration'!$D$31,'Model-Calibration'!$D$32)+(1-Fleet!F13)*Fleet!F12*G42*(1+'Scenario parameters'!G25)/(100*Fleet!F16)+Fleet!F13*Fleet!F11*G43/Fleet!F16)*(1+'Scenario parameters'!G23) -> 0.1769842584 | H45: =('Model-Calibration'!$D$29*'Model-Calibration'!$D$30*POWER(H6/'Model-Calibration'!$D$31,'Model-Calibration'!$D$32)+(1-Fleet!G13)*Fleet!G12*H42*(1+'Scenario parameters'!H25)/(100*Fleet!G16)+Fleet!G13*Fleet!G11*H43/Fleet!G16)*(1+'Scenario parameters'!H23) -> 0.2020089044 | I45: =('Model-Calibration'!$D$29*'Model-Calibration'!$D$30*POWER(I6/'Model-Calibration'!$D$31,'Model-Calibration'!$D$32)+(1-Fleet!H13)*Fleet!H12*I42*(1+'Scenario parameters'!I25)/(100*Fleet!H16)+Fleet!H13*Fleet!H11*I43/Fleet!H16)*(1+'Scenario parameters'!I23) -> 0.2259912396 | J45: =('Model-Calibration'!$D$29*'Model-Calibration'!$D$30*POWER(J6/'Model-Calibration'!$D$31,'Model-Calibration'!$D$32)+(1-Fleet!I13)*Fleet!I12*J42*(1+'Scenario parameters'!J25)/(100*Fleet!I16)+Fleet!I13*Fleet!I11*J43/Fleet!I16)*(1+'Scenario parameters'!J23) -> 0.2485480777 | K45: =('Model-Calibration'!$D$29*'Model-Calibration'!$D$30*POWER(K6/'Model-Calibration'!$D$31,'Model-Calibration'!$D$32)+(1-Fleet!J13)*Fleet!J12*K42*(1+'Scenario parameters'!K25)/(100*Fleet!J16)+Fleet!J13*Fleet!J11*K43/Fleet!J16)*(1+'Scenario parameters'!K23) -> 0.2672835619
C46: Taxi - fixed cost (USD) | D46: =Supply!D23 -> 0.4234234234 | E46: =IF(ISBLANK(Supply!E23),MAX(1,$E$6/$D$6)*D46,Supply!E23) -> 0.4234234234 | F46: =MAX(1,1+'Model-Calibration'!$C$19*(F6/E6-1))*E46 -> 0.5347264061 | G46: =MAX(1,1+'Model-Calibration'!$C$19*(G6/F6-1))*F46 -> 0.6460940266 | H46: =MAX(1,1+'Model-Calibration'!$C$19*(H6/G6-1))*G46 -> 0.7839031565 | I46: =MAX(1,1+'Model-Calibration'!$C$19*(I6/H6-1))*H46 -> 0.9326500926 | J46: =MAX(1,1+'Model-Calibration'!$C$19*(J6/I6-1))*I46 -> 1.090418902 | K46: =MAX(1,1+'Model-Calibration'!$C$19*(K6/J6-1))*J46 -> 1.258365835
C47: Taxi - distance cost (USD per km) | D47: =Supply!D24 -> 0.3513513514 | E47: =IF(ISBLANK(Supply!E24),MAX(1,$E$6/$D$6)*D47,Supply!E24) -> 0.3513513514 | F47: =MAX(1,1+'Model-Calibration'!$C$20*(F7/E7-1))*E47 -> 0.3513513514 | G47: =MAX(1,1+'Model-Calibration'!$C$20*(G7/F7-1))*F47 -> 0.3513513514 | H47: =MAX(1,1+'Model-Calibration'!$C$20*(H7/G7-1))*G47 -> 0.3513513514 | I47: =MAX(1,1+'Model-Calibration'!$C$20*(I7/H7-1))*H47 -> 0.3513513514 | J47: =MAX(1,1+'Model-Calibration'!$C$20*(J7/I7-1))*I47 -> 0.3513513514 | K47: =MAX(1,1+'Model-Calibration'!$C$20*(K7/J7-1))*J47 -> 0.3513513514
C48: Taxi - time cost (USD per h) | D48: =Supply!D25 -> 7.603603604 | E48: =IF(ISBLANK(Supply!E25),MAX(1,$E$6/$D$6)*D48,Supply!E25) -> 7.603603604 | F48: =MAX(1,1+'Model-Calibration'!$C$21*(F8/E8-1))*E48 -> 7.603603604 | G48: =MAX(1,1+'Model-Calibration'!$C$21*(G8/F8-1))*F48 -> 7.603603604 | H48: =MAX(1,1+'Model-Calibration'!$C$21*(H8/G8-1))*G48 -> 7.603603604 | I48: =MAX(1,1+'Model-Calibration'!$C$21*(I8/H8-1))*H48 -> 7.603603604 | J48: =MAX(1,1+'Model-Calibration'!$C$21*(J8/I8-1))*I48 -> 7.603603604 | K48: =MAX(1,1+'Model-Calibration'!$C$21*(K8/J8-1))*J48 -> 7.603603604
C49: PT ticket fare (USD) | D49: =Supply!D26 -> 0.2252252252 | E49: =IF(ISBLANK(Supply!E26),MAX(1,$E$6/$D$6)*D49,Supply!E26) -> 0.2252252252 | F49: =MAX(1,1+'Model-Calibration'!$C$22*(F9/E9-1))*E49*IF('Scenario parameters'!D11>0,(1+'Model-Calibration'!$D$22*'Scenario parameters'!F11),1) -> 0.2452031925 | G49: =MAX(1,1+'Model-Calibration'!$C$22*(G9/F9-1))*F49*IF('Scenario parameters'!E11>0,(1+'Model-Calibration'!$D$22*'Scenario parameters'!G11),1) -> 0.2612763657 | H49: =MAX(1,1+'Model-Calibration'!$C$22*(H9/G9-1))*G49*IF('Scenario parameters'!F11>0,(1+'Model-Calibration'!$D$22*'Scenario parameters'!H11),1) -> 0.2764460612 | I49: =MAX(1,1+'Model-Calibration'!$C$22*(I9/H9-1))*H49*IF('Scenario parameters'!G11>0,(1+'Model-Calibration'!$D$22*'Scenario parameters'!I11),1) -> 0.2821793072 | J49: =MAX(1,1+'Model-Calibration'!$C$22*(J9/I9-1))*I49*IF('Scenario parameters'!H11>0,(1+'Model-Calibration'!$D$22*'Scenario parameters'!J11),1) -> 0.2949717903 | K49: =MAX(1,1+'Model-Calibration'!$C$22*(K9/J9-1))*J49*IF('Scenario parameters'!I11>0,(1+'Model-Calibration'!$D$22*'Scenario parameters'!K11),1) -> 0.3107075025
C50: PT individual trip subscription fare (USD) | D50: =D49*(1-'Model-Calibration'!$C$26) -> 0.1914414414 | E50: =E49*(1-'Model-Calibration'!$C$26) -> 0.1914414414 | F50: =F49*(1-'Model-Calibration'!$C$26) -> 0.2084227136 | G50: =G49*(1-'Model-Calibration'!$C$26) -> 0.2220849108 | H50: =H49*(1-'Model-Calibration'!$C$26) -> 0.234979152 | I50: =I49*(1-'Model-Calibration'!$C$26) -> 0.2398524111 | J50: =J49*(1-'Model-Calibration'!$C$26) -> 0.2507260217 | K50: =K49*(1-'Model-Calibration'!$C$26) -> 0.2641013771
C51: Overall PT cost (USD) | D51: =D35*D50+(1-D35)*D49 -> 0.2252252252 | E51: 0.2252252252 | F51: 0.2452031925 | G51: 0.251478502 | H51: 0.2650426612 | I51: 0.2694812383 | J51: 0.2805919155 | K51: 0.2943953586

Sheet Fleet
B2: Fleet characteristics - Values are automatically updated based on City evolution characteristics and calibration
A4: Vehicle fleet characteristics | C4: 2015 | D4: 2020 | E4: 2025 | F4: 2030 | G4: 2035 | H4: 2040 | I4: 2045 | J4: 2050
A5: Motorcycle | B5: Electricity consumption (MJ per km) | C5: =IF('Scenario setting_work'!$F$135=0,Fleet_detail!G11,IF('Scenario setting_work'!$F$135=1,Fleet_detail!G63,Fleet_detail!G115)) -> 0 | D5: =IF('Scenario setting_work'!$F$135=0,Fleet_detail!H11,IF('Scenario setting_work'!$F$135=1,Fleet_detail!H63,Fleet_detail!H115)) -> 0 | E5: =IF('Scenario setting_work'!$F$135=0,Fleet_detail!I11,IF('Scenario setting_work'!$F$135=1,Fleet_detail!I63,Fleet_detail!I115)) -> 0 | F5: =IF('Scenario setting_work'!$F$135=0,Fleet_detail!J11,IF('Scenario setting_work'!$F$135=1,Fleet_detail!J63,Fleet_detail!J115)) -> 0 | G5: =IF('Scenario setting_work'!$F$135=0,Fleet_detail!K11,IF('Scenario setting_work'!$F$135=1,Fleet_detail!K63,Fleet_detail!K115)) -> 0 | H5: =IF('Scenario setting_work'!$F$135=0,Fleet_detail!L11,IF('Scenario setting_work'!$F$135=1,Fleet_detail!L63,Fleet_detail!L115)) -> 0 | I5: =IF('Scenario setting_work'!$F$135=0,Fleet_detail!M11,IF('Scenario setting_work'!$F$135=1,Fleet_detail!M63,Fleet_detail!M115)) -> 0 | J5: =IF('Scenario setting_work'!$F$135=0,Fleet_detail!N11,IF('Scenario setting_work'!$F$135=1,Fleet_detail!N63,Fleet_detail!N115)) -> 0
B6: Fuel consumption (L per 100km) | C6: =IF('Scenario setting_work'!$F$135=0,Fleet_detail!G12,IF('Scenario setting_work'!$F$135=1,Fleet_detail!G64,Fleet_detail!G116))*100/33.4 -> 2.112550507 | D6: =IF('Scenario setting_work'!$F$135=0,Fleet_detail!H12,IF('Scenario setting_work'!$F$135=1,Fleet_detail!H64,Fleet_detail!H116))*100/33.4 -> 2.112550507 | E6: =IF('Scenario setting_work'!$F$135=0,Fleet_detail!I12,IF('Scenario setting_work'!$F$135=1,Fleet_detail!I64,Fleet_detail!I116))*100/33.4 -> 2.046492152 | F6: =IF('Scenario setting_work'!$F$135=0,Fleet_detail!J12,IF('Scenario setting_work'!$F$135=1,Fleet_detail!J64,Fleet_detail!J116))*100/33.4 -> 1.994063886 | G6: =IF('Scenario setting_work'!$F$135=0,Fleet_detail!K12,IF('Scenario setting_work'!$F$135=1,Fleet_detail!K64,Fleet_detail!K116))*100/33.4 -> 1.955849215 | H6: =IF('Scenario setting_work'!$F$135=0,Fleet_detail!L12,IF('Scenario setting_work'!$F$135=1,Fleet_detail!L64,Fleet_detail!L116))*100/33.4 -> 1.925687205 | I6: =IF('Scenario setting_work'!$F$135=0,Fleet_detail!M12,IF('Scenario setting_work'!$F$135=1,Fleet_detail!M64,Fleet_detail!M116))*100/33.4 -> 1.881729774 | J6: =IF('Scenario setting_work'!$F$135=0,Fleet_detail!N12,IF('Scenario setting_work'!$F$135=1,Fleet_detail!N64,Fleet_detail!N116))*100/33.4 -> 1.827904643
B7: Share of EV vehicles (%) | C7: =IF('Scenario setting_work'!$F$135=0,Fleet_detail!G5,IF('Scenario setting_work'!$F$135=1,Fleet_detail!G57,Fleet_detail!G109)) -> 0 | D7: =IF('Scenario setting_work'!$F$135=0,Fleet_detail!H5,IF('Scenario setting_work'!$F$135=1,Fleet_detail!H57,Fleet_detail!H109)) -> 0 | E7: =IF('Scenario setting_work'!$F$135=0,Fleet_detail!I5,IF('Scenario setting_work'!$F$135=1,Fleet_detail!I57,Fleet_detail!I109)) -> 0 | F7: =IF('Scenario setting_work'!$F$135=0,Fleet_detail!J5,IF('Scenario setting_work'!$F$135=1,Fleet_detail!J57,Fleet_detail!J109)) -> 0 | G7: =IF('Scenario setting_work'!$F$135=0,Fleet_detail!K5,IF('Scenario setting_work'!$F$135=1,Fleet_detail!K57,Fleet_detail!K109)) -> 0 | H7: =IF('Scenario setting_work'!$F$135=0,Fleet_detail!L5,IF('Scenario setting_work'!$F$135=1,Fleet_detail!L57,Fleet_detail!L109)) -> 0 | I7: =IF('Scenario setting_work'!$F$135=0,Fleet_detail!M5,IF('Scenario setting_work'!$F$135=1,Fleet_detail!M57,Fleet_detail!M109)) -> 0 | J7: =IF('Scenario setting_work'!$F$135=0,Fleet_detail!N5,IF('Scenario setting_work'!$F$135=1,Fleet_detail!N57,Fleet_detail!N109)) -> 0
B8: TTW emissions (g CO2eq per km) | C8: =IF('Scenario setting_work'!$F$135=0,Fleet_detail!G7*Fleet_detail!G5*Fleet_detail!G11+Fleet_detail!G8*Fleet_detail!G6*Fleet_detail!G12,IF('Scenario setting_work'!$F$135=1,Fleet_detail!G59*Fleet_detail!G57*Fleet_detail!G63+Fleet_detail!G60*Fleet_detail!G58*Fleet_detail!G64,Fleet_detail!G111*Fleet_detail!G109*Fleet_detail!G115+Fleet_detail!G112*Fleet_detail!G110*Fleet_detail!G116)) -> 51.7904432 | D8: =IF('Scenario setting_work'!$F$135=0,Fleet_detail!H7*Fleet_detail!H5*Fleet_detail!H11+Fleet_detail!H8*Fleet_detail!H6*Fleet_detail!H12,IF('Scenario setting_work'!$F$135=1,Fleet_detail!H59*Fleet_detail!H57*Fleet_detail!H63+Fleet_detail!H60*Fleet_detail!H58*Fleet_detail!H64,Fleet_detail!H111*Fleet_detail!H109*Fleet_detail!H115+Fleet_detail!H112*Fleet_detail!H110*Fleet_detail!H116)) -> 51.7904432 | E8: =IF('Scenario setting_work'!$F$135=0,Fleet_detail!I7*Fleet_detail!I5*Fleet_detail!I11+Fleet_detail!I8*Fleet_detail!I6*Fleet_detail!I12,IF('Scenario setting_work'!$F$135=1,Fleet_detail!I59*Fleet_detail!I57*Fleet_detail!I63+Fleet_detail!I60*Fleet_detail!I58*Fleet_detail!I64,Fleet_detail!I111*Fleet_detail!I109*Fleet_detail!I115+Fleet_detail!I112*Fleet_detail!I110*Fleet_detail!I116)) -> 50.170983 | F8: =IF('Scenario setting_work'!$F$135=0,Fleet_detail!J7*Fleet_detail!J5*Fleet_detail!J11+Fleet_detail!J8*Fleet_detail!J6*Fleet_detail!J12,IF('Scenario setting_work'!$F$135=1,Fleet_detail!J59*Fleet_detail!J57*Fleet_detail!J63+Fleet_detail!J60*Fleet_detail!J58*Fleet_detail!J64,Fleet_detail!J111*Fleet_detail!J109*Fleet_detail!J115+Fleet_detail!J112*Fleet_detail!J110*Fleet_detail!J116)) -> 48.88567261 | G8: =IF('Scenario setting_work'!$F$135=0,Fleet_detail!K7*Fleet_detail!K5*Fleet_detail!K11+Fleet_detail!K8*Fleet_detail!K6*Fleet_detail!K12,IF('Scenario setting_work'!$F$135=1,Fleet_detail!K59*Fleet_detail!K57*Fleet_detail!K63+Fleet_detail!K60*Fleet_detail!K58*Fleet_detail!K64,Fleet_detail!K111*Fleet_detail!K109*Fleet_detail!K115+Fleet_detail!K112*Fleet_detail!K110*Fleet_detail!K116)) -> 47.94881702 | H8: =IF('Scenario setting_work'!$F$135=0,Fleet_detail!L7*Fleet_detail!L5*Fleet_detail!L11+Fleet_detail!L8*Fleet_detail!L6*Fleet_detail!L12,IF('Scenario setting_work'!$F$135=1,Fleet_detail!L59*Fleet_detail!L57*Fleet_detail!L63+Fleet_detail!L60*Fleet_detail!L58*Fleet_detail!L64,Fleet_detail!L111*Fleet_detail!L109*Fleet_detail!L115+Fleet_detail!L112*Fleet_detail!L110*Fleet_detail!L116)) -> 47.20937725 | I8: =IF('Scenario setting_work'!$F$135=0,Fleet_detail!M7*Fleet_detail!M5*Fleet_detail!M11+Fleet_detail!M8*Fleet_detail!M6*Fleet_detail!M12,IF('Scenario setting_work'!$F$135=1,Fleet_detail!M59*Fleet_detail!M57*Fleet_detail!M63+Fleet_detail!M60*Fleet_detail!M58*Fleet_detail!M64,Fleet_detail!M111*Fleet_detail!M109*Fleet_detail!M115+Fleet_detail!M112*Fleet_detail!M110*Fleet_detail!M116)) -> 46.13173445 | J8: =IF('Scenario setting_work'!$F$135=0,Fleet_detail!N7*Fleet_detail!N5*Fleet_detail!N11+Fleet_detail!N8*Fleet_detail!N6*Fleet_detail!N12,IF('Scenario setting_work'!$F$135=1,Fleet_detail!N59*Fleet_detail!N57*Fleet_detail!N63+Fleet_detail!N60*Fleet_detail!N58*Fleet_detail!N64,Fleet_detail!N111*Fleet_detail!N109*Fleet_detail!N115+Fleet_detail!N112*Fleet_detail!N110*Fleet_detail!N116)) -> 44.81217906
B9: WTT emissions (g CO2eq per km) | C9: =IF('Scenario setting_work'!$F$135=0,Fleet_detail!G9*Fleet_detail!G5*Fleet_detail!G11+Fleet_detail!G10*Fleet_detail!G6*Fleet_detail!G12,IF('Scenario setting_work'!$F$135=1,Fleet_detail!G61*Fleet_detail!G57*Fleet_detail!G63+Fleet_detail!G62*Fleet_detail!G58*Fleet_detail!G64,Fleet_detail!G113*Fleet_detail!G109*Fleet_detail!G115+Fleet_detail!G114*Fleet_detail!G110*Fleet_detail!G116)) -> 11.99506178 | D9: =IF('Scenario setting_work'!$F$135=0,Fleet_detail!H9*Fleet_detail!H5*Fleet_detail!H11+Fleet_detail!H10*Fleet_detail!H6*Fleet_detail!H12,IF('Scenario setting_work'!$F$135=1,Fleet_detail!H61*Fleet_detail!H57*Fleet_detail!H63+Fleet_detail!H62*Fleet_detail!H58*Fleet_detail!H64,Fleet_detail!H113*Fleet_detail!H109*Fleet_detail!H115+Fleet_detail!H114*Fleet_detail!H110*Fleet_detail!H116)) -> 11.99506178 | E9: =IF('Scenario setting_work'!$F$135=0,Fleet_detail!I9*Fleet_detail!I5*Fleet_detail!I11+Fleet_detail!I10*Fleet_detail!I6*Fleet_detail!I12,IF('Scenario setting_work'!$F$135=1,Fleet_detail!I61*Fleet_detail!I57*Fleet_detail!I63+Fleet_detail!I62*Fleet_detail!I58*Fleet_detail!I64,Fleet_detail!I113*Fleet_detail!I109*Fleet_detail!I115+Fleet_detail!I114*Fleet_detail!I110*Fleet_detail!I116)) -> 11.61998244 | F9: =IF('Scenario setting_work'!$F$135=0,Fleet_detail!J9*Fleet_detail!J5*Fleet_detail!J11+Fleet_detail!J10*Fleet_detail!J6*Fleet_detail!J12,IF('Scenario setting_work'!$F$135=1,Fleet_detail!J61*Fleet_detail!J57*Fleet_detail!J63+Fleet_detail!J62*Fleet_detail!J58*Fleet_detail!J64,Fleet_detail!J113*Fleet_detail!J109*Fleet_detail!J115+Fleet_detail!J114*Fleet_detail!J110*Fleet_detail!J116)) -> 11.32229475 | G9: =IF('Scenario setting_work'!$F$135=0,Fleet_detail!K9*Fleet_detail!K5*Fleet_detail!K11+Fleet_detail!K10*Fleet_detail!K6*Fleet_detail!K12,IF('Scenario setting_work'!$F$135=1,Fleet_detail!K61*Fleet_detail!K57*Fleet_detail!K63+Fleet_detail!K62*Fleet_detail!K58*Fleet_detail!K64,Fleet_detail!K113*Fleet_detail!K109*Fleet_detail!K115+Fleet_detail!K114*Fleet_detail!K110*Fleet_detail!K116)) -> 11.10531184 | H9: =IF('Scenario setting_work'!$F$135=0,Fleet_detail!L9*Fleet_detail!L5*Fleet_detail!L11+Fleet_detail!L10*Fleet_detail!L6*Fleet_detail!L12,IF('Scenario setting_work'!$F$135=1,Fleet_detail!L61*Fleet_detail!L57*Fleet_detail!L63+Fleet_detail!L62*Fleet_detail!L58*Fleet_detail!L64,Fleet_detail!L113*Fleet_detail!L109*Fleet_detail!L115+Fleet_detail!L114*Fleet_detail!L110*Fleet_detail!L116)) -> 10.93405195 | I9: =IF('Scenario setting_work'!$F$135=0,Fleet_detail!M9*Fleet_detail!M5*Fleet_detail!M11+Fleet_detail!M10*Fleet_detail!M6*Fleet_detail!M12,IF('Scenario setting_work'!$F$135=1,Fleet_detail!M61*Fleet_detail!M57*Fleet_detail!M63+Fleet_detail!M62*Fleet_detail!M58*Fleet_detail!M64,Fleet_detail!M113*Fleet_detail!M109*Fleet_detail!M115+Fleet_detail!M114*Fleet_detail!M110*Fleet_detail!M116)) -> 10.68446166 | J9: =IF('Scenario setting_work'!$F$135=0,Fleet_detail!N9*Fleet_detail!N5*Fleet_detail!N11+Fleet_detail!N10*Fleet_detail!N6*Fleet_detail!N12,IF('Scenario setting_work'!$F$135=1,Fleet_detail!N61*Fleet_detail!N57*Fleet_detail!N63+Fleet_detail!N62*Fleet_detail!N58*Fleet_detail!N64,Fleet_detail!N113*Fleet_detail!N109*Fleet_detail!N115+Fleet_detail!N114*Fleet_detail!N110*Fleet_detail!N116)) -> 10.37884256
B10: Occupancy rate | C10: =Demand!D26 -> 1.1 | D10: =C10 -> 1.1 | E10: =D10 -> 1.1 | F10: 1.1 | G10: 1.1 | H10: 1.1 | I10: 1.1 | J10: 1.1
A11: Car | B11: Electricity consumption (MJ per km) | C11: =IF('Scenario setting_work'!$F$135=0,Fleet_detail!G43,IF('Scenario setting_work'!$F$135=1,Fleet_detail!G95,Fleet_detail!G147)) -> 0.5881621125 | D11: =IF('Scenario setting_work'!$F$135=0,Fleet_detail!H43,IF('Scenario setting_work'!$F$135=1,Fleet_detail!H95,Fleet_detail!H147)) -> 0.5881621125 | E11: =IF('Scenario setting_work'!$F$135=0,Fleet_detail!I43,IF('Scenario setting_work'!$F$135=1,Fleet_detail!I95,Fleet_detail!I147)) -> 0.592881913 | F11: =IF('Scenario setting_work'!$F$135=0,Fleet_detail!J43,IF('Scenario setting_work'!$F$135=1,Fleet_detail!J95,Fleet_detail!J147)) -> 0.5818140243 | G11: =IF('Scenario setting_work'!$F$135=0,Fleet_detail!K43,IF('Scenario setting_work'!$F$135=1,Fleet_detail!K95,Fleet_detail!K147)) -> 0.5693414492 | H11: =IF('Scenario setting_work'!$F$135=0,Fleet_detail!L43,IF('Scenario setting_work'!$F$135=1,Fleet_detail!L95,Fleet_detail!L147)) -> 0.5529444154 | I11: =IF('Scenario setting_work'!$F$135=0,Fleet_detail!M43,IF('Scenario setting_work'!$F$135=1,Fleet_detail!M95,Fleet_detail!M147)) -> 0.5433301801 | J11: =IF('Scenario setting_work'!$F$135=0,Fleet_detail!N43,IF('Scenario setting_work'!$F$135=1,Fleet_detail!N95,Fleet_detail!N147)) -> 0.5334984868
B12: Fuel consumption (L per 100km) | C12: =IF('Scenario setting_work'!$F$135=0,((Fleet_detail!G26*Fleet_detail!G44+Fleet_detail!G28*Fleet_detail!G46)+33.4/36*(Fleet_detail!G27*Fleet_detail!G45+Fleet_detail!G30*Fleet_detail!G48))/(Fleet_detail!G26+Fleet_detail!G27+Fleet_detail!G28+Fleet_detail!G30),IF('Scenario setting_work'!$F$135=1,((Fleet_detail!G78*Fleet_detail!G96+Fleet_detail!G80*Fleet_detail!G98)+33.4/36*(Fleet_detail!G79*Fleet_detail!G97+Fleet_detail!G82*Fleet_detail!G100))/(Fleet_detail!G78+Fleet_detail!G79+Fleet_detail!G80+Fleet_detail!G82),((Fleet_detail!G130*Fleet_detail!G148+Fleet_detail!G132*Fleet_detail!G150)+33.4/36*(Fleet_detail!G131*Fleet_detail!G149+Fleet_detail!G134*Fleet_detail!G152))/(Fleet_detail!G130+Fleet_detail!G131+Fleet_detail!G132+Fleet_detail!G134)))*100/33.4 -> 7.97318737 | D12: =IF('Scenario setting_work'!$F$135=0,((Fleet_detail!H26*Fleet_detail!H44+Fleet_detail!H28*Fleet_detail!H46)+33.4/36*(Fleet_detail!H27*Fleet_detail!H45+Fleet_detail!H30*Fleet_detail!H48))/(Fleet_detail!H26+Fleet_detail!H27+Fleet_detail!H28+Fleet_detail!H30),IF('Scenario setting_work'!$F$135=1,((Fleet_detail!H78*Fleet_detail!H96+Fleet_detail!H80*Fleet_detail!H98)+33.4/36*(Fleet_detail!H79*Fleet_detail!H97+Fleet_detail!H82*Fleet_detail!H100))/(Fleet_detail!H78+Fleet_detail!H79+Fleet_detail!H80+Fleet_detail!H82),((Fleet_detail!H130*Fleet_detail!H148+Fleet_detail!H132*Fleet_detail!H150)+33.4/36*(Fleet_detail!H131*Fleet_detail!H149+Fleet_detail!H134*Fleet_detail!H152))/(Fleet_detail!H130+Fleet_detail!H131+Fleet_detail!H132+Fleet_detail!H134)))*100/33.4 -> 7.97318737 | E12: =IF('Scenario setting_work'!$F$135=0,((Fleet_detail!I26*Fleet_detail!I44+Fleet_detail!I28*Fleet_detail!I46)+33.4/36*(Fleet_detail!I27*Fleet_detail!I45+Fleet_detail!I30*Fleet_detail!I48))/(Fleet_detail!I26+Fleet_detail!I27+Fleet_detail!I28+Fleet_detail!I30),IF('Scenario setting_work'!$F$135=1,((Fleet_detail!I78*Fleet_detail!I96+Fleet_detail!I80*Fleet_detail!I98)+33.4/36*(Fleet_detail!I79*Fleet_detail!I97+Fleet_detail!I82*Fleet_detail!I100))/(Fleet_detail!I78+Fleet_detail!I79+Fleet_detail!I80+Fleet_detail!I82),((Fleet_detail!I130*Fleet_detail!I148+Fleet_detail!I132*Fleet_detail!I150)+33.4/36*(Fleet_detail!I131*Fleet_detail!I149+Fleet_detail!I134*Fleet_detail!I152))/(Fleet_detail!I130+Fleet_detail!I131+Fleet_detail!I132+Fleet_detail!I134)))*100/33.4 -> 8.117925399 | F12: =IF('Scenario setting_work'!$F$135=0,((Fleet_detail!J26*Fleet_detail!J44+Fleet_detail!J28*Fleet_detail!J46)+33.4/36*(Fleet_detail!J27*Fleet_detail!J45+Fleet_detail!J30*Fleet_detail!J48))/(Fleet_detail!J26+Fleet_detail!J27+Fleet_detail!J28+Fleet_detail!J30),IF('Scenario setting_work'!$F$135=1,((Fleet_detail!J78*Fleet_detail!J96+Fleet_detail!J80*Fleet_detail!J98)+33.4/36*(Fleet_detail!J79*Fleet_detail!J97+Fleet_detail!J82*Fleet_detail!J100))/(Fleet_detail!J78+Fleet_detail!J79+Fleet_detail!J80+Fleet_detail!J82),((Fleet_detail!J130*Fleet_detail!J148+Fleet_detail!J132*Fleet_detail!J150)+33.4/36*(Fleet_detail!J131*Fleet_detail!J149+Fleet_detail!J134*Fleet_detail!J152))/(Fleet_detail!J130+Fleet_detail!J131+Fleet_detail!J132+Fleet_detail!J134)))*100/33.4 -> 7.653781423 | G12: =IF('Scenario setting_work'!$F$135=0,((Fleet_detail!K26*Fleet_detail!K44+Fleet_detail!K28*Fleet_detail!K46)+33.4/36*(Fleet_detail!K27*Fleet_detail!K45+Fleet_detail!K30*Fleet_detail!K48))/(Fleet_detail!K26+Fleet_detail!K27+Fleet_detail!K28+Fleet_detail!K30),IF('Scenario setting_work'!$F$135=1,((Fleet_detail!K78*Fleet_detail!K96+Fleet_detail!K80*Fleet_detail!K98)+33.4/36*(Fleet_detail!K79*Fleet_detail!K97+Fleet_detail!K82*Fleet_detail!K100))/(Fleet_detail!K78+Fleet_detail!K79+Fleet_detail!K80+Fleet_detail!K82),((Fleet_detail!K130*Fleet_detail!K148+Fleet_detail!K132*Fleet_detail!K150)+33.4/36*(Fleet_detail!K131*Fleet_detail!K149+Fleet_detail!K134*Fleet_detail!K152))/(Fleet_detail!K130+Fleet_detail!K131+Fleet_detail!K132+Fleet_detail!K134)))*100/33.4 -> 7.274899137 | H12: =IF('Scenario setting_work'!$F$135=0,((Fleet_detail!L26*Fleet_detail!L44+Fleet_detail!L28*Fleet_detail!L46)+33.4/36*(Fleet_detail!L27*Fleet_detail!L45+Fleet_detail!L30*Fleet_detail!L48))/(Fleet_detail!L26+Fleet_detail!L27+Fleet_detail!L28+Fleet_detail!L30),IF('Scenario setting_work'!$F$135=1,((Fleet_detail!L78*Fleet_detail!L96+Fleet_detail!L80*Fleet_detail!L98)+33.4/36*(Fleet_detail!L79*Fleet_detail!L97+Fleet_detail!L82*Fleet_detail!L100))/(Fleet_detail!L78+Fleet_detail!L79+Fleet_detail!L80+Fleet_detail!L82),((Fleet_detail!L130*Fleet_detail!L148+Fleet_detail!L132*Fleet_detail!L150)+33.4/36*(Fleet_detail!L131*Fleet_detail!L149+Fleet_detail!L134*Fleet_detail!L152))/(Fleet_detail!L130+Fleet_detail!L131+Fleet_detail!L132+Fleet_detail!L134)))*100/33.4 -> 6.948381522 | I12: =IF('Scenario setting_work'!$F$135=0,((Fleet_detail!M26*Fleet_detail!M44+Fleet_detail!M28*Fleet_detail!M46)+33.4/36*(Fleet_detail!M27*Fleet_detail!M45+Fleet_detail!M30*Fleet_detail!M48))/(Fleet_detail!M26+Fleet_detail!M27+Fleet_detail!M28+Fleet_detail!M30),IF('Scenario setting_work'!$F$135=1,((Fleet_detail!M78*Fleet_detail!M96+Fleet_detail!M80*Fleet_detail!M98)+33.4/36*(Fleet_detail!M79*Fleet_detail!M97+Fleet_detail!M82*Fleet_detail!M100))/(Fleet_detail!M78+Fleet_detail!M79+Fleet_detail!M80+Fleet_detail!M82),((Fleet_detail!M130*Fleet_detail!M148+Fleet_detail!M132*Fleet_detail!M150)+33.4/36*(Fleet_detail!M131*Fleet_detail!M149+Fleet_detail!M134*Fleet_detail!M152))/(Fleet_detail!M130+Fleet_detail!M131+Fleet_detail!M132+Fleet_detail!M134)))*100/33.4 -> 6.717525499 | J12: =IF('Scenario setting_work'!$F$135=0,((Fleet_detail!N26*Fleet_detail!N44+Fleet_detail!N28*Fleet_detail!N46)+33.4/36*(Fleet_detail!N27*Fleet_detail!N45+Fleet_detail!N30*Fleet_detail!N48))/(Fleet_detail!N26+Fleet_detail!N27+Fleet_detail!N28+Fleet_detail!N30),IF('Scenario setting_work'!$F$135=1,((Fleet_detail!N78*Fleet_detail!N96+Fleet_detail!N80*Fleet_detail!N98)+33.4/36*(Fleet_detail!N79*Fleet_detail!N97+Fleet_detail!N82*Fleet_detail!N100))/(Fleet_detail!N78+Fleet_detail!N79+Fleet_detail!N80+Fleet_detail!N82),((Fleet_detail!N130*Fleet_detail!N148+Fleet_detail!N132*Fleet_detail!N150)+33.4/36*(Fleet_detail!N131*Fleet_detail!N149+Fleet_detail!N134*Fleet_detail!N152))/(Fleet_detail!N130+Fleet_detail!N131+Fleet_detail!N132+Fleet_detail!N134)))*100/33.4 -> 6.530061991
B13: Share of EV vehicles (%) | C13: =IF('Scenario setting_work'!$F$135=0,Fleet_detail!G25,IF('Scenario setting_work'!$F$135=1,Fleet_detail!G77,Fleet_detail!G129)) -> 4.883765671e-05 | D13: =IF('Scenario setting_work'!$F$135=0,Fleet_detail!H25,IF('Scenario setting_work'!$F$135=1,Fleet_detail!H77,Fleet_detail!H129)) -> 4.883765671e-05 | E13: =IF('Scenario setting_work'!$F$135=0,Fleet_detail!I25,IF('Scenario setting_work'!$F$135=1,Fleet_detail!I77,Fleet_detail!I129)) -> 0.0003433088738 | F13: =IF('Scenario setting_work'!$F$135=0,Fleet_detail!J25,IF('Scenario setting_work'!$F$135=1,Fleet_detail!J77,Fleet_detail!J129)) -> 0.001438852674 | G13: =IF('Scenario setting_work'!$F$135=0,Fleet_detail!K25,IF('Scenario setting_work'!$F$135=1,Fleet_detail!K77,Fleet_detail!K129)) -> 0.004581184633 | H13: =IF('Scenario setting_work'!$F$135=0,Fleet_detail!L25,IF('Scenario setting_work'!$F$135=1,Fleet_detail!L77,Fleet_detail!L129)) -> 0.03238491536 | I13: =IF('Scenario setting_work'!$F$135=0,Fleet_detail!M25,IF('Scenario setting_work'!$F$135=1,Fleet_detail!M77,Fleet_detail!M129)) -> 0.08347929008 | J13: =IF('Scenario setting_work'!$F$135=0,Fleet_detail!N25,IF('Scenario setting_work'!$F$135=1,Fleet_detail!N77,Fleet_detail!N129)) -> 0.1628105067
B14: TTW emissions (g CO2eq per km) | C14: =IF('Scenario setting_work'!$F$135=0,Fleet_detail!G25*Fleet_detail!G31*Fleet_detail!G43+Fleet_detail!G26*Fleet_detail!G32*Fleet_detail!G44+Fleet_detail!G27*Fleet_detail!G33*Fleet_detail!G45+Fleet_detail!G28*Fleet_detail!G34*Fleet_detail!G46+Fleet_detail!G29*Fleet_detail!G35*Fleet_detail!G47+Fleet_detail!G30*Fleet_detail!G36*Fleet_detail!G48,IF('Scenario setting_work'!$F$135=1,Fleet_detail!G77*Fleet_detail!G83*Fleet_detail!G95+Fleet_detail!G78*Fleet_detail!G84*Fleet_detail!G96+Fleet_detail!G79*Fleet_detail!G85*Fleet_detail!G97+Fleet_detail!G80*Fleet_detail!G86*Fleet_detail!G98+Fleet_detail!G81*Fleet_detail!G87*Fleet_detail!G99+Fleet_detail!G82*Fleet_detail!G88*Fleet_detail!G100,Fleet_detail!G129*Fleet_detail!G135*Fleet_detail!G147+Fleet_detail!G130*Fleet_detail!G136*Fleet_detail!G148+Fleet_detail!G131*Fleet_detail!G137*Fleet_detail!G149+Fleet_detail!G132*Fleet_detail!G138*Fleet_detail!G150+Fleet_detail!G133*Fleet_detail!G139*Fleet_detail!G151+Fleet_detail!G134*Fleet_detail!G140*Fleet_detail!G152)) -> 198.8735156 | D14: =IF('Scenario setting_work'!$F$135=0,Fleet_detail!H25*Fleet_detail!H31*Fleet_detail!H43+Fleet_detail!H26*Fleet_detail!H32*Fleet_detail!H44+Fleet_detail!H27*Fleet_detail!H33*Fleet_detail!H45+Fleet_detail!H28*Fleet_detail!H34*Fleet_detail!H46+Fleet_detail!H29*Fleet_detail!H35*Fleet_detail!H47+Fleet_detail!H30*Fleet_detail!H36*Fleet_detail!H48,IF('Scenario setting_work'!$F$135=1,Fleet_detail!H77*Fleet_detail!H83*Fleet_detail!H95+Fleet_detail!H78*Fleet_detail!H84*Fleet_detail!H96+Fleet_detail!H79*Fleet_detail!H85*Fleet_detail!H97+Fleet_detail!H80*Fleet_detail!H86*Fleet_detail!H98+Fleet_detail!H81*Fleet_detail!H87*Fleet_detail!H99+Fleet_detail!H82*Fleet_detail!H88*Fleet_detail!H100,Fleet_detail!H129*Fleet_detail!H135*Fleet_detail!H147+Fleet_detail!H130*Fleet_detail!H136*Fleet_detail!H148+Fleet_detail!H131*Fleet_detail!H137*Fleet_detail!H149+Fleet_detail!H132*Fleet_detail!H138*Fleet_detail!H150+Fleet_detail!H133*Fleet_detail!H139*Fleet_detail!H151+Fleet_detail!H134*Fleet_detail!H140*Fleet_detail!H152)) -> 198.8735156 | E14: =IF('Scenario setting_work'!$F$135=0,Fleet_detail!I25*Fleet_detail!I31*Fleet_detail!I43+Fleet_detail!I26*Fleet_detail!I32*Fleet_detail!I44+Fleet_detail!I27*Fleet_detail!I33*Fleet_detail!I45+Fleet_detail!I28*Fleet_detail!I34*Fleet_detail!I46+Fleet_detail!I29*Fleet_detail!I35*Fleet_detail!I47+Fleet_detail!I30*Fleet_detail!I36*Fleet_detail!I48,IF('Scenario setting_work'!$F$135=1,Fleet_detail!I77*Fleet_detail!I83*Fleet_detail!I95+Fleet_detail!I78*Fleet_detail!I84*Fleet_detail!I96+Fleet_detail!I79*Fleet_detail!I85*Fleet_detail!I97+Fleet_detail!I80*Fleet_detail!I86*Fleet_detail!I98+Fleet_detail!I81*Fleet_detail!I87*Fleet_detail!I99+Fleet_detail!I82*Fleet_detail!I88*Fleet_detail!I100,Fleet_detail!I129*Fleet_detail!I135*Fleet_detail!I147+Fleet_detail!I130*Fleet_detail!I136*Fleet_detail!I148+Fleet_detail!I131*Fleet_detail!I137*Fleet_detail!I149+Fleet_detail!I132*Fleet_detail!I138*Fleet_detail!I150+Fleet_detail!I133*Fleet_detail!I139*Fleet_detail!I151+Fleet_detail!I134*Fleet_detail!I140*Fleet_detail!I152)) -> 197.9356509 | F14: =IF('Scenario setting_work'!$F$135=0,Fleet_detail!J25*Fleet_detail!J31*Fleet_detail!J43+Fleet_detail!J26*Fleet_detail!J32*Fleet_detail!J44+Fleet_detail!J27*Fleet_detail!J33*Fleet_detail!J45+Fleet_detail!J28*Fleet_detail!J34*Fleet_detail!J46+Fleet_detail!J29*Fleet_detail!J35*Fleet_detail!J47+Fleet_detail!J30*Fleet_detail!J36*Fleet_detail!J48,IF('Scenario setting_work'!$F$135=1,Fleet_detail!J77*Fleet_detail!J83*Fleet_detail!J95+Fleet_detail!J78*Fleet_detail!J84*Fleet_detail!J96+Fleet_detail!J79*Fleet_detail!J85*Fleet_detail!J97+Fleet_detail!J80*Fleet_detail!J86*Fleet_detail!J98+Fleet_detail!J81*Fleet_detail!J87*Fleet_detail!J99+Fleet_detail!J82*Fleet_detail!J88*Fleet_detail!J100,Fleet_detail!J129*Fleet_detail!J135*Fleet_detail!J147+Fleet_detail!J130*Fleet_detail!J136*Fleet_detail!J148+Fleet_detail!J131*Fleet_detail!J137*Fleet_detail!J149+Fleet_detail!J132*Fleet_detail!J138*Fleet_detail!J150+Fleet_detail!J133*Fleet_detail!J139*Fleet_detail!J151+Fleet_detail!J134*Fleet_detail!J140*Fleet_detail!J152)) -> 186.8772358 | G14: =IF('Scenario setting_work'!$F$135=0,Fleet_detail!K25*Fleet_detail!K31*Fleet_detail!K43+Fleet_detail!K26*Fleet_detail!K32*Fleet_detail!K44+Fleet_detail!K27*Fleet_detail!K33*Fleet_detail!K45+Fleet_detail!K28*Fleet_detail!K34*Fleet_detail!K46+Fleet_detail!K29*Fleet_detail!K35*Fleet_detail!K47+Fleet_detail!K30*Fleet_detail!K36*Fleet_detail!K48,IF('Scenario setting_work'!$F$135=1,Fleet_detail!K77*Fleet_detail!K83*Fleet_detail!K95+Fleet_detail!K78*Fleet_detail!K84*Fleet_detail!K96+Fleet_detail!K79*Fleet_detail!K85*Fleet_detail!K97+Fleet_detail!K80*Fleet_detail!K86*Fleet_detail!K98+Fleet_detail!K81*Fleet_detail!K87*Fleet_detail!K99+Fleet_detail!K82*Fleet_detail!K88*Fleet_detail!K100,Fleet_detail!K129*Fleet_detail!K135*Fleet_detail!K147+Fleet_detail!K130*Fleet_detail!K136*Fleet_detail!K148+Fleet_detail!K131*Fleet_detail!K137*Fleet_detail!K149+Fleet_detail!K132*Fleet_detail!K138*Fleet_detail!K150+Fleet_detail!K133*Fleet_detail!K139*Fleet_detail!K151+Fleet_detail!K134*Fleet_detail!K140*Fleet_detail!K152)) -> 177.8456337 | H14: =IF('Scenario setting_work'!$F$135=0,Fleet_detail!L25*Fleet_detail!L31*Fleet_detail!L43+Fleet_detail!L26*Fleet_detail!L32*Fleet_detail!L44+Fleet_detail!L27*Fleet_detail!L33*Fleet_detail!L45+Fleet_detail!L28*Fleet_detail!L34*Fleet_detail!L46+Fleet_detail!L29*Fleet_detail!L35*Fleet_detail!L47+Fleet_detail!L30*Fleet_detail!L36*Fleet_detail!L48,IF('Scenario setting_work'!$F$135=1,Fleet_detail!L77*Fleet_detail!L83*Fleet_detail!L95+Fleet_detail!L78*Fleet_detail!L84*Fleet_detail!L96+Fleet_detail!L79*Fleet_detail!L85*Fleet_detail!L97+Fleet_detail!L80*Fleet_detail!L86*Fleet_detail!L98+Fleet_detail!L81*Fleet_detail!L87*Fleet_detail!L99+Fleet_detail!L82*Fleet_detail!L88*Fleet_detail!L100,Fleet_detail!L129*Fleet_detail!L135*Fleet_detail!L147+Fleet_detail!L130*Fleet_detail!L136*Fleet_detail!L148+Fleet_detail!L131*Fleet_detail!L137*Fleet_detail!L149+Fleet_detail!L132*Fleet_detail!L138*Fleet_detail!L150+Fleet_detail!L133*Fleet_detail!L139*Fleet_detail!L151+Fleet_detail!L134*Fleet_detail!L140*Fleet_detail!L152)) -> 166.0672394 | I14: =IF('Scenario setting_work'!$F$135=0,Fleet_detail!M25*Fleet_detail!M31*Fleet_detail!M43+Fleet_detail!M26*Fleet_detail!M32*Fleet_detail!M44+Fleet_detail!M27*Fleet_detail!M33*Fleet_detail!M45+Fleet_detail!M28*Fleet_detail!M34*Fleet_detail!M46+Fleet_detail!M29*Fleet_detail!M35*Fleet_detail!M47+Fleet_detail!M30*Fleet_detail!M36*Fleet_detail!M48,IF('Scenario setting_work'!$F$135=1,Fleet_detail!M77*Fleet_detail!M83*Fleet_detail!M95+Fleet_detail!M78*Fleet_detail!M84*Fleet_detail!M96+Fleet_detail!M79*Fleet_detail!M85*Fleet_detail!M97+Fleet_detail!M80*Fleet_detail!M86*Fleet_detail!M98+Fleet_detail!M81*Fleet_detail!M87*Fleet_detail!M99+Fleet_detail!M82*Fleet_detail!M88*Fleet_detail!M100,Fleet_detail!M129*Fleet_detail!M135*Fleet_detail!M147+Fleet_detail!M130*Fleet_detail!M136*Fleet_detail!M148+Fleet_detail!M131*Fleet_detail!M137*Fleet_detail!M149+Fleet_detail!M132*Fleet_detail!M138*Fleet_detail!M150+Fleet_detail!M133*Fleet_detail!M139*Fleet_detail!M151+Fleet_detail!M134*Fleet_detail!M140*Fleet_detail!M152)) -> 152.8827514 | J14: =IF('Scenario setting_work'!$F$135=0,Fleet_detail!N25*Fleet_detail!N31*Fleet_detail!N43+Fleet_detail!N26*Fleet_detail!N32*Fleet_detail!N44+Fleet_detail!N27*Fleet_detail!N33*Fleet_detail!N45+Fleet_detail!N28*Fleet_detail!N34*Fleet_detail!N46+Fleet_detail!N29*Fleet_detail!N35*Fleet_detail!N47+Fleet_detail!N30*Fleet_detail!N36*Fleet_detail!N48,IF('Scenario setting_work'!$F$135=1,Fleet_detail!N77*Fleet_detail!N83*Fleet_detail!N95+Fleet_detail!N78*Fleet_detail!N84*Fleet_detail!N96+Fleet_detail!N79*Fleet_detail!N85*Fleet_detail!N97+Fleet_detail!N80*Fleet_detail!N86*Fleet_detail!N98+Fleet_detail!N81*Fleet_detail!N87*Fleet_detail!N99+Fleet_detail!N82*Fleet_detail!N88*Fleet_detail!N100,Fleet_detail!N129*Fleet_detail!N135*Fleet_detail!N147+Fleet_detail!N130*Fleet_detail!N136*Fleet_detail!N148+Fleet_detail!N131*Fleet_detail!N137*Fleet_detail!N149+Fleet_detail!N132*Fleet_detail!N138*Fleet_detail!N150+Fleet_detail!N133*Fleet_detail!N139*Fleet_detail!N151+Fleet_detail!N134*Fleet_detail!N140*Fleet_detail!N152)) -> 136.1948767
B15: WTT emissions (g CO2eq per km) | C15: =IF('Scenario setting_work'!$F$135=0,Fleet_detail!G25*Fleet_detail!G37*Fleet_detail!G43+Fleet_detail!G26*Fleet_detail!G38*Fleet_detail!G44+Fleet_detail!G27*Fleet_detail!G39*Fleet_detail!G45+Fleet_detail!G28*Fleet_detail!G40*Fleet_detail!G46+Fleet_detail!G29*Fleet_detail!G41*Fleet_detail!G47+Fleet_detail!G30*Fleet_detail!G42*Fleet_detail!G48,IF('Scenario setting_work'!$F$135=1,Fleet_detail!G77*Fleet_detail!G89*Fleet_detail!G95+Fleet_detail!G78*Fleet_detail!G90*Fleet_detail!G96+Fleet_detail!G79*Fleet_detail!G91*Fleet_detail!G97+Fleet_detail!G80*Fleet_detail!G92*Fleet_detail!G98+Fleet_detail!G81*Fleet_detail!G93*Fleet_detail!G99+Fleet_detail!G82*Fleet_detail!G94*Fleet_detail!G100,Fleet_detail!G129*Fleet_detail!G141*Fleet_detail!G147+Fleet_detail!G130*Fleet_detail!G142*Fleet_detail!G148+Fleet_detail!G131*Fleet_detail!G143*Fleet_detail!G149+Fleet_detail!G132*Fleet_detail!G144*Fleet_detail!G150+Fleet_detail!G133*Fleet_detail!G145*Fleet_detail!G151+Fleet_detail!G134*Fleet_detail!G146*Fleet_detail!G152)) -> 48.38231354 | D15: =IF('Scenario setting_work'!$F$135=0,Fleet_detail!H25*Fleet_detail!H37*Fleet_detail!H43+Fleet_detail!H26*Fleet_detail!H38*Fleet_detail!H44+Fleet_detail!H27*Fleet_detail!H39*Fleet_detail!H45+Fleet_detail!H28*Fleet_detail!H40*Fleet_detail!H46+Fleet_detail!H29*Fleet_detail!H41*Fleet_detail!H47+Fleet_detail!H30*Fleet_detail!H42*Fleet_detail!H48,IF('Scenario setting_work'!$F$135=1,Fleet_detail!H77*Fleet_detail!H89*Fleet_detail!H95+Fleet_detail!H78*Fleet_detail!H90*Fleet_detail!H96+Fleet_detail!H79*Fleet_detail!H91*Fleet_detail!H97+Fleet_detail!H80*Fleet_detail!H92*Fleet_detail!H98+Fleet_detail!H81*Fleet_detail!H93*Fleet_detail!H99+Fleet_detail!H82*Fleet_detail!H94*Fleet_detail!H100,Fleet_detail!H129*Fleet_detail!H141*Fleet_detail!H147+Fleet_detail!H130*Fleet_detail!H142*Fleet_detail!H148+Fleet_detail!H131*Fleet_detail!H143*Fleet_detail!H149+Fleet_detail!H132*Fleet_detail!H144*Fleet_detail!H150+Fleet_detail!H133*Fleet_detail!H145*Fleet_detail!H151+Fleet_detail!H134*Fleet_detail!H146*Fleet_detail!H152)) -> 48.38231354 | E15: =IF('Scenario setting_work'!$F$135=0,Fleet_detail!I25*Fleet_detail!I37*Fleet_detail!I43+Fleet_detail!I26*Fleet_detail!I38*Fleet_detail!I44+Fleet_detail!I27*Fleet_detail!I39*Fleet_detail!I45+Fleet_detail!I28*Fleet_detail!I40*Fleet_detail!I46+Fleet_detail!I29*Fleet_detail!I41*Fleet_detail!I47+Fleet_detail!I30*Fleet_detail!I42*Fleet_detail!I48,IF('Scenario setting_work'!$F$135=1,Fleet_detail!I77*Fleet_detail!I89*Fleet_detail!I95+Fleet_detail!I78*Fleet_detail!I90*Fleet_detail!I96+Fleet_detail!I79*Fleet_detail!I91*Fleet_detail!I97+Fleet_detail!I80*Fleet_detail!I92*Fleet_detail!I98+Fleet_detail!I81*Fleet_detail!I93*Fleet_detail!I99+Fleet_detail!I82*Fleet_detail!I94*Fleet_detail!I100,Fleet_detail!I129*Fleet_detail!I141*Fleet_detail!I147+Fleet_detail!I130*Fleet_detail!I142*Fleet_detail!I148+Fleet_detail!I131*Fleet_detail!I143*Fleet_detail!I149+Fleet_detail!I132*Fleet_detail!I144*Fleet_detail!I150+Fleet_detail!I133*Fleet_detail!I145*Fleet_detail!I151+Fleet_detail!I134*Fleet_detail!I146*Fleet_detail!I152)) -> 46.71145648 | F15: =IF('Scenario setting_work'!$F$135=0,Fleet_detail!J25*Fleet_detail!J37*Fleet_detail!J43+Fleet_detail!J26*Fleet_detail!J38*Fleet_detail!J44+Fleet_detail!J27*Fleet_detail!J39*Fleet_detail!J45+Fleet_detail!J28*Fleet_detail!J40*Fleet_detail!J46+Fleet_detail!J29*Fleet_detail!J41*Fleet_detail!J47+Fleet_detail!J30*Fleet_detail!J42*Fleet_detail!J48,IF('Scenario setting_work'!$F$135=1,Fleet_detail!J77*Fleet_detail!J89*Fleet_detail!J95+Fleet_detail!J78*Fleet_detail!J90*Fleet_detail!J96+Fleet_detail!J79*Fleet_detail!J91*Fleet_detail!J97+Fleet_detail!J80*Fleet_detail!J92*Fleet_detail!J98+Fleet_detail!J81*Fleet_detail!J93*Fleet_detail!J99+Fleet_detail!J82*Fleet_detail!J94*Fleet_detail!J100,Fleet_detail!J129*Fleet_detail!J141*Fleet_detail!J147+Fleet_detail!J130*Fleet_detail!J142*Fleet_detail!J148+Fleet_detail!J131*Fleet_detail!J143*Fleet_detail!J149+Fleet_detail!J132*Fleet_detail!J144*Fleet_detail!J150+Fleet_detail!J133*Fleet_detail!J145*Fleet_detail!J151+Fleet_detail!J134*Fleet_detail!J146*Fleet_detail!J152)) -> 44.26050933 | G15: =IF('Scenario setting_work'!$F$135=0,Fleet_detail!K25*Fleet_detail!K37*Fleet_detail!K43+Fleet_detail!K26*Fleet_detail!K38*Fleet_detail!K44+Fleet_detail!K27*Fleet_detail!K39*Fleet_detail!K45+Fleet_detail!K28*Fleet_detail!K40*Fleet_detail!K46+Fleet_detail!K29*Fleet_detail!K41*Fleet_detail!K47+Fleet_detail!K30*Fleet_detail!K42*Fleet_detail!K48,IF('Scenario setting_work'!$F$135=1,Fleet_detail!K77*Fleet_detail!K89*Fleet_detail!K95+Fleet_detail!K78*Fleet_detail!K90*Fleet_detail!K96+Fleet_detail!K79*Fleet_detail!K91*Fleet_detail!K97+Fleet_detail!K80*Fleet_detail!K92*Fleet_detail!K98+Fleet_detail!K81*Fleet_detail!K93*Fleet_detail!K99+Fleet_detail!K82*Fleet_detail!K94*Fleet_detail!K100,Fleet_detail!K129*Fleet_detail!K141*Fleet_detail!K147+Fleet_detail!K130*Fleet_detail!K142*Fleet_detail!K148+Fleet_detail!K131*Fleet_detail!K143*Fleet_detail!K149+Fleet_detail!K132*Fleet_detail!K144*Fleet_detail!K150+Fleet_detail!K133*Fleet_detail!K145*Fleet_detail!K151+Fleet_detail!K134*Fleet_detail!K146*Fleet_detail!K152)) -> 42.28470626 | H15: =IF('Scenario setting_work'!$F$135=0,Fleet_detail!L25*Fleet_detail!L37*Fleet_detail!L43+Fleet_detail!L26*Fleet_detail!L38*Fleet_detail!L44+Fleet_detail!L27*Fleet_detail!L39*Fleet_detail!L45+Fleet_detail!L28*Fleet_detail!L40*Fleet_detail!L46+Fleet_detail!L29*Fleet_detail!L41*Fleet_detail!L47+Fleet_detail!L30*Fleet_detail!L42*Fleet_detail!L48,IF('Scenario setting_work'!$F$135=1,Fleet_detail!L77*Fleet_detail!L89*Fleet_detail!L95+Fleet_detail!L78*Fleet_detail!L90*Fleet_detail!L96+Fleet_detail!L79*Fleet_detail!L91*Fleet_detail!L97+Fleet_detail!L80*Fleet_detail!L92*Fleet_detail!L98+Fleet_detail!L81*Fleet_detail!L93*Fleet_detail!L99+Fleet_detail!L82*Fleet_detail!L94*Fleet_detail!L100,Fleet_detail!L129*Fleet_detail!L141*Fleet_detail!L147+Fleet_detail!L130*Fleet_detail!L142*Fleet_detail!L148+Fleet_detail!L131*Fleet_detail!L143*Fleet_detail!L149+Fleet_detail!L132*Fleet_detail!L144*Fleet_detail!L150+Fleet_detail!L133*Fleet_detail!L145*Fleet_detail!L151+Fleet_detail!L134*Fleet_detail!L146*Fleet_detail!L152)) -> 40.24573934 | I15: =IF('Scenario setting_work'!$F$135=0,Fleet_detail!M25*Fleet_detail!M37*Fleet_detail!M43+Fleet_detail!M26*Fleet_detail!M38*Fleet_detail!M44+Fleet_detail!M27*Fleet_detail!M39*Fleet_detail!M45+Fleet_detail!M28*Fleet_detail!M40*Fleet_detail!M46+Fleet_detail!M29*Fleet_detail!M41*Fleet_detail!M47+Fleet_detail!M30*Fleet_detail!M42*Fleet_detail!M48,IF('Scenario setting_work'!$F$135=1,Fleet_detail!M77*Fleet_detail!M89*Fleet_detail!M95+Fleet_detail!M78*Fleet_detail!M90*Fleet_detail!M96+Fleet_detail!M79*Fleet_detail!M91*Fleet_detail!M97+Fleet_detail!M80*Fleet_detail!M92*Fleet_detail!M98+Fleet_detail!M81*Fleet_detail!M93*Fleet_detail!M99+Fleet_detail!M82*Fleet_detail!M94*Fleet_detail!M100,Fleet_detail!M129*Fleet_detail!M141*Fleet_detail!M147+Fleet_detail!M130*Fleet_detail!M142*Fleet_detail!M148+Fleet_detail!M131*Fleet_detail!M143*Fleet_detail!M149+Fleet_detail!M132*Fleet_detail!M144*Fleet_detail!M150+Fleet_detail!M133*Fleet_detail!M145*Fleet_detail!M151+Fleet_detail!M134*Fleet_detail!M146*Fleet_detail!M152)) -> 38.08444489 | J15: =IF('Scenario setting_work'!$F$135=0,Fleet_detail!N25*Fleet_detail!N37*Fleet_detail!N43+Fleet_detail!N26*Fleet_detail!N38*Fleet_detail!N44+Fleet_detail!N27*Fleet_detail!N39*Fleet_detail!N45+Fleet_detail!N28*Fleet_detail!N40*Fleet_detail!N46+Fleet_detail!N29*Fleet_detail!N41*Fleet_detail!N47+Fleet_detail!N30*Fleet_detail!N42*Fleet_detail!N48,IF('Scenario setting_work'!$F$135=1,Fleet_detail!N77*Fleet_detail!N89*Fleet_detail!N95+Fleet_detail!N78*Fleet_detail!N90*Fleet_detail!N96+Fleet_detail!N79*Fleet_detail!N91*Fleet_detail!N97+Fleet_detail!N80*Fleet_detail!N92*Fleet_detail!N98+Fleet_detail!N81*Fleet_detail!N93*Fleet_detail!N99+Fleet_detail!N82*Fleet_detail!N94*Fleet_detail!N100,Fleet_detail!N129*Fleet_detail!N141*Fleet_detail!N147+Fleet_detail!N130*Fleet_detail!N142*Fleet_detail!N148+Fleet_detail!N131*Fleet_detail!N143*Fleet_detail!N149+Fleet_detail!N132*Fleet_detail!N144*Fleet_detail!N150+Fleet_detail!N133*Fleet_detail!N145*Fleet_detail!N151+Fleet_detail!N134*Fleet_detail!N146*Fleet_detail!N152)) -> 35.04431124
B16: Occupancy rate | C16: =Demand!D27*(1+'Scenario parameters'!D18) -> 1.8 | D16: =C16*(1+'Scenario parameters'!E18) -> 1.8 | E16: =D16*(1+'Scenario parameters'!F18) -> 1.8 | F16: =E16*(1+'Scenario parameters'!G18) -> 1.89 | G16: =F16*(1+'Scenario parameters'!H18) -> 1.912109022 | H16: =G16*(1+'Scenario parameters'!I18) -> 1.934476673 | I16: =H16*(1+'Scenario parameters'!J18) -> 1.957105979 | J16: =I16*(1+'Scenario parameters'!K18) -> 1.98
A17: Bus | B17: Electricity consumption (MJ per km) | C17: =IF('Scenario setting_work'!$F$135=0,Fleet_detail!G22,IF('Scenario setting_work'!$F$135=1,Fleet_detail!G74,Fleet_detail!G126)) -> 4.893818619 | D17: =IF('Scenario setting_work'!$F$135=0,Fleet_detail!H22,IF('Scenario setting_work'!$F$135=1,Fleet_detail!H74,Fleet_detail!H126)) -> 4.893818619 | E17: =IF('Scenario setting_work'!$F$135=0,Fleet_detail!I22,IF('Scenario setting_work'!$F$135=1,Fleet_detail!I74,Fleet_detail!I126)) -> 4.783818619 | F17: =IF('Scenario setting_work'!$F$135=0,Fleet_detail!J22,IF('Scenario setting_work'!$F$135=1,Fleet_detail!J74,Fleet_detail!J126)) -> 4.673818619 | G17: =IF('Scenario setting_work'!$F$135=0,Fleet_detail!K22,IF('Scenario setting_work'!$F$135=1,Fleet_detail!K74,Fleet_detail!K126)) -> 4.563818619 | H17: =IF('Scenario setting_work'!$F$135=0,Fleet_detail!L22,IF('Scenario setting_work'!$F$135=1,Fleet_detail!L74,Fleet_detail!L126)) -> 4.453818619 | I17: =IF('Scenario setting_work'!$F$135=0,Fleet_detail!M22,IF('Scenario setting_work'!$F$135=1,Fleet_detail!M74,Fleet_detail!M126)) -> 4.343818619 | J17: =IF('Scenario setting_work'!$F$135=0,Fleet_detail!N22,IF('Scenario setting_work'!$F$135=1,Fleet_detail!N74,Fleet_detail!N126)) -> 4.233818619
B18: Fuel consumption (L per 100km) | C18: =IF('Scenario setting_work'!$F$135=0,Fleet_detail!G23,IF('Scenario setting_work'!$F$135=1,Fleet_detail!G75,Fleet_detail!G127))*100/36 -> 39.34140739 | D18: =IF('Scenario setting_work'!$F$135=0,Fleet_detail!H23,IF('Scenario setting_work'!$F$135=1,Fleet_detail!H75,Fleet_detail!H127))*100/36 -> 39.34140739 | E18: =IF('Scenario setting_work'!$F$135=0,Fleet_detail!I23,IF('Scenario setting_work'!$F$135=1,Fleet_detail!I75,Fleet_detail!I127))*100/36 -> 38.29313521 | F18: =IF('Scenario setting_work'!$F$135=0,Fleet_detail!J23,IF('Scenario setting_work'!$F$135=1,Fleet_detail!J75,Fleet_detail!J127))*100/36 -> 37.17617411 | G18: =IF('Scenario setting_work'!$F$135=0,Fleet_detail!K23,IF('Scenario setting_work'!$F$135=1,Fleet_detail!K75,Fleet_detail!K127))*100/36 -> 36.29599031 | H18: =IF('Scenario setting_work'!$F$135=0,Fleet_detail!L23,IF('Scenario setting_work'!$F$135=1,Fleet_detail!L75,Fleet_detail!L127))*100/36 -> 35.63797726 | I18: =IF('Scenario setting_work'!$F$135=0,Fleet_detail!M23,IF('Scenario setting_work'!$F$135=1,Fleet_detail!M75,Fleet_detail!M127))*100/36 -> 34.93411235 | J18: =IF('Scenario setting_work'!$F$135=0,Fleet_detail!N23,IF('Scenario setting_work'!$F$135=1,Fleet_detail!N75,Fleet_detail!N127))*100/36 -> 34.15578443
B19: Share of EV vehicles (%) | C19: =IF('Scenario setting_work'!$F$135=0,Fleet_detail!G13,IF('Scenario setting_work'!$F$135=1,Fleet_detail!G65,Fleet_detail!G117)) -> 0.0666 | D19: =IF('Scenario setting_work'!$F$135=0,Fleet_detail!H13,IF('Scenario setting_work'!$F$135=1,Fleet_detail!H65,Fleet_detail!H117)) -> 0.0666 | E19: =IF('Scenario setting_work'!$F$135=0,Fleet_detail!I13,IF('Scenario setting_work'!$F$135=1,Fleet_detail!I65,Fleet_detail!I117)) -> 0.2833 | F19: =IF('Scenario setting_work'!$F$135=0,Fleet_detail!J13,IF('Scenario setting_work'!$F$135=1,Fleet_detail!J65,Fleet_detail!J117)) -> 0.5 | G19: =IF('Scenario setting_work'!$F$135=0,Fleet_detail!K13,IF('Scenario setting_work'!$F$135=1,Fleet_detail!K65,Fleet_detail!K117)) -> 0.55 | H19: =IF('Scenario setting_work'!$F$135=0,Fleet_detail!L13,IF('Scenario setting_work'!$F$135=1,Fleet_detail!L65,Fleet_detail!L117)) -> 0.6 | I19: =IF('Scenario setting_work'!$F$135=0,Fleet_detail!M13,IF('Scenario setting_work'!$F$135=1,Fleet_detail!M65,Fleet_detail!M117)) -> 0.65 | J19: =IF('Scenario setting_work'!$F$135=0,Fleet_detail!N13,IF('Scenario setting_work'!$F$135=1,Fleet_detail!N65,Fleet_detail!N117)) -> 0.7
B20: TTW emissions (g CO2eq per km) | C20: =IF('Scenario setting_work'!$F$135=0,Fleet_detail!G13*Fleet_detail!G16*Fleet_detail!G22+Fleet_detail!G14*Fleet_detail!G17*Fleet_detail!G23+Fleet_detail!G15*Fleet_detail!G18*Fleet_detail!G24,IF('Scenario setting_work'!$F$135=1,Fleet_detail!G65*Fleet_detail!G68*Fleet_detail!G74+Fleet_detail!G66*Fleet_detail!G69*Fleet_detail!G75+Fleet_detail!G67*Fleet_detail!G70*Fleet_detail!G76,Fleet_detail!G117*Fleet_detail!G120*Fleet_detail!G126+Fleet_detail!G118*Fleet_detail!G121*Fleet_detail!G127+Fleet_detail!G119*Fleet_detail!G122*Fleet_detail!G128)) -> 940.9586719 | D20: =IF('Scenario setting_work'!$F$135=0,Fleet_detail!H13*Fleet_detail!H16*Fleet_detail!H22+Fleet_detail!H14*Fleet_detail!H17*Fleet_detail!H23+Fleet_detail!H15*Fleet_detail!H18*Fleet_detail!H24,IF('Scenario setting_work'!$F$135=1,Fleet_detail!H65*Fleet_detail!H68*Fleet_detail!H74+Fleet_detail!H66*Fleet_detail!H69*Fleet_detail!H75+Fleet_detail!H67*Fleet_detail!H70*Fleet_detail!H76,Fleet_detail!H117*Fleet_detail!H120*Fleet_detail!H126+Fleet_detail!H118*Fleet_detail!H121*Fleet_detail!H127+Fleet_detail!H119*Fleet_detail!H122*Fleet_detail!H128)) -> 940.9586719 | E20: =IF('Scenario setting_work'!$F$135=0,Fleet_detail!I13*Fleet_detail!I16*Fleet_detail!I22+Fleet_detail!I14*Fleet_detail!I17*Fleet_detail!I23+Fleet_detail!I15*Fleet_detail!I18*Fleet_detail!I24,IF('Scenario setting_work'!$F$135=1,Fleet_detail!I65*Fleet_detail!I68*Fleet_detail!I74+Fleet_detail!I66*Fleet_detail!I69*Fleet_detail!I75+Fleet_detail!I67*Fleet_detail!I70*Fleet_detail!I76,Fleet_detail!I117*Fleet_detail!I120*Fleet_detail!I126+Fleet_detail!I118*Fleet_detail!I121*Fleet_detail!I127+Fleet_detail!I119*Fleet_detail!I122*Fleet_detail!I128)) -> 687.1429492 | F20: =IF('Scenario setting_work'!$F$135=0,Fleet_detail!J13*Fleet_detail!J16*Fleet_detail!J22+Fleet_detail!J14*Fleet_detail!J17*Fleet_detail!J23+Fleet_detail!J15*Fleet_detail!J18*Fleet_detail!J24,IF('Scenario setting_work'!$F$135=1,Fleet_detail!J65*Fleet_detail!J68*Fleet_detail!J74+Fleet_detail!J66*Fleet_detail!J69*Fleet_detail!J75+Fleet_detail!J67*Fleet_detail!J70*Fleet_detail!J76,Fleet_detail!J117*Fleet_detail!J120*Fleet_detail!J126+Fleet_detail!J118*Fleet_detail!J121*Fleet_detail!J127+Fleet_detail!J119*Fleet_detail!J122*Fleet_detail!J128)) -> 445.9859902 | G20: =IF('Scenario setting_work'!$F$135=0,Fleet_detail!K13*Fleet_detail!K16*Fleet_detail!K22+Fleet_detail!K14*Fleet_detail!K17*Fleet_detail!K23+Fleet_detail!K15*Fleet_detail!K18*Fleet_detail!K24,IF('Scenario setting_work'!$F$135=1,Fleet_detail!K65*Fleet_detail!K68*Fleet_detail!K74+Fleet_detail!K66*Fleet_detail!K69*Fleet_detail!K75+Fleet_detail!K67*Fleet_detail!K70*Fleet_detail!K76,Fleet_detail!K117*Fleet_detail!K120*Fleet_detail!K126+Fleet_detail!K118*Fleet_detail!K121*Fleet_detail!K127+Fleet_detail!K119*Fleet_detail!K122*Fleet_detail!K128)) -> 389.1497773 | H20: =IF('Scenario setting_work'!$F$135=0,Fleet_detail!L13*Fleet_detail!L16*Fleet_detail!L22+Fleet_detail!L14*Fleet_detail!L17*Fleet_detail!L23+Fleet_detail!L15*Fleet_detail!L18*Fleet_detail!L24,IF('Scenario setting_work'!$F$135=1,Fleet_detail!L65*Fleet_detail!L68*Fleet_detail!L74+Fleet_detail!L66*Fleet_detail!L69*Fleet_detail!L75+Fleet_detail!L67*Fleet_detail!L70*Fleet_detail!L76,Fleet_detail!L117*Fleet_detail!L120*Fleet_detail!L126+Fleet_detail!L118*Fleet_detail!L121*Fleet_detail!L127+Fleet_detail!L119*Fleet_detail!L122*Fleet_detail!L128)) -> 336.3704862 | I20: =IF('Scenario setting_work'!$F$135=0,Fleet_detail!M13*Fleet_detail!M16*Fleet_detail!M22+Fleet_detail!M14*Fleet_detail!M17*Fleet_detail!M23+Fleet_detail!M15*Fleet_detail!M18*Fleet_detail!M24,IF('Scenario setting_work'!$F$135=1,Fleet_detail!M65*Fleet_detail!M68*Fleet_detail!M74+Fleet_detail!M66*Fleet_detail!M69*Fleet_detail!M75+Fleet_detail!M67*Fleet_detail!M70*Fleet_detail!M76,Fleet_detail!M117*Fleet_detail!M120*Fleet_detail!M126+Fleet_detail!M118*Fleet_detail!M121*Fleet_detail!M127+Fleet_detail!M119*Fleet_detail!M122*Fleet_detail!M128)) -> 285.016468 | J20: =IF('Scenario setting_work'!$F$135=0,Fleet_detail!N13*Fleet_detail!N16*Fleet_detail!N22+Fleet_detail!N14*Fleet_detail!N17*Fleet_detail!N23+Fleet_detail!N15*Fleet_detail!N18*Fleet_detail!N24,IF('Scenario setting_work'!$F$135=1,Fleet_detail!N65*Fleet_detail!N68*Fleet_detail!N74+Fleet_detail!N66*Fleet_detail!N69*Fleet_detail!N75+Fleet_detail!N67*Fleet_detail!N70*Fleet_detail!N76,Fleet_detail!N117*Fleet_detail!N120*Fleet_detail!N126+Fleet_detail!N118*Fleet_detail!N121*Fleet_detail!N127+Fleet_detail!N119*Fleet_detail!N122*Fleet_detail!N128)) -> 235.1180323
B21: WTT emissions (g CO2eq per km) | C21: =IF('Scenario setting_work'!$F$135=0,Fleet_detail!G13*Fleet_detail!G19*Fleet_detail!G22+Fleet_detail!G14*Fleet_detail!G20*Fleet_detail!G23+Fleet_detail!G15*Fleet_detail!G21*Fleet_detail!G24,IF('Scenario setting_work'!$F$135=1,Fleet_detail!G65*Fleet_detail!G71*Fleet_detail!G74+Fleet_detail!G66*Fleet_detail!G72*Fleet_detail!G75+Fleet_detail!G67*Fleet_detail!G73*Fleet_detail!G76,Fleet_detail!G117*Fleet_detail!G123*Fleet_detail!G126+Fleet_detail!G118*Fleet_detail!G124*Fleet_detail!G127+Fleet_detail!G119*Fleet_detail!G125*Fleet_detail!G128)) -> 282.0067074 | D21: =IF('Scenario setting_work'!$F$135=0,Fleet_detail!H13*Fleet_detail!H19*Fleet_detail!H22+Fleet_detail!H14*Fleet_detail!H20*Fleet_detail!H23+Fleet_detail!H15*Fleet_detail!H21*Fleet_detail!H24,IF('Scenario setting_work'!$F$135=1,Fleet_detail!H65*Fleet_detail!H71*Fleet_detail!H74+Fleet_detail!H66*Fleet_detail!H72*Fleet_detail!H75+Fleet_detail!H67*Fleet_detail!H73*Fleet_detail!H76,Fleet_detail!H117*Fleet_detail!H123*Fleet_detail!H126+Fleet_detail!H118*Fleet_detail!H124*Fleet_detail!H127+Fleet_detail!H119*Fleet_detail!H125*Fleet_detail!H128)) -> 282.0067074 | E21: =IF('Scenario setting_work'!$F$135=0,Fleet_detail!I13*Fleet_detail!I19*Fleet_detail!I22+Fleet_detail!I14*Fleet_detail!I20*Fleet_detail!I23+Fleet_detail!I15*Fleet_detail!I21*Fleet_detail!I24,IF('Scenario setting_work'!$F$135=1,Fleet_detail!I65*Fleet_detail!I71*Fleet_detail!I74+Fleet_detail!I66*Fleet_detail!I72*Fleet_detail!I75+Fleet_detail!I67*Fleet_detail!I73*Fleet_detail!I76,Fleet_detail!I117*Fleet_detail!I123*Fleet_detail!I126+Fleet_detail!I118*Fleet_detail!I124*Fleet_detail!I127+Fleet_detail!I119*Fleet_detail!I125*Fleet_detail!I128)) -> 300.0741305 | F21: =IF('Scenario setting_work'!$F$135=0,Fleet_detail!J13*Fleet_detail!J19*Fleet_detail!J22+Fleet_detail!J14*Fleet_detail!J20*Fleet_detail!J23+Fleet_detail!J15*Fleet_detail!J21*Fleet_detail!J24,IF('Scenario setting_work'!$F$135=1,Fleet_detail!J65*Fleet_detail!J71*Fleet_detail!J74+Fleet_detail!J66*Fleet_detail!J72*Fleet_detail!J75+Fleet_detail!J67*Fleet_detail!J73*Fleet_detail!J76,Fleet_detail!J117*Fleet_detail!J123*Fleet_detail!J126+Fleet_detail!J118*Fleet_detail!J124*Fleet_detail!J127+Fleet_detail!J119*Fleet_detail!J125*Fleet_detail!J128)) -> 286.4195359 | G21: =IF('Scenario setting_work'!$F$135=0,Fleet_detail!K13*Fleet_detail!K19*Fleet_detail!K22+Fleet_detail!K14*Fleet_detail!K20*Fleet_detail!K23+Fleet_detail!K15*Fleet_detail!K21*Fleet_detail!K24,IF('Scenario setting_work'!$F$135=1,Fleet_detail!K65*Fleet_detail!K71*Fleet_detail!K74+Fleet_detail!K66*Fleet_detail!K72*Fleet_detail!K75+Fleet_detail!K67*Fleet_detail!K73*Fleet_detail!K76,Fleet_detail!K117*Fleet_detail!K123*Fleet_detail!K126+Fleet_detail!K118*Fleet_detail!K124*Fleet_detail!K127+Fleet_detail!K119*Fleet_detail!K125*Fleet_detail!K128)) -> 251.2789788 | H21: =IF('Scenario setting_work'!$F$135=0,Fleet_detail!L13*Fleet_detail!L19*Fleet_detail!L22+Fleet_detail!L14*Fleet_detail!L20*Fleet_detail!L23+Fleet_detail!L15*Fleet_detail!L21*Fleet_detail!L24,IF('Scenario setting_work'!$F$135=1,Fleet_detail!L65*Fleet_detail!L71*Fleet_detail!L74+Fleet_detail!L66*Fleet_detail!L72*Fleet_detail!L75+Fleet_detail!L67*Fleet_detail!L73*Fleet_detail!L76,Fleet_detail!L117*Fleet_detail!L123*Fleet_detail!L126+Fleet_detail!L118*Fleet_detail!L124*Fleet_detail!L127+Fleet_detail!L119*Fleet_detail!L125*Fleet_detail!L128)) -> 217.5418663 | I21: =IF('Scenario setting_work'!$F$135=0,Fleet_detail!M13*Fleet_detail!M19*Fleet_detail!M22+Fleet_detail!M14*Fleet_detail!M20*Fleet_detail!M23+Fleet_detail!M15*Fleet_detail!M21*Fleet_detail!M24,IF('Scenario setting_work'!$F$135=1,Fleet_detail!M65*Fleet_detail!M71*Fleet_detail!M74+Fleet_detail!M66*Fleet_detail!M72*Fleet_detail!M75+Fleet_detail!M67*Fleet_detail!M73*Fleet_detail!M76,Fleet_detail!M117*Fleet_detail!M123*Fleet_detail!M126+Fleet_detail!M118*Fleet_detail!M124*Fleet_detail!M127+Fleet_detail!M119*Fleet_detail!M125*Fleet_detail!M128)) -> 188.6822827 | J21: =IF('Scenario setting_work'!$F$135=0,Fleet_detail!N13*Fleet_detail!N19*Fleet_detail!N22+Fleet_detail!N14*Fleet_detail!N20*Fleet_detail!N23+Fleet_detail!N15*Fleet_detail!N21*Fleet_detail!N24,IF('Scenario setting_work'!$F$135=1,Fleet_detail!N65*Fleet_detail!N71*Fleet_detail!N74+Fleet_detail!N66*Fleet_detail!N72*Fleet_detail!N75+Fleet_detail!N67*Fleet_detail!N73*Fleet_detail!N76,Fleet_detail!N117*Fleet_detail!N123*Fleet_detail!N126+Fleet_detail!N118*Fleet_detail!N124*Fleet_detail!N127+Fleet_detail!N119*Fleet_detail!N125*Fleet_detail!N128)) -> 157.4418227
B22: Occupancy rate | C22: =Demand!D29 -> 12 | D22: =C22 -> 12 | E22: =D22 -> 12 | F22: 12 | G22: 12 | H22: 12 | I22: 12 | J22: 12
A23: Rail | B23: Electricity consumption (MJ per km) | C23: =IF('Scenario setting_work'!$F$135=0,Fleet_detail!G55,IF('Scenario setting_work'!$F$135=1,Fleet_detail!G107,Fleet_detail!G159))*300 -> 26.16855884 | D23: =IF('Scenario setting_work'!$F$135=0,Fleet_detail!H55,IF('Scenario setting_work'!$F$135=1,Fleet_detail!H107,Fleet_detail!H159))*300 -> 26.16855884 | E23: =IF('Scenario setting_work'!$F$135=0,Fleet_detail!I55,IF('Scenario setting_work'!$F$135=1,Fleet_detail!I107,Fleet_detail!I159))*300 -> 22.34279849 | F23: =IF('Scenario setting_work'!$F$135=0,Fleet_detail!J55,IF('Scenario setting_work'!$F$135=1,Fleet_detail!J107,Fleet_detail!J159))*300 -> 18.51658633 | G23: =IF('Scenario setting_work'!$F$135=0,Fleet_detail!K55,IF('Scenario setting_work'!$F$135=1,Fleet_detail!K107,Fleet_detail!K159))*300 -> 15.55446173 | H23: =IF('Scenario setting_work'!$F$135=0,Fleet_detail!L55,IF('Scenario setting_work'!$F$135=1,Fleet_detail!L107,Fleet_detail!L159))*300 -> 14.10844675 | I23: =IF('Scenario setting_work'!$F$135=0,Fleet_detail!M55,IF('Scenario setting_work'!$F$135=1,Fleet_detail!M107,Fleet_detail!M159))*300 -> 12.07841687 | J23: =IF('Scenario setting_work'!$F$135=0,Fleet_detail!N55,IF('Scenario setting_work'!$F$135=1,Fleet_detail!N107,Fleet_detail!N159))*300 -> 10.33081993
B24: Fuel consumption (L per 100km) | C24: =IF('Scenario setting_work'!$F$135=0,Fleet_detail!G56,IF('Scenario setting_work'!$F$135=1,Fleet_detail!G108,Fleet_detail!G160))*100/36*300 -> 145.4457112 | D24: =IF('Scenario setting_work'!$F$135=0,Fleet_detail!H56,IF('Scenario setting_work'!$F$135=1,Fleet_detail!H108,Fleet_detail!H160))*100/36*300 -> 145.4457112 | E24: =IF('Scenario setting_work'!$F$135=0,Fleet_detail!I56,IF('Scenario setting_work'!$F$135=1,Fleet_detail!I108,Fleet_detail!I160))*100/36*300 -> 142.2418428 | F24: =IF('Scenario setting_work'!$F$135=0,Fleet_detail!J56,IF('Scenario setting_work'!$F$135=1,Fleet_detail!J108,Fleet_detail!J160))*100/36*300 -> 140.6499846 | G24: =IF('Scenario setting_work'!$F$135=0,Fleet_detail!K56,IF('Scenario setting_work'!$F$135=1,Fleet_detail!K108,Fleet_detail!K160))*100/36*300 -> 140.1000904 | H24: =IF('Scenario setting_work'!$F$135=0,Fleet_detail!L56,IF('Scenario setting_work'!$F$135=1,Fleet_detail!L108,Fleet_detail!L160))*100/36*300 -> 140.0040979 | I24: =IF('Scenario setting_work'!$F$135=0,Fleet_detail!M56,IF('Scenario setting_work'!$F$135=1,Fleet_detail!M108,Fleet_detail!M160))*100/36*300 -> 140 | J24: =IF('Scenario setting_work'!$F$135=0,Fleet_detail!N56,IF('Scenario setting_work'!$F$135=1,Fleet_detail!N108,Fleet_detail!N160))*100/36*300 -> 140
B25: Share of EV vehicles (%) | C25: =IF('Scenario setting_work'!$F$135=0,Fleet_detail!G49,IF('Scenario setting_work'!$F$135=1,Fleet_detail!G101,Fleet_detail!G153)) -> 0.8298603414 | D25: =IF('Scenario setting_work'!$F$135=0,Fleet_detail!H49,IF('Scenario setting_work'!$F$135=1,Fleet_detail!H101,Fleet_detail!H153)) -> 0.8298603414 | E25: =IF('Scenario setting_work'!$F$135=0,Fleet_detail!I49,IF('Scenario setting_work'!$F$135=1,Fleet_detail!I101,Fleet_detail!I153)) -> 0.8298603414 | F25: =IF('Scenario setting_work'!$F$135=0,Fleet_detail!J49,IF('Scenario setting_work'!$F$135=1,Fleet_detail!J101,Fleet_detail!J153)) -> 0.8298603414 | G25: =IF('Scenario setting_work'!$F$135=0,Fleet_detail!K49,IF('Scenario setting_work'!$F$135=1,Fleet_detail!K101,Fleet_detail!K153)) -> 0.8298603414 | H25: =IF('Scenario setting_work'!$F$135=0,Fleet_detail!L49,IF('Scenario setting_work'!$F$135=1,Fleet_detail!L101,Fleet_detail!L153)) -> 0.8298603414 | I25: =IF('Scenario setting_work'!$F$135=0,Fleet_detail!M49,IF('Scenario setting_work'!$F$135=1,Fleet_detail!M101,Fleet_detail!M153)) -> 0.8298603414 | J25: =IF('Scenario setting_work'!$F$135=0,Fleet_detail!N49,IF('Scenario setting_work'!$F$135=1,Fleet_detail!N101,Fleet_detail!N153)) -> 0.8298603414
B26: TTW emissions (g CO2eq per km) | C26: =IF('Scenario setting_work'!$F$135=0,Fleet_detail!G49*Fleet_detail!G51*Fleet_detail!G55+Fleet_detail!G50*Fleet_detail!G52*Fleet_detail!G56,IF('Scenario setting_work'!$F$135=1,Fleet_detail!G101*Fleet_detail!G103*Fleet_detail!G107+Fleet_detail!G102*Fleet_detail!G104*Fleet_detail!G108,Fleet_detail!G153*Fleet_detail!G155*Fleet_detail!G159+Fleet_detail!G154*Fleet_detail!G156*Fleet_detail!G160))*300 -> 649.0798756 | D26: =IF('Scenario setting_work'!$F$135=0,Fleet_detail!H49*Fleet_detail!H51*Fleet_detail!H55+Fleet_detail!H50*Fleet_detail!H52*Fleet_detail!H56,IF('Scenario setting_work'!$F$135=1,Fleet_detail!H101*Fleet_detail!H103*Fleet_detail!H107+Fleet_detail!H102*Fleet_detail!H104*Fleet_detail!H108,Fleet_detail!H153*Fleet_detail!H155*Fleet_detail!H159+Fleet_detail!H154*Fleet_detail!H156*Fleet_detail!H160))*300 -> 649.0798756 | E26: =IF('Scenario setting_work'!$F$135=0,Fleet_detail!I49*Fleet_detail!I51*Fleet_detail!I55+Fleet_detail!I50*Fleet_detail!I52*Fleet_detail!I56,IF('Scenario setting_work'!$F$135=1,Fleet_detail!I101*Fleet_detail!I103*Fleet_detail!I107+Fleet_detail!I102*Fleet_detail!I104*Fleet_detail!I108,Fleet_detail!I153*Fleet_detail!I155*Fleet_detail!I159+Fleet_detail!I154*Fleet_detail!I156*Fleet_detail!I160))*300 -> 634.7819876 | F26: =IF('Scenario setting_work'!$F$135=0,Fleet_detail!J49*Fleet_detail!J51*Fleet_detail!J55+Fleet_detail!J50*Fleet_detail!J52*Fleet_detail!J56,IF('Scenario setting_work'!$F$135=1,Fleet_detail!J101*Fleet_detail!J103*Fleet_detail!J107+Fleet_detail!J102*Fleet_detail!J104*Fleet_detail!J108,Fleet_detail!J153*Fleet_detail!J155*Fleet_detail!J159+Fleet_detail!J154*Fleet_detail!J156*Fleet_detail!J160))*300 -> 627.6780098 | G26: =IF('Scenario setting_work'!$F$135=0,Fleet_detail!K49*Fleet_detail!K51*Fleet_detail!K55+Fleet_detail!K50*Fleet_detail!K52*Fleet_detail!K56,IF('Scenario setting_work'!$F$135=1,Fleet_detail!K101*Fleet_detail!K103*Fleet_detail!K107+Fleet_detail!K102*Fleet_detail!K104*Fleet_detail!K108,Fleet_detail!K153*Fleet_detail!K155*Fleet_detail!K159+Fleet_detail!K154*Fleet_detail!K156*Fleet_detail!K160))*300 -> 625.2239995 | H26: =IF('Scenario setting_work'!$F$135=0,Fleet_detail!L49*Fleet_detail!L51*Fleet_detail!L55+Fleet_detail!L50*Fleet_detail!L52*Fleet_detail!L56,IF('Scenario setting_work'!$F$135=1,Fleet_detail!L101*Fleet_detail!L103*Fleet_detail!L107+Fleet_detail!L102*Fleet_detail!L104*Fleet_detail!L108,Fleet_detail!L153*Fleet_detail!L155*Fleet_detail!L159+Fleet_detail!L154*Fleet_detail!L156*Fleet_detail!L160))*300 -> 624.7956141 | I26: =IF('Scenario setting_work'!$F$135=0,Fleet_detail!M49*Fleet_detail!M51*Fleet_detail!M55+Fleet_detail!M50*Fleet_detail!M52*Fleet_detail!M56,IF('Scenario setting_work'!$F$135=1,Fleet_detail!M101*Fleet_detail!M103*Fleet_detail!M107+Fleet_detail!M102*Fleet_detail!M104*Fleet_detail!M108,Fleet_detail!M153*Fleet_detail!M155*Fleet_detail!M159+Fleet_detail!M154*Fleet_detail!M156*Fleet_detail!M160))*300 -> 624.7773265 | J26: =IF('Scenario setting_work'!$F$135=0,Fleet_detail!N49*Fleet_detail!N51*Fleet_detail!N55+Fleet_detail!N50*Fleet_detail!N52*Fleet_detail!N56,IF('Scenario setting_work'!$F$135=1,Fleet_detail!N101*Fleet_detail!N103*Fleet_detail!N107+Fleet_detail!N102*Fleet_detail!N104*Fleet_detail!N108,Fleet_detail!N153*Fleet_detail!N155*Fleet_detail!N159+Fleet_detail!N154*Fleet_detail!N156*Fleet_detail!N160))*300 -> 624.7773265
